Workbook

Sheet Model
A1: x | AKI1: x
B2: Randomised Model | V2: XLSim Model Storage
B3: The Vertical Phasing Option: Simulating Optimal Exercise Rules | V3: 10000 Trials | W3: ={"Sim",15,"NPV Analytic","'Model'!$F$75","NPV Rule 2","'Model'!$F$82","NPV Rule 3","'Model'!$F$89","Analytic Stage 1 Exercise","'Model'!$F$59","Analytic Stage 2 Exercise","'Model'!$F$60","Rule 2 Stage 1 Exercise","'Model'!$F$62","Rule 2 Stage 2 Exercise","'Model'!$F$63","Rule 3 Stage 1 Exercise","'Model'!$F$65","Rule 3 Stage 2 Exercise","'Model'!$F$66","YesNo Analytic1","'Model'!$E$59","YesNo Analytic2","'Model'!$E$60","YesNo RuleTwo-1","'Model'!$E$62","YesNo RuleTwo-2","'Model'!$E$63","YesNo RuleThree-1","'Model'!$E$65","YesNo RuleThree-2","'Model'!$E$66","1","4","10,000","0",""} -> Sim
B4: Note that all cost items and outflows have a negative sign | V4: Parameterised Sim | W4: ={"Param","Model!$F$75","NPV_1","10,000","1","3","1","Market Rent","Model!$W$5:$AA$5","Model!$I$8",""} -> Param | X4: ={"Param","Model!$F$82","NPV_2","10,000","1","3","1","Market Rent","Model!$W$5:$AA$5","Model!$I$8",""} -> Param | Y4: ={"Param","Model!$F$89","NPV_3","10,000","1","3","1","Market Rent","Model!$W$5:$AA$5","Model!$I$8",""} -> Param
V5: P | W5: 50 | X5: 100 | Y5: 150 | Z5: 200 | AA5: 250
B6: General Assumptions | L6: States and Capacities | Q6: Generic Exercise Rules
B7: Variable | I7: Value | J7: Unit | N7: State s_i | O7: Capacity | Q7: Stage | R7: Rule | S7: Multiple of P | T7: Threshold
B8: Current Market Rent | H8: P | I8: 150 | J8: /unit pa | L8: Empty Land | N8: 0 | O8: 0 | P8: unit | Q8: 1 | R8: Analytic | S8: =T8/$I$8 -> 1.160208282 | T8: =I39 -> 174.0312424
B9: Total Investment Cost Phase 1 | H9: Delta I_1 | I9: 2000 | J9: /unit | L9: Small Building | N9: 1 | O9: 1 | P9: unit | Q9: 2 | R9: Analytic | S9: 1.450260353 | T9: =I36 -> 217.539053
B10: Total Investment Cost Phase 2 | H10: Delta I_2 | I10: =V11*V12 -> 2500 | J10: /unit | L10: Extended Building | N10: 2 | O10: 2 | P10: unit | Q10: 1 | R10: Two | S10: =S8*(1+$T$15) -> 1.740312424 | T10: =S10*$I$8 -> 261.0468636 | V10: SensiVariables
L11: Project volatility per period | P11: =I12*SQRT(1/periods) -> 0.1 | Q11: 2 | R11: Two | S11: 2.17539053 | T11: =S11*$I$8 -> 326.3085795 | V11: 2500 | W11: Delta I_1
B12: Project volatility | H12: sigma | I12: 0.2 | J12: pa | L12: Discount rate per period | P12: =(1+I13)^(1/periods)-1 -> 0.01227223443 | Q12: 1 | R12: Three | S12: =S8*(1-$T$15) -> 0.5801041412 | T12: =S12*$I$8 -> 87.01562119 | V12: 1 | W12: I_2 to I_1
B13: Discount rate | H13: r | I13: 0.05 | J13: pa | L13: Underlying asset yield per period | P13: =(1+I14)^(1/periods)-1 -> 0.009853406549 | Q13: 2 | R13: Three | S13: =S9*(1-$T$15) -> 0.7251301766 | T13: =S13*$I$8 -> 108.7695265
B14: Underlying asset yield | H14: delta | I14: 0.04 | J14: pa | L14: How many months per time period? | P14: 3
B15: Underlying current asset value per unit capacity | I15: =I8/I14 -> 3750 | J15: /unit | L15: Number of periods per year | P15: =12/P14 -> 4 | Q15: Over-/underestimate rules 2&3 by | T15: 0.5
B16: Construction cost yield | H16: yK | I16: =I13 -> 0.05
B17: OCC of built property (Not necquired to value option) | H17: OCC | I17: 0.09 | L17: Code the data tables anew after making changes to the model as simulation is too slow otherwise!
B18: Time to build (years) | H18: ttb | I18: 0 | J18: years | L18: Added Value of Compound vs Single Option
N19: Underlying Asset Yield
B20: Basic Samuelson McKean Calculations for Single Option (S) | M20: =AC42 -> 1167.746698 | N20: =X34 -> 0.03 | O20: =N20+1% -> 0.04 | P20: =O20+1% -> 0.05 | Q20: =P20+1% -> 0.06 | R20: =Q20+1% -> 0.07 | S20: =R20+1% -> 0.08 | T20: =S20+1% -> 0.09 | V20: Basic Samuelson McKean Data Table
B21: Table adapted from Geltner and Miller (2001) Resource CD Rom | I21: Value S | L21: Project Volatility | M21: =W35 -> 0.1 | N21: =X35/X23-1 -> 0.8333333333 | O21: 0.7200965008 | P21: 0.5664432288 | Q21: 0.4096 | R21: 0.2910571208 | S21: 0.1998026989 | T21: 0.134217728 | X21: Underlying Asset Yield
B22: Option (land value) elasticity [ "beta" = (dV/V)/(dP/P) ] | H22: beta | I22: =(I14-I16+I12^2/2+((I16-I14-I12^2/2)^2+2*I16*I12^2)^0.5)/I12^2 -> 1.850781059 | M22: =M21+5% -> 0.15 | N22: 0.8477715586 | O22: 0.7712443274 | P22: 0.6894191008 | Q22: 0.6046653084 | R22: 0.5219832915 | S22: 0.445133571 | T22: 0.3761790814 | V22: Project Volatility | W22: =I26 -> 1785.54273 | X22: 0.03 | Y22: =X22+1% -> 0.04 | Z22: 0.05 | AA22: =Z22+1% -> 0.06 | AB22: 0.07 | AC22: 0.08 | AD22: 0.09
B23: Hurdle Benefit/Cost Ratio (P{1,S}/I) (PV[FV] terms) | H23: B/C Ratio | I23: =I22/(I22-1) -> 2.17539053 | M23: =M22+5% -> 0.2 | N23: 0.8783787657 | O23: 0.8270862416 | P23: 0.7722322429 | Q23: 0.7155417528 | R23: 0.6587156277 | S23: 0.6031760945 | T23: 0.5499643227 | W23: 0.1 | X23: 3000 | Y23: 1750 | Z23: 1000 | AA23: 500 | AB23: 191.6589426 | AC23: 56.14098563 | AD23: 12.51411438
B24: (B/C)* @ current= | I24: =I23*(EXP(I14*I18))/(EXP(I16*I18)) -> 2.17539053 | M24: 0.25 | N24: 0.9029188821 | O24: 0.8650216698 | P24: 0.825359469 | Q24: 0.7846637182 | R24: 0.7436301337 | S24: 0.7028620036 | T24: 0.66284529 | W24: =W23+5% -> 0.15 | X24: 3000 | Y24: 1750 | Z24: 1010.271224 | AA24: 555.2575452 | AB24: 283.3764553 | AC24: 132.5732116 | AD24: 56.60311505
B25: Value Threshold{1,S}= | I25: =I23*I9/EXP(I16*I18) -> 4350.781059 | M25: 0.3 | N25: 0.9211938343 | O25: 0.8919496855 | P25: 0.861773876 | Q25: 0.831015855 | R25: 0.8 | S25: 0.7690113534 | T25: 0.7382895581 | W25: =W24+5% -> 0.2 | X25: 3010.530901 | Y25: 1785.54273 | Z25: 1081.177504 | AA25: 649.5190528 | AB25: 381.1692829 | AC25: 216.676418 | AD25: 118.8074566
B26: Theoretical Land Value = Option Value (V{0,S}) | I26: =IF(I15<=I25,(I25-I9/EXP(I16*I18))*((I15/EXP(I14*I18))/(I25))^I22,I15/EXP(I14*I18)-I9/EXP(I16*I18)) -> 1785.54273 | M26: 0.35 | N26: 0.9350496 | O26: 0.9117498133 | P26: 0.8879381887 | Q26: 0.8637954102 | R26: 0.8394867652 | S26: 0.8151584486 | T26: 0.7909362461 | W26: 0.25 | X26: 3070.299834 | Y26: 1866.604834 | Z26: 1177.36457 | AA26: 751.3927053 | AB26: 478.8208671 | AC26: 302.4023229 | AD26: 188.469516
B27: Critical Value of Underlying Asset (optimal development above) | I27: =EXP((I14-I16)*I18)*I23*I9 -> 4350.781059 | M27: 0.4 | N27: 0.945741609 | O27: 0.9267202318 | P27: 0.9074108962 | Q27: 0.8879124232 | R27: 0.8683145272 | S27: 0.8486969453 | T27: 0.8291293044 | W27: 0.3 | X27: 3158.659984 | Y27: 1965.110426 | Z27: 1280.48159 | AA27: 853.1750607 | AB27: 573.9795918 | AC27: 387.0658748 | AD27: 260.4850893
B28: Optimal immediate exercise? | I28: =IF(I15<I27,"No","Yes") -> No | M28: 0.45 | N28: 0.9541267737 | O28: 0.9382977358 | P28: 0.9223050012 | Q28: 0.9062049616 | R28: 0.8900486655 | S28: 0.8738816998 | T28: 0.8577443074 | W28: 0.35 | X28: 3259.379241 | Y28: 2068.935124 | Z28: 1383.540162 | AA28: 951.8908565 | AB28: 665.4423165 | AC28: 469.2401553 | AD28: 332.2529856
B29: Implied OCC of (live) option | I29: =(I17-I13)*I22+I13 -> 0.1240312424 | W29: 0.4 | X29: 3363.585661 | Y29: 2172.177056 | Z29: 1483.336016 | AA29: 1046.138209 | AB29: 752.5323389 | AC29: 548.1005026 | AD29: 402.3294776
B30: Optimal land value fraction at devlpt (current values) = 1/beta | I30: =1/I22 -> 0.5403124237 | L30: Added Value of Compound vs Single Option | W30: 0.45 | X30: 3466.355651 | Y30: 2271.798461 | Z30: 1578.295383 | AA30: 1135.230105 | AB30: 834.884548 | AC30: 623.1699142 | AD30: 469.8754634
N31: ΔI_2 relative to ΔI_1
B32: Compound Option Calculations for Two Stage Option (VP) | J32: Compare: | L32: Project Volatility | M32: =J45 -> 0.8270862416 | N32: 1 | O32: =N32+0.25 -> 1.25 | P32: 1.5 | Q32: =P32+0.25 -> 1.75 | R32: 2 | V32: Compound Option Data Table
I33: Value VP | J33: Value S | M33: 0.1 | N33: 0.7200965008 | O33: 0.4925976022 | P33: 0.3612105985 | Q33: 0.2778730087 | R33: 0.2213958436 | X33: Underlying Asset Yield
B34: Beta | H34: beta | I34: =1/2-((I13-I14)/(I12^2))+SQRT(((I13-I14)/(I12^2)-1/2)^2+(2*I13/(I12^2))) -> 1.850781059 | J34: =I22 -> 1.850781059 | M34: =M33+5% -> 0.15 | N34: 0.7712443274 | O34: 0.5947616168 | P34: 0.4809927677 | Q34: 0.4019581585 | R34: 0.3440731773 | W34: =I42 -> 3262.340555 | X34: 0.03 | Y34: =X34+1% -> 0.04 | Z34: 0.05 | AA34: =Z34+1% -> 0.06 | AB34: 0.07 | AC34: 0.08 | AD34: 0.09
B35: Beta - 1 | H35: beta-1 | I35: =I34-1 -> 0.8507810594 | M35: =M34+5% -> 0.2 | N35: 0.8270862416 | O35: 0.684071651 | P35: 0.5857815496 | Q35: 0.5137816959 | R35: 0.4586064704 | V35: Project Volatility | W35: 0.1 | X35: 5500 | Y35: 3010.168876 | Z35: 1566.443229 | AA35: 704.8 | AB35: 247.4426426 | AC35: 67.35810608 | AD35: 14.19373038
B36: Optimal threshold to build second stage | H36: P_2 | I36: =(I14*I34)/(I34-1)*I10 -> 217.539053 | M36: 0.25 | N36: 0.8650216698 | O36: 0.7482624892 | P36: 0.6646626526 | Q36: 0.6013102961 | R36: 0.551334212 | W36: =W35+5% -> 0.15 | X36: 5543.314676 | Y36: 3099.677573 | Z36: 1706.771503 | AA36: 891.00252 | AB36: 431.2942302 | AC36: 191.5859988 | AD36: 77.89602287
B37: Optimal immediate exercise of phase 2? | I37: =+IF(I36<I8,"Yes", "No") -> No | M37: 0.3 | N37: 0.8919496855 | O37: 0.7955742415 | P37: 0.7246125149 | Q37: 0.6695765816 | R37: 0.6252927817 | W37: =W36+5% -> 0.2 | X37: 5654.917319 | Y37: 3262.340555 | Z37: 1916.097634 | AA37: 1114.277054 | AB37: 632.2514463 | AC37: 347.3704535 | AD37: 184.1473189
B38: Option coefficient A_1 | H38: A_1 | I38: =1/beta_1*(beta_1/(delta*beta))^beta*((O10-O9)^beta/(I10^beta_1)) -> 0.138628511 | W38: 0.25 | X38: 5842.531527 | Y38: 3481.258465 | Z38: 2149.113566 | AA38: 1340.983299 | AB38: 834.8864926 | AC38: 514.9494255 | AD38: 313.395647
B39: Optimal threshold to build first stage | H39: P_1 | I39: =(I14*I34)/(I34-1)*I9 -> 174.0312424 | J39: =I25*delta -> 174.0312424 | L39: Distance in Exercise Threshold to Current Price | W39: 0.3 | X39: 6068.398086 | Y39: 3717.890053 | Z39: 2383.967172 | AA39: 1562.177063 | AB39: 1033.163265 | AC39: 684.723927 | AD39: 452.7985107
B40: Optimal immediate exercise of phase 1? | I40: =+IF(I39<I8,"Yes", "No") -> No | N40: ΔI_2 relative to ΔI_1 | W40: 0.35 | X40: 6307.060495 | Y40: 3955.286336 | Z40: 2612.038307 | AA40: 1774.129809 | AB40: 1224.072334 | AC40: 851.7452324 | AD40: 595.0439148
B41: Option coefficient A_0 | H41: A_0 | I41: =1/beta_1*(beta_1/(delta*beta))^beta*(((O9-O8)^beta)/(I9^beta_1)+((O10-O9)^beta)/(I10^beta_1)) -> 0.3062392195 | J41: =(1/beta_1)*(beta_1/(delta*beta))^beta*((O9-O8)^beta)/(I9^beta_1) -> 0.1676107086 | L41: Project Volatility | M41: =I46 -> 0.4502603531 | N41: 1 | O41: =N41+0.25 -> 1.25 | P41: 1.5 | Q41: =P41+0.25 -> 1.75 | R41: 2 | W41: 0.4 | X41: 6544.668576 | Y41: 4185.17748 | Z41: 2829.331281 | AA41: 1975.017322 | AB41: 1405.967101 | AC41: 1013.271725 | AD41: 735.9126375
B42: Value if nothing is built yet (land value) | H42: V_0(P) | I42: =IF(I8<I39,I41*I8^I34,IF(I8<I36,I43,I8*O10/delta-I9*(O9-O8)-I10*(O10-O9))) -> 3262.340555 | J42: =IF(I8<I39,J41*I8^J34,I8*(O9-O8)/delta-(I9*(O9-O8))) -> 1785.54273 | M42: 0.1 | N42: 0.05846350989 | O42: 0.3230793874 | P42: 0.5876952648 | Q42: 0.8523111423 | R42: 1.11692702 | W42: 0.45 | X42: 6773.698385 | Y42: 4403.421813 | Z42: 3033.965109 | AA42: 2163.981258 | AB42: 1577.972426 | AC42: 1167.746698 | AD42: 872.9084673
B43: Value if 1st stage completed (phasing option remains) | H43: V_1(P)-I_1 | I43: =IF(I8<I36,I38*I8^I34+(I8*O9)/I14-I9,I44) -> 3226.797825 | M43: =M42+5% -> 0.15 | N43: 0.2391719353 | O43: 0.5489649192 | P43: 0.858757903 | Q43: 1.168550887 | R43: 1.478343871
B44: Value if second stage completed (no further options) | H44: V_2(P)-I_2 | I44: =O10*I8/I14-I9-I10 -> 3000 | M44: =M43+5% -> 0.2 | N44: 0.4502603531 | O44: 0.8128254414 | P44: 1.17539053 | Q44: 1.537955618 | R44: 1.900520706
B45: Added value of having compound option VP over S | H45: V{0,VP}-V{0,S} | I45: =IF(I8<=I39,I42-J42,IF(I8<=I36,I43-J42,I44-J42)) -> 1476.797825 | J45: =I45/J42 -> 0.8270862416 | M45: 0.25 | N45: 0.6926089304 | O45: 1.115761163 | P45: 1.538913396 | Q45: 1.962065628 | R45: 2.385217861
B46: Distance in exercise threshold to current price | H46: (P_2-P)/P | I46: =I36/I8-1 -> 0.4502603531 | M46: 0.3 | N46: 0.967656184 | O46: 1.45957023 | P46: 1.951484276 | Q46: 2.443398322 | R46: 2.935312368
B48: Randomized Periodic Cash Flow Plan | J48: Start
I49: Month | J49: =MONTH(J52) -> 12 | K49: 3 | L49: 6 | M49: 9 | N49: 12 | O49: 3 | P49: =MONTH(P52) -> 6 | Q49: 9 | R49: 12 | S49: 3 | T49: 6 | U49: =MONTH(U52) -> 9 | V49: 12 | W49: 3 | X49: 6 | Y49: 9 | Z49: 12 | AA49: 3 | AB49: 6 | AC49: 9 | AD49: 12 | AE49: 3 | AF49: 6 | AG49: 9 | AH49: 12 | AI49: 3 | AJ49: 6 | AK49: 9 | AL49: 12 | AM49: 3 | AN49: 6 | AO49: 9 | AP49: 12 | AQ49: 3 | AR49: 6 | AS49: 9 | AT49: 12 | AU49: 3 | AV49: 6 | AW49: 9 | AX49: 12 | AY49: 3 | AZ49: 6 | BA49: 9 | BB49: 12 | BC49: 3 | BD49: 6 | BE49: 9 | BF49: 12 | BG49: 3 | BH49: 6 | BI49: 9 | BJ49: 12 | BK49: 3 | BL49: 6 | BM49: 9 | BN49: 12 | BO49: 3 | BP49: 6 | BQ49: 9 | BR49: 12 | BS49: 3 | BT49: 6 | BU49: 9 | BV49: 12 | BW49: 3 | BX49: 6 | BY49: 9 | BZ49: 12 | CA49: 3 | CB49: 6 | CC49: 9 | CD49: 12 | CE49: 3 | CF49: 6 | CG49: =MONTH(CG52) -> 9 | CH49: 12 | CI49: 3 | CJ49: 6 | CK49: 9 | CL49: 12 | CM49: 3 | CN49: 6 | CO49: 9 | CP49: 12 | CQ49: 3 | CR49: 6 | CS49: 9 | CT49: 12 | CU49: 3 | CV49: 6 | CW49: 9 | CX49: 12 | CY49: 3 | CZ49: 6 | DA49: 9 | DB49: 12 | DC49: 3 | DD49: 6 | DE49: 9 | DF49: 12 | DG49: 3 | DH49: 6 | DI49: 9 | DJ49: 12 | DK49: 3 | DL49: 6 | DM49: 9 | DN49: 12 | DO49: 3 | DP49: 6 | DQ49: 9 | DR49: 12 | DS49: 3 | DT49: 6 | DU49: 9 | DV49: 12 | DW49: 3 | DX49: 6 | DY49: 9 | DZ49: 12 | EA49: 3 | EB49: 6 | EC49: 9 | ED49: 12 | EE49: 3 | EF49: 6 | EG49: 9 | EH49: 12 | EI49: 3 | EJ49: 6 | EK49: 9 | EL49: 12 | EM49: 3 | EN49: 6 | EO49: 9 | EP49: 12 | EQ49: 3 | ER49: 6 | ES49: =MONTH(ES52) -> 9 | ET49: 12 | EU49: 3 | EV49: 6 | EW49: 9 | EX49: 12 | EY49: 3 | EZ49: 6 | FA49: 9 | FB49: 12 | FC49: 3 | FD49: 6 | FE49: 9 | FF49: 12 | FG49: 3 | FH49: 6 | FI49: 9 | FJ49: 12 | FK49: 3 | FL49: 6 | FM49: 9 | FN49: 12 | FO49: 3 | FP49: 6 | FQ49: 9 | FR49: 12 | FS49: 3 | FT49: 6 | FU49: 9 | FV49: 12 | FW49: 3 | FX49: 6 | FY49: 9 | FZ49: 12 | GA49: 3 | GB49: 6 | GC49: 9 | GD49: 12 | GE49: 3 | GF49: 6 | GG49: 9 | GH49: 12 | GI49: 3 | GJ49: 6 | GK49: 9 | GL49: 12 | GM49: 3 | GN49: 6 | GO49: 9 | GP49: 12 | GQ49: 3 | GR49: 6 | GS49: 9 | GT49: 12 | GU49: 3 | GV49: 6 | GW49: 9 | GX49: 12 | GY49: 3 | GZ49: 6 | HA49: 9 | HB49: 12 | HC49: 3 | HD49: 6 | HE49: =MONTH(HE52) -> 9 | HF49: 12 | HG49: 3 | HH49: 6 | HI49: 9 | HJ49: 12 | HK49: 3 | HL49: 6 | HM49: 9 | HN49: 12 | HO49: 3 | HP49: 6 | HQ49: 9 | HR49: 12 | HS49: 3 | HT49: 6 | HU49: 9 | HV49: 12 | HW49: 3 | HX49: 6 | HY49: 9 | HZ49: 12 | IA49: 3 | IB49: 6 | IC49: 9 | ID49: 12 | IE49: 3 | IF49: 6 | IG49: 9 | IH49: 12 | II49: 3 | IJ49: 6 | IK49: 9 | IL49: 12 | IM49: 3 | IN49: 6 | IO49: 9 | IP49: 12 | IQ49: 3 | IR49: 6 | IS49: 9 | IT49: 12 | IU49: 3 | IV49: 6 | IW49: 9 | IX49: 12 | IY49: 3 | IZ49: 6 | JA49: 9 | JB49: 12 | JC49: 3 | JD49: 6 | JE49: 9 | JF49: 12 | JG49: 3 | JH49: 6 | JI49: 9 | JJ49: 12 | JK49: 3 | JL49: 6 | JM49: 9 | JN49: 12 | JO49: 3 | JP49: 6 | JQ49: =MONTH(JQ52) -> 9 | JR49: 12 | JS49: 3 | JT49: 6 | JU49: 9 | JV49: 12 | JW49: 3 | JX49: 6 | JY49: 9 | JZ49: 12 | KA49: 3 | KB49: 6 | KC49: 9 | KD49: 12 | KE49: 3 | KF49: 6 | KG49: 9 | KH49: 12 | KI49: 3 | KJ49: 6 | KK49: 9 | KL49: 12 | KM49: 3 | KN49: 6 | KO49: 9 | KP49: 12 | KQ49: 3 | KR49: 6 | KS49: 9 | KT49: 12 | KU49: 3 | KV49: 6 | KW49: 9 | KX49: 12 | KY49: 3 | KZ49: 6 | LA49: 9 | LB49: 12 | LC49: 3 | LD49: 6 | LE49: 9 | LF49: 12 | LG49: 3 | LH49: 6 | LI49: 9 | LJ49: 12 | LK49: 3 | LL49: 6 | LM49: 9 | LN49: 12 | LO49: 3 | LP49: 6 | LQ49: 9 | LR49: 12 | LS49: 3 | LT49: 6 | LU49: 9 | LV49: 12 | LW49: 3 | LX49: 6 | LY49: 9 | LZ49: 12 | MA49: 3 | MB49: 6 | MC49: =MONTH(MC52) -> 9 | MD49: 12 | ME49: 3 | MF49: 6 | MG49: 9 | MH49: 12 | MI49: 3 | MJ49: 6 | MK49: 9 | ML49: 12 | MM49: 3 | MN49: 6 | MO49: 9 | MP49: 12 | MQ49: 3 | MR49: 6 | MS49: 9 | MT49: 12 | MU49: 3 | MV49: 6 | MW49: 9 | MX49: 12 | MY49: 3 | MZ49: 6 | NA49: 9 | NB49: 12 | NC49: 3 | ND49: 6 | NE49: 9 | NF49: 12 | NG49: 3 | NH49: 6 | NI49: 9 | NJ49: 12 | NK49: 3 | NL49: 6 | NM49: 9 | NN49: 12 | NO49: 3 | NP49: 6 | NQ49: 9 | NR49: 12 | NS49: 3 | NT49: 6 | NU49: 9 | NV49: 12 | NW49: 3 | NX49: 6 | NY49: 9 | NZ49: 12 | OA49: 3 | OB49: 6 | OC49: 9 | OD49: 12 | OE49: 3 | OF49: 6 | OG49: 9 | OH49: 12 | OI49: 3 | OJ49: 6 | OK49: 9 | OL49: 12 | OM49: 3 | ON49: 6 | OO49: =MONTH(OO52) -> 9 | OP49: 12 | OQ49: 3 | OR49: 6 | OS49: 9 | OT49: 12 | OU49: 3 | OV49: 6 | OW49: 9 | OX49: 12 | OY49: 3 | OZ49: 6 | PA49: 9 | PB49: 12 | PC49: 3 | PD49: 6 | PE49: 9 | PF49: 12 | PG49: 3 | PH49: 6 | PI49: 9 | PJ49: 12 | PK49: 3 | PL49: 6 | PM49: 9 | PN49: 12 | PO49: 3 | PP49: 6 | PQ49: 9 | PR49: 12 | PS49: 3 | PT49: 6 | PU49: 9 | PV49: 12 | PW49: 3 | PX49: 6 | PY49: 9 | PZ49: 12 | QA49: 3 | QB49: 6 | QC49: 9 | QD49: 12 | QE49: 3 | QF49: 6 | QG49: 9 | QH49: 12 | QI49: 3 | QJ49: 6 | QK49: 9 | QL49: 12 | QM49: 3 | QN49: 6 | QO49: 9 | QP49: 12 | QQ49: 3 | QR49: 6 | QS49: 9 | QT49: 12 | QU49: 3 | QV49: 6 | QW49: 9 | QX49: 12 | QY49: 3 | QZ49: 6 | RA49: =MONTH(RA52) -> 9 | RB49: 12 | RC49: 3 | RD49: 6 | RE49: 9 | RF49: 12 | RG49: 3 | RH49: 6 | RI49: 9 | RJ49: 12 | RK49: 3 | RL49: 6 | RM49: 9 | RN49: 12 | RO49: 3 | RP49: 6 | RQ49: 9 | RR49: 12 | RS49: 3 | RT49: 6 | RU49: 9 | RV49: 12 | RW49: 3 | RX49: 6 | RY49: 9 | RZ49: 12 | SA49: 3 | SB49: 6 | SC49: 9 | SD49: 12 | SE49: 3 | SF49: 6 | SG49: 9 | SH49: 12 | SI49: 3 | SJ49: 6 | SK49: 9 | SL49: 12 | SM49: 3 | SN49: 6 | SO49: 9 | SP49: 12 | SQ49: 3 | SR49: 6 | SS49: 9 | ST49: 12 | SU49: 3 | SV49: 6 | SW49: 9 | SX49: 12 | SY49: 3 | SZ49: 6 | TA49: 9 | TB49: 12 | TC49: 3 | TD49: 6 | TE49: 9 | TF49: 12 | TG49: 3 | TH49: 6 | TI49: 9 | TJ49: 12 | TK49: 3 | TL49: 6 | TM49: =MONTH(TM52) -> 9 | TN49: 12 | TO49: 3 | TP49: 6 | TQ49: 9 | TR49: 12 | TS49: 3 | TT49: 6 | TU49: 9 | TV49: 12 | TW49: 3 | TX49: 6 | TY49: 9 | TZ49: 12 | UA49: 3 | UB49: 6 | UC49: 9 | UD49: 12 | UE49: 3 | UF49: 6 | UG49: 9 | UH49: 12 | UI49: 3 | UJ49: 6 | UK49: 9 | UL49: 12 | UM49: 3 | UN49: 6 | UO49: 9 | UP49: 12 | UQ49: 3 | UR49: 6 | US49: 9 | UT49: 12 | UU49: 3 | UV49: 6 | UW49: 9 | UX49: 12 | UY49: 3 | UZ49: 6 | VA49: 9 | VB49: 12 | VC49: 3 | VD49: 6 | VE49: 9 | VF49: 12 | VG49: 3 | VH49: 6 | VI49: 9 | VJ49: 12 | VK49: 3 | VL49: 6 | VM49: 9 | VN49: 12 | VO49: 3 | VP49: 6 | VQ49: 9 | VR49: 12 | VS49: 3 | VT49: 6 | VU49: 9 | VV49: 12 | VW49: 3 | VX49: 6 | VY49: =MONTH(VY52) -> 9 | VZ49: 12 | WA49: 3 | WB49: 6 | WC49: 9 | WD49: 12 | WE49: 3 | WF49: 6 | WG49: 9 | WH49: 12 | WI49: 3 | WJ49: 6 | WK49: 9 | WL49: 12 | WM49: 3 | WN49: 6 | WO49: 9 | WP49: 12 | WQ49: 3 | WR49: 6 | WS49: 9 | WT49: 12 | WU49: 3 | WV49: 6 | WW49: 9 | WX49: 12 | WY49: 3 | WZ49: 6 | XA49: 9 | XB49: 12 | XC49: 3 | XD49: 6 | XE49: 9 | XF49: 12 | XG49: 3 | XH49: 6 | XI49: 9 | XJ49: 12 | XK49: 3 | XL49: 6 | XM49: 9 | XN49: 12 | XO49: 3 | XP49: 6 | XQ49: 9 | XR49: 12 | XS49: 3 | XT49: 6 | XU49: 9 | XV49: 12 | XW49: 3 | XX49: 6 | XY49: 9 | XZ49: 12 | YA49: 3 | YB49: 6 | YC49: 9 | YD49: 12 | YE49: 3 | YF49: 6 | YG49: 9 | YH49: 12 | YI49: 3 | YJ49: 6 | YK49: =MONTH(YK52) -> 9 | YL49: 12 | YM49: 3 | YN49: 6 | YO49: 9 | YP49: 12 | YQ49: 3 | YR49: 6 | YS49: 9 | YT49: 12 | YU49: 3 | YV49: 6 | YW49: 9 | YX49: 12 | YY49: 3 | YZ49: 6 | ZA49: 9 | ZB49: 12 | ZC49: 3 | ZD49: 6 | ZE49: 9 | ZF49: 12 | ZG49: 3 | ZH49: 6 | ZI49: 9 | ZJ49: 12 | ZK49: 3 | ZL49: 6 | ZM49: 9 | ZN49: 12 | ZO49: 3 | ZP49: 6 | ZQ49: 9 | ZR49: 12 | ZS49: 3 | ZT49: 6 | ZU49: 9 | ZV49: 12 | ZW49: 3 | ZX49: 6 | ZY49: 9 | ZZ49: 12 | AAA49: 3 | AAB49: 6 | AAC49: 9 | AAD49: 12 | AAE49: 3 | AAF49: 6 | AAG49: 9 | AAH49: 12 | AAI49: 3 | AAJ49: 6 | AAK49: 9 | AAL49: 12 | AAM49: 3 | AAN49: 6 | AAO49: 9 | AAP49: 12 | AAQ49: 3 | AAR49: 6 | AAS49: 9 | AAT49: 12 | AAU49: 3 | AAV49: 6 | AAW49: =MONTH(AAW52) -> 9 | AAX49: 12 | AAY49: 3 | AAZ49: 6 | ABA49: 9 | ABB49: 12 | ABC49: 3 | ABD49: 6 | ABE49: 9 | ABF49: 12 | ABG49: 3 | ABH49: 6 | ABI49: 9 | ABJ49: 12 | ABK49: 3 | ABL49: 6 | ABM49: 9 | ABN49: 12 | ABO49: 3 | ABP49: 6 | ABQ49: 9 | ABR49: 12 | ABS49: 3 | ABT49: 6 | ABU49: 9 | ABV49: 12 | ABW49: 3 | ABX49: 6 | ABY49: 9 | ABZ49: 12 | ACA49: 3 | ACB49: 6 | ACC49: 9 | ACD49: 12 | ACE49: 3 | ACF49: 6 | ACG49: 9 | ACH49: 12 | ACI49: 3 | ACJ49: 6 | ACK49: 9 | ACL49: 12 | ACM49: 3 | ACN49: 6 | ACO49: 9 | ACP49: 12 | ACQ49: 3 | ACR49: 6 | ACS49: 9 | ACT49: 12 | ACU49: 3 | ACV49: 6 | ACW49: 9 | ACX49: 12 | ACY49: 3 | ACZ49: 6 | ADA49: 9 | ADB49: 12 | ADC49: 3 | ADD49: 6 | ADE49: 9 | ADF49: 12 | ADG49: 3 | ADH49: 6 | ADI49: =MONTH(ADI52) -> 9 | ADJ49: 12 | ADK49: 3 | ADL49: 6 | ADM49: 9 | ADN49: 12 | ADO49: 3 | ADP49: 6 | ADQ49: 9 | ADR49: 12 | ADS49: 3 | ADT49: 6 | ADU49: 9 | ADV49: 12 | ADW49: 3 | ADX49: 6 | ADY49: 9 | ADZ49: 12 | AEA49: 3 | AEB49: 6 | AEC49: 9 | AED49: 12 | AEE49: 3 | AEF49: 6 | AEG49: 9 | AEH49: 12 | AEI49: 3 | AEJ49: 6 | AEK49: 9 | AEL49: 12 | AEM49: 3 | AEN49: 6 | AEO49: 9 | AEP49: 12 | AEQ49: 3 | AER49: 6 | AES49: 9 | AET49: 12 | AEU49: 3 | AEV49: 6 | AEW49: 9 | AEX49: 12 | AEY49: 3 | AEZ49: 6 | AFA49: 9 | AFB49: 12 | AFC49: 3 | AFD49: 6 | AFE49: 9 | AFF49: 12 | AFG49: 3 | AFH49: 6 | AFI49: 9 | AFJ49: 12 | AFK49: 3 | AFL49: 6 | AFM49: 9 | AFN49: 12 | AFO49: 3 | AFP49: 6 | AFQ49: 9 | AFR49: 12 | AFS49: 3 | AFT49: 6 | AFU49: =MONTH(AFU52) -> 9 | AFV49: 12 | AFW49: 3 | AFX49: 6 | AFY49: 9 | AFZ49: 12 | AGA49: 3 | AGB49: 6 | AGC49: 9 | AGD49: 12 | AGE49: 3 | AGF49: 6 | AGG49: 9 | AGH49: 12 | AGI49: 3 | AGJ49: 6 | AGK49: 9 | AGL49: 12 | AGM49: 3 | AGN49: 6 | AGO49: 9 | AGP49: 12 | AGQ49: 3 | AGR49: 6 | AGS49: 9 | AGT49: 12 | AGU49: 3 | AGV49: 6 | AGW49: 9 | AGX49: 12 | AGY49: 3 | AGZ49: 6 | AHA49: 9 | AHB49: 12 | AHC49: 3 | AHD49: 6 | AHE49: 9 | AHF49: 12 | AHG49: 3 | AHH49: 6 | AHI49: 9 | AHJ49: 12 | AHK49: 3 | AHL49: 6 | AHM49: 9 | AHN49: 12 | AHO49: 3 | AHP49: 6 | AHQ49: 9 | AHR49: 12 | AHS49: 3 | AHT49: 6 | AHU49: 9 | AHV49: 12 | AHW49: 3 | AHX49: 6 | AHY49: 9 | AHZ49: 12 | AIA49: 3 | AIB49: 6 | AIC49: 9 | AID49: 12 | AIE49: 3 | AIF49: 6 | AIG49: =MONTH(AIG52) -> 9 | AIH49: 12 | AII49: 3 | AIJ49: 6 | AIK49: 9 | AIL49: 12 | AIM49: 3 | AIN49: 6 | AIO49: 9 | AIP49: 12 | AIQ49: 3 | AIR49: 6 | AIS49: 9 | AIT49: 12 | AIU49: 3 | AIV49: 6 | AIW49: 9 | AIX49: 12 | AIY49: 3 | AIZ49: 6 | AJA49: 9 | AJB49: 12 | AJC49: 3 | AJD49: 6 | AJE49: 9 | AJF49: 12 | AJG49: 3 | AJH49: 6 | AJI49: 9 | AJJ49: 12 | AJK49: 3 | AJL49: 6 | AJM49: 9 | AJN49: 12 | AJO49: 3 | AJP49: 6 | AJQ49: 9 | AJR49: 12 | AJS49: 3 | AJT49: 6 | AJU49: 9 | AJV49: 12 | AJW49: 3 | AJX49: 6 | AJY49: 9 | AJZ49: =MONTH(AJZ52) -> 12 | AKA49: 3 | AKB49: 6 | AKC49: 9 | AKD49: 12 | AKE49: 3 | AKF49: 6 | AKG49: =MONTH(AKG52) -> 9 | AKH49: 12
I50: Year | J50: =YEAR(J52) -> 2011 | K50: =YEAR(K52) -> 2012 | L50: 2012 | M50: 2012 | N50: 2012 | O50: 2013 | P50: =YEAR(P52) -> 2013 | Q50: 2013 | R50: 2013 | S50: 2014 | T50: 2014 | U50: =YEAR(U52) -> 2014 | V50: 2014 | W50: 2015 | X50: 2015 | Y50: 2015 | Z50: 2015 | AA50: 2016 | AB50: 2016 | AC50: 2016 | AD50: 2016 | AE50: 2017 | AF50: 2017 | AG50: 2017 | AH50: 2017 | AI50: 2018 | AJ50: 2018 | AK50: 2018 | AL50: 2018 | AM50: 2019 | AN50: 2019 | AO50: 2019 | AP50: 2019 | AQ50: 2020 | AR50: 2020 | AS50: 2020 | AT50: 2020 | AU50: 2021 | AV50: 2021 | AW50: 2021 | AX50: 2021 | AY50: 2022 | AZ50: 2022 | BA50: 2022 | BB50: 2022 | BC50: 2023 | BD50: 2023 | BE50: 2023 | BF50: 2023 | BG50: 2024 | BH50: 2024 | BI50: 2024 | BJ50: 2024 | BK50: 2025 | BL50: 2025 | BM50: 2025 | BN50: 2025 | BO50: 2026 | BP50: 2026 | BQ50: 2026 | BR50: 2026 | BS50: 2027 | BT50: 2027 | BU50: 2027 | BV50: 2027 | BW50: 2028 | BX50: 2028 | BY50: 2028 | BZ50: 2028 | CA50: 2029 | CB50: 2029 | CC50: 2029 | CD50: 2029 | CE50: 2030 | CF50: 2030 | CG50: =YEAR(CG52) -> 2030 | CH50: 2030 | CI50: 2031 | CJ50: 2031 | CK50: 2031 | CL50: 2031 | CM50: 2032 | CN50: 2032 | CO50: 2032 | CP50: 2032 | CQ50: 2033 | CR50: 2033 | CS50: 2033 | CT50: 2033 | CU50: 2034 | CV50: 2034 | CW50: 2034 | CX50: 2034 | CY50: 2035 | CZ50: 2035 | DA50: 2035 | DB50: 2035 | DC50: 2036 | DD50: 2036 | DE50: 2036 | DF50: 2036 | DG50: 2037 | DH50: 2037 | DI50: 2037 | DJ50: 2037 | DK50: 2038 | DL50: 2038 | DM50: 2038 | DN50: 2038 | DO50: 2039 | DP50: 2039 | DQ50: 2039 | DR50: 2039 | DS50: 2040 | DT50: 2040 | DU50: 2040 | DV50: 2040 | DW50: 2041 | DX50: 2041 | DY50: 2041 | DZ50: 2041 | EA50: 2042 | EB50: 2042 | EC50: 2042 | ED50: 2042 | EE50: 2043 | EF50: 2043 | EG50: 2043 | EH50: 2043 | EI50: 2044 | EJ50: 2044 | EK50: 2044 | EL50: 2044 | EM50: 2045 | EN50: 2045 | EO50: 2045 | EP50: 2045 | EQ50: 2046 | ER50: 2046 | ES50: =YEAR(ES52) -> 2046 | ET50: 2046 | EU50: 2047 | EV50: 2047 | EW50: 2047 | EX50: 2047 | EY50: 2048 | EZ50: 2048 | FA50: 2048 | FB50: 2048 | FC50: 2049 | FD50: 2049 | FE50: 2049 | FF50: 2049 | FG50: 2050 | FH50: 2050 | FI50: 2050 | FJ50: 2050 | FK50: 2051 | FL50: 2051 | FM50: 2051 | FN50: 2051 | FO50: 2052 | FP50: 2052 | FQ50: 2052 | FR50: 2052 | FS50: 2053 | FT50: 2053 | FU50: 2053 | FV50: 2053 | FW50: 2054 | FX50: 2054 | FY50: 2054 | FZ50: 2054 | GA50: 2055 | GB50: 2055 | GC50: 2055 | GD50: 2055 | GE50: 2056 | GF50: 2056 | GG50: 2056 | GH50: 2056 | GI50: 2057 | GJ50: 2057 | GK50: 2057 | GL50: 2057 | GM50: 2058 | GN50: 2058 | GO50: 2058 | GP50: 2058 | GQ50: 2059 | GR50: 2059 | GS50: 2059 | GT50: 2059 | GU50: 2060 | GV50: 2060 | GW50: 2060 | GX50: 2060 | GY50: 2061 | GZ50: 2061 | HA50: 2061 | HB50: 2061 | HC50: 2062 | HD50: 2062 | HE50: =YEAR(HE52) -> 2062 | HF50: 2062 | HG50: 2063 | HH50: 2063 | HI50: 2063 | HJ50: 2063 | HK50: 2064 | HL50: 2064 | HM50: 2064 | HN50: 2064 | HO50: 2065 | HP50: 2065 | HQ50: 2065 | HR50: 2065 | HS50: 2066 | HT50: 2066 | HU50: 2066 | HV50: 2066 | HW50: 2067 | HX50: 2067 | HY50: 2067 | HZ50: 2067 | IA50: 2068 | IB50: 2068 | IC50: 2068 | ID50: 2068 | IE50: 2069 | IF50: 2069 | IG50: 2069 | IH50: 2069 | II50: 2070 | IJ50: 2070 | IK50: 2070 | IL50: 2070 | IM50: 2071 | IN50: 2071 | IO50: 2071 | IP50: 2071 | IQ50: 2072 | IR50: 2072 | IS50: 2072 | IT50: 2072 | IU50: 2073 | IV50: 2073 | IW50: 2073 | IX50: 2073 | IY50: 2074 | IZ50: 2074 | JA50: 2074 | JB50: 2074 | JC50: 2075 | JD50: 2075 | JE50: 2075 | JF50: 2075 | JG50: 2076 | JH50: 2076 | JI50: 2076 | JJ50: 2076 | JK50: 2077 | JL50: 2077 | JM50: 2077 | JN50: 2077 | JO50: 2078 | JP50: 2078 | JQ50: =YEAR(JQ52) -> 2078 | JR50: 2078 | JS50: 2079 | JT50: 2079 | JU50: 2079 | JV50: 2079 | JW50: 2080 | JX50: 2080 | JY50: 2080 | JZ50: 2080 | KA50: 2081 | KB50: 2081 | KC50: 2081 | KD50: 2081 | KE50: 2082 | KF50: 2082 | KG50: 2082 | KH50: 2082 | KI50: 2083 | KJ50: 2083 | KK50: 2083 | KL50: 2083 | KM50: 2084 | KN50: 2084 | KO50: 2084 | KP50: 2084 | KQ50: 2085 | KR50: 2085 | KS50: 2085 | KT50: 2085 | KU50: 2086 | KV50: 2086 | KW50: 2086 | KX50: 2086 | KY50: 2087 | KZ50: 2087 | LA50: 2087 | LB50: 2087 | LC50: 2088 | LD50: 2088 | LE50: 2088 | LF50: 2088 | LG50: 2089 | LH50: 2089 | LI50: 2089 | LJ50: 2089 | LK50: 2090 | LL50: 2090 | LM50: 2090 | LN50: 2090 | LO50: 2091 | LP50: 2091 | LQ50: 2091 | LR50: 2091 | LS50: 2092 | LT50: 2092 | LU50: 2092 | LV50: 2092 | LW50: 2093 | LX50: 2093 | LY50: 2093 | LZ50: 2093 | MA50: 2094 | MB50: 2094 | MC50: =YEAR(MC52) -> 2094 | MD50: 2094 | ME50: 2095 | MF50: 2095 | MG50: 2095 | MH50: 2095 | MI50: 2096 | MJ50: 2096 | MK50: 2096 | ML50: 2096 | MM50: 2097 | MN50: 2097 | MO50: 2097 | MP50: 2097 | MQ50: 2098 | MR50: 2098 | MS50: 2098 | MT50: 2098 | MU50: 2099 | MV50: 2099 | MW50: 2099 | MX50: 2099 | MY50: 2100 | MZ50: 2100 | NA50: 2100 | NB50: 2100 | NC50: 2101 | ND50: 2101 | NE50: 2101 | NF50: 2101 | NG50: 2102 | NH50: 2102 | NI50: 2102 | NJ50: 2102 | NK50: 2103 | NL50: 2103 | NM50: 2103 | NN50: 2103 | NO50: 2104 | NP50: 2104 | NQ50: 2104 | NR50: 2104 | NS50: 2105 | NT50: 2105 | NU50: 2105 | NV50: 2105 | NW50: 2106 | NX50: 2106 | NY50: 2106 | NZ50: 2106 | OA50: 2107 | OB50: 2107 | OC50: 2107 | OD50: 2107 | OE50: 2108 | OF50: 2108 | OG50: 2108 | OH50: 2108 | OI50: 2109 | OJ50: 2109 | OK50: 2109 | OL50: 2109 | OM50: 2110 | ON50: 2110 | OO50: =YEAR(OO52) -> 2110 | OP50: 2110 | OQ50: 2111 | OR50: 2111 | OS50: 2111 | OT50: 2111 | OU50: 2112 | OV50: 2112 | OW50: 2112 | OX50: 2112 | OY50: 2113 | OZ50: 2113 | PA50: 2113 | PB50: 2113 | PC50: 2114 | PD50: 2114 | PE50: 2114 | PF50: 2114 | PG50: 2115 | PH50: 2115 | PI50: 2115 | PJ50: 2115 | PK50: 2116 | PL50: 2116 | PM50: 2116 | PN50: 2116 | PO50: 2117 | PP50: 2117 | PQ50: 2117 | PR50: 2117 | PS50: 2118 | PT50: 2118 | PU50: 2118 | PV50: 2118 | PW50: 2119 | PX50: 2119 | PY50: 2119 | PZ50: 2119 | QA50: 2120 | QB50: 2120 | QC50: 2120 | QD50: 2120 | QE50: 2121 | QF50: 2121 | QG50: 2121 | QH50: 2121 | QI50: 2122 | QJ50: 2122 | QK50: 2122 | QL50: 2122 | QM50: 2123 | QN50: 2123 | QO50: 2123 | QP50: 2123 | QQ50: 2124 | QR50: 2124 | QS50: 2124 | QT50: 2124 | QU50: 2125 | QV50: 2125 | QW50: 2125 | QX50: 2125 | QY50: 2126 | QZ50: 2126 | RA50: =YEAR(RA52) -> 2126 | RB50: 2126 | RC50: 2127 | RD50: 2127 | RE50: 2127 | RF50: 2127 | RG50: 2128 | RH50: 2128 | RI50: 2128 | RJ50: 2128 | RK50: 2129 | RL50: 2129 | RM50: 2129 | RN50: 2129 | RO50: 2130 | RP50: 2130 | RQ50: 2130 | RR50: 2130 | RS50: 2131 | RT50: 2131 | RU50: 2131 | RV50: 2131 | RW50: 2132 | RX50: 2132 | RY50: 2132 | RZ50: 2132 | SA50: 2133 | SB50: 2133 | SC50: 2133 | SD50: 2133 | SE50: 2134 | SF50: 2134 | SG50: 2134 | SH50: 2134 | SI50: 2135 | SJ50: 2135 | SK50: 2135 | SL50: 2135 | SM50: 2136 | SN50: 2136 | SO50: 2136 | SP50: 2136 | SQ50: 2137 | SR50: 2137 | SS50: 2137 | ST50: 2137 | SU50: 2138 | SV50: 2138 | SW50: 2138 | SX50: 2138 | SY50: 2139 | SZ50: 2139 | TA50: 2139 | TB50: 2139 | TC50: 2140 | TD50: 2140 | TE50: 2140 | TF50: 2140 | TG50: 2141 | TH50: 2141 | TI50: 2141 | TJ50: 2141 | TK50: 2142 | TL50: 2142 | TM50: =YEAR(TM52) -> 2142 | TN50: 2142 | TO50: 2143 | TP50: 2143 | TQ50: 2143 | TR50: 2143 | TS50: 2144 | TT50: 2144 | TU50: 2144 | TV50: 2144 | TW50: 2145 | TX50: 2145 | TY50: 2145 | TZ50: 2145 | UA50: 2146 | UB50: 2146 | UC50: 2146 | UD50: 2146 | UE50: 2147 | UF50: 2147 | UG50: 2147 | UH50: 2147 | UI50: 2148 | UJ50: 2148 | UK50: 2148 | UL50: 2148 | UM50: 2149 | UN50: 2149 | UO50: 2149 | UP50: 2149 | UQ50: 2150 | UR50: 2150 | US50: 2150 | UT50: 2150 | UU50: 2151 | UV50: 2151 | UW50: 2151 | UX50: 2151 | UY50: 2152 | UZ50: 2152 | VA50: 2152 | VB50: 2152 | VC50: 2153 | VD50: 2153 | VE50: 2153 | VF50: 2153 | VG50: 2154 | VH50: 2154 | VI50: 2154 | VJ50: 2154 | VK50: 2155 | VL50: 2155 | VM50: 2155 | VN50: 2155 | VO50: 2156 | VP50: 2156 | VQ50: 2156 | VR50: 2156 | VS50: 2157 | VT50: 2157 | VU50: 2157 | VV50: 2157 | VW50: 2158 | VX50: 2158 | VY50: =YEAR(VY52) -> 2158 | VZ50: 2158 | WA50: 2159 | WB50: 2159 | WC50: 2159 | WD50: 2159 | WE50: 2160 | WF50: 2160 | WG50: 2160 | WH50: 2160 | WI50: 2161 | WJ50: 2161 | WK50: 2161 | WL50: 2161 | WM50: 2162 | WN50: 2162 | WO50: 2162 | WP50: 2162 | WQ50: 2163 | WR50: 2163 | WS50: 2163 | WT50: 2163 | WU50: 2164 | WV50: 2164 | WW50: 2164 | WX50: 2164 | WY50: 2165 | WZ50: 2165 | XA50: 2165 | XB50: 2165 | XC50: 2166 | XD50: 2166 | XE50: 2166 | XF50: 2166 | XG50: 2167 | XH50: 2167 | XI50: 2167 | XJ50: 2167 | XK50: 2168 | XL50: 2168 | XM50: 2168 | XN50: 2168 | XO50: 2169 | XP50: 2169 | XQ50: 2169 | XR50: 2169 | XS50: 2170 | XT50: 2170 | XU50: 2170 | XV50: 2170 | XW50: 2171 | XX50: 2171 | XY50: 2171 | XZ50: 2171 | YA50: 2172 | YB50: 2172 | YC50: 2172 | YD50: 2172 | YE50: 2173 | YF50: 2173 | YG50: 2173 | YH50: 2173 | YI50: 2174 | YJ50: 2174 | YK50: =YEAR(YK52) -> 2174 | YL50: 2174 | YM50: 2175 | YN50: 2175 | YO50: 2175 | YP50: 2175 | YQ50: 2176 | YR50: 2176 | YS50: 2176 | YT50: 2176 | YU50: 2177 | YV50: 2177 | YW50: 2177 | YX50: 2177 | YY50: 2178 | YZ50: 2178 | ZA50: 2178 | ZB50: 2178 | ZC50: 2179 | ZD50: 2179 | ZE50: 2179 | ZF50: 2179 | ZG50: 2180 | ZH50: 2180 | ZI50: 2180 | ZJ50: 2180 | ZK50: 2181 | ZL50: 2181 | ZM50: 2181 | ZN50: 2181 | ZO50: 2182 | ZP50: 2182 | ZQ50: 2182 | ZR50: 2182 | ZS50: 2183 | ZT50: 2183 | ZU50: 2183 | ZV50: 2183 | ZW50: 2184 | ZX50: 2184 | ZY50: 2184 | ZZ50: 2184 | AAA50: 2185 | AAB50: 2185 | AAC50: 2185 | AAD50: 2185 | AAE50: 2186 | AAF50: 2186 | AAG50: 2186 | AAH50: 2186 | AAI50: 2187 | AAJ50: 2187 | AAK50: 2187 | AAL50: 2187 | AAM50: 2188 | AAN50: 2188 | AAO50: 2188 | AAP50: 2188 | AAQ50: 2189 | AAR50: 2189 | AAS50: 2189 | AAT50: 2189 | AAU50: 2190 | AAV50: 2190 | AAW50: =YEAR(AAW52) -> 2190 | AAX50: 2190 | AAY50: 2191 | AAZ50: 2191 | ABA50: 2191 | ABB50: 2191 | ABC50: 2192 | ABD50: 2192 | ABE50: 2192 | ABF50: 2192 | ABG50: 2193 | ABH50: 2193 | ABI50: 2193 | ABJ50: 2193 | ABK50: 2194 | ABL50: 2194 | ABM50: 2194 | ABN50: 2194 | ABO50: 2195 | ABP50: 2195 | ABQ50: 2195 | ABR50: 2195 | ABS50: 2196 | ABT50: 2196 | ABU50: 2196 | ABV50: 2196 | ABW50: 2197 | ABX50: 2197 | ABY50: 2197 | ABZ50: 2197 | ACA50: 2198 | ACB50: 2198 | ACC50: 2198 | ACD50: 2198 | ACE50: 2199 | ACF50: 2199 | ACG50: 2199 | ACH50: 2199 | ACI50: 2200 | ACJ50: 2200 | ACK50: 2200 | ACL50: 2200 | ACM50: 2201 | ACN50: 2201 | ACO50: 2201 | ACP50: 2201 | ACQ50: 2202 | ACR50: 2202 | ACS50: 2202 | ACT50: 2202 | ACU50: 2203 | ACV50: 2203 | ACW50: 2203 | ACX50: 2203 | ACY50: 2204 | ACZ50: 2204 | ADA50: 2204 | ADB50: 2204 | ADC50: 2205 | ADD50: 2205 | ADE50: 2205 | ADF50: 2205 | ADG50: 2206 | ADH50: 2206 | ADI50: =YEAR(ADI52) -> 2206 | ADJ50: 2206 | ADK50: 2207 | ADL50: 2207 | ADM50: 2207 | ADN50: 2207 | ADO50: 2208 | ADP50: 2208 | ADQ50: 2208 | ADR50: 2208 | ADS50: 2209 | ADT50: 2209 | ADU50: 2209 | ADV50: 2209 | ADW50: 2210 | ADX50: 2210 | ADY50: 2210 | ADZ50: 2210 | AEA50: 2211 | AEB50: 2211 | AEC50: 2211 | AED50: 2211 | AEE50: 2212 | AEF50: 2212 | AEG50: 2212 | AEH50: 2212 | AEI50: 2213 | AEJ50: 2213 | AEK50: 2213 | AEL50: 2213 | AEM50: 2214 | AEN50: 2214 | AEO50: 2214 | AEP50: 2214 | AEQ50: 2215 | AER50: 2215 | AES50: 2215 | AET50: 2215 | AEU50: 2216 | AEV50: 2216 | AEW50: 2216 | AEX50: 2216 | AEY50: 2217 | AEZ50: 2217 | AFA50: 2217 | AFB50: 2217 | AFC50: 2218 | AFD50: 2218 | AFE50: 2218 | AFF50: 2218 | AFG50: 2219 | AFH50: 2219 | AFI50: 2219 | AFJ50: 2219 | AFK50: 2220 | AFL50: 2220 | AFM50: 2220 | AFN50: 2220 | AFO50: 2221 | AFP50: 2221 | AFQ50: 2221 | AFR50: 2221 | AFS50: 2222 | AFT50: 2222 | AFU50: =YEAR(AFU52) -> 2222 | AFV50: 2222 | AFW50: 2223 | AFX50: 2223 | AFY50: 2223 | AFZ50: 2223 | AGA50: 2224 | AGB50: 2224 | AGC50: 2224 | AGD50: 2224 | AGE50: 2225 | AGF50: 2225 | AGG50: 2225 | AGH50: 2225 | AGI50: 2226 | AGJ50: 2226 | AGK50: 2226 | AGL50: 2226 | AGM50: 2227 | AGN50: 2227 | AGO50: 2227 | AGP50: 2227 | AGQ50: 2228 | AGR50: 2228 | AGS50: 2228 | AGT50: 2228 | AGU50: 2229 | AGV50: 2229 | AGW50: 2229 | AGX50: 2229 | AGY50: 2230 | AGZ50: 2230 | AHA50: 2230 | AHB50: 2230 | AHC50: 2231 | AHD50: 2231 | AHE50: 2231 | AHF50: 2231 | AHG50: 2232 | AHH50: 2232 | AHI50: 2232 | AHJ50: 2232 | AHK50: 2233 | AHL50: 2233 | AHM50: 2233 | AHN50: 2233 | AHO50: 2234 | AHP50: 2234 | AHQ50: 2234 | AHR50: 2234 | AHS50: 2235 | AHT50: 2235 | AHU50: 2235 | AHV50: 2235 | AHW50: 2236 | AHX50: 2236 | AHY50: 2236 | AHZ50: 2236 | AIA50: 2237 | AIB50: 2237 | AIC50: 2237 | AID50: 2237 | AIE50: 2238 | AIF50: 2238 | AIG50: =YEAR(AIG52) -> 2238 | AIH50: 2238 | AII50: 2239 | AIJ50: 2239 | AIK50: 2239 | AIL50: 2239 | AIM50: 2240 | AIN50: 2240 | AIO50: 2240 | AIP50: 2240 | AIQ50: 2241 | AIR50: 2241 | AIS50: 2241 | AIT50: 2241 | AIU50: 2242 | AIV50: 2242 | AIW50: 2242 | AIX50: 2242 | AIY50: 2243 | AIZ50: 2243 | AJA50: 2243 | AJB50: 2243 | AJC50: 2244 | AJD50: 2244 | AJE50: 2244 | AJF50: 2244 | AJG50: 2245 | AJH50: 2245 | AJI50: 2245 | AJJ50: 2245 | AJK50: 2246 | AJL50: 2246 | AJM50: 2246 | AJN50: 2246 | AJO50: 2247 | AJP50: 2247 | AJQ50: 2247 | AJR50: 2247 | AJS50: 2248 | AJT50: 2248 | AJU50: 2248 | AJV50: 2248 | AJW50: 2249 | AJX50: 2249 | AJY50: 2249 | AJZ50: =YEAR(AJZ52) -> 2249 | AKA50: 2250 | AKB50: 2250 | AKC50: 2250 | AKD50: 2250 | AKE50: 2251 | AKF50: 2251 | AKG50: =YEAR(AKG52) -> 2251 | AKH50: 2251
I51: Period | J51: 0 | K51: =J51+1 -> 1 | L51: =K51+1 -> 2 | M51: =L51+1 -> 3 | N51: 4 | O51: 5 | P51: =O51+1 -> 6 | Q51: =P51+1 -> 7 | R51: =Q51+1 -> 8 | S51: =R51+1 -> 9 | T51: =S51+1 -> 10 | U51: =T51+1 -> 11 | V51: =U51+1 -> 12 | W51: =V51+1 -> 13 | X51: =W51+1 -> 14 | Y51: =X51+1 -> 15 | Z51: =Y51+1 -> 16 | AA51: =Z51+1 -> 17 | AB51: =AA51+1 -> 18 | AC51: =AB51+1 -> 19 | AD51: =AC51+1 -> 20 | AE51: =AD51+1 -> 21 | AF51: =AE51+1 -> 22 | AG51: =AF51+1 -> 23 | AH51: =AG51+1 -> 24 | AI51: =AH51+1 -> 25 | AJ51: =AI51+1 -> 26 | AK51: =AJ51+1 -> 27 | AL51: =AK51+1 -> 28 | AM51: =AL51+1 -> 29 | AN51: =AM51+1 -> 30 | AO51: =AN51+1 -> 31 | AP51: =AO51+1 -> 32 | AQ51: =AP51+1 -> 33 | AR51: =AQ51+1 -> 34 | AS51: =AR51+1 -> 35 | AT51: =AS51+1 -> 36 | AU51: =AT51+1 -> 37 | AV51: =AU51+1 -> 38 | AW51: =AV51+1 -> 39 | AX51: =AW51+1 -> 40 | AY51: =AX51+1 -> 41 | AZ51: =AY51+1 -> 42 | BA51: =AZ51+1 -> 43 | BB51: =BA51+1 -> 44 | BC51: =BB51+1 -> 45 | BD51: =BC51+1 -> 46 | BE51: =BD51+1 -> 47 | BF51: =BE51+1 -> 48 | BG51: =BF51+1 -> 49 | BH51: =BG51+1 -> 50 | BI51: =BH51+1 -> 51 | BJ51: =BI51+1 -> 52 | BK51: =BJ51+1 -> 53 | BL51: =BK51+1 -> 54 | BM51: =BL51+1 -> 55 | BN51: =BM51+1 -> 56 | BO51: =BN51+1 -> 57 | BP51: =BO51+1 -> 58 | BQ51: =BP51+1 -> 59 | BR51: =BQ51+1 -> 60 | BS51: =BR51+1 -> 61 | BT51: =BS51+1 -> 62 | BU51: =BT51+1 -> 63 | BV51: =BU51+1 -> 64 | BW51: =BV51+1 -> 65 | BX51: =BW51+1 -> 66 | BY51: =BX51+1 -> 67 | BZ51: =BY51+1 -> 68 | CA51: =BZ51+1 -> 69 | CB51: =CA51+1 -> 70 | CC51: =CB51+1 -> 71 | CD51: =CC51+1 -> 72 | CE51: =CD51+1 -> 73 | CF51: =CE51+1 -> 74 | CG51: =CF51+1 -> 75 | CH51: =CG51+1 -> 76 | CI51: =CH51+1 -> 77 | CJ51: =CI51+1 -> 78 | CK51: =CJ51+1 -> 79 | CL51: =CK51+1 -> 80 | CM51: =CL51+1 -> 81 | CN51: =CM51+1 -> 82 | CO51: =CN51+1 -> 83 | CP51: =CO51+1 -> 84 | CQ51: =CP51+1 -> 85 | CR51: =CQ51+1 -> 86 | CS51: =CR51+1 -> 87 | CT51: =CS51+1 -> 88 | CU51: =CT51+1 -> 89 | CV51: =CU51+1 -> 90 | CW51: =CV51+1 -> 91 | CX51: =CW51+1 -> 92 | CY51: =CX51+1 -> 93 | CZ51: =CY51+1 -> 94 | DA51: =CZ51+1 -> 95 | DB51: =DA51+1 -> 96 | DC51: =DB51+1 -> 97 | DD51: =DC51+1 -> 98 | DE51: =DD51+1 -> 99 | DF51: =DE51+1 -> 100 | DG51: =DF51+1 -> 101 | DH51: =DG51+1 -> 102 | DI51: =DH51+1 -> 103 | DJ51: =DI51+1 -> 104 | DK51: =DJ51+1 -> 105 | DL51: =DK51+1 -> 106 | DM51: =DL51+1 -> 107 | DN51: =DM51+1 -> 108 | DO51: =DN51+1 -> 109 | DP51: =DO51+1 -> 110 | DQ51: =DP51+1 -> 111 | DR51: =DQ51+1 -> 112 | DS51: =DR51+1 -> 113 | DT51: =DS51+1 -> 114 | DU51: =DT51+1 -> 115 | DV51: =DU51+1 -> 116 | DW51: =DV51+1 -> 117 | DX51: =DW51+1 -> 118 | DY51: =DX51+1 -> 119 | DZ51: =DY51+1 -> 120 | EA51: =DZ51+1 -> 121 | EB51: =EA51+1 -> 122 | EC51: =EB51+1 -> 123 | ED51: =EC51+1 -> 124 | EE51: =ED51+1 -> 125 | EF51: =EE51+1 -> 126 | EG51: =EF51+1 -> 127 | EH51: =EG51+1 -> 128 | EI51: =EH51+1 -> 129 | EJ51: =EI51+1 -> 130 | EK51: =EJ51+1 -> 131 | EL51: =EK51+1 -> 132 | EM51: =EL51+1 -> 133 | EN51: =EM51+1 -> 134 | EO51: =EN51+1 -> 135 | EP51: =EO51+1 -> 136 | EQ51: =EP51+1 -> 137 | ER51: =EQ51+1 -> 138 | ES51: =ER51+1 -> 139 | ET51: =ES51+1 -> 140 | EU51: =ET51+1 -> 141 | EV51: =EU51+1 -> 142 | EW51: =EV51+1 -> 143 | EX51: =EW51+1 -> 144 | EY51: =EX51+1 -> 145 | EZ51: =EY51+1 -> 146 | FA51: =EZ51+1 -> 147 | FB51: =FA51+1 -> 148 | FC51: =FB51+1 -> 149 | FD51: =FC51+1 -> 150 | FE51: =FD51+1 -> 151 | FF51: =FE51+1 -> 152 | FG51: =FF51+1 -> 153 | FH51: =FG51+1 -> 154 | FI51: =FH51+1 -> 155 | FJ51: =FI51+1 -> 156 | FK51: =FJ51+1 -> 157 | FL51: =FK51+1 -> 158 | FM51: =FL51+1 -> 159 | FN51: =FM51+1 -> 160 | FO51: =FN51+1 -> 161 | FP51: =FO51+1 -> 162 | FQ51: =FP51+1 -> 163 | FR51: =FQ51+1 -> 164 | FS51: =FR51+1 -> 165 | FT51: =FS51+1 -> 166 | FU51: =FT51+1 -> 167 | FV51: =FU51+1 -> 168 | FW51: =FV51+1 -> 169 | FX51: =FW51+1 -> 170 | FY51: =FX51+1 -> 171 | FZ51: =FY51+1 -> 172 | GA51: =FZ51+1 -> 173 | GB51: =GA51+1 -> 174 | GC51: =GB51+1 -> 175 | GD51: =GC51+1 -> 176 | GE51: =GD51+1 -> 177 | GF51: =GE51+1 -> 178 | GG51: =GF51+1 -> 179 | GH51: =GG51+1 -> 180 | GI51: =GH51+1 -> 181 | GJ51: =GI51+1 -> 182 | GK51: =GJ51+1 -> 183 | GL51: =GK51+1 -> 184 | GM51: =GL51+1 -> 185 | GN51: =GM51+1 -> 186 | GO51: =GN51+1 -> 187 | GP51: =GO51+1 -> 188 | GQ51: =GP51+1 -> 189 | GR51: =GQ51+1 -> 190 | GS51: =GR51+1 -> 191 | GT51: =GS51+1 -> 192 | GU51: =GT51+1 -> 193 | GV51: =GU51+1 -> 194 | GW51: =GV51+1 -> 195 | GX51: =GW51+1 -> 196 | GY51: =GX51+1 -> 197 | GZ51: =GY51+1 -> 198 | HA51: =GZ51+1 -> 199 | HB51: =HA51+1 -> 200 | HC51: =HB51+1 -> 201 | HD51: =HC51+1 -> 202 | HE51: =HD51+1 -> 203 | HF51: =HE51+1 -> 204 | HG51: =HF51+1 -> 205 | HH51: =HG51+1 -> 206 | HI51: =HH51+1 -> 207 | HJ51: =HI51+1 -> 208 | HK51: =HJ51+1 -> 209 | HL51: =HK51+1 -> 210 | HM51: =HL51+1 -> 211 | HN51: =HM51+1 -> 212 | HO51: =HN51+1 -> 213 | HP51: =HO51+1 -> 214 | HQ51: =HP51+1 -> 215 | HR51: =HQ51+1 -> 216 | HS51: =HR51+1 -> 217 | HT51: =HS51+1 -> 218 | HU51: =HT51+1 -> 219 | HV51: =HU51+1 -> 220 | HW51: =HV51+1 -> 221 | HX51: =HW51+1 -> 222 | HY51: =HX51+1 -> 223 | HZ51: =HY51+1 -> 224 | IA51: =HZ51+1 -> 225 | IB51: =IA51+1 -> 226 | IC51: =IB51+1 -> 227 | ID51: =IC51+1 -> 228 | IE51: =ID51+1 -> 229 | IF51: =IE51+1 -> 230 | IG51: =IF51+1 -> 231 | IH51: =IG51+1 -> 232 | II51: =IH51+1 -> 233 | IJ51: =II51+1 -> 234 | IK51: =IJ51+1 -> 235 | IL51: =IK51+1 -> 236 | IM51: =IL51+1 -> 237 | IN51: =IM51+1 -> 238 | IO51: =IN51+1 -> 239 | IP51: =IO51+1 -> 240 | IQ51: =IP51+1 -> 241 | IR51: =IQ51+1 -> 242 | IS51: =IR51+1 -> 243 | IT51: =IS51+1 -> 244 | IU51: =IT51+1 -> 245 | IV51: =IU51+1 -> 246 | IW51: =IV51+1 -> 247 | IX51: =IW51+1 -> 248 | IY51: =IX51+1 -> 249 | IZ51: =IY51+1 -> 250 | JA51: =IZ51+1 -> 251 | JB51: =JA51+1 -> 252 | JC51: =JB51+1 -> 253 | JD51: =JC51+1 -> 254 | JE51: =JD51+1 -> 255 | JF51: =JE51+1 -> 256 | JG51: =JF51+1 -> 257 | JH51: =JG51+1 -> 258 | JI51: =JH51+1 -> 259 | JJ51: =JI51+1 -> 260 | JK51: =JJ51+1 -> 261 | JL51: =JK51+1 -> 262 | JM51: =JL51+1 -> 263 | JN51: =JM51+1 -> 264 | JO51: =JN51+1 -> 265 | JP51: =JO51+1 -> 266 | JQ51: =JP51+1 -> 267 | JR51: =JQ51+1 -> 268 | JS51: =JR51+1 -> 269 | JT51: =JS51+1 -> 270 | JU51: =JT51+1 -> 271 | JV51: =JU51+1 -> 272 | JW51: =JV51+1 -> 273 | JX51: =JW51+1 -> 274 | JY51: =JX51+1 -> 275 | JZ51: =JY51+1 -> 276 | KA51: =JZ51+1 -> 277 | KB51: =KA51+1 -> 278 | KC51: =KB51+1 -> 279 | KD51: =KC51+1 -> 280 | KE51: =KD51+1 -> 281 | KF51: =KE51+1 -> 282 | KG51: =KF51+1 -> 283 | KH51: =KG51+1 -> 284 | KI51: =KH51+1 -> 285 | KJ51: =KI51+1 -> 286 | KK51: =KJ51+1 -> 287 | KL51: =KK51+1 -> 288 | KM51: =KL51+1 -> 289 | KN51: =KM51+1 -> 290 | KO51: =KN51+1 -> 291 | KP51: =KO51+1 -> 292 | KQ51: =KP51+1 -> 293 | KR51: =KQ51+1 -> 294 | KS51: =KR51+1 -> 295 | KT51: =KS51+1 -> 296 | KU51: =KT51+1 -> 297 | KV51: =KU51+1 -> 298 | KW51: =KV51+1 -> 299 | KX51: =KW51+1 -> 300 | KY51: =KX51+1 -> 301 | KZ51: =KY51+1 -> 302 | LA51: =KZ51+1 -> 303 | LB51: =LA51+1 -> 304 | LC51: =LB51+1 -> 305 | LD51: =LC51+1 -> 306 | LE51: =LD51+1 -> 307 | LF51: =LE51+1 -> 308 | LG51: =LF51+1 -> 309 | LH51: =LG51+1 -> 310 | LI51: =LH51+1 -> 311 | LJ51: =LI51+1 -> 312 | LK51: =LJ51+1 -> 313 | LL51: =LK51+1 -> 314 | LM51: =LL51+1 -> 315 | LN51: =LM51+1 -> 316 | LO51: =LN51+1 -> 317 | LP51: =LO51+1 -> 318 | LQ51: =LP51+1 -> 319 | LR51: =LQ51+1 -> 320 | LS51: =LR51+1 -> 321 | LT51: =LS51+1 -> 322 | LU51: =LT51+1 -> 323 | LV51: =LU51+1 -> 324 | LW51: =LV51+1 -> 325 | LX51: =LW51+1 -> 326 | LY51: =LX51+1 -> 327 | LZ51: =LY51+1 -> 328 | MA51: =LZ51+1 -> 329 | MB51: =MA51+1 -> 330 | MC51: =MB51+1 -> 331 | MD51: =MC51+1 -> 332 | ME51: =MD51+1 -> 333 | MF51: =ME51+1 -> 334 | MG51: =MF51+1 -> 335 | MH51: =MG51+1 -> 336 | MI51: =MH51+1 -> 337 | MJ51: =MI51+1 -> 338 | MK51: =MJ51+1 -> 339 | ML51: =MK51+1 -> 340 | MM51: =ML51+1 -> 341 | MN51: =MM51+1 -> 342 | MO51: =MN51+1 -> 343 | MP51: =MO51+1 -> 344 | MQ51: =MP51+1 -> 345 | MR51: =MQ51+1 -> 346 | MS51: =MR51+1 -> 347 | MT51: =MS51+1 -> 348 | MU51: =MT51+1 -> 349 | MV51: =MU51+1 -> 350 | MW51: =MV51+1 -> 351 | MX51: =MW51+1 -> 352 | MY51: =MX51+1 -> 353 | MZ51: =MY51+1 -> 354 | NA51: =MZ51+1 -> 355 | NB51: =NA51+1 -> 356 | NC51: =NB51+1 -> 357 | ND51: =NC51+1 -> 358 | NE51: =ND51+1 -> 359 | NF51: =NE51+1 -> 360 | NG51: =NF51+1 -> 361 | NH51: =NG51+1 -> 362 | NI51: =NH51+1 -> 363 | NJ51: =NI51+1 -> 364 | NK51: =NJ51+1 -> 365 | NL51: =NK51+1 -> 366 | NM51: =NL51+1 -> 367 | NN51: =NM51+1 -> 368 | NO51: =NN51+1 -> 369 | NP51: =NO51+1 -> 370 | NQ51: =NP51+1 -> 371 | NR51: =NQ51+1 -> 372 | NS51: =NR51+1 -> 373 | NT51: =NS51+1 -> 374 | NU51: =NT51+1 -> 375 | NV51: =NU51+1 -> 376 | NW51: =NV51+1 -> 377 | NX51: =NW51+1 -> 378 | NY51: =NX51+1 -> 379 | NZ51: =NY51+1 -> 380 | OA51: =NZ51+1 -> 381 | OB51: =OA51+1 -> 382 | OC51: =OB51+1 -> 383 | OD51: =OC51+1 -> 384 | OE51: =OD51+1 -> 385 | OF51: =OE51+1 -> 386 | OG51: =OF51+1 -> 387 | OH51: =OG51+1 -> 388 | OI51: =OH51+1 -> 389 | OJ51: =OI51+1 -> 390 | OK51: =OJ51+1 -> 391 | OL51: =OK51+1 -> 392 | OM51: =OL51+1 -> 393 | ON51: =OM51+1 -> 394 | OO51: =ON51+1 -> 395 | OP51: =OO51+1 -> 396 | OQ51: =OP51+1 -> 397 | OR51: =OQ51+1 -> 398 | OS51: =OR51+1 -> 399 | OT51: =OS51+1 -> 400 | OU51: =OT51+1 -> 401 | OV51: =OU51+1 -> 402 | OW51: =OV51+1 -> 403 | OX51: =OW51+1 -> 404 | OY51: =OX51+1 -> 405 | OZ51: =OY51+1 -> 406 | PA51: =OZ51+1 -> 407 | PB51: =PA51+1 -> 408 | PC51: =PB51+1 -> 409 | PD51: =PC51+1 -> 410 | PE51: =PD51+1 -> 411 | PF51: =PE51+1 -> 412 | PG51: =PF51+1 -> 413 | PH51: =PG51+1 -> 414 | PI51: =PH51+1 -> 415 | PJ51: =PI51+1 -> 416 | PK51: =PJ51+1 -> 417 | PL51: =PK51+1 -> 418 | PM51: =PL51+1 -> 419 | PN51: =PM51+1 -> 420 | PO51: =PN51+1 -> 421 | PP51: =PO51+1 -> 422 | PQ51: =PP51+1 -> 423 | PR51: =PQ51+1 -> 424 | PS51: =PR51+1 -> 425 | PT51: =PS51+1 -> 426 | PU51: =PT51+1 -> 427 | PV51: =PU51+1 -> 428 | PW51: =PV51+1 -> 429 | PX51: =PW51+1 -> 430 | PY51: =PX51+1 -> 431 | PZ51: =PY51+1 -> 432 | QA51: =PZ51+1 -> 433 | QB51: =QA51+1 -> 434 | QC51: =QB51+1 -> 435 | QD51: =QC51+1 -> 436 | QE51: =QD51+1 -> 437 | QF51: =QE51+1 -> 438 | QG51: =QF51+1 -> 439 | QH51: =QG51+1 -> 440 | QI51: =QH51+1 -> 441 | QJ51: =QI51+1 -> 442 | QK51: =QJ51+1 -> 443 | QL51: =QK51+1 -> 444 | QM51: =QL51+1 -> 445 | QN51: =QM51+1 -> 446 | QO51: =QN51+1 -> 447 | QP51: =QO51+1 -> 448 | QQ51: =QP51+1 -> 449 | QR51: =QQ51+1 -> 450 | QS51: =QR51+1 -> 451 | QT51: =QS51+1 -> 452 | QU51: =QT51+1 -> 453 | QV51: =QU51+1 -> 454 | QW51: =QV51+1 -> 455 | QX51: =QW51+1 -> 456 | QY51: =QX51+1 -> 457 | QZ51: =QY51+1 -> 458 | RA51: =QZ51+1 -> 459 | RB51: =RA51+1 -> 460 | RC51: =RB51+1 -> 461 | RD51: =RC51+1 -> 462 | RE51: =RD51+1 -> 463 | RF51: =RE51+1 -> 464 | RG51: =RF51+1 -> 465 | RH51: =RG51+1 -> 466 | RI51: =RH51+1 -> 467 | RJ51: =RI51+1 -> 468 | RK51: =RJ51+1 -> 469 | RL51: =RK51+1 -> 470 | RM51: =RL51+1 -> 471 | RN51: =RM51+1 -> 472 | RO51: =RN51+1 -> 473 | RP51: =RO51+1 -> 474 | RQ51: =RP51+1 -> 475 | RR51: =RQ51+1 -> 476 | RS51: =RR51+1 -> 477 | RT51: =RS51+1 -> 478 | RU51: =RT51+1 -> 479 | RV51: =RU51+1 -> 480 | RW51: =RV51+1 -> 481 | RX51: =RW51+1 -> 482 | RY51: =RX51+1 -> 483 | RZ51: =RY51+1 -> 484 | SA51: =RZ51+1 -> 485 | SB51: =SA51+1 -> 486 | SC51: =SB51+1 -> 487 | SD51: =SC51+1 -> 488 | SE51: =SD51+1 -> 489 | SF51: =SE51+1 -> 490 | SG51: =SF51+1 -> 491 | SH51: =SG51+1 -> 492 | SI51: =SH51+1 -> 493 | SJ51: =SI51+1 -> 494 | SK51: =SJ51+1 -> 495 | SL51: =SK51+1 -> 496 | SM51: =SL51+1 -> 497 | SN51: =SM51+1 -> 498 | SO51: =SN51+1 -> 499 | SP51: =SO51+1 -> 500 | SQ51: =SP51+1 -> 501 | SR51: =SQ51+1 -> 502 | SS51: =SR51+1 -> 503 | ST51: =SS51+1 -> 504 | SU51: =ST51+1 -> 505 | SV51: =SU51+1 -> 506 | SW51: =SV51+1 -> 507 | SX51: =SW51+1 -> 508 | SY51: =SX51+1 -> 509 | SZ51: =SY51+1 -> 510 | TA51: =SZ51+1 -> 511 | TB51: =TA51+1 -> 512 | TC51: =TB51+1 -> 513 | TD51: =TC51+1 -> 514 | TE51: =TD51+1 -> 515 | TF51: =TE51+1 -> 516 | TG51: =TF51+1 -> 517 | TH51: =TG51+1 -> 518 | TI51: =TH51+1 -> 519 | TJ51: =TI51+1 -> 520 | TK51: =TJ51+1 -> 521 | TL51: =TK51+1 -> 522 | TM51: =TL51+1 -> 523 | TN51: =TM51+1 -> 524 | TO51: =TN51+1 -> 525 | TP51: =TO51+1 -> 526 | TQ51: =TP51+1 -> 527 | TR51: =TQ51+1 -> 528 | TS51: =TR51+1 -> 529 | TT51: =TS51+1 -> 530 | TU51: =TT51+1 -> 531 | TV51: =TU51+1 -> 532 | TW51: =TV51+1 -> 533 | TX51: =TW51+1 -> 534 | TY51: =TX51+1 -> 535 | TZ51: =TY51+1 -> 536 | UA51: =TZ51+1 -> 537 | UB51: =UA51+1 -> 538 | UC51: =UB51+1 -> 539 | UD51: =UC51+1 -> 540 | UE51: =UD51+1 -> 541 | UF51: =UE51+1 -> 542 | UG51: =UF51+1 -> 543 | UH51: =UG51+1 -> 544 | UI51: =UH51+1 -> 545 | UJ51: =UI51+1 -> 546 | UK51: =UJ51+1 -> 547 | UL51: =UK51+1 -> 548 | UM51: =UL51+1 -> 549 | UN51: =UM51+1 -> 550 | UO51: =UN51+1 -> 551 | UP51: =UO51+1 -> 552 | UQ51: =UP51+1 -> 553 | UR51: =UQ51+1 -> 554 | US51: =UR51+1 -> 555 | UT51: =US51+1 -> 556 | UU51: =UT51+1 -> 557 | UV51: =UU51+1 -> 558 | UW51: =UV51+1 -> 559 | UX51: =UW51+1 -> 560 | UY51: =UX51+1 -> 561 | UZ51: =UY51+1 -> 562 | VA51: =UZ51+1 -> 563 | VB51: =VA51+1 -> 564 | VC51: =VB51+1 -> 565 | VD51: =VC51+1 -> 566 | VE51: =VD51+1 -> 567 | VF51: =VE51+1 -> 568 | VG51: =VF51+1 -> 569 | VH51: =VG51+1 -> 570 | VI51: =VH51+1 -> 571 | VJ51: =VI51+1 -> 572 | VK51: =VJ51+1 -> 573 | VL51: =VK51+1 -> 574 | VM51: =VL51+1 -> 575 | VN51: =VM51+1 -> 576 | VO51: =VN51+1 -> 577 | VP51: =VO51+1 -> 578 | VQ51: =VP51+1 -> 579 | VR51: =VQ51+1 -> 580 | VS51: =VR51+1 -> 581 | VT51: =VS51+1 -> 582 | VU51: =VT51+1 -> 583 | VV51: =VU51+1 -> 584 | VW51: =VV51+1 -> 585 | VX51: =VW51+1 -> 586 | VY51: =VX51+1 -> 587 | VZ51: =VY51+1 -> 588 | WA51: =VZ51+1 -> 589 | WB51: =WA51+1 -> 590 | WC51: =WB51+1 -> 591 | WD51: =WC51+1 -> 592 | WE51: =WD51+1 -> 593 | WF51: =WE51+1 -> 594 | WG51: =WF51+1 -> 595 | WH51: =WG51+1 -> 596 | WI51: =WH51+1 -> 597 | WJ51: =WI51+1 -> 598 | WK51: =WJ51+1 -> 599 | WL51: =WK51+1 -> 600 | WM51: =WL51+1 -> 601 | WN51: =WM51+1 -> 602 | WO51: =WN51+1 -> 603 | WP51: =WO51+1 -> 604 | WQ51: =WP51+1 -> 605 | WR51: =WQ51+1 -> 606 | WS51: =WR51+1 -> 607 | WT51: =WS51+1 -> 608 | WU51: =WT51+1 -> 609 | WV51: =WU51+1 -> 610 | WW51: =WV51+1 -> 611 | WX51: =WW51+1 -> 612 | WY51: =WX51+1 -> 613 | WZ51: =WY51+1 -> 614 | XA51: =WZ51+1 -> 615 | XB51: =XA51+1 -> 616 | XC51: =XB51+1 -> 617 | XD51: =XC51+1 -> 618 | XE51: =XD51+1 -> 619 | XF51: =XE51+1 -> 620 | XG51: =XF51+1 -> 621 | XH51: =XG51+1 -> 622 | XI51: =XH51+1 -> 623 | XJ51: =XI51+1 -> 624 | XK51: =XJ51+1 -> 625 | XL51: =XK51+1 -> 626 | XM51: =XL51+1 -> 627 | XN51: =XM51+1 -> 628 | XO51: =XN51+1 -> 629 | XP51: =XO51+1 -> 630 | XQ51: =XP51+1 -> 631 | XR51: =XQ51+1 -> 632 | XS51: =XR51+1 -> 633 | XT51: =XS51+1 -> 634 | XU51: =XT51+1 -> 635 | XV51: =XU51+1 -> 636 | XW51: =XV51+1 -> 637 | XX51: =XW51+1 -> 638 | XY51: =XX51+1 -> 639 | XZ51: =XY51+1 -> 640 | YA51: =XZ51+1 -> 641 | YB51: =YA51+1 -> 642 | YC51: =YB51+1 -> 643 | YD51: =YC51+1 -> 644 | YE51: =YD51+1 -> 645 | YF51: =YE51+1 -> 646 | YG51: =YF51+1 -> 647 | YH51: =YG51+1 -> 648 | YI51: =YH51+1 -> 649 | YJ51: =YI51+1 -> 650 | YK51: =YJ51+1 -> 651 | YL51: =YK51+1 -> 652 | YM51: =YL51+1 -> 653 | YN51: =YM51+1 -> 654 | YO51: =YN51+1 -> 655 | YP51: =YO51+1 -> 656 | YQ51: =YP51+1 -> 657 | YR51: =YQ51+1 -> 658 | YS51: =YR51+1 -> 659 | YT51: =YS51+1 -> 660 | YU51: =YT51+1 -> 661 | YV51: =YU51+1 -> 662 | YW51: =YV51+1 -> 663 | YX51: =YW51+1 -> 664 | YY51: =YX51+1 -> 665 | YZ51: =YY51+1 -> 666 | ZA51: =YZ51+1 -> 667 | ZB51: =ZA51+1 -> 668 | ZC51: =ZB51+1 -> 669 | ZD51: =ZC51+1 -> 670 | ZE51: =ZD51+1 -> 671 | ZF51: =ZE51+1 -> 672 | ZG51: =ZF51+1 -> 673 | ZH51: =ZG51+1 -> 674 | ZI51: =ZH51+1 -> 675 | ZJ51: =ZI51+1 -> 676 | ZK51: =ZJ51+1 -> 677 | ZL51: =ZK51+1 -> 678 | ZM51: =ZL51+1 -> 679 | ZN51: =ZM51+1 -> 680 | ZO51: =ZN51+1 -> 681 | ZP51: =ZO51+1 -> 682 | ZQ51: =ZP51+1 -> 683 | ZR51: =ZQ51+1 -> 684 | ZS51: =ZR51+1 -> 685 | ZT51: =ZS51+1 -> 686 | ZU51: =ZT51+1 -> 687 | ZV51: =ZU51+1 -> 688 | ZW51: =ZV51+1 -> 689 | ZX51: =ZW51+1 -> 690 | ZY51: =ZX51+1 -> 691 | ZZ51: =ZY51+1 -> 692 | AAA51: =ZZ51+1 -> 693 | AAB51: =AAA51+1 -> 694 | AAC51: =AAB51+1 -> 695 | AAD51: =AAC51+1 -> 696 | AAE51: =AAD51+1 -> 697 | AAF51: =AAE51+1 -> 698 | AAG51: =AAF51+1 -> 699 | AAH51: =AAG51+1 -> 700 | AAI51: =AAH51+1 -> 701 | AAJ51: =AAI51+1 -> 702 | AAK51: =AAJ51+1 -> 703 | AAL51: =AAK51+1 -> 704 | AAM51: =AAL51+1 -> 705 | AAN51: =AAM51+1 -> 706 | AAO51: =AAN51+1 -> 707 | AAP51: =AAO51+1 -> 708 | AAQ51: =AAP51+1 -> 709 | AAR51: =AAQ51+1 -> 710 | AAS51: =AAR51+1 -> 711 | AAT51: =AAS51+1 -> 712 | AAU51: =AAT51+1 -> 713 | AAV51: =AAU51+1 -> 714 | AAW51: =AAV51+1 -> 715 | AAX51: =AAW51+1 -> 716 | AAY51: =AAX51+1 -> 717 | AAZ51: =AAY51+1 -> 718 | ABA51: =AAZ51+1 -> 719 | ABB51: =ABA51+1 -> 720 | ABC51: =ABB51+1 -> 721 | ABD51: =ABC51+1 -> 722 | ABE51: =ABD51+1 -> 723 | ABF51: =ABE51+1 -> 724 | ABG51: =ABF51+1 -> 725 | ABH51: =ABG51+1 -> 726 | ABI51: =ABH51+1 -> 727 | ABJ51: =ABI51+1 -> 728 | ABK51: =ABJ51+1 -> 729 | ABL51: =ABK51+1 -> 730 | ABM51: =ABL51+1 -> 731 | ABN51: =ABM51+1 -> 732 | ABO51: =ABN51+1 -> 733 | ABP51: =ABO51+1 -> 734 | ABQ51: =ABP51+1 -> 735 | ABR51: =ABQ51+1 -> 736 | ABS51: =ABR51+1 -> 737 | ABT51: =ABS51+1 -> 738 | ABU51: =ABT51+1 -> 739 | ABV51: =ABU51+1 -> 740 | ABW51: =ABV51+1 -> 741 | ABX51: =ABW51+1 -> 742 | ABY51: =ABX51+1 -> 743 | ABZ51: =ABY51+1 -> 744 | ACA51: =ABZ51+1 -> 745 | ACB51: =ACA51+1 -> 746 | ACC51: =ACB51+1 -> 747 | ACD51: =ACC51+1 -> 748 | ACE51: =ACD51+1 -> 749 | ACF51: =ACE51+1 -> 750 | ACG51: =ACF51+1 -> 751 | ACH51: =ACG51+1 -> 752 | ACI51: =ACH51+1 -> 753 | ACJ51: =ACI51+1 -> 754 | ACK51: =ACJ51+1 -> 755 | ACL51: =ACK51+1 -> 756 | ACM51: =ACL51+1 -> 757 | ACN51: =ACM51+1 -> 758 | ACO51: =ACN51+1 -> 759 | ACP51: =ACO51+1 -> 760 | ACQ51: =ACP51+1 -> 761 | ACR51: =ACQ51+1 -> 762 | ACS51: =ACR51+1 -> 763 | ACT51: =ACS51+1 -> 764 | ACU51: =ACT51+1 -> 765 | ACV51: =ACU51+1 -> 766 | ACW51: =ACV51+1 -> 767 | ACX51: =ACW51+1 -> 768 | ACY51: =ACX51+1 -> 769 | ACZ51: =ACY51+1 -> 770 | ADA51: =ACZ51+1 -> 771 | ADB51: =ADA51+1 -> 772 | ADC51: =ADB51+1 -> 773 | ADD51: =ADC51+1 -> 774 | ADE51: =ADD51+1 -> 775 | ADF51: =ADE51+1 -> 776 | ADG51: =ADF51+1 -> 777 | ADH51: =ADG51+1 -> 778 | ADI51: =ADH51+1 -> 779 | ADJ51: =ADI51+1 -> 780 | ADK51: =ADJ51+1 -> 781 | ADL51: =ADK51+1 -> 782 | ADM51: =ADL51+1 -> 783 | ADN51: =ADM51+1 -> 784 | ADO51: =ADN51+1 -> 785 | ADP51: =ADO51+1 -> 786 | ADQ51: =ADP51+1 -> 787 | ADR51: =ADQ51+1 -> 788 | ADS51: =ADR51+1 -> 789 | ADT51: =ADS51+1 -> 790 | ADU51: =ADT51+1 -> 791 | ADV51: =ADU51+1 -> 792 | ADW51: =ADV51+1 -> 793 | ADX51: =ADW51+1 -> 794 | ADY51: =ADX51+1 -> 795 | ADZ51: =ADY51+1 -> 796 | AEA51: =ADZ51+1 -> 797 | AEB51: =AEA51+1 -> 798 | AEC51: =AEB51+1 -> 799 | AED51: =AEC51+1 -> 800 | AEE51: =AED51+1 -> 801 | AEF51: =AEE51+1 -> 802 | AEG51: =AEF51+1 -> 803 | AEH51: =AEG51+1 -> 804 | AEI51: =AEH51+1 -> 805 | AEJ51: =AEI51+1 -> 806 | AEK51: =AEJ51+1 -> 807 | AEL51: =AEK51+1 -> 808 | AEM51: =AEL51+1 -> 809 | AEN51: =AEM51+1 -> 810 | AEO51: =AEN51+1 -> 811 | AEP51: =AEO51+1 -> 812 | AEQ51: =AEP51+1 -> 813 | AER51: =AEQ51+1 -> 814 | AES51: =AER51+1 -> 815 | AET51: =AES51+1 -> 816 | AEU51: =AET51+1 -> 817 | AEV51: =AEU51+1 -> 818 | AEW51: =AEV51+1 -> 819 | AEX51: =AEW51+1 -> 820 | AEY51: =AEX51+1 -> 821 | AEZ51: =AEY51+1 -> 822 | AFA51: =AEZ51+1 -> 823 | AFB51: =AFA51+1 -> 824 | AFC51: =AFB51+1 -> 825 | AFD51: =AFC51+1 -> 826 | AFE51: =AFD51+1 -> 827 | AFF51: =AFE51+1 -> 828 | AFG51: =AFF51+1 -> 829 | AFH51: =AFG51+1 -> 830 | AFI51: =AFH51+1 -> 831 | AFJ51: =AFI51+1 -> 832 | AFK51: =AFJ51+1 -> 833 | AFL51: =AFK51+1 -> 834 | AFM51: =AFL51+1 -> 835 | AFN51: =AFM51+1 -> 836 | AFO51: =AFN51+1 -> 837 | AFP51: =AFO51+1 -> 838 | AFQ51: =AFP51+1 -> 839 | AFR51: =AFQ51+1 -> 840 | AFS51: =AFR51+1 -> 841 | AFT51: =AFS51+1 -> 842 | AFU51: =AFT51+1 -> 843 | AFV51: =AFU51+1 -> 844 | AFW51: =AFV51+1 -> 845 | AFX51: =AFW51+1 -> 846 | AFY51: =AFX51+1 -> 847 | AFZ51: =AFY51+1 -> 848 | AGA51: =AFZ51+1 -> 849 | AGB51: =AGA51+1 -> 850 | AGC51: =AGB51+1 -> 851 | AGD51: =AGC51+1 -> 852 | AGE51: =AGD51+1 -> 853 | AGF51: =AGE51+1 -> 854 | AGG51: =AGF51+1 -> 855 | AGH51: =AGG51+1 -> 856 | AGI51: =AGH51+1 -> 857 | AGJ51: =AGI51+1 -> 858 | AGK51: =AGJ51+1 -> 859 | AGL51: =AGK51+1 -> 860 | AGM51: =AGL51+1 -> 861 | AGN51: =AGM51+1 -> 862 | AGO51: =AGN51+1 -> 863 | AGP51: =AGO51+1 -> 864 | AGQ51: =AGP51+1 -> 865 | AGR51: =AGQ51+1 -> 866 | AGS51: =AGR51+1 -> 867 | AGT51: =AGS51+1 -> 868 | AGU51: =AGT51+1 -> 869 | AGV51: =AGU51+1 -> 870 | AGW51: =AGV51+1 -> 871 | AGX51: =AGW51+1 -> 872 | AGY51: =AGX51+1 -> 873 | AGZ51: =AGY51+1 -> 874 | AHA51: =AGZ51+1 -> 875 | AHB51: =AHA51+1 -> 876 | AHC51: =AHB51+1 -> 877 | AHD51: =AHC51+1 -> 878 | AHE51: =AHD51+1 -> 879 | AHF51: =AHE51+1 -> 880 | AHG51: =AHF51+1 -> 881 | AHH51: =AHG51+1 -> 882 | AHI51: =AHH51+1 -> 883 | AHJ51: =AHI51+1 -> 884 | AHK51: =AHJ51+1 -> 885 | AHL51: =AHK51+1 -> 886 | AHM51: =AHL51+1 -> 887 | AHN51: =AHM51+1 -> 888 | AHO51: =AHN51+1 -> 889 | AHP51: =AHO51+1 -> 890 | AHQ51: =AHP51+1 -> 891 | AHR51: =AHQ51+1 -> 892 | AHS51: =AHR51+1 -> 893 | AHT51: =AHS51+1 -> 894 | AHU51: =AHT51+1 -> 895 | AHV51: =AHU51+1 -> 896 | AHW51: =AHV51+1 -> 897 | AHX51: =AHW51+1 -> 898 | AHY51: =AHX51+1 -> 899 | AHZ51: =AHY51+1 -> 900 | AIA51: =AHZ51+1 -> 901 | AIB51: =AIA51+1 -> 902 | AIC51: =AIB51+1 -> 903 | AID51: =AIC51+1 -> 904 | AIE51: =AID51+1 -> 905 | AIF51: =AIE51+1 -> 906 | AIG51: =AIF51+1 -> 907 | AIH51: =AIG51+1 -> 908 | AII51: =AIH51+1 -> 909 | AIJ51: =AII51+1 -> 910 | AIK51: =AIJ51+1 -> 911 | AIL51: =AIK51+1 -> 912 | AIM51: =AIL51+1 -> 913 | AIN51: =AIM51+1 -> 914 | AIO51: =AIN51+1 -> 915 | AIP51: =AIO51+1 -> 916 | AIQ51: =AIP51+1 -> 917 | AIR51: =AIQ51+1 -> 918 | AIS51: =AIR51+1 -> 919 | AIT51: =AIS51+1 -> 920 | AIU51: =AIT51+1 -> 921 | AIV51: =AIU51+1 -> 922 | AIW51: =AIV51+1 -> 923 | AIX51: =AIW51+1 -> 924 | AIY51: =AIX51+1 -> 925 | AIZ51: =AIY51+1 -> 926 | AJA51: =AIZ51+1 -> 927 | AJB51: =AJA51+1 -> 928 | AJC51: =AJB51+1 -> 929 | AJD51: =AJC51+1 -> 930 | AJE51: =AJD51+1 -> 931 | AJF51: =AJE51+1 -> 932 | AJG51: =AJF51+1 -> 933 | AJH51: =AJG51+1 -> 934 | AJI51: =AJH51+1 -> 935 | AJJ51: =AJI51+1 -> 936 | AJK51: =AJJ51+1 -> 937 | AJL51: =AJK51+1 -> 938 | AJM51: =AJL51+1 -> 939 | AJN51: =AJM51+1 -> 940 | AJO51: =AJN51+1 -> 941 | AJP51: =AJO51+1 -> 942 | AJQ51: =AJP51+1 -> 943 | AJR51: =AJQ51+1 -> 944 | AJS51: =AJR51+1 -> 945 | AJT51: =AJS51+1 -> 946 | AJU51: =AJT51+1 -> 947 | AJV51: =AJU51+1 -> 948 | AJW51: =AJV51+1 -> 949 | AJX51: =AJW51+1 -> 950 | AJY51: =AJX51+1 -> 951 | AJZ51: =AJY51+1 -> 952 | AKA51: =AJZ51+1 -> 953 | AKB51: =AKA51+1 -> 954 | AKC51: =AKB51+1 -> 955 | AKD51: =AKC51+1 -> 956 | AKE51: =AKD51+1 -> 957 | AKF51: =AKE51+1 -> 958 | AKG51: =AKF51+1 -> 959 | AKH51: =AKG51+1 -> 960
B52: Item | E52: Variable | F52: Exercise period | I52: Date | J52: 2011-12-31 | K52: =DATE(YEAR(J52),MONTH(J52)+months+1,1)-1 -> 2012-03-31 | L52: =DATE(YEAR(K52),MONTH(K52)+months+1,1)-1 -> 2012-06-30 | M52: =DATE(YEAR(L52),MONTH(L52)+months+1,1)-1 -> 2012-09-30 | N52: 2012-12-31 | O52: 2013-03-31 | P52: 2013-06-30 | Q52: =DATE(YEAR(P52),MONTH(P52)+months+1,1)-1 -> 2013-09-30 | R52: 2013-12-31 | S52: 2014-03-31 | T52: 2014-06-30 | U52: =DATE(YEAR(T52),MONTH(T52)+months+1,1)-1 -> 2014-09-30 | V52: 2014-12-31 | W52: =DATE(YEAR(V52),MONTH(V52)+months+1,1)-1 -> 2015-03-31 | X52: 2015-06-30 | Y52: 2015-09-30 | Z52: 2015-12-31 | AA52: 2016-03-31 | AB52: 2016-06-30 | AC52: =DATE(YEAR(AB52),MONTH(AB52)+months+1,1)-1 -> 2016-09-30 | AD52: 2016-12-31 | AE52: 2017-03-31 | AF52: 2017-06-30 | AG52: 2017-09-30 | AH52: 2017-12-31 | AI52: 2018-03-31 | AJ52: 2018-06-30 | AK52: 2018-09-30 | AL52: 2018-12-31 | AM52: 2019-03-31 | AN52: 2019-06-30 | AO52: 2019-09-30 | AP52: 2019-12-31 | AQ52: 2020-03-31 | AR52: 2020-06-30 | AS52: 2020-09-30 | AT52: 2020-12-31 | AU52: 2021-03-31 | AV52: 2021-06-30 | AW52: 2021-09-30 | AX52: 2021-12-31 | AY52: 2022-03-31 | AZ52: 2022-06-30 | BA52: 2022-09-30 | BB52: 2022-12-31 | BC52: 2023-03-31 | BD52: 2023-06-30 | BE52: 2023-09-30 | BF52: 2023-12-31 | BG52: 2024-03-31 | BH52: 2024-06-30 | BI52: 2024-09-30 | BJ52: 2024-12-31 | BK52: 2025-03-31 | BL52: 2025-06-30 | BM52: 2025-09-30 | BN52: 2025-12-31 | BO52: 2026-03-31 | BP52: 2026-06-30 | BQ52: 2026-09-30 | BR52: 2026-12-31 | BS52: 2027-03-31 | BT52: 2027-06-30 | BU52: 2027-09-30 | BV52: 2027-12-31 | BW52: =DATE(YEAR(BV52),MONTH(BV52)+months+1,1)-1 -> 2028-03-31 | BX52: 2028-06-30 | BY52: 2028-09-30 | BZ52: 2028-12-31 | CA52: 2029-03-31 | CB52: 2029-06-30 | CC52: 2029-09-30 | CD52: 2029-12-31 | CE52: 2030-03-31 | CF52: 2030-06-30 | CG52: 2030-09-30 | CH52: 2030-12-31 | CI52: 2031-03-31 | CJ52: 2031-06-30 | CK52: 2031-09-30 | CL52: 2031-12-31 | CM52: 2032-03-31 | CN52: 2032-06-30 | CO52: 2032-09-30 | CP52: 2032-12-31 | CQ52: 2033-03-31 | CR52: 2033-06-30 | CS52: 2033-09-30 | CT52: 2033-12-31 | CU52: 2034-03-31 | CV52: 2034-06-30 | CW52: 2034-09-30 | CX52: 2034-12-31 | CY52: 2035-03-31 | CZ52: 2035-06-30 | DA52: 2035-09-30 | DB52: 2035-12-31 | DC52: 2036-03-31 | DD52: 2036-06-30 | DE52: 2036-09-30 | DF52: 2036-12-31 | DG52: 2037-03-31 | DH52: 2037-06-30 | DI52: 2037-09-30 | DJ52: 2037-12-31 | DK52: 2038-03-31 | DL52: 2038-06-30 | DM52: 2038-09-30 | DN52: 2038-12-31 | DO52: 2039-03-31 | DP52: 2039-06-30 | DQ52: 2039-09-30 | DR52: 2039-12-31 | DS52: 2040-03-31 | DT52: 2040-06-30 | DU52: 2040-09-30 | DV52: 2040-12-31 | DW52: 2041-03-31 | DX52: 2041-06-30 | DY52: 2041-09-30 | DZ52: 2041-12-31 | EA52: 2042-03-31 | EB52: 2042-06-30 | EC52: 2042-09-30 | ED52: 2042-12-31 | EE52: 2043-03-31 | EF52: 2043-06-30 | EG52: 2043-09-30 | EH52: 2043-12-31 | EI52: =DATE(YEAR(EH52),MONTH(EH52)+months+1,1)-1 -> 2044-03-31 | EJ52: 2044-06-30 | EK52: 2044-09-30 | EL52: 2044-12-31 | EM52: 2045-03-31 | EN52: 2045-06-30 | EO52: 2045-09-30 | EP52: 2045-12-31 | EQ52: 2046-03-31 | ER52: 2046-06-30 | ES52: 2046-09-30 | ET52: 2046-12-31 | EU52: 2047-03-31 | EV52: 2047-06-30 | EW52: 2047-09-30 | EX52: 2047-12-31 | EY52: 2048-03-31 | EZ52: 2048-06-30 | FA52: 2048-09-30 | FB52: 2048-12-31 | FC52: 2049-03-31 | FD52: 2049-06-30 | FE52: 2049-09-30 | FF52: 2049-12-31 | FG52: 2050-03-31 | FH52: 2050-06-30 | FI52: 2050-09-30 | FJ52: 2050-12-31 | FK52: 2051-03-31 | FL52: 2051-06-30 | FM52: 2051-09-30 | FN52: 2051-12-31 | FO52: 2052-03-31 | FP52: 2052-06-30 | FQ52: 2052-09-30 | FR52: 2052-12-31 | FS52: 2053-03-31 | FT52: 2053-06-30 | FU52: 2053-09-30 | FV52: 2053-12-31 | FW52: 2054-03-31 | FX52: 2054-06-30 | FY52: 2054-09-30 | FZ52: 2054-12-31 | GA52: 2055-03-31 | GB52: 2055-06-30 | GC52: 2055-09-30 | GD52: 2055-12-31 | GE52: 2056-03-31 | GF52: 2056-06-30 | GG52: 2056-09-30 | GH52: 2056-12-31 | GI52: 2057-03-31 | GJ52: 2057-06-30 | GK52: 2057-09-30 | GL52: 2057-12-31 | GM52: 2058-03-31 | GN52: 2058-06-30 | GO52: 2058-09-30 | GP52: 2058-12-31 | GQ52: 2059-03-31 | GR52: 2059-06-30 | GS52: 2059-09-30 | GT52: 2059-12-31 | GU52: =DATE(YEAR(GT52),MONTH(GT52)+months+1,1)-1 -> 2060-03-31 | GV52: 2060-06-30 | GW52: 2060-09-30 | GX52: 2060-12-31 | GY52: 2061-03-31 | GZ52: 2061-06-30 | HA52: 2061-09-30 | HB52: 2061-12-31 | HC52: 2062-03-31 | HD52: 2062-06-30 | HE52: 2062-09-30 | HF52: 2062-12-31 | HG52: 2063-03-31 | HH52: 2063-06-30 | HI52: 2063-09-30 | HJ52: 2063-12-31 | HK52: 2064-03-31 | HL52: 2064-06-30 | HM52: 2064-09-30 | HN52: 2064-12-31 | HO52: 2065-03-31 | HP52: 2065-06-30 | HQ52: 2065-09-30 | HR52: 2065-12-31 | HS52: 2066-03-31 | HT52: 2066-06-30 | HU52: 2066-09-30 | HV52: 2066-12-31 | HW52: 2067-03-31 | HX52: 2067-06-30 | HY52: 2067-09-30 | HZ52: 2067-12-31 | IA52: 2068-03-31 | IB52: 2068-06-30 | IC52: 2068-09-30 | ID52: 2068-12-31 | IE52: 2069-03-31 | IF52: 2069-06-30 | IG52: 2069-09-30 | IH52: 2069-12-31 | II52: 2070-03-31 | IJ52: 2070-06-30 | IK52: 2070-09-30 | IL52: 2070-12-31 | IM52: 2071-03-31 | IN52: 2071-06-30 | IO52: 2071-09-30 | IP52: 2071-12-31 | IQ52: 2072-03-31 | IR52: 2072-06-30 | IS52: 2072-09-30 | IT52: 2072-12-31 | IU52: 2073-03-31 | IV52: 2073-06-30 | IW52: 2073-09-30 | IX52: 2073-12-31 | IY52: 2074-03-31 | IZ52: 2074-06-30 | JA52: 2074-09-30 | JB52: 2074-12-31 | JC52: 2075-03-31 | JD52: 2075-06-30 | JE52: 2075-09-30 | JF52: 2075-12-31 | JG52: =DATE(YEAR(JF52),MONTH(JF52)+months+1,1)-1 -> 2076-03-31 | JH52: 2076-06-30 | JI52: 2076-09-30 | JJ52: 2076-12-31 | JK52: 2077-03-31 | JL52: 2077-06-30 | JM52: 2077-09-30 | JN52: 2077-12-31 | JO52: 2078-03-31 | JP52: 2078-06-30 | JQ52: 2078-09-30 | JR52: 2078-12-31 | JS52: 2079-03-31 | JT52: 2079-06-30 | JU52: 2079-09-30 | JV52: 2079-12-31 | JW52: 2080-03-31 | JX52: 2080-06-30 | JY52: 2080-09-30 | JZ52: 2080-12-31 | KA52: 2081-03-31 | KB52: 2081-06-30 | KC52: 2081-09-30 | KD52: 2081-12-31 | KE52: 2082-03-31 | KF52: 2082-06-30 | KG52: 2082-09-30 | KH52: 2082-12-31 | KI52: 2083-03-31 | KJ52: 2083-06-30 | KK52: 2083-09-30 | KL52: 2083-12-31 | KM52: 2084-03-31 | KN52: 2084-06-30 | KO52: 2084-09-30 | KP52: 2084-12-31 | KQ52: 2085-03-31 | KR52: 2085-06-30 | KS52: 2085-09-30 | KT52: 2085-12-31 | KU52: 2086-03-31 | KV52: 2086-06-30 | KW52: 2086-09-30 | KX52: 2086-12-31 | KY52: 2087-03-31 | KZ52: 2087-06-30 | LA52: 2087-09-30 | LB52: 2087-12-31 | LC52: 2088-03-31 | LD52: 2088-06-30 | LE52: 2088-09-30 | LF52: 2088-12-31 | LG52: 2089-03-31 | LH52: 2089-06-30 | LI52: 2089-09-30 | LJ52: 2089-12-31 | LK52: 2090-03-31 | LL52: 2090-06-30 | LM52: 2090-09-30 | LN52: 2090-12-31 | LO52: 2091-03-31 | LP52: 2091-06-30 | LQ52: 2091-09-30 | LR52: 2091-12-31 | LS52: =DATE(YEAR(LR52),MONTH(LR52)+months+1,1)-1 -> 2092-03-31 | LT52: 2092-06-30 | LU52: 2092-09-30 | LV52: 2092-12-31 | LW52: 2093-03-31 | LX52: 2093-06-30 | LY52: 2093-09-30 | LZ52: 2093-12-31 | MA52: 2094-03-31 | MB52: 2094-06-30 | MC52: 2094-09-30 | MD52: 2094-12-31 | ME52: 2095-03-31 | MF52: 2095-06-30 | MG52: 2095-09-30 | MH52: 2095-12-31 | MI52: 2096-03-31 | MJ52: 2096-06-30 | MK52: 2096-09-30 | ML52: 2096-12-31 | MM52: 2097-03-31 | MN52: 2097-06-30 | MO52: 2097-09-30 | MP52: 2097-12-31 | MQ52: 2098-03-31 | MR52: 2098-06-30 | MS52: 2098-09-30 | MT52: 2098-12-31 | MU52: 2099-03-31 | MV52: 2099-06-30 | MW52: 2099-09-30 | MX52: 2099-12-31 | MY52: 2100-03-31 | MZ52: 2100-06-30 | NA52: 2100-09-30 | NB52: 2100-12-31 | NC52: 2101-03-31 | ND52: 2101-06-30 | NE52: 2101-09-30 | NF52: 2101-12-31 | NG52: 2102-03-31 | NH52: 2102-06-30 | NI52: 2102-09-30 | NJ52: 2102-12-31 | NK52: 2103-03-31 | NL52: 2103-06-30 | NM52: 2103-09-30 | NN52: 2103-12-31 | NO52: 2104-03-31 | NP52: 2104-06-30 | NQ52: 2104-09-30 | NR52: 2104-12-31 | NS52: 2105-03-31 | NT52: 2105-06-30 | NU52: 2105-09-30 | NV52: 2105-12-31 | NW52: 2106-03-31 | NX52: 2106-06-30 | NY52: 2106-09-30 | NZ52: 2106-12-31 | OA52: 2107-03-31 | OB52: 2107-06-30 | OC52: 2107-09-30 | OD52: 2107-12-31 | OE52: =DATE(YEAR(OD52),MONTH(OD52)+months+1,1)-1 -> 2108-03-31 | OF52: 2108-06-30 | OG52: 2108-09-30 | OH52: 2108-12-31 | OI52: 2109-03-31 | OJ52: 2109-06-30 | OK52: 2109-09-30 | OL52: 2109-12-31 | OM52: 2110-03-31 | ON52: 2110-06-30 | OO52: 2110-09-30 | OP52: 2110-12-31 | OQ52: 2111-03-31 | OR52: 2111-06-30 | OS52: 2111-09-30 | OT52: 2111-12-31 | OU52: 2112-03-31 | OV52: 2112-06-30 | OW52: 2112-09-30 | OX52: 2112-12-31 | OY52: 2113-03-31 | OZ52: 2113-06-30 | PA52: 2113-09-30 | PB52: 2113-12-31 | PC52: 2114-03-31 | PD52: 2114-06-30 | PE52: 2114-09-30 | PF52: 2114-12-31 | PG52: 2115-03-31 | PH52: 2115-06-30 | PI52: 2115-09-30 | PJ52: 2115-12-31 | PK52: 2116-03-31 | PL52: 2116-06-30 | PM52: 2116-09-30 | PN52: 2116-12-31 | PO52: 2117-03-31 | PP52: 2117-06-30 | PQ52: 2117-09-30 | PR52: 2117-12-31 | PS52: 2118-03-31 | PT52: 2118-06-30 | PU52: 2118-09-30 | PV52: 2118-12-31 | PW52: 2119-03-31 | PX52: 2119-06-30 | PY52: 2119-09-30 | PZ52: 2119-12-31 | QA52: 2120-03-31 | QB52: 2120-06-30 | QC52: 2120-09-30 | QD52: 2120-12-31 | QE52: 2121-03-31 | QF52: 2121-06-30 | QG52: 2121-09-30 | QH52: 2121-12-31 | QI52: 2122-03-31 | QJ52: 2122-06-30 | QK52: 2122-09-30 | QL52: 2122-12-31 | QM52: 2123-03-31 | QN52: 2123-06-30 | QO52: 2123-09-30 | QP52: 2123-12-31 | QQ52: =DATE(YEAR(QP52),MONTH(QP52)+months+1,1)-1 -> 2124-03-31 | QR52: 2124-06-30 | QS52: 2124-09-30 | QT52: 2124-12-31 | QU52: 2125-03-31 | QV52: 2125-06-30 | QW52: 2125-09-30 | QX52: 2125-12-31 | QY52: 2126-03-31 | QZ52: 2126-06-30 | RA52: 2126-09-30 | RB52: 2126-12-31 | RC52: 2127-03-31 | RD52: 2127-06-30 | RE52: 2127-09-30 | RF52: 2127-12-31 | RG52: 2128-03-31 | RH52: 2128-06-30 | RI52: 2128-09-30 | RJ52: 2128-12-31 | RK52: 2129-03-31 | RL52: 2129-06-30 | RM52: 2129-09-30 | RN52: 2129-12-31 | RO52: 2130-03-31 | RP52: 2130-06-30 | RQ52: 2130-09-30 | RR52: 2130-12-31 | RS52: 2131-03-31 | RT52: 2131-06-30 | RU52: 2131-09-30 | RV52: 2131-12-31 | RW52: 2132-03-31 | RX52: 2132-06-30 | RY52: 2132-09-30 | RZ52: 2132-12-31 | SA52: 2133-03-31 | SB52: 2133-06-30 | SC52: 2133-09-30 | SD52: 2133-12-31 | SE52: 2134-03-31 | SF52: 2134-06-30 | SG52: 2134-09-30 | SH52: 2134-12-31 | SI52: 2135-03-31 | SJ52: 2135-06-30 | SK52: 2135-09-30 | SL52: 2135-12-31 | SM52: 2136-03-31 | SN52: 2136-06-30 | SO52: 2136-09-30 | SP52: 2136-12-31 | SQ52: 2137-03-31 | SR52: 2137-06-30 | SS52: 2137-09-30 | ST52: 2137-12-31 | SU52: 2138-03-31 | SV52: 2138-06-30 | SW52: 2138-09-30 | SX52: 2138-12-31 | SY52: 2139-03-31 | SZ52: 2139-06-30 | TA52: 2139-09-30 | TB52: 2139-12-31 | TC52: =DATE(YEAR(TB52),MONTH(TB52)+months+1,1)-1 -> 2140-03-31 | TD52: 2140-06-30 | TE52: 2140-09-30 | TF52: 2140-12-31 | TG52: 2141-03-31 | TH52: 2141-06-30 | TI52: 2141-09-30 | TJ52: 2141-12-31 | TK52: 2142-03-31 | TL52: 2142-06-30 | TM52: 2142-09-30 | TN52: 2142-12-31 | TO52: 2143-03-31 | TP52: 2143-06-30 | TQ52: 2143-09-30 | TR52: 2143-12-31 | TS52: 2144-03-31 | TT52: 2144-06-30 | TU52: 2144-09-30 | TV52: 2144-12-31 | TW52: 2145-03-31 | TX52: 2145-06-30 | TY52: 2145-09-30 | TZ52: 2145-12-31 | UA52: 2146-03-31 | UB52: 2146-06-30 | UC52: 2146-09-30 | UD52: 2146-12-31 | UE52: 2147-03-31 | UF52: 2147-06-30 | UG52: 2147-09-30 | UH52: 2147-12-31 | UI52: 2148-03-31 | UJ52: 2148-06-30 | UK52: 2148-09-30 | UL52: 2148-12-31 | UM52: 2149-03-31 | UN52: 2149-06-30 | UO52: 2149-09-30 | UP52: 2149-12-31 | UQ52: 2150-03-31 | UR52: 2150-06-30 | US52: 2150-09-30 | UT52: 2150-12-31 | UU52: 2151-03-31 | UV52: 2151-06-30 | UW52: 2151-09-30 | UX52: 2151-12-31 | UY52: 2152-03-31 | UZ52: 2152-06-30 | VA52: 2152-09-30 | VB52: 2152-12-31 | VC52: 2153-03-31 | VD52: 2153-06-30 | VE52: 2153-09-30 | VF52: 2153-12-31 | VG52: 2154-03-31 | VH52: 2154-06-30 | VI52: 2154-09-30 | VJ52: 2154-12-31 | VK52: 2155-03-31 | VL52: 2155-06-30 | VM52: 2155-09-30 | VN52: 2155-12-31 | VO52: =DATE(YEAR(VN52),MONTH(VN52)+months+1,1)-1 -> 2156-03-31 | VP52: 2156-06-30 | VQ52: 2156-09-30 | VR52: 2156-12-31 | VS52: 2157-03-31 | VT52: 2157-06-30 | VU52: 2157-09-30 | VV52: 2157-12-31 | VW52: 2158-03-31 | VX52: 2158-06-30 | VY52: 2158-09-30 | VZ52: 2158-12-31 | WA52: 2159-03-31 | WB52: 2159-06-30 | WC52: 2159-09-30 | WD52: 2159-12-31 | WE52: 2160-03-31 | WF52: 2160-06-30 | WG52: 2160-09-30 | WH52: 2160-12-31 | WI52: 2161-03-31 | WJ52: 2161-06-30 | WK52: 2161-09-30 | WL52: 2161-12-31 | WM52: 2162-03-31 | WN52: 2162-06-30 | WO52: 2162-09-30 | WP52: 2162-12-31 | WQ52: 2163-03-31 | WR52: 2163-06-30 | WS52: 2163-09-30 | WT52: 2163-12-31 | WU52: 2164-03-31 | WV52: 2164-06-30 | WW52: 2164-09-30 | WX52: 2164-12-31 | WY52: 2165-03-31 | WZ52: 2165-06-30 | XA52: 2165-09-30 | XB52: 2165-12-31 | XC52: 2166-03-31 | XD52: 2166-06-30 | XE52: 2166-09-30 | XF52: 2166-12-31 | XG52: 2167-03-31 | XH52: 2167-06-30 | XI52: 2167-09-30 | XJ52: 2167-12-31 | XK52: 2168-03-31 | XL52: 2168-06-30 | XM52: 2168-09-30 | XN52: 2168-12-31 | XO52: 2169-03-31 | XP52: 2169-06-30 | XQ52: 2169-09-30 | XR52: 2169-12-31 | XS52: 2170-03-31 | XT52: 2170-06-30 | XU52: 2170-09-30 | XV52: 2170-12-31 | XW52: 2171-03-31 | XX52: 2171-06-30 | XY52: 2171-09-30 | XZ52: 2171-12-31 | YA52: =DATE(YEAR(XZ52),MONTH(XZ52)+months+1,1)-1 -> 2172-03-31 | YB52: 2172-06-30 | YC52: 2172-09-30 | YD52: 2172-12-31 | YE52: 2173-03-31 | YF52: 2173-06-30 | YG52: 2173-09-30 | YH52: 2173-12-31 | YI52: 2174-03-31 | YJ52: 2174-06-30 | YK52: 2174-09-30 | YL52: 2174-12-31 | YM52: 2175-03-31 | YN52: 2175-06-30 | YO52: 2175-09-30 | YP52: 2175-12-31 | YQ52: 2176-03-31 | YR52: 2176-06-30 | YS52: 2176-09-30 | YT52: 2176-12-31 | YU52: 2177-03-31 | YV52: 2177-06-30 | YW52: 2177-09-30 | YX52: 2177-12-31 | YY52: 2178-03-31 | YZ52: 2178-06-30 | ZA52: 2178-09-30 | ZB52: 2178-12-31 | ZC52: 2179-03-31 | ZD52: 2179-06-30 | ZE52: 2179-09-30 | ZF52: 2179-12-31 | ZG52: 2180-03-31 | ZH52: 2180-06-30 | ZI52: 2180-09-30 | ZJ52: 2180-12-31 | ZK52: 2181-03-31 | ZL52: 2181-06-30 | ZM52: 2181-09-30 | ZN52: 2181-12-31 | ZO52: 2182-03-31 | ZP52: 2182-06-30 | ZQ52: 2182-09-30 | ZR52: 2182-12-31 | ZS52: 2183-03-31 | ZT52: 2183-06-30 | ZU52: 2183-09-30 | ZV52: 2183-12-31 | ZW52: 2184-03-31 | ZX52: 2184-06-30 | ZY52: 2184-09-30 | ZZ52: 2184-12-31 | AAA52: 2185-03-31 | AAB52: 2185-06-30 | AAC52: 2185-09-30 | AAD52: 2185-12-31 | AAE52: 2186-03-31 | AAF52: 2186-06-30 | AAG52: 2186-09-30 | AAH52: 2186-12-31 | AAI52: 2187-03-31 | AAJ52: 2187-06-30 | AAK52: 2187-09-30 | AAL52: 2187-12-31 | AAM52: =DATE(YEAR(AAL52),MONTH(AAL52)+months+1,1)-1 -> 2188-03-31 | AAN52: 2188-06-30 | AAO52: 2188-09-30 | AAP52: 2188-12-31 | AAQ52: 2189-03-31 | AAR52: 2189-06-30 | AAS52: 2189-09-30 | AAT52: 2189-12-31 | AAU52: 2190-03-31 | AAV52: 2190-06-30 | AAW52: 2190-09-30 | AAX52: 2190-12-31 | AAY52: 2191-03-31 | AAZ52: 2191-06-30 | ABA52: 2191-09-30 | ABB52: 2191-12-31 | ABC52: 2192-03-31 | ABD52: 2192-06-30 | ABE52: 2192-09-30 | ABF52: 2192-12-31 | ABG52: 2193-03-31 | ABH52: 2193-06-30 | ABI52: 2193-09-30 | ABJ52: 2193-12-31 | ABK52: 2194-03-31 | ABL52: 2194-06-30 | ABM52: 2194-09-30 | ABN52: 2194-12-31 | ABO52: 2195-03-31 | ABP52: 2195-06-30 | ABQ52: 2195-09-30 | ABR52: 2195-12-31 | ABS52: 2196-03-31 | ABT52: 2196-06-30 | ABU52: 2196-09-30 | ABV52: 2196-12-31 | ABW52: 2197-03-31 | ABX52: 2197-06-30 | ABY52: 2197-09-30 | ABZ52: 2197-12-31 | ACA52: 2198-03-31 | ACB52: 2198-06-30 | ACC52: 2198-09-30 | ACD52: 2198-12-31 | ACE52: 2199-03-31 | ACF52: 2199-06-30 | ACG52: 2199-09-30 | ACH52: 2199-12-31 | ACI52: 2200-03-31 | ACJ52: 2200-06-30 | ACK52: 2200-09-30 | ACL52: 2200-12-31 | ACM52: 2201-03-31 | ACN52: 2201-06-30 | ACO52: 2201-09-30 | ACP52: 2201-12-31 | ACQ52: 2202-03-31 | ACR52: 2202-06-30 | ACS52: 2202-09-30 | ACT52: 2202-12-31 | ACU52: 2203-03-31 | ACV52: 2203-06-30 | ACW52: 2203-09-30 | ACX52: 2203-12-31 | ACY52: =DATE(YEAR(ACX52),MONTH(ACX52)+months+1,1)-1 -> 2204-03-31 | ACZ52: 2204-06-30 | ADA52: 2204-09-30 | ADB52: 2204-12-31 | ADC52: 2205-03-31 | ADD52: 2205-06-30 | ADE52: 2205-09-30 | ADF52: 2205-12-31 | ADG52: 2206-03-31 | ADH52: 2206-06-30 | ADI52: 2206-09-30 | ADJ52: 2206-12-31 | ADK52: 2207-03-31 | ADL52: 2207-06-30 | ADM52: 2207-09-30 | ADN52: 2207-12-31 | ADO52: 2208-03-31 | ADP52: 2208-06-30 | ADQ52: 2208-09-30 | ADR52: 2208-12-31 | ADS52: 2209-03-31 | ADT52: 2209-06-30 | ADU52: 2209-09-30 | ADV52: 2209-12-31 | ADW52: 2210-03-31 | ADX52: 2210-06-30 | ADY52: 2210-09-30 | ADZ52: 2210-12-31 | AEA52: 2211-03-31 | AEB52: 2211-06-30 | AEC52: 2211-09-30 | AED52: 2211-12-31 | AEE52: 2212-03-31 | AEF52: 2212-06-30 | AEG52: 2212-09-30 | AEH52: 2212-12-31 | AEI52: 2213-03-31 | AEJ52: 2213-06-30 | AEK52: 2213-09-30 | AEL52: 2213-12-31 | AEM52: 2214-03-31 | AEN52: 2214-06-30 | AEO52: 2214-09-30 | AEP52: 2214-12-31 | AEQ52: 2215-03-31 | AER52: 2215-06-30 | AES52: 2215-09-30 | AET52: 2215-12-31 | AEU52: 2216-03-31 | AEV52: 2216-06-30 | AEW52: 2216-09-30 | AEX52: 2216-12-31 | AEY52: 2217-03-31 | AEZ52: 2217-06-30 | AFA52: 2217-09-30 | AFB52: 2217-12-31 | AFC52: 2218-03-31 | AFD52: 2218-06-30 | AFE52: 2218-09-30 | AFF52: 2218-12-31 | AFG52: 2219-03-31 | AFH52: 2219-06-30 | AFI52: 2219-09-30 | AFJ52: 2219-12-31 | AFK52: =DATE(YEAR(AFJ52),MONTH(AFJ52)+months+1,1)-1 -> 2220-03-31 | AFL52: 2220-06-30 | AFM52: 2220-09-30 | AFN52: 2220-12-31 | AFO52: 2221-03-31 | AFP52: 2221-06-30 | AFQ52: 2221-09-30 | AFR52: 2221-12-31 | AFS52: 2222-03-31 | AFT52: 2222-06-30 | AFU52: 2222-09-30 | AFV52: 2222-12-31 | AFW52: 2223-03-31 | AFX52: 2223-06-30 | AFY52: 2223-09-30 | AFZ52: 2223-12-31 | AGA52: 2224-03-31 | AGB52: 2224-06-30 | AGC52: 2224-09-30 | AGD52: 2224-12-31 | AGE52: 2225-03-31 | AGF52: 2225-06-30 | AGG52: 2225-09-30 | AGH52: 2225-12-31 | AGI52: 2226-03-31 | AGJ52: 2226-06-30 | AGK52: 2226-09-30 | AGL52: 2226-12-31 | AGM52: 2227-03-31 | AGN52: 2227-06-30 | AGO52: 2227-09-30 | AGP52: 2227-12-31 | AGQ52: 2228-03-31 | AGR52: 2228-06-30 | AGS52: 2228-09-30 | AGT52: 2228-12-31 | AGU52: 2229-03-31 | AGV52: 2229-06-30 | AGW52: 2229-09-30 | AGX52: 2229-12-31 | AGY52: 2230-03-31 | AGZ52: 2230-06-30 | AHA52: 2230-09-30 | AHB52: 2230-12-31 | AHC52: 2231-03-31 | AHD52: 2231-06-30 | AHE52: 2231-09-30 | AHF52: 2231-12-31 | AHG52: 2232-03-31 | AHH52: 2232-06-30 | AHI52: 2232-09-30 | AHJ52: 2232-12-31 | AHK52: 2233-03-31 | AHL52: 2233-06-30 | AHM52: 2233-09-30 | AHN52: 2233-12-31 | AHO52: 2234-03-31 | AHP52: 2234-06-30 | AHQ52: 2234-09-30 | AHR52: 2234-12-31 | AHS52: 2235-03-31 | AHT52: 2235-06-30 | AHU52: 2235-09-30 | AHV52: 2235-12-31 | AHW52: =DATE(YEAR(AHV52),MONTH(AHV52)+months+1,1)-1 -> 2236-03-31 | AHX52: 2236-06-30 | AHY52: 2236-09-30 | AHZ52: 2236-12-31 | AIA52: 2237-03-31 | AIB52: 2237-06-30 | AIC52: 2237-09-30 | AID52: 2237-12-31 | AIE52: 2238-03-31 | AIF52: 2238-06-30 | AIG52: 2238-09-30 | AIH52: 2238-12-31 | AII52: 2239-03-31 | AIJ52: 2239-06-30 | AIK52: 2239-09-30 | AIL52: 2239-12-31 | AIM52: 2240-03-31 | AIN52: 2240-06-30 | AIO52: 2240-09-30 | AIP52: 2240-12-31 | AIQ52: 2241-03-31 | AIR52: 2241-06-30 | AIS52: 2241-09-30 | AIT52: 2241-12-31 | AIU52: 2242-03-31 | AIV52: 2242-06-30 | AIW52: 2242-09-30 | AIX52: 2242-12-31 | AIY52: 2243-03-31 | AIZ52: 2243-06-30 | AJA52: 2243-09-30 | AJB52: 2243-12-31 | AJC52: 2244-03-31 | AJD52: 2244-06-30 | AJE52: 2244-09-30 | AJF52: 2244-12-31 | AJG52: 2245-03-31 | AJH52: 2245-06-30 | AJI52: 2245-09-30 | AJJ52: 2245-12-31 | AJK52: 2246-03-31 | AJL52: 2246-06-30 | AJM52: 2246-09-30 | AJN52: 2246-12-31 | AJO52: 2247-03-31 | AJP52: 2247-06-30 | AJQ52: 2247-09-30 | AJR52: 2247-12-31 | AJS52: 2248-03-31 | AJT52: 2248-06-30 | AJU52: 2248-09-30 | AJV52: 2248-12-31 | AJW52: 2249-03-31 | AJX52: 2249-06-30 | AJY52: 2249-09-30 | AJZ52: 2249-12-31 | AKA52: 2250-03-31 | AKB52: 2250-06-30 | AKC52: 2250-09-30 | AKD52: 2250-12-31 | AKE52: 2251-03-31 | AKF52: 2251-06-30 | AKG52: 2251-09-30 | AKH52: 2251-12-31
B54: Market Rent (growth in %) | K54: =+NORMINV(RAND(),($P$12-$P$13),$P$11) -> 0.03802830212 | L54: 0.23548998 | M54: -0.1171041332 | N54: 0.01869675909 | O54: 0.0001513757907 | P54: 0.07156381674 | Q54: 0.03648598051 | R54: 0.02025280535 | S54: -0.03120887704 | T54: 0.103134209 | U54: 0.05159529993 | V54: 0.07115381733 | W54: -0.1052910245 | X54: 0.09555996549 | Y54: 0.02925977548 | Z54: -0.07776034408 | AA54: -0.02114913245 | AB54: 0.0608433285 | AC54: -0.09243018307 | AD54: 0.2679094377 | AE54: 0.08265890836 | AF54: 0.04225106959 | AG54: -0.004405148891 | AH54: 0.002448829375 | AI54: 0.2598798288 | AJ54: -0.1070229963 | AK54: -0.1426456342 | AL54: -0.008241625824 | AM54: -0.01038707659 | AN54: -0.1024429608 | AO54: 0.02168638746 | AP54: 0.1429512249 | AQ54: -0.3046629423 | AR54: 0.08634496363 | AS54: 0.1275706432 | AT54: 0.05907691118 | AU54: -0.06825822703 | AV54: 0.029216127 | AW54: -0.006404859988 | AX54: 0.1212757326 | AY54: 0.2027315536 | AZ54: 0.07653703395 | BA54: -0.04583293564 | BB54: 0.06558685638 | BC54: 0.07416007783 | BD54: -0.02421899149 | BE54: 0.1707943724 | BF54: 0.01791589908 | BG54: 0.09232219871 | BH54: 0.1252240547 | BI54: -0.004963213015 | BJ54: -0.02334293725 | BK54: 0.09362413378 | BL54: 0.05281454092 | BM54: 0.1882612359 | BN54: 0.07256071764 | BO54: 0.08941417065 | BP54: -0.005877787286 | BQ54: -0.07430266845 | BR54: -0.02054319227 | BS54: -0.05907401156 | BT54: -0.04177826117 | BU54: -0.04268410068 | BV54: 0.0221007513 | BW54: =+NORMINV(RAND(),($P$12-$P$13),$P$11) -> 0.07260387317 | BX54: -0.1404144317 | BY54: -0.1077843239 | BZ54: -0.09669230597 | CA54: -0.04606506997 | CB54: 0.1352887499 | CC54: -0.1223928237 | CD54: 0.02628385139 | CE54: -0.07812827705 | CF54: 0.0842183109 | CG54: 0.01166662797 | CH54: 0.05578182674 | CI54: -0.1098392295 | CJ54: 0.003924980185 | CK54: 0.07893836472 | CL54: 0.08369537716 | CM54: 0.02305249514 | CN54: 0.04448795318 | CO54: 0.1372708052 | CP54: -0.09969456032 | CQ54: 0.05998928754 | CR54: 0.0793096683 | CS54: -0.006398324391 | CT54: -0.04549583531 | CU54: -0.03479202134 | CV54: -0.09038947141 | CW54: -0.0470394371 | CX54: 0.0300897219 | CY54: 0.007449002012 | CZ54: -0.03814969311 | DA54: 0.09567072465 | DB54: 0.03205716684 | DC54: 0.04271266222 | DD54: -0.02039444463 | DE54: 0.02360098947 | DF54: 0.07563944262 | DG54: 0.02630110126 | DH54: 0.06802831634 | DI54: -0.004963254912 | DJ54: 0.09200132051 | DK54: 0.1889201589 | DL54: -0.04152215445 | DM54: -0.1063930916 | DN54: 0.05456008336 | DO54: -0.01961710303 | DP54: -0.003585955594 | DQ54: 0.04085913336 | DR54: -0.05642466157 | DS54: -0.02972497793 | DT54: 0.09267204699 | DU54: -0.0567550029 | DV54: 0.02574470442 | DW54: 0.07288993219 | DX54: -0.08540958968 | DY54: -0.04517756424 | DZ54: 0.03377928012 | EA54: -0.1052307303 | EB54: -0.09698973049 | EC54: -0.08711521458 | ED54: 0.1302340932 | EE54: 0.01915426435 | EF54: -0.1706446144 | EG54: 0.0984367448 | EH54: 0.1917776435 | EI54: =+NORMINV(RAND(),($P$12-$P$13),$P$11) -> 0.005551178546 | EJ54: 0.002156206204 | EK54: -0.05453064999 | EL54: -0.01763671731 | EM54: -0.02419900755 | EN54: 0.006959645059 | EO54: 0.0004063688731 | EP54: 0.08178102947 | EQ54: 0.02367387342 | ER54: -0.1285607479 | ES54: 0.1046602191 | ET54: 0.02872252884 | EU54: -0.2038127438 | EV54: 0.1162593733 | EW54: 0.06392311216 | EX54: 0.07526502356 | EY54: -0.02319939381 | EZ54: 0.01100996764 | FA54: 0.01206170572 | FB54: -0.1022863074 | FC54: -0.02140005014 | FD54: -0.1671395958 | FE54: -0.01629466525 | FF54: -0.02478662666 | FG54: -0.0598021231 | FH54: -0.1382954237 | FI54: -0.01735795103 | FJ54: 0.05554429533 | FK54: -0.03209190475 | FL54: 0.0654579448 | FM54: -0.02501671037 | FN54: 0.1076578801 | FO54: 0.1346145696 | FP54: -0.1492605771 | FQ54: -0.2828271161 | FR54: 0.125790858 | FS54: -0.03987018714 | FT54: 0.0035954687 | FU54: -0.03484911939 | FV54: 0.1342945365 | FW54: -0.09005590484 | FX54: -0.100781423 | FY54: -0.04956960812 | FZ54: -0.1182090084 | GA54: 0.05509876075 | GB54: -0.07876960107 | GC54: -0.03935717861 | GD54: 0.0782887198 | GE54: 0.02874443693 | GF54: -0.1413107583 | GG54: -0.05267068771 | GH54: -0.07776811035 | GI54: -0.1274993188 | GJ54: 0.07572619516 | GK54: 0.2080367716 | GL54: -0.08031450361 | GM54: 0.146230904 | GN54: -0.1300158989 | GO54: 0.07349590355 | GP54: 0.09788673552 | GQ54: -0.002771951954 | GR54: 0.06409646951 | GS54: 0.227982724 | GT54: -0.01703106734 | GU54: =+NORMINV(RAND(),($P$12-$P$13),$P$11) -> 0.05605088388 | GV54: -0.1217987173 | GW54: 0.04791678172 | GX54: 0.06370809869 | GY54: 0.03717502444 | GZ54: 0.1543683892 | HA54: -0.1499017791 | HB54: 0.1444652081 | HC54: 0.1002700759 | HD54: -0.1747261024 | HE54: -0.01485412949 | HF54: -0.05768566212 | HG54: -0.03405247467 | HH54: -0.06600971832 | HI54: -0.07993014987 | HJ54: 0.02860535199 | HK54: -0.103335418 | HL54: 0.06571462324 | HM54: 0.2281219841 | HN54: -0.02302673105 | HO54: -0.07486656253 | HP54: 0.007788466321 | HQ54: 0.09983153932 | HR54: 0.002080550106 | HS54: -0.02977873226 | HT54: 0.09959007067 | HU54: -0.01778404943 | HV54: 0.1248718487 | HW54: -0.05524061107 | HX54: 0.07284925119 | HY54: -0.2185108326 | HZ54: -0.03541389369 | IA54: 0.07566642906 | IB54: 0.003418595056 | IC54: -0.0370411262 | ID54: 0.03106648069 | IE54: 0.08250184717 | IF54: 0.1739421107 | IG54: -0.07045848522 | IH54: -0.07210815474 | II54: 0.137979199 | IJ54: -0.06026354281 | IK54: 0.08159377747 | IL54: -0.01106779107 | IM54: -0.007549291774 | IN54: 0.06188225965 | IO54: -0.1033848881 | IP54: 0.0595265573 | IQ54: -0.2188824535 | IR54: -0.09803932367 | IS54: 0.05046994633 | IT54: 0.09928571431 | IU54: 0.1586892136 | IV54: 0.007439934669 | IW54: -0.05878654729 | IX54: -0.06849090294 | IY54: -0.03299915518 | IZ54: 0.09817839009 | JA54: 0.02151486656 | JB54: -0.00667764335 | JC54: 0.02797578189 | JD54: 0.04736211104 | JE54: -0.1507234168 | JF54: 0.03582496279 | JG54: =+NORMINV(RAND(),($P$12-$P$13),$P$11) -> -0.07026602925 | JH54: -0.08819777967 | JI54: 0.03115494038 | JJ54: -0.1097251708 | JK54: -0.1072356414 | JL54: 0.07865011738 | JM54: -0.04241074286 | JN54: 0.007992718891 | JO54: -0.04103770762 | JP54: -0.173886302 | JQ54: -0.2173254559 | JR54: -0.1187779295 | JS54: -0.05065475515 | JT54: 0.005492906184 | JU54: 0.08470055727 | JV54: -0.0800947714 | JW54: -0.03703829202 | JX54: 0.06903546785 | JY54: 0.09485116248 | JZ54: -0.1413658684 | KA54: 0.005384510515 | KB54: 0.0231801149 | KC54: 0.02740173988 | KD54: 0.03237599234 | KE54: -0.02500269208 | KF54: -0.08984977401 | KG54: -0.03848120566 | KH54: -0.1182351443 | KI54: 0.02104813576 | KJ54: -0.03245091406 | KK54: -0.1247101328 | KL54: -0.09629830364 | KM54: -0.1174565465 | KN54: -0.09390254717 | KO54: 0.03448623302 | KP54: -0.1932756968 | KQ54: -0.02587078455 | KR54: -0.06193660884 | KS54: -0.0849186363 | KT54: -0.02308315333 | KU54: -0.021811154 | KV54: -0.002943519561 | KW54: 0.1181645341 | KX54: 0.04879756836 | KY54: -0.1344937254 | KZ54: 0.006667801957 | LA54: -0.1422151065 | LB54: 0.09219038662 | LC54: -0.08026086906 | LD54: 0.09177508668 | LE54: -0.1041206763 | LF54: -0.04249972539 | LG54: 0.1037394193 | LH54: 0.009720906577 | LI54: 0.06480574682 | LJ54: -0.04935000298 | LK54: 0.1363754387 | LL54: -0.03676183042 | LM54: -0.01454373728 | LN54: 0.06312259575 | LO54: 0.10031907 | LP54: -0.1531701347 | LQ54: -0.1368807543 | LR54: 0.01852842068 | LS54: =+NORMINV(RAND(),($P$12-$P$13),$P$11) -> 0.03551583987 | LT54: -0.0319080898 | LU54: -0.2425787647 | LV54: -0.01866138558 | LW54: 0.05717799578 | LX54: 0.0373500552 | LY54: 0.01191063508 | LZ54: -0.1278657518 | MA54: 0.07261337564 | MB54: 0.1062108278 | MC54: 0.01241125266 | MD54: -0.0755907528 | ME54: 0.03767788173 | MF54: -0.1316970825 | MG54: -0.01944771181 | MH54: -0.05221375718 | MI54: 0.03812744689 | MJ54: 0.04481918667 | MK54: 0.08664725666 | ML54: 0.0689206584 | MM54: -0.09074436996 | MN54: -0.06942364192 | MO54: 0.08623579629 | MP54: -0.04694274829 | MQ54: 0.07141905015 | MR54: 0.1180718364 | MS54: 0.2548967349 | MT54: 0.1105115823 | MU54: -0.2336076185 | MV54: 0.08300136131 | MW54: -0.1273107854 | MX54: 0.1757984333 | MY54: 0.09959852491 | MZ54: -0.07372001678 | NA54: 0.0755652188 | NB54: -0.03270344298 | NC54: 0.10486726 | ND54: -0.05954050349 | NE54: 0.01479265312 | NF54: 0.113490169 | NG54: -0.03328933633 | NH54: 0.02276142012 | NI54: 0.02915092269 | NJ54: -0.2259676652 | NK54: -0.03641089324 | NL54: 0.205489428 | NM54: 0.07119309964 | NN54: -0.1101505787 | NO54: -0.07659822297 | NP54: -0.1567293158 | NQ54: 0.08031692577 | NR54: -0.1255138752 | NS54: 0.07261629115 | NT54: 0.0263523324 | NU54: 0.1424353284 | NV54: -0.07373091956 | NW54: -0.02662821607 | NX54: 0.04569293654 | NY54: 0.003355790646 | NZ54: 0.09018782405 | OA54: -0.07138638231 | OB54: 0.04939874415 | OC54: 0.1544272341 | OD54: -0.05546890902 | OE54: =+NORMINV(RAND(),($P$12-$P$13),$P$11) -> -0.01017756972 | OF54: -0.1095924279 | OG54: 0.05411215815 | OH54: -0.02474017207 | OI54: -0.1232671391 | OJ54: -0.1147477087 | OK54: -0.04778779449 | OL54: -0.1818668999 | OM54: 0.04425187188 | ON54: -0.2367697142 | OO54: 0.09636039184 | OP54: -0.02763107977 | OQ54: -0.0614114551 | OR54: 0.05068455141 | OS54: 0.08457131108 | OT54: -0.07246008617 | OU54: 0.1365352333 | OV54: -0.02333764812 | OW54: 0.05307070082 | OX54: -0.1396849661 | OY54: 0.04355534123 | OZ54: 0.005791658262 | PA54: -0.07600450336 | PB54: 0.06881417306 | PC54: -0.2720524258 | PD54: 0.07774658287 | PE54: -0.004358329798 | PF54: -0.006248524446 | PG54: -0.03261783538 | PH54: 0.07538237089 | PI54: -0.1055066041 | PJ54: -0.02974068774 | PK54: -0.007736260484 | PL54: -0.1013426563 | PM54: -0.03249965208 | PN54: 0.08528953788 | PO54: -0.05679529701 | PP54: -0.1811684627 | PQ54: -0.04629091512 | PR54: 0.1746803889 | PS54: 0.06085959149 | PT54: 0.05677562201 | PU54: -0.02788651561 | PV54: 0.05588778123 | PW54: -0.07159559037 | PX54: -0.1707216628 | PY54: -0.003920037122 | PZ54: 0.02047135212 | QA54: 0.08300493708 | QB54: 0.1426231598 | QC54: 0.0260390253 | QD54: -0.0167659666 | QE54: -0.1261845941 | QF54: 0.07015866545 | QG54: 0.02415492342 | QH54: -0.1165481651 | QI54: -0.1220224192 | QJ54: 0.1789193217 | QK54: 0.01570395031 | QL54: 0.02886535307 | QM54: -0.0758867209 | QN54: 0.07146917644 | QO54: -0.02573450054 | QP54: -0.1157966707 | QQ54: =+NORMINV(RAND(),($P$12-$P$13),$P$11) -> 0.004217857552 | QR54: -0.08884197504 | QS54: 0.05760242316 | QT54: 0.07591062047 | QU54: -0.08798607576 | QV54: -0.1034559228 | QW54: -0.06797879734 | QX54: 0.07788649105 | QY54: 0.06856459787 | QZ54: -0.1913984462 | RA54: -0.2215408114 | RB54: 0.2851615042 | RC54: -0.05737684734 | RD54: -0.02190397113 | RE54: -0.001843892505 | RF54: -0.1591612767 | RG54: -0.0395201282 | RH54: -0.1264160697 | RI54: -0.01681748965 | RJ54: -0.2260915002 | RK54: 0.1594433931 | RL54: -0.01516543941 | RM54: -0.1103957474 | RN54: -0.0392184223 | RO54: -0.02138286882 | RP54: -0.06698632749 | RQ54: 0.0373401693 | RR54: -0.1693619445 | RS54: -0.1915610212 | RT54: 0.1876986931 | RU54: -0.08879016329 | RV54: -0.1044688498 | RW54: -0.03543319091 | RX54: -0.1445877832 | RY54: 0.06603106255 | RZ54: -0.01074775365 | SA54: -0.0400916453 | SB54: 0.03015403444 | SC54: -0.1747304571 | SD54: 0.02284188949 | SE54: 0.08169246513 | SF54: 0.1739411644 | SG54: -0.1061303673 | SH54: -0.02839863086 | SI54: 0.01796031823 | SJ54: -0.07029035358 | SK54: 0.01354273045 | SL54: -0.06817408961 | SM54: 0.1629183631 | SN54: -0.1495423528 | SO54: -0.07909275521 | SP54: -0.08398134224 | SQ54: -0.09951288967 | SR54: 0.02675433834 | SS54: -0.1591586546 | ST54: 0.04291148324 | SU54: -0.02894620728 | SV54: 0.006816484704 | SW54: -0.09234883752 | SX54: 0.04711729208 | SY54: -0.06804754954 | SZ54: -0.007790844917 | TA54: -0.007332284618 | TB54: -0.0004680976852 | TC54: =+NORMINV(RAND(),($P$12-$P$13),$P$11) -> -0.09948677715 | TD54: 0.02948314225 | TE54: 0.1350571293 | TF54: -0.08585664749 | TG54: -0.04287857132 | TH54: 0.02889172778 | TI54: -0.02757236661 | TJ54: -0.04335424184 | TK54: -0.01783666122 | TL54: 0.06707783058 | TM54: -0.04758434824 | TN54: 0.008177283854 | TO54: 0.05493566383 | TP54: -0.03651713066 | TQ54: -0.07115242575 | TR54: -0.1704348586 | TS54: 0.06207635105 | TT54: -0.06652890326 | TU54: -0.01266183697 | TV54: 0.05093152853 | TW54: -0.0173041201 | TX54: 0.05706929933 | TY54: -0.1443760531 | TZ54: -0.02780799206 | UA54: -0.07774718022 | UB54: -0.02043860321 | UC54: 0.02175174534 | UD54: 0.1380913604 | UE54: 0.01513626047 | UF54: -0.118562876 | UG54: -0.1305166403 | UH54: -0.06906671836 | UI54: -0.02407355075 | UJ54: 0.01336314253 | UK54: -0.07355375379 | UL54: 0.0009709151171 | UM54: -0.1839700897 | UN54: -0.0735078533 | UO54: 0.02891694909 | UP54: 0.0361954344 | UQ54: 0.1875799808 | UR54: -0.09090640162 | US54: 0.0007697237251 | UT54: 0.1277631883 | UU54: 0.006586553327 | UV54: 0.1236419646 | UW54: 0.1496071121 | UX54: -0.03509256115 | UY54: -0.1330654714 | UZ54: 0.05641974102 | VA54: 0.2403125375 | VB54: 0.03976342515 | VC54: 0.05434733676 | VD54: 0.07498079675 | VE54: 0.04847714768 | VF54: -0.02850264155 | VG54: -0.05703948367 | VH54: -0.0539988445 | VI54: 0.1025169499 | VJ54: -0.06662424806 | VK54: -0.1842795708 | VL54: 0.1722613072 | VM54: 0.09809949358 | VN54: 0.1420622784 | VO54: =+NORMINV(RAND(),($P$12-$P$13),$P$11) -> -0.06141647742 | VP54: -0.01224299079 | VQ54: -0.0553368343 | VR54: 0.0923075241 | VS54: 0.1465644388 | VT54: 0.1523539759 | VU54: 0.111151731 | VV54: -0.07007757259 | VW54: -0.07216981714 | VX54: 0.04664168273 | VY54: -0.149110147 | VZ54: 0.01921502164 | WA54: 0.05146631485 | WB54: 0.03476620449 | WC54: -0.08704724502 | WD54: 0.06704300365 | WE54: 0.04736911032 | WF54: -0.1483872048 | WG54: 0.09467549703 | WH54: 0.003591387212 | WI54: -0.03543492646 | WJ54: 0.0097334337 | WK54: 0.03582585063 | WL54: 0.0875841288 | WM54: -0.02060808679 | WN54: -0.08420369328 | WO54: 0.05231131468 | WP54: -0.1229641804 | WQ54: 0.05638132091 | WR54: -0.2081327448 | WS54: -0.1700647871 | WT54: 0.1916151202 | WU54: -0.05077312747 | WV54: 0.1490830664 | WW54: 0.06272331078 | WX54: 0.03545058645 | WY54: -0.1124118008 | WZ54: -0.1334155559 | XA54: -0.1756948283 | XB54: 0.02956891283 | XC54: -0.03163149028 | XD54: -0.01168158809 | XE54: 0.07350135022 | XF54: -0.2842097841 | XG54: 0.09959420505 | XH54: 0.02347201159 | XI54: -0.04218895995 | XJ54: -0.0479747225 | XK54: -0.07756066882 | XL54: -0.0124692761 | XM54: -0.1310978607 | XN54: -0.1073260563 | XO54: 0.1909411078 | XP54: -0.08198989545 | XQ54: -0.08133501211 | XR54: -0.08698427101 | XS54: -0.006205103414 | XT54: -0.01398345608 | XU54: -0.04810507766 | XV54: -0.09882763499 | XW54: 0.0978299435 | XX54: -0.2580822727 | XY54: -0.03095188072 | XZ54: 0.04712837993 | YA54: =+NORMINV(RAND(),($P$12-$P$13),$P$11) -> -0.05952379632 | YB54: -0.0218668668 | YC54: -0.02298053793 | YD54: 0.0847063058 | YE54: -0.1281540769 | YF54: 0.01525477134 | YG54: -0.2200850522 | YH54: -0.1184961586 | YI54: 0.1442304933 | YJ54: 0.09968028742 | YK54: -0.08362903485 | YL54: 0.0676380417 | YM54: -0.1300942986 | YN54: -0.1427655804 | YO54: -0.2460882278 | YP54: 0.06882857167 | YQ54: -0.1035634794 | YR54: -0.1200867687 | YS54: 0.0340609066 | YT54: -0.02565784954 | YU54: -0.09283059193 | YV54: -0.03926820998 | YW54: 0.0551575536 | YX54: -0.0880181418 | YY54: 0.1439389558 | YZ54: -0.04509443061 | ZA54: 0.205377881 | ZB54: 0.08563912003 | ZC54: -0.1636673271 | ZD54: 0.07296764098 | ZE54: -0.1843444824 | ZF54: 0.08458095605 | ZG54: -0.1179838181 | ZH54: 0.05823956768 | ZI54: 0.05027218203 | ZJ54: -0.2622704777 | ZK54: -0.01028315593 | ZL54: -0.05253956336 | ZM54: 0.0724037946 | ZN54: 0.04636865838 | ZO54: -0.04354937338 | ZP54: 0.06065653833 | ZQ54: -0.09613266081 | ZR54: 0.2730889387 | ZS54: -0.005727416114 | ZT54: -0.04095758483 | ZU54: 0.06155634615 | ZV54: -0.06453253817 | ZW54: -0.06807958482 | ZX54: -0.07304106551 | ZY54: 0.001601907501 | ZZ54: -0.0623456972 | AAA54: 0.1255133258 | AAB54: 0.1167964817 | AAC54: 0.07191789872 | AAD54: 0.07247883347 | AAE54: -0.01729512908 | AAF54: 0.03438215788 | AAG54: -0.149718546 | AAH54: 0.05705260228 | AAI54: 0.08075859286 | AAJ54: 0.05500878101 | AAK54: -0.03492242158 | AAL54: 0.04989840124 | AAM54: =+NORMINV(RAND(),($P$12-$P$13),$P$11) -> 0.1105993156 | AAN54: 0.001374854841 | AAO54: 0.002440364694 | AAP54: -0.05477560507 | AAQ54: 0.08510699392 | AAR54: 0.06895262755 | AAS54: -0.115029532 | AAT54: -0.01508976058 | AAU54: -0.04357018347 | AAV54: -0.0589653585 | AAW54: 0.02956395828 | AAX54: -0.03800374625 | AAY54: -0.0009006150103 | AAZ54: -0.07803902205 | ABA54: -0.02935302719 | ABB54: -0.08490696035 | ABC54: 0.01991494367 | ABD54: -0.07769102597 | ABE54: 0.03285249678 | ABF54: 0.03148033201 | ABG54: 0.09585593749 | ABH54: 0.0004297071464 | ABI54: 0.1464738558 | ABJ54: 0.04822573377 | ABK54: 0.02271660647 | ABL54: 0.05386731795 | ABM54: 0.02762012249 | ABN54: -0.06551623181 | ABO54: 0.2101454351 | ABP54: -0.03978249359 | ABQ54: 0.1093464357 | ABR54: 0.01152038589 | ABS54: -0.05489455717 | ABT54: 0.08077421953 | ABU54: -0.08970226785 | ABV54: 0.1608252613 | ABW54: -0.03342582818 | ABX54: -0.004419115157 | ABY54: 0.1636486184 | ABZ54: 0.1445885265 | ACA54: -0.2993504536 | ACB54: 0.08201303621 | ACC54: -0.01099262445 | ACD54: 0.09800868444 | ACE54: 0.005120387244 | ACF54: -0.03990648646 | ACG54: -0.09499761347 | ACH54: -0.05983009291 | ACI54: 0.1297037221 | ACJ54: -0.08747384523 | ACK54: 0.1687143714 | ACL54: 0.1438537906 | ACM54: -0.01756088017 | ACN54: -0.2224318611 | ACO54: -0.1289970387 | ACP54: -0.01375389411 | ACQ54: 0.08441068455 | ACR54: 0.1573816665 | ACS54: 0.007509060034 | ACT54: 0.03729080627 | ACU54: -0.1061672614 | ACV54: 0.01188299516 | ACW54: -0.1003922695 | ACX54: 0.01388519408 | ACY54: =+NORMINV(RAND(),($P$12-$P$13),$P$11) -> -0.1286100073 | ACZ54: -0.1441315726 | ADA54: -0.159589251 | ADB54: -0.1101650797 | ADC54: 0.1461990005 | ADD54: -0.03682724576 | ADE54: 0.1147372833 | ADF54: 0.02773302739 | ADG54: 0.06499238918 | ADH54: -0.1263161834 | ADI54: -0.128312528 | ADJ54: -0.1222726488 | ADK54: -0.008583418191 | ADL54: 0.03317077066 | ADM54: -0.1589225444 | ADN54: -0.06347053307 | ADO54: 0.1159815316 | ADP54: 0.1630231842 | ADQ54: 0.1580624323 | ADR54: 0.0739453634 | ADS54: 0.209555856 | ADT54: -0.007716230896 | ADU54: 0.03963735759 | ADV54: -0.02999457384 | ADW54: 0.05975223811 | ADX54: -0.100891886 | ADY54: -0.120445029 | ADZ54: 0.01458519435 | AEA54: -0.02577296749 | AEB54: 0.07867786503 | AEC54: 0.1893577796 | AED54: 0.07119941116 | AEE54: 0.01284243537 | AEF54: 0.04749689128 | AEG54: 0.02685726461 | AEH54: -0.008109835441 | AEI54: -0.004835397315 | AEJ54: 0.1996830461 | AEK54: -0.01034105236 | AEL54: 0.0738261016 | AEM54: -0.1936228178 | AEN54: -0.08368855564 | AEO54: -0.01548262194 | AEP54: -0.01929249442 | AEQ54: -0.01633525873 | AER54: -0.01951515416 | AES54: -0.003392875176 | AET54: -0.1670465507 | AEU54: 0.08412606726 | AEV54: 0.04040942973 | AEW54: 0.05986831747 | AEX54: 0.04361200384 | AEY54: 0.01359457171 | AEZ54: 0.05367572113 | AFA54: 0.05653633049 | AFB54: 0.09859602009 | AFC54: -0.01438501459 | AFD54: -0.1657425806 | AFE54: -0.06172429288 | AFF54: 0.03405239598 | AFG54: -0.04498862275 | AFH54: 0.1184192093 | AFI54: -0.3361620533 | AFJ54: -0.06681640886 | AFK54: =+NORMINV(RAND(),($P$12-$P$13),$P$11) -> 0.103209675 | AFL54: -0.01327325755 | AFM54: -0.02096014313 | AFN54: 0.1166368621 | AFO54: 0.09587689371 | AFP54: 0.3601074826 | AFQ54: 0.00228888707 | AFR54: 0.03227918435 | AFS54: 0.1182011597 | AFT54: 0.02935932238 | AFU54: -0.06492840998 | AFV54: -0.05982525525 | AFW54: -0.02836679885 | AFX54: 0.003130042519 | AFY54: 0.0648604593 | AFZ54: -0.02324976772 | AGA54: 0.06478258369 | AGB54: 0.2559444633 | AGC54: 0.04583574559 | AGD54: -0.1238536447 | AGE54: -0.08894145888 | AGF54: 0.1289382866 | AGG54: -0.0716839666 | AGH54: -0.05997110463 | AGI54: 0.07224709929 | AGJ54: -0.08862176408 | AGK54: 0.0577737319 | AGL54: 0.1556471029 | AGM54: 0.05587898252 | AGN54: 0.1231829319 | AGO54: 0.03250556587 | AGP54: -0.03628532367 | AGQ54: 0.0286623415 | AGR54: 0.04585573835 | AGS54: -0.030134263 | AGT54: -0.1775995775 | AGU54: 0.08166918138 | AGV54: -0.1265047489 | AGW54: -0.03162153964 | AGX54: -0.01164902742 | AGY54: 0.08858846306 | AGZ54: 0.004174041745 | AHA54: 0.1954665358 | AHB54: 0.06022931372 | AHC54: 0.03160597079 | AHD54: 0.002304835332 | AHE54: 0.02033761262 | AHF54: 0.1071014555 | AHG54: -0.1617785593 | AHH54: -0.1880620804 | AHI54: -0.08072530767 | AHJ54: 0.01907376188 | AHK54: 0.0003717308699 | AHL54: 0.0502505697 | AHM54: -0.05659362528 | AHN54: -0.1058248736 | AHO54: 0.112969817 | AHP54: 0.07087492723 | AHQ54: 0.01808473103 | AHR54: 0.2121222568 | AHS54: -0.0663350959 | AHT54: 0.01724387311 | AHU54: 0.1963563415 | AHV54: -0.07932123006 | AHW54: =+NORMINV(RAND(),($P$12-$P$13),$P$11) -> -0.06322257502 | AHX54: -0.1023112282 | AHY54: 0.02827209453 | AHZ54: -0.001389205992 | AIA54: -0.02018535203 | AIB54: -0.1357017718 | AIC54: 0.1366519459 | AID54: -0.05460749562 | AIE54: -0.1199677526 | AIF54: -0.1529890081 | AIG54: 0.09888489903 | AIH54: 0.01746732606 | AII54: -0.07733323533 | AIJ54: -0.09239688832 | AIK54: -0.08226661433 | AIL54: -0.06163036415 | AIM54: -0.1745672566 | AIN54: -0.007925395564 | AIO54: -0.08508109318 | AIP54: 0.1682787065 | AIQ54: -0.05469855796 | AIR54: -0.04952548429 | AIS54: 0.06723156054 | AIT54: 0.0352754308 | AIU54: -0.003832698836 | AIV54: -0.03615133045 | AIW54: -0.1017388139 | AIX54: -0.08677928691 | AIY54: 0.04176012433 | AIZ54: 0.06488195729 | AJA54: -0.1936035736 | AJB54: 0.0620471033 | AJC54: -0.07016672456 | AJD54: 0.1081198612 | AJE54: -0.0299639442 | AJF54: -0.1089950415 | AJG54: 0.03351297174 | AJH54: 0.08709847989 | AJI54: -0.03091865427 | AJJ54: -0.003680292761 | AJK54: 0.09817988905 | AJL54: -0.05429901885 | AJM54: -0.05389181043 | AJN54: 0.1474052798 | AJO54: -0.004322308978 | AJP54: 0.1141230128 | AJQ54: 0.02556430569 | AJR54: -0.05359607547 | AJS54: -0.05614124256 | AJT54: -0.08062093503 | AJU54: 0.01399402128 | AJV54: 0.1725909789 | AJW54: -0.05712249821 | AJX54: 0.06421151771 | AJY54: -0.05503562109 | AJZ54: 0.05432913227 | AKA54: -0.1328384285 | AKB54: -0.05632666986 | AKC54: -0.03113196229 | AKD54: 0.008638592969 | AKE54: 0.01873945434 | AKF54: -0.06015525594 | AKG54: 0.06035907466 | AKH54: -0.007806862283
B55: Market Rent (per unit of space per annum) | J55: =I8 -> 150 | K55: =J55*(1+K54) -> 155.7042453 | L55: =K55*(1+L54) -> 192.3710349 | M55: =L55*(1+M54) -> 169.8435916 | N55: 173.0191164 | O55: 173.0453073 | P55: 185.4290899 | Q55: =P55*(1+Q54) -> 192.1946521 | R55: 196.087133 | S55: 189.9674737 | T55: 209.5596189 | U55: =T55*(1+U54) -> 220.3719103 | V55: =U55*(1+V54) -> 236.0522129 | W55: =V55*(1+W54) -> 211.1980336 | X55: =W55*(1+X54) -> 231.3801104 | Y55: =X55*(1+Y54) -> 238.1502404 | Z55: =Y55*(1+Z54) -> 219.6315958 | AA55: =Z55*(1+AA54) -> 214.9865781 | AB55: =AA55*(1+AB54) -> 228.0670771 | AC55: =AB55*(1+AC54) -> 206.9867954 | AD55: =AC55*(1+AD54) -> 262.4405114 | AE55: =AD55*(1+AE54) -> 284.1335575 | AF55: =AE55*(1+AF54) -> 296.1385043 | AG55: =AF55*(1+AG54) -> 294.8339701 | AH55: =AG55*(1+AH54) -> 295.5559681 | AI55: =AH55*(1+AI54) -> 372.3650025 | AJ55: =AI55*(1+AJ54) -> 332.5133843 | AK55: =AJ55*(1+AK54) -> 285.0818017 | AL55: =AK55*(1+AL54) -> 282.7322642 | AM55: =AL55*(1+AM54) -> 279.7955025 | AN55: =AM55*(1+AN54) -> 251.1324228 | AO55: =AN55*(1+AO54) -> 256.5785778 | AP55: =AO55*(1+AP54) -> 293.2567998 | AQ55: =AP55*(1+AQ54) -> 203.9123203 | AR55: =AQ55*(1+AR54) -> 221.5191222 | AS55: =AR55*(1+AS54) -> 249.7784591 | AT55: =AS55*(1+AT54) -> 264.534599 | AU55: =AT55*(1+AU54) -> 246.4779363 | AV55: =AU55*(1+AV54) -> 253.6790669 | AW55: =AV55*(1+AW54) -> 252.054288 | AX55: =AW55*(1+AX54) -> 282.6223565 | AY55: =AX55*(1+AY54) -> 339.9188259 | AZ55: =AY55*(1+AZ54) -> 365.9352046 | BA55: =AZ55*(1+BA54) -> 349.1633199 | BB55: =BA55*(1+BB54) -> 372.0638444 | BC55: =BB55*(1+BC54) -> 399.6561281 | BD55: =BC55*(1+BD54) -> 389.9768597 | BE55: =BD55*(1+BE54) -> 456.5827127 | BF55: =BE55*(1+BF54) -> 464.7628025 | BG55: =BF55*(1+BG54) -> 507.6707263 | BH55: =BG55*(1+BH54) -> 571.2433131 | BI55: =BH55*(1+BI54) -> 568.4081109 | BJ55: =BI55*(1+BJ54) -> 555.139796 | BK55: =BJ55*(1+BK54) -> 607.1142785 | BL55: =BK55*(1+BL54) -> 639.1787405 | BM55: =BL55*(1+BM54) -> 759.5113201 | BN55: =BM55*(1+BN54) -> 814.6220066 | BO55: =BN55*(1+BO54) -> 887.4607577 | BP55: =BO55*(1+BP54) -> 882.2444521 | BQ55: =BP55*(1+BQ54) -> 816.6913351 | BR55: =BQ55*(1+BR54) -> 799.913888 | BS55: =BR55*(1+BS54) -> 752.6597657 | BT55: =BS55*(1+BT54) -> 721.2149494 | BU55: =BT55*(1+BU54) -> 690.4305379 | BV55: =BU55*(1+BV54) -> 705.6895715 | BW55: =BV55*(1+BW54) -> 756.9253677 | BX55: =BW55*(1+BX54) -> 650.6421224 | BY55: =BX55*(1+BY54) -> 580.5131011 | BZ55: =BY55*(1+BZ54) -> 524.3819507 | CA55: =BZ55*(1+CA54) -> 500.2262594 | CB55: =CA55*(1+CB54) -> 567.9012447 | CC55: =CB55*(1+CC54) -> 498.3942078 | CD55: =CC55*(1+CD54) -> 511.4939271 | CE55: =CD55*(1+CE54) -> 471.5317879 | CF55: =CE55*(1+CF54) -> 511.2433986 | CG55: =CF55*(1+CG54) -> 517.2078851 | CH55: =CG55*(1+CH54) -> 546.0586858 | CI55: =CH55*(1+CI54) -> 486.0800205 | CJ55: =CI55*(1+CJ54) -> 487.9878749 | CK55: =CJ55*(1+CK54) -> 526.5088398 | CL55: =CK55*(1+CL54) -> 570.5751957 | CM55: =CL55*(1+CM54) -> 583.7283776 | CN55: =CM55*(1+CN54) -> 609.6972584 | CO55: =CN55*(1+CO54) -> 693.3908919 | CP55: =CO55*(1+CP54) -> 624.2635918 | CQ55: =CP55*(1+CQ54) -> 661.7127199 | CR55: =CQ55*(1+CR54) -> 714.1929363 | CS55: =CR55*(1+CS54) -> 709.6232982 | CT55: =CS55*(1+CT54) -> 677.3383935 | CU55: =CT55*(1+CU54) -> 653.7724217 | CV55: =CU55*(1+CV54) -> 594.678278 | CW55: =CV55*(1+CW54) -> 566.7049466 | CX55: =CW55*(1+CX54) -> 583.7569408 | CY55: =CX55*(1+CY54) -> 588.1053474 | CZ55: =CY55*(1+CZ54) -> 565.6693089 | DA55: =CZ55*(1+DA54) -> 619.7873016 | DB55: =DA55*(1+DB54) -> 639.6559266 | DC55: =DB55*(1+DC54) -> 666.9773341 | DD55: =DC55*(1+DD54) -> 653.3747018 | DE55: =DD55*(1+DE54) -> 668.7949912 | DF55: =DE55*(1+DF54) -> 719.3822716 | DG55: =DF55*(1+DG54) -> 738.3028176 | DH55: =DG55*(1+DH54) -> 788.5283152 | DI55: =DH55*(1+DI54) -> 784.6146482 | DJ55: =DI55*(1+DJ54) -> 856.8002319 | DK55: =DJ55*(1+DK54) -> 1018.667068 | DL55: =DK55*(1+DL54) -> 976.3698165 | DM55: =DL55*(1+DM54) -> 872.4908132 | DN55: =DM55*(1+DN54) -> 920.0939847 | DO55: =DN55*(1+DO54) -> 902.0444062 | DP55: =DO55*(1+DP54) -> 898.809715 | DQ55: =DP55*(1+DQ54) -> 935.534301 | DR55: =DQ55*(1+DR54) -> 882.7470947 | DS55: =DR55*(1+DS54) -> 856.5074568 | DT55: =DS55*(1+DT54) -> 935.8817561 | DU55: =DT55*(1+DU54) -> 882.7657843 | DV55: =DU55*(1+DV54) -> 905.4923285 | DW55: =DV55*(1+DW54) -> 971.4936029 | DX55: =DW55*(1+DX54) -> 888.5187329 | DY55: =DX55*(1+DY54) -> 848.3776208 | DZ55: =DY55*(1+DZ54) -> 877.0352061 | EA55: =DZ55*(1+EA54) -> 784.7441509 | EB55: =EA55*(1+EB54) -> 708.6320272 | EC55: =EB55*(1+EC54) -> 646.8993961 | ED55: =EC55*(1+ED54) -> 731.1477524 | EE55: =ED55*(1+EE54) -> 745.1523497 | EF55: =EE55*(1+EF54) -> 617.9961143 | EG55: =EF55*(1+EG54) -> 678.8296401 | EH55: =EG55*(1+EH54) -> 809.0139889 | EI55: =EH55*(1+EI54) -> 813.50497 | EJ55: =EI55*(1+EJ54) -> 815.2590544 | EK55: =EJ55*(1+EK54) -> 770.8024483 | EL55: =EK55*(1+EL54) -> 757.2080234 | EM55: =EL55*(1+EM54) -> 738.8843407 | EN55: =EM55*(1+EN54) -> 744.0267135 | EO55: =EN55*(1+EO54) -> 744.3290628 | EP55: =EO55*(1+EP54) -> 805.2010598 | EQ55: =EP55*(1+EQ54) -> 824.2632878 | ER55: =EQ55*(1+ER54) -> 718.295383 | ES55: =ER55*(1+ES54) -> 793.4723352 | ET55: =ES55*(1+ET54) -> 816.2628672 | EU55: =ET55*(1+EU54) -> 649.8980926 | EV55: =EU55*(1+EV54) -> 725.4548376 | EW55: =EV55*(1+EW54) -> 771.8281685 | EX55: =EW55*(1+EX54) -> 829.9198338 | EY55: =EX55*(1+EY54) -> 810.6661968 | EZ55: =EY55*(1+EZ54) -> 819.5916054 | FA55: =EZ55*(1+FA54) -> 829.4772781 | FB55: =FA55*(1+FB54) -> 744.6331103 | FC55: =FB55*(1+FC54) -> 728.6979244 | FD55: =FC55*(1+FD54) -> 606.9036478 | FE55: =FD55*(1+FE54) -> 597.014356 | FF55: =FE55*(1+FF54) -> 582.2163841 | FG55: =FF55*(1+FG54) -> 547.3986082 | FH55: =FG55*(1+FH54) -> 471.6958858 | FI55: =FH55*(1+FI54) -> 463.5082117 | FJ55: =FI55*(1+FJ54) -> 489.2534487 | FK55: =FJ55*(1+FK54) -> 473.5523736 | FL55: =FK55*(1+FL54) -> 504.5501387 | FM55: =FL55*(1+FM54) -> 491.927954 | FN55: =FM55*(1+FN54) -> 544.8878747 | FO55: =FN55*(1+FO54) -> 618.2377215 | FP55: =FO55*(1+FP54) -> 525.9592024 | FQ55: =FP55*(1+FQ54) -> 377.203678 | FR55: =FQ55*(1+FR54) -> 424.6524523 | FS55: =FR55*(1+FS54) -> 407.7214796 | FT55: =FS55*(1+FT54) -> 409.1874294 | FU55: =FT55*(1+FU54) -> 394.9276078 | FV55: =FU55*(1+FV54) -> 447.9642278 | FW55: =FV55*(1+FW54) -> 407.622404 | FX55: =FW55*(1+FX54) -> 366.541638 | FY55: =FX55*(1+FY54) -> 348.3723127 | FZ55: =FY55*(1+FZ54) -> 307.191567 | GA55: =FZ55*(1+GA54) -> 324.1174417 | GB55: =GA55*(1+GB54) -> 298.5868401 | GC55: =GB55*(1+GC54) -> 286.8353045 | GD55: =GC55*(1+GD54) -> 309.2912733 | GE55: =GD55*(1+GE54) -> 318.1816768 | GF55: =GE55*(1+GF54) -> 273.2191828 | GG55: =GF55*(1+GG54) -> 258.8285405 | GH55: =GG55*(1+GH54) -> 238.699934 | GI55: =GH55*(1+GI54) -> 208.265855 | GJ55: =GI55*(1+GJ54) -> 224.0370358 | GK55: =GJ55*(1+GK54) -> 270.6449775 | GL55: =GK55*(1+GL54) -> 248.9082605 | GM55: =GL55*(1+GM54) -> 285.3063404 | GN55: =GM55*(1+GN54) -> 248.2119801 | GO55: =GN55*(1+GO54) -> 266.4545438 | GP55: =GO55*(1+GP54) -> 292.5369093 | GQ55: =GP55*(1+GQ54) -> 291.726011 | GR55: =GQ55*(1+GR54) -> 310.4246184 | GS55: =GR55*(1+GS54) -> 381.1960685 | GT55: =GS55*(1+GT54) -> 374.7038926 | GU55: =GT55*(1+GU54) -> 395.706377 | GV55: =GU55*(1+GV54) -> 347.5098478 | GW55: =GV55*(1+GW54) -> 364.1614013 | GX55: =GW55*(1+GX54) -> 387.3614318 | GY55: =GX55*(1+GY54) -> 401.7616025 | GZ55: =GY55*(1+GZ54) -> 463.780894 | HA55: =GZ55*(1+HA54) -> 394.2593128 | HB55: =HA55*(1+HB54) -> 451.2160665 | HC55: =HB55*(1+HC54) -> 496.4595358 | HD55: =HC55*(1+HD54) -> 409.7150961 | HE55: =HD55*(1+HE54) -> 403.629135 | HF55: =HE55*(1+HF54) -> 380.3455211 | HG55: =HF55*(1+HG54) -> 367.3938149 | HH55: =HG55*(1+HH54) -> 343.1422526 | HI55: =HH55*(1+HI54) -> 315.7148409 | HJ55: =HI55*(1+HJ54) -> 324.7459751 | HK55: =HJ55*(1+HK54) -> 291.188214 | HL55: =HK55*(1+HL54) -> 310.3235378 | HM55: =HL55*(1+HM54) -> 381.115159 | HN55: =HM55*(1+HN54) -> 372.3393227 | HO55: =HN55*(1+HO54) -> 344.4635575 | HP55: =HO55*(1+HP54) -> 347.1464003 | HQ55: =HP55*(1+HQ54) -> 381.8025598 | HR55: =HQ55*(1+HR54) -> 382.5969192 | HS55: =HR55*(1+HS54) -> 371.203668 | HT55: =HS55*(1+HT54) -> 408.1718675 | HU55: =HT55*(1+HU54) -> 400.9129188 | HV55: =HU55*(1+HV54) -> 450.9756562 | HW55: =HV55*(1+HW54) -> 426.0634854 | HX55: =HW55*(1+HX54) -> 457.1018912 | HY55: =HX55*(1+HY54) -> 357.2201764 | HZ55: =HY55*(1+HZ54) -> 344.5696191 | IA55: =HZ55*(1+IA54) -> 370.6419717 | IB55: =IA55*(1+IB54) -> 371.9090465 | IC55: =IB55*(1+IC54) -> 358.1331166 | ID55: =IC55*(1+ID54) -> 369.2590521 | IE55: =ID55*(1+IE54) -> 399.723606 | IF55: =IE55*(1+IF54) -> 469.2523737 | IG55: =IF55*(1+IG54) -> 436.1895623 | IH55: =IG55*(1+IH54) -> 404.7367378 | II55: =IH55*(1+II54) -> 460.5819887 | IJ55: =II55*(1+IJ54) -> 432.8256863 | IK55: =IJ55*(1+IK54) -> 468.1415691 | IL55: =IK55*(1+IL54) -> 462.960276 | IM55: =IL55*(1+IM54) -> 459.4652538 | IN55: =IM55*(1+IN54) -> 487.8980019 | IO55: =IN55*(1+IO54) -> 437.4567216 | IP55: =IO55*(1+IP54) -> 463.4970142 | IQ55: =IP55*(1+IQ54) -> 362.0456505 | IR55: =IQ55*(1+IR54) -> 326.5509398 | IS55: =IR55*(1+IS54) -> 343.0319482 | IT55: =IS55*(1+IT54) -> 377.0901202 | IU55: =IT55*(1+IU54) -> 436.9302549 | IV55: =IU55*(1+IV54) -> 440.1809874 | IW55: =IV55*(1+IW54) -> 414.304267 | IX55: =IW55*(1+IX54) -> 385.9281937 | IY55: =IX55*(1+IY54) -> 373.1928893 | IZ55: =IY55*(1+IZ54) -> 409.8323664 | JA55: =IZ55*(1+JA54) -> 418.649855 | JB55: =JA55*(1+JB54) -> 415.8542606 | JC55: =JB55*(1+JC54) -> 427.4881087 | JD55: =JC55*(1+JD54) -> 447.734848 | JE55: =JD55*(1+JE54) -> 380.2507219 | JF55: =JE55*(1+JF54) -> 393.8731899 | JG55: =JF55*(1+JG54) -> 366.1972848 | JH55: =JG55*(1+JH54) -> 333.8994973 | JI55: =JH55*(1+JI54) -> 344.3021163 | JJ55: =JI55*(1+JJ54) -> 306.5235078 | JK55: =JJ55*(1+JK54) -> 273.6532628 | JL55: =JK55*(1+JL54) -> 295.176124 | JM55: =JL55*(1+JM54) -> 282.6574853 | JN55: =JM55*(1+JN54) -> 284.9166872 | JO55: =JN55*(1+JO54) -> 273.2243595 | JP55: =JO55*(1+JP54) -> 225.714386 | JQ55: =JP55*(1+JQ54) -> 176.6609041 | JR55: =JQ55*(1+JR54) -> 155.6774877 | JS55: =JR55*(1+JS54) -> 147.7916827 | JT55: =JS55*(1+JT54) -> 148.6034885 | JU55: =JT55*(1+JU54) -> 161.1902868 | JV55: =JU55*(1+JV54) -> 148.2797877 | JW55: =JV55*(1+JW54) -> 142.7877576 | JX55: =JW55*(1+JX54) -> 152.6451772 | JY55: =JX55*(1+JY54) -> 167.1237497 | JZ55: =JY55*(1+JZ54) -> 143.4981557 | KA55: =JZ55*(1+KA54) -> 144.2708231 | KB55: =KA55*(1+KB54) -> 147.6150373 | KC55: =KB55*(1+KC54) -> 151.6599462 | KD55: =KC55*(1+KD54) -> 156.5700874 | KE55: =KD55*(1+KE54) -> 152.6554137 | KF55: =KE55*(1+KF54) -> 138.9393593 | KG55: =KF55*(1+KG54) -> 133.5928053 | KH55: =KG55*(1+KH54) -> 117.7974407 | KI55: =KH55*(1+KI54) -> 120.2768572 | KJ55: =KI55*(1+KJ54) -> 116.3737632 | KK55: =KJ55*(1+KK54) -> 101.8607758 | KL55: =KK55*(1+KL54) -> 92.05175585 | KM55: =KL55*(1+KM54) -> 81.23967451 | KN55: =KM55*(1+KN54) -> 73.61106214 | KO55: =KN55*(1+KO54) -> 76.14963038 | KP55: =KO55*(1+KP54) -> 61.43175751 | KQ55: =KP55*(1+KQ54) -> 59.84246974 | KR55: =KQ55*(1+KR54) -> 56.1360301 | KS55: =KR55*(1+KS54) -> 51.36903498 | KT55: =KS55*(1+KT54) -> 50.18327567 | KU55: =KT55*(1+KU54) -> 49.08872051 | KV55: =KU55*(1+KV54) -> 48.9442269 | KW55: =KV55*(1+KW54) -> 54.72769868 | KX55: =KW55*(1+KX54) -> 57.39827729 | KY55: =KX55*(1+KY54) -> 49.67856915 | KZ55: =KY55*(1+KZ54) -> 50.00981601 | LA55: =KZ55*(1+LA54) -> 42.8976647 | LB55: =LA55*(1+LB54) -> 46.85241699 | LC55: =LB55*(1+LC54) -> 43.09200129 | LD55: =LC55*(1+LD54) -> 47.04677344 | LE55: =LD55*(1+LE54) -> 42.14823158 | LF55: =LE55*(1+LF54) -> 40.35694331 | LG55: =LF55*(1+LG54) -> 44.54354917 | LH55: =LG55*(1+LH54) -> 44.97655285 | LI55: =LH55*(1+LI54) -> 47.89129195 | LJ55: =LI55*(1+LJ54) -> 45.52785655 | LK55: =LJ55*(1+LK54) -> 51.73673796 | LL55: =LK55*(1+LL54) -> 49.83480077 | LM55: =LL55*(1+LM54) -> 49.11001652 | LN55: =LM55*(1+LN54) -> 52.20996824 | LO55: =LN55*(1+LO54) -> 57.4476237 | LP55: =LO55*(1+LP54) -> 48.64836344 | LQ55: =LP55*(1+LQ54) -> 41.98933876 | LR55: =LQ55*(1+LR54) -> 42.76733489 | LS55: =LR55*(1+LS54) -> 44.28625271 | LT55: =LS55*(1+LT54) -> 42.87316298 | LU55: =LT55*(1+LU54) -> 32.47304406 | LV55: =LU55*(1+LV54) -> 31.86705207 | LW55: =LV55*(1+LW54) -> 33.68914624 | LX55: =LW55*(1+LX54) -> 34.94743771 | LY55: =LX55*(1+LY54) -> 35.36368388 | LZ55: =LY55*(1+LZ54) -> 30.84187986 | MA55: =LZ55*(1+MA54) -> 33.08141286 | MB55: =MA55*(1+MB54) -> 36.59501711 | MC55: =MB55*(1+MC54) -> 37.04920711 | MD55: =MC55*(1+MD54) -> 34.24862966 | ME55: =MD55*(1+ME54) -> 35.53904547 | MF55: =ME55*(1+MF54) -> 30.85865687 | MG55: =MF55*(1+MG54) -> 30.2585266 | MH55: =MG55*(1+MH54) -> 28.67861524 | MI55: =MH55*(1+MI54) -> 29.77205762 | MJ55: =MI55*(1+MJ54) -> 31.10641703 | MK55: =MJ55*(1+MK54) -> 33.80170273 | ML55: =MK55*(1+ML54) -> 36.13133834 | MM55: =ML55*(1+MM54) -> 32.85262281 | MN55: =MM55*(1+MN54) -> 30.57187408 | MO55: =MN55*(1+MO54) -> 33.20826399 | MP55: =MO55*(1+MP54) -> 31.64937681 | MQ55: =MP55*(1+MQ54) -> 33.90974524 | MR55: =MQ55*(1+MR54) -> 37.91353114 | MS55: =MR55*(1+MS54) -> 47.57756643 | MT55: =MS55*(1+MT54) -> 52.83543858 | MU55: =MT55*(1+MU54) -> 40.4926776 | MV55: =MU55*(1+MV54) -> 43.85362496 | MW55: =MV55*(1+MW54) -> 38.27058553 | MX55: =MW55*(1+MX54) -> 44.99849451 | MY55: =MX55*(1+MY54) -> 49.48027818 | MZ55: =MY55*(1+MZ54) -> 45.83259124 | NA55: =MZ55*(1+NA54) -> 49.29594103 | NB55: =NA55*(1+NB54) -> 47.68379403 | NC55: =NB55*(1+NC54) -> 52.68426286 | ND55: =NC55*(1+ND54) -> 49.54741532 | NE55: =ND55*(1+NE54) -> 50.28035305 | NF55: =NE55*(1+NF54) -> 55.98667882 | NG55: =NF55*(1+NG54) -> 54.12291944 | NH55: =NG55*(1+NH54) -> 55.35483394 | NI55: =NH55*(1+NI54) -> 56.96847843 | NJ55: =NI55*(1+NJ54) -> 44.09544437 | NK55: =NJ55*(1+NK54) -> 42.48988985 | NL55: =NK55*(1+NL54) -> 51.22111301 | NM55: =NL55*(1+NM54) -> 54.86770281 | NN55: =NM55*(1+NN54) -> 48.8239936 | NO55: =NN55*(1+NO54) -> 45.08416245 | NP55: =NO55*(1+NP54) -> 38.01815252 | NQ55: =NP55*(1+NQ54) -> 41.07165365 | NR55: =NQ55*(1+NR54) -> 35.91659124 | NS55: =NR55*(1+NS54) -> 38.52472089 | NT55: =NS55*(1+NT54) -> 39.53993714 | NU55: =NT55*(1+NU54) -> 45.17182107 | NV55: =NU55*(1+NV54) -> 41.84126116 | NW55: =NV55*(1+NW54) -> 40.72710302 | NX55: =NW55*(1+NX54) -> 42.58804395 | NY55: =NX55*(1+NY54) -> 42.73096051 | NZ55: =NY55*(1+NZ54) -> 46.58477286 | OA55: =NZ55*(1+OA54) -> 43.25925446 | OB55: =OA55*(1+OB54) -> 45.3962073 | OC55: =OB55*(1+OC54) -> 52.40661803 | OD55: =OC55*(1+OD54) -> 49.49968011 | OE55: =OD55*(1+OE54) -> 48.99589366 | OF55: =OE55*(1+OF54) -> 43.62631472 | OG55: =OF55*(1+OG54) -> 45.98702876 | OH55: =OG55*(1+OH54) -> 44.84930175 | OI55: =OH55*(1+OI54) -> 39.32085664 | OJ55: =OI55*(1+OJ54) -> 34.80887843 | OK55: =OJ55*(1+OK54) -> 33.1454389 | OL55: =OK55*(1+OL54) -> 27.11738068 | OM55: =OL55*(1+OM54) -> 28.31737554 | ON55: =OM55*(1+ON54) -> 21.61267863 | OO55: =ON55*(1+OO54) -> 23.69528481 | OP55: =OO55*(1+OP54) -> 23.0405585 | OQ55: =OP55*(1+OQ54) -> 21.62560428 | OR55: =OQ55*(1+OR54) -> 22.72168833 | OS55: =OR55*(1+OS54) -> 24.6432913 | OT55: =OS55*(1+OT54) -> 22.85763629 | OU55: =OT55*(1+OU54) -> 25.97850899 | OV55: =OU55*(1+OV54) -> 25.37223169 | OW55: =OV55*(1+OW54) -> 26.71875381 | OX55: =OW55*(1+OX54) -> 22.98654559 | OY55: =OX55*(1+OY54) -> 23.98773243 | OZ55: =OY55*(1+OZ54) -> 24.12666118 | PA55: =OZ55*(1+PA54) -> 22.29292628 | PB55: =PA55*(1+PB54) -> 23.82699556 | PC55: =PB55*(1+PC54) -> 17.34480362 | PD55: =PC55*(1+PD54) -> 18.69330283 | PE55: =PD55*(1+PE54) -> 18.61183125 | PF55: =PE55*(1+PF54) -> 18.49553477 | PG55: =PF55*(1+PG54) -> 17.89225046 | PH55: =PG55*(1+PH54) -> 19.24101072 | PI55: =PH55*(1+PI54) -> 17.21095702 | PJ55: =PI55*(1+PJ54) -> 16.69909132 | PK55: =PJ55*(1+PK54) -> 16.5699028 | PL55: =PK55*(1+PL54) -> 14.89066484 | PM55: =PL55*(1+PM54) -> 14.40672341 | PN55: =PM55*(1+PN54) -> 15.63546619 | PO55: =PN55*(1+PO54) -> 14.74744525 | PP55: =PO55*(1+PP54) -> 12.07567326 | PQ55: =PP55*(1+PQ54) -> 11.5166793 | PR55: =PQ55*(1+PR54) -> 13.52841732 | PS55: =PR55*(1+PS54) -> 14.35175127 | PT55: =PS55*(1+PT54) -> 15.16658087 | PU55: =PT55*(1+PU54) -> 14.74363778 | PV55: =PU55*(1+PV54) -> 15.56762698 | PW55: =PV55*(1+PW54) -> 14.45305354 | PX55: =PW55*(1+PX54) -> 11.9856042 | PY55: =PX55*(1+PY54) -> 11.93862019 | PZ55: =PY55*(1+PZ54) -> 12.18301989 | QA55: =PZ55*(1+QA54) -> 13.19427069 | QB55: =QA55*(1+QB54) -> 15.07607926 | QC55: =QB55*(1+QC54) -> 15.46864567 | QD55: =QC55*(1+QD54) -> 15.20929888 | QE55: =QD55*(1+QE54) -> 13.29011967 | QF55: =QE55*(1+QF54) -> 14.22253673 | QG55: =QF55*(1+QG54) -> 14.56608102 | QH55: =QG55*(1+QH54) -> 12.868431 | QI55: =QH55*(1+QI54) -> 11.29819392 | QJ55: =QI55*(1+QJ54) -> 13.31965911 | QK55: =QJ55*(1+QK54) -> 13.52883038 | QL55: =QK55*(1+QL54) -> 13.91934484 | QM55: =QL55*(1+QM54) -> 12.86305141 | QN55: =QM55*(1+QN54) -> 13.7823631 | QO55: =QN55*(1+QO54) -> 13.42768087 | QP55: =QO55*(1+QP54) -> 11.87280013 | QQ55: =QP55*(1+QQ54) -> 11.92287791 | QR55: =QQ55*(1+QR54) -> 10.86362588 | QS55: =QR55*(1+QS54) -> 11.48939706 | QT55: =QS55*(1+QT54) -> 12.36156432 | QU55: =QT55*(1+QU54) -> 11.27391878 | QV55: =QU55*(1+QV54) -> 10.10756511 | QW55: =QV55*(1+QW54) -> 9.420464993 | QX55: =QW55*(1+QX54) -> 10.15419195 | QY55: =QX55*(1+QY54) -> 10.85041004 | QZ55: =QY55*(1+QZ54) -> 8.77365842 | RA55: =QZ55*(1+RA54) -> 6.829935014 | RB55: =RA55*(1+RB54) -> 8.777569556 | RC55: =RB55*(1+RC54) -> 8.273940288 | RD55: =RC55*(1+RD54) -> 8.092708139 | RE55: =RD55*(1+RE54) -> 8.077786055 | RF55: =RE55*(1+RF54) -> 6.792115313 | RG55: =RF55*(1+RG54) -> 6.523690045 | RH55: =RG55*(1+RH54) -> 5.69899079 | RI55: =RH55*(1+RI54) -> 5.603148071 | RJ55: =RI55*(1+RJ54) -> 4.336323918 | RK55: =RJ55*(1+RK54) -> 5.027722117 | RL55: =RK55*(1+RL54) -> 4.951474502 | RM55: =RL55*(1+RM54) -> 4.404852773 | RN55: =RM55*(1+RN54) -> 4.232101397 | RO55: =RN55*(1+RO54) -> 4.141606928 | RP55: =RO55*(1+RP54) -> 3.86417589 | RQ55: =RP55*(1+RQ54) -> 4.008464872 | RR55: =RQ55*(1+RR54) -> 3.329583467 | RS55: =RR55*(1+RS54) -> 2.691765058 | RT55: =RS55*(1+RT54) -> 3.197005841 | RU55: =RT55*(1+RU54) -> 2.913143171 | RV55: =RU55*(1+RV54) -> 2.608810455 | RW55: =RV55*(1+RW54) -> 2.516371976 | RX55: =RW55*(1+RX54) -> 2.15253533 | RY55: =RX55*(1+RY54) -> 2.294669525 | RZ55: =RY55*(1+RZ54) -> 2.270006982 | SA55: =RZ55*(1+SA54) -> 2.178998668 | SB55: =SA55*(1+SB54) -> 2.244704268 | SC55: =SB55*(1+SC54) -> 1.852486066 | SD55: =SC55*(1+SD54) -> 1.894800348 | SE55: =SD55*(1+SE54) -> 2.049591259 | SF55: =SE55*(1+SF54) -> 2.406099549 | SG55: =SF55*(1+SG54) -> 2.15073932 | SH55: =SG55*(1+SH54) -> 2.089661268 | SI55: =SH55*(1+SI54) -> 2.127192249 | SJ55: =SI55*(1+SJ54) -> 1.977671154 | SK55: =SJ55*(1+SK54) -> 2.004454221 | SL55: =SK55*(1+SL54) -> 1.86780238 | SM55: =SL55*(1+SM54) -> 2.172101686 | SN55: =SM55*(1+SN54) -> 1.847280489 | SO55: =SN55*(1+SO54) -> 1.701173986 | SP55: =SO55*(1+SP54) -> 1.558307111 | SQ55: =SP55*(1+SQ54) -> 1.403235467 | SR55: =SQ55*(1+SR54) -> 1.440778104 | SS55: =SR55*(1+SS54) -> 1.211465799 | ST55: =SS55*(1+ST54) -> 1.263451594 | SU55: =ST55*(1+SU54) -> 1.226879462 | SV55: =SU55*(1+SV54) -> 1.235242467 | SW55: =SV55*(1+SW54) -> 1.121169261 | SX55: =SW55*(1+SX54) -> 1.173995721 | SY55: =SX55*(1+SY54) -> 1.094108189 | SZ55: =SY55*(1+SZ54) -> 1.085584161 | TA55: =SZ55*(1+TA54) -> 1.077624349 | TB55: =TA55*(1+TB54) -> 1.077119916 | TC55: =TB55*(1+TC54) -> 0.9699607269 | TD55: =TC55*(1+TD54) -> 0.998558217 | TE55: =TD55*(1+TE54) -> 1.133420623 | TF55: =TE55*(1+TF54) -> 1.036108928 | TG55: =TF55*(1+TG54) -> 0.9916820577 | TH55: =TG55*(1+TH54) -> 1.020333466 | TI55: =TH55*(1+TI54) -> 0.9922004574 | TJ55: =TI55*(1+TJ54) -> 0.9491843588 | TK55: =TJ55*(1+TK54) -> 0.932254079 | TL55: =TK55*(1+TL54) -> 0.9947876601 | TM55: =TL55*(1+TM54) -> 0.9474513377 | TN55: =TM55*(1+TN54) -> 0.9551989162 | TO55: =TN55*(1+TO54) -> 1.007673403 | TP55: =TO55*(1+TP54) -> 0.9708760614 | TQ55: =TP55*(1+TQ54) -> 0.9017958746 | TR55: =TQ55*(1+TR54) -> 0.7480984222 | TS55: =TR55*(1+TS54) -> 0.7945376425 | TT55: =TS55*(1+TT54) -> 0.7416779246 | TU55: =TT55*(1+TU54) -> 0.7322869196 | TV55: =TU55*(1+TV54) -> 0.7695834117 | TW55: =TV55*(1+TW54) -> 0.7562664479 | TX55: =TW55*(1+TX54) -> 0.7994260442 | TY55: =TX55*(1+TY54) -> 0.6840080673 | TZ55: =TY55*(1+TZ54) -> 0.6649871764 | UA55: =TZ55*(1+UA54) -> 0.6132862985 | UB55: =UA55*(1+UB54) -> 0.6007515832 | UC55: =UB55*(1+UC54) -> 0.6138189787 | UD55: =UC55*(1+UD54) -> 0.6985820764 | UE55: =UD55*(1+UE54) -> 0.7091559967 | UF55: =UE55*(1+UF54) -> 0.6250764222 | UG55: =UF55*(1+UG54) -> 0.5434935477 | UH55: =UG55*(1+UH54) -> 0.5059562319 | UI55: =UH55*(1+UI54) -> 0.4937760689 | UJ55: =UI55*(1+UJ54) -> 0.5003744689 | UK55: =UJ55*(1+UK54) -> 0.4635700484 | UL55: =UK55*(1+UL54) -> 0.4640201356 | UM55: =UL55*(1+UM54) -> 0.3786543096 | UN55: =UM55*(1+UN54) -> 0.3508202441 | UO55: =UN55*(1+UO54) -> 0.3609648953 | UP55: =UO55*(1+UP54) -> 0.3740301765 | UQ55: =UP55*(1+UQ54) -> 0.4441907498 | UR55: =UQ55*(1+UR54) -> 0.4038109671 | US55: =UR55*(1+US54) -> 0.40412179 | UT55: =US55*(1+UT54) -> 0.4557536783 | UU55: =UT55*(1+UU54) -> 0.4587555242 | UV55: =UU55*(1+UV54) -> 0.5154769586 | UW55: =UV55*(1+UW54) -> 0.5925959777 | UX55: =UW55*(1+UX54) -> 0.5718002671 | UY55: =UX55*(1+UY54) -> 0.495713395 | UZ55: =UY55*(1+UZ54) -> 0.5236814164 | VA55: =UZ55*(1+VA54) -> 0.6495286264 | VB55: =VA55*(1+VB54) -> 0.6753561093 | VC55: =VB55*(1+VC54) -> 0.7120599152 | VD55: =VC55*(1+VD54) -> 0.765450735 | VE55: =VD55*(1+VE54) -> 0.8025576033 | VF55: =VE55*(1+VF54) -> 0.7796825916 | VG55: =VF55*(1+VG54) -> 0.7352098991 | VH55: =VG55*(1+VH54) -> 0.6955094141 | VI55: =VH55*(1+VI54) -> 0.7668109179 | VJ55: =VI55*(1+VJ54) -> 0.7157227171 | VK55: =VJ55*(1+VK54) -> 0.583829642 | VL55: =VK55*(1+VL54) -> 0.6844008993 | VM55: =VL55*(1+VM54) -> 0.7515402809 | VN55: =VM55*(1+VN54) -> 0.8583058055 | VO55: =VN55*(1+VO54) -> 0.8055916864 | VP55: =VO55*(1+VP54) -> 0.7957288348 | VQ55: =VP55*(1+VQ54) -> 0.7516957201 | VR55: =VQ55*(1+VR54) -> 0.8210828909 | VS55: =VR55*(1+VS54) -> 0.941424444 | VT55: =VS55*(1+VT54) -> 1.084854201 | VU55: =VT55*(1+VU54) -> 1.205437623 | VV55: =VU55*(1+VV54) -> 1.120963481 | VW55: =VV55*(1+VW54) -> 1.040063751 | VX55: =VW55*(1+VX54) -> 1.088574075 | VY55: =VX55*(1+VY54) -> 0.9262566346 | VZ55: =VY55*(1+VZ54) -> 0.9440546759 | WA55: =VZ55*(1+WA54) -> 0.9926416911 | WB55: =WA55*(1+WB54) -> 1.027152075 | WC55: =WB55*(1+WC54) -> 0.9377413167 | WD55: =WC55*(1+WD54) -> 1.000610311 | WE55: =WD55*(1+WE54) -> 1.048008331 | WF55: =WE55*(1+WF54) -> 0.8924973045 | WG55: =WF55*(1+WG54) -> 0.9769949304 | WH55: =WG55*(1+WH54) -> 0.9805036975 | WI55: =WH55*(1+WI54) -> 0.9457596211 | WJ55: =WI55*(1+WJ54) -> 0.9549651097 | WK55: =WJ55*(1+WK54) -> 0.9891775471 | WL55: =WK55*(1+WL54) -> 1.075813801 | WM55: =WL55*(1+WM54) -> 1.053643337 | WN55: =WM55*(1+WN54) -> 0.9649226762 | WO55: =WN55*(1+WO54) -> 1.01539905 | WP55: =WO55*(1+WP54) -> 0.890541338 | WQ55: =WP55*(1+WQ54) -> 0.9407512349 | WR55: =WQ55*(1+WR54) -> 0.7449500983 | WS55: =WR55*(1+WS54) -> 0.6182603184 | WT55: =WS55*(1+WT54) -> 0.7367283436 | WU55: =WT55*(1+WU54) -> 0.6993223415 | WV55: =WU55*(1+WV54) -> 0.8035794606 | WW55: =WV55*(1+WW54) -> 0.8539826248 | WX55: =WW55*(1+WX54) -> 0.8842568097 | WY55: =WX55*(1+WY54) -> 0.7848559094 | WZ55: =WY55*(1+WZ54) -> 0.6801439219 | XA55: =WZ55*(1+XA54) -> 0.5606461524 | XB55: =XA55*(1+XB54) -> 0.5772238496 | XC55: =XB55*(1+XC54) -> 0.558965399 | XD55: =XC55*(1+XD54) -> 0.5524357954 | XE55: =XD55*(1+XE54) -> 0.5930405723 | XF55: =XE55*(1+XF54) -> 0.4244926393 | XG55: =XF55*(1+XG54) -> 0.4667696463 | XH55: =XG55*(1+XH54) -> 0.4777256688 | XI55: =XH55*(1+XI54) -> 0.4575709197 | XJ55: =XI55*(1+XJ54) -> 0.4356190818 | XK55: =XJ55*(1+XK54) -> 0.4018321745 | XL55: =XK55*(1+XL54) -> 0.3968216181 | XM55: =XL55*(1+XM54) -> 0.3447991529 | XN55: =XM55*(1+XN54) -> 0.3077932196 | XO55: =XN55*(1+XO54) -> 0.366563598 | XP55: =XO55*(1+XP54) -> 0.3365090869 | XQ55: =XP55*(1+XQ54) -> 0.3091391162 | XR55: =XQ55*(1+XR54) -> 0.2822488756 | XS55: =XR55*(1+XS54) -> 0.2804974921 | XT55: =XS55*(1+XT54) -> 0.2765751677 | XU55: =XT55*(1+XU54) -> 0.2632704978 | XV55: =XU55*(1+XV54) -> 0.2372520972 | XW55: =XV55*(1+XW54) -> 0.2604624564 | XX55: =XW55*(1+XX54) -> 0.1932417137 | XY55: =XX55*(1+XY54) -> 0.1872605192 | XZ55: =XY55*(1+XZ54) -> 0.1960858041 | YA55: =XZ55*(1+YA54) -> 0.1844140327 | YB55: =YA55*(1+YB54) -> 0.1803814756 | YC55: =YB55*(1+YC54) -> 0.1762362122 | YD55: =YC55*(1+YD54) -> 0.1911645307 | YE55: =YD55*(1+YE54) -> 0.1666660168 | YF55: =YE55*(1+YF54) -> 0.1692084687 | YG55: =YF55*(1+YG54) -> 0.1319682141 | YH55: =YG55*(1+YH54) -> 0.1163304876 | YI55: =YH55*(1+YI54) -> 0.1331088912 | YJ55: =YI55*(1+YJ54) -> 0.1463772238 | YK55: =YJ55*(1+YK54) -> 0.1341358378 | YL55: =YK55*(1+YL54) -> 0.1432085232 | YM55: =YL55*(1+YM54) -> 0.1245779108 | YN55: =YM55*(1+YN54) -> 0.1067924731 | YO55: =YN55*(1+YO54) -> 0.08051210266 | YP55: =YO55*(1+YP54) -> 0.08605363568 | YQ55: =YP55*(1+YQ54) -> 0.07714162176 | YR55: =YQ55*(1+YR54) -> 0.06787793367 | YS55: =YR55*(1+YS54) -> 0.07018991763 | YT55: =YS55*(1+YT54) -> 0.06838899528 | YU55: =YT55*(1+YU54) -> 0.06204040437 | YV55: =YU55*(1+YV54) -> 0.05960418874 | YW55: =YV55*(1+YW54) -> 0.06289180998 | YX55: =YW55*(1+YX54) -> 0.05735618973 | YY55: =YX55*(1+YY54) -> 0.06561197979 | YZ55: =YY55*(1+YZ54) -> 0.06265324492 | ZA55: =YZ55*(1+ZA54) -> 0.0755208356 | ZB55: =ZA55*(1+ZB54) -> 0.0819883735 | ZC55: =ZB55*(1+ZC54) -> 0.06856955555 | ZD55: =ZC55*(1+ZD54) -> 0.07357291427 | ZE55: =ZD55*(1+ZE54) -> 0.06001015347 | ZF55: =ZE55*(1+ZF54) -> 0.06508586962 | ZG55: =ZF55*(1+ZG54) -> 0.05740679022 | ZH55: =ZG55*(1+ZH54) -> 0.06075013686 | ZI55: =ZH55*(1+ZI54) -> 0.0638041788 | ZJ55: =ZI55*(1+ZJ54) -> 0.04707022635 | ZK55: =ZJ55*(1+ZK54) -> 0.04658619587 | ZL55: =ZK55*(1+ZL54) -> 0.04413857748 | ZM55: =ZL55*(1+ZM54) -> 0.04733437798 | ZN55: =ZM55*(1+ZN54) -> 0.04952920958 | ZO55: =ZN55*(1+ZO54) -> 0.04737224354 | ZP55: =ZO55*(1+ZP54) -> 0.05024567985 | ZQ55: =ZP55*(1+ZQ54) -> 0.04541542895 | ZR55: =ZQ55*(1+ZR54) -> 0.05781788024 | ZS55: =ZR55*(1+ZS54) -> 0.05748673318 | ZT55: =ZS55*(1+ZT54) -> 0.05513221543 | ZU55: =ZT55*(1+ZU54) -> 0.05852595317 | ZV55: =ZU55*(1+ZV54) -> 0.05474912486 | ZW55: =ZV55*(1+ZW54) -> 0.05102182717 | ZX55: =ZW55*(1+ZX54) -> 0.04729513855 | ZY55: =ZX55*(1+ZY54) -> 0.04737090099 | ZZ55: =ZY55*(1+ZZ54) -> 0.04441752914 | AAA55: =ZZ55*(1+AAA54) -> 0.04999252095 | AAB55: =AAA55*(1+AAB54) -> 0.05583147151 | AAC55: =AAB55*(1+AAC54) -> 0.05984675362 | AAD55: =AAC55*(1+AAD54) -> 0.06418437651 | AAE55: =AAD55*(1+AAE54) -> 0.06307429943 | AAF55: =AAE55*(1+AAF54) -> 0.06524292995 | AAG55: =AAF55*(1+AAG54) -> 0.05547485334 | AAH55: =AAG55*(1+AAH54) -> 0.05863983809 | AAI55: =AAH55*(1+AAI54) -> 0.0633755089 | AAJ55: =AAI55*(1+AAJ54) -> 0.06686171839 | AAK55: =AAJ55*(1+AAK54) -> 0.06452674527 | AAL55: =AAK55*(1+AAL54) -> 0.0677465267 | AAM55: =AAL55*(1+AAM54) -> 0.07523924618 | AAN55: =AAM55*(1+AAN54) -> 0.07534268922 | AAO55: =AAN55*(1+AAO54) -> 0.07552655286 | AAP55: =AAO55*(1+AAP54) -> 0.07138954023 | AAQ55: =AAP55*(1+AAQ54) -> 0.0774652894 | AAR55: =AAQ55*(1+AAR54) -> 0.08280672464 | AAS55: =AAR55*(1+AAS54) -> 0.07328150586 | AAT55: =AAS55*(1+AAT54) -> 0.07217570548 | AAU55: =AAT55*(1+AAU54) -> 0.06903099675 | AAV55: =AAU55*(1+AAV54) -> 0.06496055928 | AAW55: =AAV55*(1+AAW54) -> 0.06688105055 | AAX55: =AAW55*(1+AAX54) -> 0.06433932007 | AAY55: =AAX55*(1+AAY54) -> 0.06428137512 | AAZ55: =AAY55*(1+AAZ54) -> 0.05926491947 | ABA55: =AAZ55*(1+ABA54) -> 0.05752531467 | ABB55: =ABA55*(1+ABB54) -> 0.05264101506 | ABC55: =ABB55*(1+ABC54) -> 0.05368935791 | ABD55: =ABC55*(1+ABD54) -> 0.04951817661 | ABE55: =ABD55*(1+ABE54) -> 0.05114497235 | ABF55: =ABE55*(1+ABF54) -> 0.05275503306 | ABG55: =ABF55*(1+ABG54) -> 0.05781191621 | ABH55: =ABG55*(1+ABH54) -> 0.0578367584 | ABI55: =ABH55*(1+ABI54) -> 0.06630833142 | ABJ55: =ABI55*(1+ABJ54) -> 0.06950609935 | ABK55: =ABJ55*(1+ABK54) -> 0.07108504206 | ABL55: =ABK55*(1+ABL54) -> 0.07491420262 | ABM55: =ABL55*(1+ABM54) -> 0.07698334208 | ABN55: =ABM55*(1+ABN54) -> 0.07193968359 | ABO55: =ABN55*(1+ABO54) -> 0.0870574797 | ABP55: =ABO55*(1+ABP54) -> 0.08359411607 | ABQ55: =ABP55*(1+ABQ54) -> 0.09273483471 | ABR55: =ABQ55*(1+ABR54) -> 0.09380317579 | ABS55: =ABR55*(1+ABS54) -> 0.08865389199 | ABT55: =ABS55*(1+ABT54) -> 0.09581484093 | ABU55: =ABT55*(1+ABU54) -> 0.0872200324 | ABV55: =ABU55*(1+ABV54) -> 0.1012472169 | ABW55: =ABV55*(1+ABW54) -> 0.09786294483 | ABX55: =ABW55*(1+ABX54) -> 0.09743047721 | ABY55: =ABX55*(1+ABY54) -> 0.1133748402 | ABZ55: =ABY55*(1+ABZ54) -> 0.1297675413 | ACA55: =ABZ55*(1+ACA54) -> 0.09092156893 | ACB55: =ACA55*(1+ACB54) -> 0.09837832286 | ACC55: =ACB55*(1+ACC54) -> 0.0972968869 | ACD55: =ACC55*(1+ACD54) -> 0.1068328268 | ACE55: =ACD55*(1+ACE54) -> 0.1073798522 | ACF55: =ACE55*(1+ACF54) -> 0.1030946996 | ACG55: =ACF55*(1+ACG54) -> 0.09330094919 | ACH55: =ACG55*(1+ACH54) -> 0.08771874473 | ACI55: =ACH55*(1+ACI54) -> 0.09909619242 | ACJ55: =ACI55*(1+ACJ54) -> 0.09042786742 | ACK55: =ACJ55*(1+ACK54) -> 0.1056843482 | ACL55: =ACK55*(1+ACL54) -> 0.1208874423 | ACM55: =ACL55*(1+ACM54) -> 0.1187645524 | ACN55: =ACM55*(1+ACN54) -> 0.09234753201 | ACO55: =ACN55*(1+ACO54) -> 0.08043497385 | ACP55: =ACO55*(1+ACP54) -> 0.07932867973 | ACQ55: =ACP55*(1+ACQ54) -> 0.0860248679 | ACR55: =ACQ55*(1+ACR54) -> 0.09956360497 | ACS55: =ACR55*(1+ACS54) -> 0.1003112341 | ACT55: =ACS55*(1+ACT54) -> 0.1040519208 | ACU55: =ACT55*(1+ACU54) -> 0.09300501337 | ACV55: =ACU55*(1+ACV54) -> 0.09411019149 | ACW55: =ACV55*(1+ACW54) -> 0.08466225578 | ACX55: =ACW55*(1+ACX54) -> 0.08583780763 | ACY55: =ACX55*(1+ACY54) -> 0.07479820656 | ACZ55: =ACY55*(1+ACZ54) -> 0.06401742342 | ADA55: =ACZ55*(1+ADA54) -> 0.05380093077 | ADB55: =ADA55*(1+ADB54) -> 0.04787394694 | ADC55: =ADB55*(1+ADC54) -> 0.05487307014 | ADD55: =ADC55*(1+ADD54) -> 0.0528522461 | ADE55: =ADD55*(1+ADE54) -> 0.05891636923 | ADF55: =ADE55*(1+ADF54) -> 0.06055029851 | ADG55: =ADF55*(1+ADG54) -> 0.06448560708 | ADH55: =ADG55*(1+ADH54) -> 0.05634003131 | ADI55: =ADH55*(1+ADI54) -> 0.04911089946 | ADJ55: =ADI55*(1+ADJ54) -> 0.0431059797 | ADK55: =ADJ55*(1+ADK54) -> 0.04273598305 | ADL55: =ADK55*(1+ADL54) -> 0.04415356854 | ADM55: =ADL55*(1+ADM54) -> 0.03713657109 | ADN55: =ADM55*(1+ADN54) -> 0.03477949312 | ADO55: =ADN55*(1+ADO54) -> 0.038813272 | ADP55: =ADO55*(1+ADP54) -> 0.0451407352 | ADQ55: =ADP55*(1+ADQ54) -> 0.0522757896 | ADR55: =ADQ55*(1+ADR54) -> 0.05614134186 | ADS55: =ADR55*(1+ADS54) -> 0.06790608881 | ADT55: =ADS55*(1+ADT54) -> 0.06738210974 | ADU55: =ADT55*(1+ADU54) -> 0.07005295852 | ADV55: =ADU55*(1+ADV54) -> 0.06795174989 | ADW55: =ADV55*(1+ADW54) -> 0.07201201903 | ADX55: =ADW55*(1+ADX54) -> 0.06474659062 | ADY55: =ADX55*(1+ADY54) -> 0.05694818563 | ADZ55: =ADY55*(1+ADZ54) -> 0.05777878599 | AEA55: =ADZ55*(1+AEA54) -> 0.05628965521 | AEB55: =AEA55*(1+AEB54) -> 0.06071840511 | AEC55: =AEB55*(1+AEC54) -> 0.07221590748 | AED55: =AEC55*(1+AED54) -> 0.07735763757 | AEE55: =AED55*(1+AEE54) -> 0.07835109803 | AEF55: =AEE55*(1+AEF54) -> 0.08207253161 | AEG55: =AEF55*(1+AEG54) -> 0.08427677531 | AEH55: =AEG55*(1+AEH54) -> 0.08359330453 | AEI55: =AEH55*(1+AEI54) -> 0.08318909769 | AEJ55: =AEI55*(1+AEJ54) -> 0.09980055012 | AEK55: =AEJ55*(1+AEK54) -> 0.09876850741 | AEL55: =AEK55*(1+AEL54) -> 0.1060602013 | AEM55: =AEL55*(1+AEM54) -> 0.08552452624 | AEN55: =AEM55*(1+AEN54) -> 0.07836710217 | AEO55: =AEN55*(1+AEO54) -> 0.07715377395 | AEP55: =AEO55*(1+AEP54) -> 0.0756652852 | AEQ55: =AEP55*(1+AEQ54) -> 0.07442927319 | AER55: =AEQ55*(1+AER54) -> 0.07297677445 | AES55: =AER55*(1+AES54) -> 0.07272917336 | AET55: =AES55*(1+AET54) -> 0.06058001582 | AEU55: =AET55*(1+AEU54) -> 0.0656763743 | AEV55: =AEU55*(1+AEV54) -> 0.06833031914 | AEW55: =AEV55*(1+AEW54) -> 0.07242114037 | AEX55: =AEW55*(1+AEX54) -> 0.07557957143 | AEY55: =AEX55*(1+AEY54) -> 0.07660704333 | AEZ55: =AEY55*(1+AEZ54) -> 0.08071898162 | AFA55: =AEZ55*(1+AFA54) -> 0.08528253665 | AFB55: =AFA55*(1+AFB54) -> 0.09369105534 | AFC55: =AFB55*(1+AFC54) -> 0.09234330814 | AFD55: =AFC55*(1+AFD54) -> 0.07703808995 | AFE55: =AFD55*(1+AFE54) -> 0.07228296832 | AFF55: =AFE55*(1+AFF54) -> 0.07474437658 | AFG55: =AFF55*(1+AFG54) -> 0.07138173002 | AFH55: =AFG55*(1+AFH54) -> 0.07983469805 | AFI55: =AFH55*(1+AFI54) -> 0.05299730202 | AFJ55: =AFI55*(1+AFJ54) -> 0.04945621262 | AFK55: =AFJ55*(1+AFK54) -> 0.05456057225 | AFL55: =AFK55*(1+AFL54) -> 0.05383637573 | AFM55: =AFL55*(1+AFM54) -> 0.05270795758 | AFN55: =AFM55*(1+AFN54) -> 0.05885564837 | AFO55: =AFN55*(1+AFO54) -> 0.06449854511 | AFP55: =AFO55*(1+AFP54) -> 0.08772495382 | AFQ55: =AFP55*(1+AFQ54) -> 0.08792574633 | AFR55: =AFQ55*(1+AFR54) -> 0.09076391771 | AFS55: =AFR55*(1+AFS54) -> 0.101492318 | AFT55: =AFS55*(1+AFT54) -> 0.1044720637 | AFU55: =AFT55*(1+AFU54) -> 0.09768885874 | AFV55: =AFU55*(1+AFV54) -> 0.09184459783 | AFW55: =AFV55*(1+AFW54) -> 0.0892392606 | AFX55: =AFW55*(1+AFX54) -> 0.08951858328 | AFY55: =AFX55*(1+AFY54) -> 0.09532479971 | AFZ55: =AFY55*(1+AFZ54) -> 0.09310852026 | AGA55: =AFZ55*(1+AGA54) -> 0.09914033076 | AGB55: =AGA55*(1+AGB54) -> 0.1245147495 | AGC55: =AGB55*(1+AGC54) -> 0.1302219759 | AGD55: =AGC55*(1+AGD54) -> 0.1140935096 | AGE55: =AGD55*(1+AGE54) -> 0.1039458664 | AGF55: =AGE55*(1+AGF54) -> 0.1173484683 | AGG55: =AGF55*(1+AGG54) -> 0.1089364646 | AGH55: =AGG55*(1+AGH54) -> 0.1024034245 | AGI55: =AGH55*(1+AGI54) -> 0.1098017749 | AGJ55: =AGI55*(1+AGJ54) -> 0.1000709479 | AGK55: =AGJ55*(1+AGK54) -> 0.10585242 | AGL55: =AGK55*(1+AGL54) -> 0.1223280425 | AGM55: =AGL55*(1+AGM54) -> 0.129163609 | AGN55: =AGM55*(1+AGN54) -> 0.1450743611 | AGO55: =AGN55*(1+AGO54) -> 0.1497900853 | AGP55: =AGO55*(1+AGP54) -> 0.1443549036 | AGQ55: =AGP55*(1+AGQ54) -> 0.1484924531 | AGR55: =AGQ55*(1+AGR54) -> 0.1553016842 | AGS55: =AGR55*(1+AGS54) -> 0.1506217824 | AGT55: =AGS55*(1+AGT54) -> 0.1238714175 | AGU55: =AGT55*(1+AGU54) -> 0.1339878947 | AGV55: =AGU55*(1+AGV54) -> 0.1170377898 | AGW55: =AGV55*(1+AGW54) -> 0.1133368747 | AGX55: =AGW55*(1+AGX54) -> 0.1120166103 | AGY55: =AGX55*(1+AGY54) -> 0.1219399896 | AGZ55: =AGY55*(1+AGZ54) -> 0.1224489722 | AHA55: =AGZ55*(1+AHA54) -> 0.1463836487 | AHB55: =AHA55*(1+AHB54) -> 0.1552002354 | AHC55: =AHB55*(1+AHC54) -> 0.1601054895 | AHD55: =AHC55*(1+AHD54) -> 0.1604745063 | AHE55: =AHD55*(1+AHE54) -> 0.1637381746 | AHF55: =AHE55*(1+AHF54) -> 0.1812747714 | AHG55: =AHF55*(1+AHG54) -> 0.1519484001 | AHH55: =AHG55*(1+AHH54) -> 0.1233726678 | AHI55: =AHH55*(1+AHI54) -> 0.1134133713 | AHJ55: =AHI55*(1+AHJ54) -> 0.1155765909 | AHK55: =AHJ55*(1+AHK54) -> 0.1156195543 | AHL55: =AHK55*(1+AHL54) -> 0.1214295027 | AHM55: =AHL55*(1+AHM54) -> 0.114557367 | AHN55: =AHM55*(1+AHN54) -> 0.1024343481 | AHO55: =AHN55*(1+AHO54) -> 0.1140063376 | AHP55: =AHO55*(1+AHP54) -> 0.1220865285 | AHQ55: =AHP55*(1+AHQ54) -> 0.1242944306 | AHR55: =AHQ55*(1+AHR54) -> 0.1506600457 | AHS55: =AHR55*(1+AHS54) -> 0.1406659971 | AHT55: =AHS55*(1+AHT54) -> 0.1430916237 | AHU55: =AHT55*(1+AHU54) -> 0.1711885715 | AHV55: =AHU55*(1+AHV54) -> 0.1576096834 | AHW55: =AHV55*(1+AHW54) -> 0.1476451934 | AHX55: =AHW55*(1+AHX54) -> 0.1325394323 | AHY55: =AHX55*(1+AHY54) -> 0.1362865996 | AHZ55: =AHY55*(1+AHZ54) -> 0.1360972695 | AIA55: =AHZ55*(1+AIA54) -> 0.1333500982 | AIB55: =AIA55*(1+AIB54) -> 0.1152542536 | AIC55: =AIB55*(1+AIC54) -> 0.1310039716 | AID55: =AIC55*(1+AID54) -> 0.1238501728 | AIE55: =AID55*(1+AIE54) -> 0.1089921459 | AIF55: =AIE55*(1+AIF54) -> 0.09231754562 | AIG55: =AIF55*(1+AIG54) -> 0.1014463568 | AIH55: =AIG55*(1+AIH54) -> 0.1032183534 | AII55: =AIH55*(1+AII54) -> 0.09523614418 | AIJ55: =AII55*(1+AIJ54) -> 0.0864366208 | AIK55: =AIJ55*(1+AIK54) -> 0.07932577265 | AIL55: =AIK55*(1+AIL54) -> 0.0744368964 | AIM55: =AIL55*(1+AIM54) -> 0.0614426516 | AIN55: =AIM55*(1+AIN54) -> 0.06095569428 | AIO55: =AIN55*(1+AIO54) -> 0.05576951718 | AIP55: =AIO55*(1+AIP54) -> 0.06515433939 | AIQ55: =AIP55*(1+AIQ54) -> 0.06159049098 | AIR55: =AIQ55*(1+AIR54) -> 0.05854019209 | AIS55: =AIR55*(1+AIS54) -> 0.06247594056 | AIT55: =AIS55*(1+AIT54) -> 0.06467980628 | AIU55: =AIT55*(1+AIU54) -> 0.06443190806 | AIV55: =AIU55*(1+AIV54) -> 0.06210260886 | AIW55: =AIV55*(1+AIW54) -> 0.05578436309 | AIX55: =AIW55*(1+AIX54) -> 0.05094343584 | AIY55: =AIX55*(1+AIY54) -> 0.05307084006 | AIZ55: =AIY55*(1+AIZ54) -> 0.05651418004 | AJA55: =AIZ55*(1+AJA54) -> 0.04557283282 | AJB55: =AJA55*(1+AJB54) -> 0.04840049509 | AJC55: =AJB55*(1+AJC54) -> 0.04500439088 | AJD55: =AJC55*(1+AJD54) -> 0.04987025938 | AJE55: =AJD55*(1+AJE54) -> 0.04837594971 | AJF55: =AJE55*(1+AJF54) -> 0.04310321106 | AJG55: =AJF55*(1+AJG54) -> 0.04454772776 | AJH55: =AJG55*(1+AJH54) -> 0.04842776713 | AJI55: =AJH55*(1+AJI54) -> 0.04693044574 | AJJ55: =AJI55*(1+AJJ54) -> 0.04675772796 | AJK55: =AJJ55*(1+AJK54) -> 0.0513483965 | AJL55: =AJK55*(1+AJL54) -> 0.04856022895 | AJM55: =AJL55*(1+AJM54) -> 0.0459432303 | AJN55: =AJM55*(1+AJN54) -> 0.05271550502 | AJO55: =AJN55*(1+AJO54) -> 0.05248765232 | AJP55: =AJO55*(1+AJP54) -> 0.05847770133 | AJQ55: =AJP55*(1+AJQ54) -> 0.05997264317 | AJR55: =AJQ55*(1+AJR54) -> 0.05675834486 | AJS55: =AJR55*(1+AJS54) -> 0.05357186085 | AJT55: =AJS55*(1+AJT54) -> 0.04925284734 | AJU55: =AJT55*(1+AJU54) -> 0.04994209273 | AJV55: =AJU55*(1+AJV54) -> 0.05856164741 | AJW55: =AJV55*(1+AJW54) -> 0.05521645981 | AJX55: =AJW55*(1+AJX54) -> 0.05876199249 | AJY55: =AJX55*(1+AJY54) -> 0.05552798974 | AJZ55: =AJY55*(1+AJZ54) -> 0.05854477724 | AKA55: =AJZ55*(1+AKA54) -> 0.05076778103 | AKB55: =AKA55*(1+AKB54) -> 0.04790820099 | AKC55: =AKB55*(1+AKC54) -> 0.04641672468 | AKD55: =AKC55*(1+AKD54) -> 0.04681769988 | AKE55: =AKD55*(1+AKE54) -> 0.04769503802 | AKF55: =AKE55*(1+AKF54) -> 0.04482593081 | AKG55: =AKF55*(1+AKG54) -> 0.04753158251 | AKH55: =AKG55*(1+AKH54) -> 0.04716050999
B57: Expansion Rules
B58: 1) Analytic Solution Decision Rule
A59: YesNo Analytic1 | C59: Build Stage 1 | E59: =MAX(K59:AKH59) -> 1 | F59: =IFERROR(INDEX($J$51:$AKH$51,MATCH(1,J59:AKH59,0)),0) -> 2 | G59: Analytic Stage 1 Exercise | J59: =IF(I59=1,1,IF(J$55>$I$39,1,0)) -> 0 | K59: 0 | L59: =IF(K59=1,1,IF(L$55>$I$39,1,0)) -> 1 | M59: 1 | N59: 1 | O59: 1 | P59: 1 | Q59: 1 | R59: 1 | S59: 1 | T59: 1 | U59: 1 | V59: 1 | W59: 1 | X59: 1 | Y59: 1 | Z59: 1 | AA59: 1 | AB59: 1 | AC59: 1 | AD59: 1 | AE59: 1 | AF59: 1 | AG59: 1 | AH59: 1 | AI59: 1 | AJ59: 1 | AK59: 1 | AL59: 1 | AM59: 1 | AN59: 1 | AO59: 1 | AP59: 1 | AQ59: 1 | AR59: 1 | AS59: 1 | AT59: 1 | AU59: 1 | AV59: 1 | AW59: 1 | AX59: 1 | AY59: 1 | AZ59: 1 | BA59: 1 | BB59: 1 | BC59: 1 | BD59: 1 | BE59: 1 | BF59: 1 | BG59: 1 | BH59: 1 | BI59: 1 | BJ59: 1 | BK59: 1 | BL59: 1 | BM59: 1 | BN59: 1 | BO59: 1 | BP59: 1 | BQ59: 1 | BR59: 1 | BS59: 1 | BT59: 1 | BU59: 1 | BV59: 1 | BW59: =IF(BV59=1,1,IF(BW$55>$I$39,1,0)) -> 1 | BX59: 1 | BY59: 1 | BZ59: 1 | CA59: 1 | CB59: 1 | CC59: 1 | CD59: 1 | CE59: 1 | CF59: 1 | CG59: 1 | CH59: 1 | CI59: 1 | CJ59: 1 | CK59: 1 | CL59: 1 | CM59: 1 | CN59: 1 | CO59: 1 | CP59: 1 | CQ59: 1 | CR59: 1 | CS59: 1 | CT59: 1 | CU59: 1 | CV59: 1 | CW59: 1 | CX59: 1 | CY59: 1 | CZ59: 1 | DA59: 1 | DB59: 1 | DC59: 1 | DD59: 1 | DE59: 1 | DF59: 1 | DG59: 1 | DH59: 1 | DI59: 1 | DJ59: 1 | DK59: 1 | DL59: 1 | DM59: 1 | DN59: 1 | DO59: 1 | DP59: 1 | DQ59: 1 | DR59: 1 | DS59: 1 | DT59: 1 | DU59: 1 | DV59: 1 | DW59: 1 | DX59: 1 | DY59: 1 | DZ59: 1 | EA59: 1 | EB59: 1 | EC59: 1 | ED59: 1 | EE59: 1 | EF59: 1 | EG59: 1 | EH59: 1 | EI59: =IF(EH59=1,1,IF(EI$55>$I$39,1,0)) -> 1 | EJ59: 1 | EK59: 1 | EL59: 1 | EM59: 1 | EN59: 1 | EO59: 1 | EP59: 1 | EQ59: 1 | ER59: 1 | ES59: 1 | ET59: 1 | EU59: 1 | EV59: 1 | EW59: 1 | EX59: 1 | EY59: 1 | EZ59: 1 | FA59: 1 | FB59: 1 | FC59: 1 | FD59: 1 | FE59: 1 | FF59: 1 | FG59: 1 | FH59: 1 | FI59: 1 | FJ59: 1 | FK59: 1 | FL59: 1 | FM59: 1 | FN59: 1 | FO59: 1 | FP59: 1 | FQ59: 1 | FR59: 1 | FS59: 1 | FT59: 1 | FU59: 1 | FV59: 1 | FW59: 1 | FX59: 1 | FY59: 1 | FZ59: 1 | GA59: 1 | GB59: 1 | GC59: 1 | GD59: 1 | GE59: 1 | GF59: 1 | GG59: 1 | GH59: 1 | GI59: 1 | GJ59: 1 | GK59: 1 | GL59: 1 | GM59: 1 | GN59: 1 | GO59: 1 | GP59: 1 | GQ59: 1 | GR59: 1 | GS59: 1 | GT59: 1 | GU59: =IF(GT59=1,1,IF(GU$55>$I$39,1,0)) -> 1 | GV59: 1 | GW59: 1 | GX59: 1 | GY59: 1 | GZ59: 1 | HA59: 1 | HB59: 1 | HC59: 1 | HD59: 1 | HE59: 1 | HF59: 1 | HG59: 1 | HH59: 1 | HI59: 1 | HJ59: 1 | HK59: 1 | HL59: 1 | HM59: 1 | HN59: 1 | HO59: 1 | HP59: 1 | HQ59: 1 | HR59: 1 | HS59: 1 | HT59: 1 | HU59: 1 | HV59: 1 | HW59: 1 | HX59: 1 | HY59: 1 | HZ59: 1 | IA59: 1 | IB59: 1 | IC59: 1 | ID59: 1 | IE59: 1 | IF59: 1 | IG59: 1 | IH59: 1 | II59: 1 | IJ59: 1 | IK59: 1 | IL59: 1 | IM59: 1 | IN59: 1 | IO59: 1 | IP59: 1 | IQ59: 1 | IR59: 1 | IS59: 1 | IT59: 1 | IU59: 1 | IV59: 1 | IW59: 1 | IX59: 1 | IY59: 1 | IZ59: 1 | JA59: 1 | JB59: 1 | JC59: 1 | JD59: 1 | JE59: 1 | JF59: 1 | JG59: =IF(JF59=1,1,IF(JG$55>$I$39,1,0)) -> 1 | JH59: 1 | JI59: 1 | JJ59: 1 | JK59: 1 | JL59: 1 | JM59: 1 | JN59: 1 | JO59: 1 | JP59: 1 | JQ59: 1 | JR59: 1 | JS59: 1 | JT59: 1 | JU59: 1 | JV59: 1 | JW59: 1 | JX59: 1 | JY59: 1 | JZ59: 1 | KA59: 1 | KB59: 1 | KC59: 1 | KD59: 1 | KE59: 1 | KF59: 1 | KG59: 1 | KH59: 1 | KI59: 1 | KJ59: 1 | KK59: 1 | KL59: 1 | KM59: 1 | KN59: 1 | KO59: 1 | KP59: 1 | KQ59: 1 | KR59: 1 | KS59: 1 | KT59: 1 | KU59: 1 | KV59: 1 | KW59: 1 | KX59: 1 | KY59: 1 | KZ59: 1 | LA59: 1 | LB59: 1 | LC59: 1 | LD59: 1 | LE59: 1 | LF59: 1 | LG59: 1 | LH59: 1 | LI59: 1 | LJ59: 1 | LK59: 1 | LL59: 1 | LM59: 1 | LN59: 1 | LO59: 1 | LP59: 1 | LQ59: 1 | LR59: 1 | LS59: =IF(LR59=1,1,IF(LS$55>$I$39,1,0)) -> 1 | LT59: 1 | LU59: 1 | LV59: 1 | LW59: 1 | LX59: 1 | LY59: 1 | LZ59: 1 | MA59: 1 | MB59: 1 | MC59: 1 | MD59: 1 | ME59: 1 | MF59: 1 | MG59: 1 | MH59: 1 | MI59: 1 | MJ59: 1 | MK59: 1 | ML59: 1 | MM59: 1 | MN59: 1 | MO59: 1 | MP59: 1 | MQ59: 1 | MR59: 1 | MS59: 1 | MT59: 1 | MU59: 1 | MV59: 1 | MW59: 1 | MX59: 1 | MY59: 1 | MZ59: 1 | NA59: 1 | NB59: 1 | NC59: 1 | ND59: 1 | NE59: 1 | NF59: 1 | NG59: 1 | NH59: 1 | NI59: 1 | NJ59: 1 | NK59: 1 | NL59: 1 | NM59: 1 | NN59: 1 | NO59: 1 | NP59: 1 | NQ59: 1 | NR59: 1 | NS59: 1 | NT59: 1 | NU59: 1 | NV59: 1 | NW59: 1 | NX59: 1 | NY59: 1 | NZ59: 1 | OA59: 1 | OB59: 1 | OC59: 1 | OD59: 1 | OE59: =IF(OD59=1,1,IF(OE$55>$I$39,1,0)) -> 1 | OF59: 1 | OG59: 1 | OH59: 1 | OI59: 1 | OJ59: 1 | OK59: 1 | OL59: 1 | OM59: 1 | ON59: 1 | OO59: 1 | OP59: 1 | OQ59: 1 | OR59: 1 | OS59: 1 | OT59: 1 | OU59: 1 | OV59: 1 | OW59: 1 | OX59: 1 | OY59: 1 | OZ59: 1 | PA59: 1 | PB59: 1 | PC59: 1 | PD59: 1 | PE59: 1 | PF59: 1 | PG59: 1 | PH59: 1 | PI59: 1 | PJ59: 1 | PK59: 1 | PL59: 1 | PM59: 1 | PN59: 1 | PO59: 1 | PP59: 1 | PQ59: 1 | PR59: 1 | PS59: 1 | PT59: 1 | PU59: 1 | PV59: 1 | PW59: 1 | PX59: 1 | PY59: 1 | PZ59: 1 | QA59: 1 | QB59: 1 | QC59: 1 | QD59: 1 | QE59: 1 | QF59: 1 | QG59: 1 | QH59: 1 | QI59: 1 | QJ59: 1 | QK59: 1 | QL59: 1 | QM59: 1 | QN59: 1 | QO59: 1 | QP59: 1 | QQ59: =IF(QP59=1,1,IF(QQ$55>$I$39,1,0)) -> 1 | QR59: 1 | QS59: 1 | QT59: 1 | QU59: 1 | QV59: 1 | QW59: 1 | QX59: 1 | QY59: 1 | QZ59: 1 | RA59: 1 | RB59: 1 | RC59: 1 | RD59: 1 | RE59: 1 | RF59: 1 | RG59: 1 | RH59: 1 | RI59: 1 | RJ59: 1 | RK59: 1 | RL59: 1 | RM59: 1 | RN59: 1 | RO59: 1 | RP59: 1 | RQ59: 1 | RR59: 1 | RS59: 1 | RT59: 1 | RU59: 1 | RV59: 1 | RW59: 1 | RX59: 1 | RY59: 1 | RZ59: 1 | SA59: 1 | SB59: 1 | SC59: 1 | SD59: 1 | SE59: 1 | SF59: 1 | SG59: 1 | SH59: 1 | SI59: 1 | SJ59: 1 | SK59: 1 | SL59: 1 | SM59: 1 | SN59: 1 | SO59: 1 | SP59: 1 | SQ59: 1 | SR59: 1 | SS59: 1 | ST59: 1 | SU59: 1 | SV59: 1 | SW59: 1 | SX59: 1 | SY59: 1 | SZ59: 1 | TA59: 1 | TB59: 1 | TC59: =IF(TB59=1,1,IF(TC$55>$I$39,1,0)) -> 1 | TD59: 1 | TE59: 1 | TF59: 1 | TG59: 1 | TH59: 1 | TI59: 1 | TJ59: 1 | TK59: 1 | TL59: 1 | TM59: 1 | TN59: 1 | TO59: 1 | TP59: 1 | TQ59: 1 | TR59: 1 | TS59: 1 | TT59: 1 | TU59: 1 | TV59: 1 | TW59: 1 | TX59: 1 | TY59: 1 | TZ59: 1 | UA59: 1 | UB59: 1 | UC59: 1 | UD59: 1 | UE59: 1 | UF59: 1 | UG59: 1 | UH59: 1 | UI59: 1 | UJ59: 1 | UK59: 1 | UL59: 1 | UM59: 1 | UN59: 1 | UO59: 1 | UP59: 1 | UQ59: 1 | UR59: 1 | US59: 1 | UT59: 1 | UU59: 1 | UV59: 1 | UW59: 1 | UX59: 1 | UY59: 1 | UZ59: 1 | VA59: 1 | VB59: 1 | VC59: 1 | VD59: 1 | VE59: 1 | VF59: 1 | VG59: 1 | VH59: 1 | VI59: 1 | VJ59: 1 | VK59: 1 | VL59: 1 | VM59: 1 | VN59: 1 | VO59: =IF(VN59=1,1,IF(VO$55>$I$39,1,0)) -> 1 | VP59: 1 | VQ59: 1 | VR59: 1 | VS59: 1 | VT59: 1 | VU59: 1 | VV59: 1 | VW59: 1 | VX59: 1 | VY59: 1 | VZ59: 1 | WA59: 1 | WB59: 1 | WC59: 1 | WD59: 1 | WE59: 1 | WF59: 1 | WG59: 1 | WH59: 1 | WI59: 1 | WJ59: 1 | WK59: 1 | WL59: 1 | WM59: 1 | WN59: 1 | WO59: 1 | WP59: 1 | WQ59: 1 | WR59: 1 | WS59: 1 | WT59: 1 | WU59: 1 | WV59: 1 | WW59: 1 | WX59: 1 | WY59: 1 | WZ59: 1 | XA59: 1 | XB59: 1 | XC59: 1 | XD59: 1 | XE59: 1 | XF59: 1 | XG59: 1 | XH59: 1 | XI59: 1 | XJ59: 1 | XK59: 1 | XL59: 1 | XM59: 1 | XN59: 1 | XO59: 1 | XP59: 1 | XQ59: 1 | XR59: 1 | XS59: 1 | XT59: 1 | XU59: 1 | XV59: 1 | XW59: 1 | XX59: 1 | XY59: 1 | XZ59: 1 | YA59: =IF(XZ59=1,1,IF(YA$55>$I$39,1,0)) -> 1 | YB59: 1 | YC59: 1 | YD59: 1 | YE59: 1 | YF59: 1 | YG59: 1 | YH59: 1 | YI59: 1 | YJ59: 1 | YK59: 1 | YL59: 1 | YM59: 1 | YN59: 1 | YO59: 1 | YP59: 1 | YQ59: 1 | YR59: 1 | YS59: 1 | YT59: 1 | YU59: 1 | YV59: 1 | YW59: 1 | YX59: 1 | YY59: 1 | YZ59: 1 | ZA59: 1 | ZB59: 1 | ZC59: 1 | ZD59: 1 | ZE59: 1 | ZF59: 1 | ZG59: 1 | ZH59: 1 | ZI59: 1 | ZJ59: 1 | ZK59: 1 | ZL59: 1 | ZM59: 1 | ZN59: 1 | ZO59: 1 | ZP59: 1 | ZQ59: 1 | ZR59: 1 | ZS59: 1 | ZT59: 1 | ZU59: 1 | ZV59: 1 | ZW59: 1 | ZX59: 1 | ZY59: 1 | ZZ59: 1 | AAA59: 1 | AAB59: 1 | AAC59: 1 | AAD59: 1 | AAE59: 1 | AAF59: 1 | AAG59: 1 | AAH59: 1 | AAI59: 1 | AAJ59: 1 | AAK59: 1 | AAL59: 1 | AAM59: =IF(AAL59=1,1,IF(AAM$55>$I$39,1,0)) -> 1 | AAN59: 1 | AAO59: 1 | AAP59: 1 | AAQ59: 1 | AAR59: 1 | AAS59: 1 | AAT59: 1 | AAU59: 1 | AAV59: 1 | AAW59: 1 | AAX59: 1 | AAY59: 1 | AAZ59: 1 | ABA59: 1 | ABB59: 1 | ABC59: 1 | ABD59: 1 | ABE59: 1 | ABF59: 1 | ABG59: 1 | ABH59: 1 | ABI59: 1 | ABJ59: 1 | ABK59: 1 | ABL59: 1 | ABM59: 1 | ABN59: 1 | ABO59: 1 | ABP59: 1 | ABQ59: 1 | ABR59: 1 | ABS59: 1 | ABT59: 1 | ABU59: 1 | ABV59: 1 | ABW59: 1 | ABX59: 1 | ABY59: 1 | ABZ59: 1 | ACA59: 1 | ACB59: 1 | ACC59: 1 | ACD59: 1 | ACE59: 1 | ACF59: 1 | ACG59: 1 | ACH59: 1 | ACI59: 1 | ACJ59: 1 | ACK59: 1 | ACL59: 1 | ACM59: 1 | ACN59: 1 | ACO59: 1 | ACP59: 1 | ACQ59: 1 | ACR59: 1 | ACS59: 1 | ACT59: 1 | ACU59: 1 | ACV59: 1 | ACW59: 1 | ACX59: 1 | ACY59: =IF(ACX59=1,1,IF(ACY$55>$I$39,1,0)) -> 1 | ACZ59: 1 | ADA59: 1 | ADB59: 1 | ADC59: 1 | ADD59: 1 | ADE59: 1 | ADF59: 1 | ADG59: 1 | ADH59: 1 | ADI59: 1 | ADJ59: 1 | ADK59: 1 | ADL59: 1 | ADM59: 1 | ADN59: 1 | ADO59: 1 | ADP59: 1 | ADQ59: 1 | ADR59: 1 | ADS59: 1 | ADT59: 1 | ADU59: 1 | ADV59: 1 | ADW59: 1 | ADX59: 1 | ADY59: 1 | ADZ59: 1 | AEA59: 1 | AEB59: 1 | AEC59: 1 | AED59: 1 | AEE59: 1 | AEF59: 1 | AEG59: 1 | AEH59: 1 | AEI59: 1 | AEJ59: 1 | AEK59: 1 | AEL59: 1 | AEM59: 1 | AEN59: 1 | AEO59: 1 | AEP59: 1 | AEQ59: 1 | AER59: 1 | AES59: 1 | AET59: 1 | AEU59: 1 | AEV59: 1 | AEW59: 1 | AEX59: 1 | AEY59: 1 | AEZ59: 1 | AFA59: 1 | AFB59: 1 | AFC59: 1 | AFD59: 1 | AFE59: 1 | AFF59: 1 | AFG59: 1 | AFH59: 1 | AFI59: 1 | AFJ59: 1 | AFK59: =IF(AFJ59=1,1,IF(AFK$55>$I$39,1,0)) -> 1 | AFL59: 1 | AFM59: 1 | AFN59: 1 | AFO59: 1 | AFP59: 1 | AFQ59: 1 | AFR59: 1 | AFS59: 1 | AFT59: 1 | AFU59: 1 | AFV59: 1 | AFW59: 1 | AFX59: 1 | AFY59: 1 | AFZ59: 1 | AGA59: 1 | AGB59: 1 | AGC59: 1 | AGD59: 1 | AGE59: 1 | AGF59: 1 | AGG59: 1 | AGH59: 1 | AGI59: 1 | AGJ59: 1 | AGK59: 1 | AGL59: 1 | AGM59: 1 | AGN59: 1 | AGO59: 1 | AGP59: 1 | AGQ59: 1 | AGR59: 1 | AGS59: 1 | AGT59: 1 | AGU59: 1 | AGV59: 1 | AGW59: 1 | AGX59: 1 | AGY59: 1 | AGZ59: 1 | AHA59: 1 | AHB59: 1 | AHC59: 1 | AHD59: 1 | AHE59: 1 | AHF59: 1 | AHG59: 1 | AHH59: 1 | AHI59: 1 | AHJ59: 1 | AHK59: 1 | AHL59: 1 | AHM59: 1 | AHN59: 1 | AHO59: 1 | AHP59: 1 | AHQ59: 1 | AHR59: 1 | AHS59: 1 | AHT59: 1 | AHU59: 1 | AHV59: 1 | AHW59: =IF(AHV59=1,1,IF(AHW$55>$I$39,1,0)) -> 1 | AHX59: 1 | AHY59: 1 | AHZ59: 1 | AIA59: 1 | AIB59: 1 | AIC59: 1 | AID59: 1 | AIE59: 1 | AIF59: 1 | AIG59: 1 | AIH59: 1 | AII59: 1 | AIJ59: 1 | AIK59: 1 | AIL59: 1 | AIM59: 1 | AIN59: 1 | AIO59: 1 | AIP59: 1 | AIQ59: 1 | AIR59: 1 | AIS59: 1 | AIT59: 1 | AIU59: 1 | AIV59: 1 | AIW59: 1 | AIX59: 1 | AIY59: 1 | AIZ59: 1 | AJA59: 1 | AJB59: 1 | AJC59: 1 | AJD59: 1 | AJE59: 1 | AJF59: 1 | AJG59: 1 | AJH59: 1 | AJI59: 1 | AJJ59: 1 | AJK59: 1 | AJL59: 1 | AJM59: 1 | AJN59: 1 | AJO59: 1 | AJP59: 1 | AJQ59: 1 | AJR59: 1 | AJS59: 1 | AJT59: 1 | AJU59: 1 | AJV59: 1 | AJW59: 1 | AJX59: 1 | AJY59: 1 | AJZ59: 1 | AKA59: 1 | AKB59: 1 | AKC59: 1 | AKD59: 1 | AKE59: 1 | AKF59: 1 | AKG59: 1 | AKH59: 1
A60: YesNo Analytic2 | C60: Build Stage 2 | E60: =MAX(K60:AKH60) -> 1 | F60: =IFERROR(INDEX($J$51:$AKH$51,MATCH(1,J60:AKH60,0)),0) -> 11 | G60: Analytic Stage 2 Exercise | J60: =IF(I60=1,1*(J59=1),IF(J$55>$I$36,1*(J59=1),0)) -> 0 | K60: 0 | L60: =IF(K60=1,1*(L59=1),IF(L$55>$I$36,1*(L59=1),0)) -> 0 | M60: 0 | N60: 0 | O60: 0 | P60: 0 | Q60: 0 | R60: 0 | S60: 0 | T60: 0 | U60: 1 | V60: 1 | W60: 1 | X60: 1 | Y60: 1 | Z60: 1 | AA60: 1 | AB60: 1 | AC60: 1 | AD60: 1 | AE60: 1 | AF60: 1 | AG60: 1 | AH60: 1 | AI60: 1 | AJ60: 1 | AK60: 1 | AL60: 1 | AM60: 1 | AN60: 1 | AO60: 1 | AP60: 1 | AQ60: 1 | AR60: 1 | AS60: 1 | AT60: 1 | AU60: 1 | AV60: 1 | AW60: 1 | AX60: 1 | AY60: 1 | AZ60: 1 | BA60: 1 | BB60: 1 | BC60: 1 | BD60: 1 | BE60: 1 | BF60: 1 | BG60: 1 | BH60: 1 | BI60: 1 | BJ60: 1 | BK60: 1 | BL60: 1 | BM60: 1 | BN60: 1 | BO60: 1 | BP60: 1 | BQ60: 1 | BR60: 1 | BS60: 1 | BT60: 1 | BU60: 1 | BV60: 1 | BW60: =IF(BV60=1,1*(BW59=1),IF(BW$55>$I$36,1*(BW59=1),0)) -> 1 | BX60: 1 | BY60: 1 | BZ60: 1 | CA60: 1 | CB60: 1 | CC60: 1 | CD60: 1 | CE60: 1 | CF60: 1 | CG60: 1 | CH60: 1 | CI60: 1 | CJ60: 1 | CK60: 1 | CL60: 1 | CM60: 1 | CN60: 1 | CO60: 1 | CP60: 1 | CQ60: 1 | CR60: 1 | CS60: 1 | CT60: 1 | CU60: 1 | CV60: 1 | CW60: 1 | CX60: 1 | CY60: 1 | CZ60: 1 | DA60: 1 | DB60: 1 | DC60: 1 | DD60: 1 | DE60: 1 | DF60: 1 | DG60: 1 | DH60: 1 | DI60: 1 | DJ60: 1 | DK60: 1 | DL60: 1 | DM60: 1 | DN60: 1 | DO60: 1 | DP60: 1 | DQ60: 1 | DR60: 1 | DS60: 1 | DT60: 1 | DU60: 1 | DV60: 1 | DW60: 1 | DX60: 1 | DY60: 1 | DZ60: 1 | EA60: 1 | EB60: 1 | EC60: 1 | ED60: 1 | EE60: 1 | EF60: 1 | EG60: 1 | EH60: 1 | EI60: =IF(EH60=1,1*(EI59=1),IF(EI$55>$I$36,1*(EI59=1),0)) -> 1 | EJ60: 1 | EK60: 1 | EL60: 1 | EM60: 1 | EN60: 1 | EO60: 1 | EP60: 1 | EQ60: 1 | ER60: 1 | ES60: 1 | ET60: 1 | EU60: 1 | EV60: 1 | EW60: 1 | EX60: 1 | EY60: 1 | EZ60: 1 | FA60: 1 | FB60: 1 | FC60: 1 | FD60: 1 | FE60: 1 | FF60: 1 | FG60: 1 | FH60: 1 | FI60: 1 | FJ60: 1 | FK60: 1 | FL60: 1 | FM60: 1 | FN60: 1 | FO60: 1 | FP60: 1 | FQ60: 1 | FR60: 1 | FS60: 1 | FT60: 1 | FU60: 1 | FV60: 1 | FW60: 1 | FX60: 1 | FY60: 1 | FZ60: 1 | GA60: 1 | GB60: 1 | GC60: 1 | GD60: 1 | GE60: 1 | GF60: 1 | GG60: 1 | GH60: 1 | GI60: 1 | GJ60: 1 | GK60: 1 | GL60: 1 | GM60: 1 | GN60: 1 | GO60: 1 | GP60: 1 | GQ60: 1 | GR60: 1 | GS60: 1 | GT60: 1 | GU60: =IF(GT60=1,1*(GU59=1),IF(GU$55>$I$36,1*(GU59=1),0)) -> 1 | GV60: 1 | GW60: 1 | GX60: 1 | GY60: 1 | GZ60: 1 | HA60: 1 | HB60: 1 | HC60: 1 | HD60: 1 | HE60: 1 | HF60: 1 | HG60: 1 | HH60: 1 | HI60: 1 | HJ60: 1 | HK60: 1 | HL60: 1 | HM60: 1 | HN60: 1 | HO60: 1 | HP60: 1 | HQ60: 1 | HR60: 1 | HS60: 1 | HT60: 1 | HU60: 1 | HV60: 1 | HW60: 1 | HX60: 1 | HY60: 1 | HZ60: 1 | IA60: 1 | IB60: 1 | IC60: 1 | ID60: 1 | IE60: 1 | IF60: 1 | IG60: 1 | IH60: 1 | II60: 1 | IJ60: 1 | IK60: 1 | IL60: 1 | IM60: 1 | IN60: 1 | IO60: 1 | IP60: 1 | IQ60: 1 | IR60: 1 | IS60: 1 | IT60: 1 | IU60: 1 | IV60: 1 | IW60: 1 | IX60: 1 | IY60: 1 | IZ60: 1 | JA60: 1 | JB60: 1 | JC60: 1 | JD60: 1 | JE60: 1 | JF60: 1 | JG60: =IF(JF60=1,1*(JG59=1),IF(JG$55>$I$36,1*(JG59=1),0)) -> 1 | JH60: 1 | JI60: 1 | JJ60: 1 | JK60: 1 | JL60: 1 | JM60: 1 | JN60: 1 | JO60: 1 | JP60: 1 | JQ60: 1 | JR60: 1 | JS60: 1 | JT60: 1 | JU60: 1 | JV60: 1 | JW60: 1 | JX60: 1 | JY60: 1 | JZ60: 1 | KA60: 1 | KB60: 1 | KC60: 1 | KD60: 1 | KE60: 1 | KF60: 1 | KG60: 1 | KH60: 1 | KI60: 1 | KJ60: 1 | KK60: 1 | KL60: 1 | KM60: 1 | KN60: 1 | KO60: 1 | KP60: 1 | KQ60: 1 | KR60: 1 | KS60: 1 | KT60: 1 | KU60: 1 | KV60: 1 | KW60: 1 | KX60: 1 | KY60: 1 | KZ60: 1 | LA60: 1 | LB60: 1 | LC60: 1 | LD60: 1 | LE60: 1 | LF60: 1 | LG60: 1 | LH60: 1 | LI60: 1 | LJ60: 1 | LK60: 1 | LL60: 1 | LM60: 1 | LN60: 1 | LO60: 1 | LP60: 1 | LQ60: 1 | LR60: 1 | LS60: =IF(LR60=1,1*(LS59=1),IF(LS$55>$I$36,1*(LS59=1),0)) -> 1 | LT60: 1 | LU60: 1 | LV60: 1 | LW60: 1 | LX60: 1 | LY60: 1 | LZ60: 1 | MA60: 1 | MB60: 1 | MC60: 1 | MD60: 1 | ME60: 1 | MF60: 1 | MG60: 1 | MH60: 1 | MI60: 1 | MJ60: 1 | MK60: 1 | ML60: 1 | MM60: 1 | MN60: 1 | MO60: 1 | MP60: 1 | MQ60: 1 | MR60: 1 | MS60: 1 | MT60: 1 | MU60: 1 | MV60: 1 | MW60: 1 | MX60: 1 | MY60: 1 | MZ60: 1 | NA60: 1 | NB60: 1 | NC60: 1 | ND60: 1 | NE60: 1 | NF60: 1 | NG60: 1 | NH60: 1 | NI60: 1 | NJ60: 1 | NK60: 1 | NL60: 1 | NM60: 1 | NN60: 1 | NO60: 1 | NP60: 1 | NQ60: 1 | NR60: 1 | NS60: 1 | NT60: 1 | NU60: 1 | NV60: 1 | NW60: 1 | NX60: 1 | NY60: 1 | NZ60: 1 | OA60: 1 | OB60: 1 | OC60: 1 | OD60: 1 | OE60: =IF(OD60=1,1*(OE59=1),IF(OE$55>$I$36,1*(OE59=1),0)) -> 1 | OF60: 1 | OG60: 1 | OH60: 1 | OI60: 1 | OJ60: 1 | OK60: 1 | OL60: 1 | OM60: 1 | ON60: 1 | OO60: 1 | OP60: 1 | OQ60: 1 | OR60: 1 | OS60: 1 | OT60: 1 | OU60: 1 | OV60: 1 | OW60: 1 | OX60: 1 | OY60: 1 | OZ60: 1 | PA60: 1 | PB60: 1 | PC60: 1 | PD60: 1 | PE60: 1 | PF60: 1 | PG60: 1 | PH60: 1 | PI60: 1 | PJ60: 1 | PK60: 1 | PL60: 1 | PM60: 1 | PN60: 1 | PO60: 1 | PP60: 1 | PQ60: 1 | PR60: 1 | PS60: 1 | PT60: 1 | PU60: 1 | PV60: 1 | PW60: 1 | PX60: 1 | PY60: 1 | PZ60: 1 | QA60: 1 | QB60: 1 | QC60: 1 | QD60: 1 | QE60: 1 | QF60: 1 | QG60: 1 | QH60: 1 | QI60: 1 | QJ60: 1 | QK60: 1 | QL60: 1 | QM60: 1 | QN60: 1 | QO60: 1 | QP60: 1 | QQ60: =IF(QP60=1,1*(QQ59=1),IF(QQ$55>$I$36,1*(QQ59=1),0)) -> 1 | QR60: 1 | QS60: 1 | QT60: 1 | QU60: 1 | QV60: 1 | QW60: 1 | QX60: 1 | QY60: 1 | QZ60: 1 | RA60: 1 | RB60: 1 | RC60: 1 | RD60: 1 | RE60: 1 | RF60: 1 | RG60: 1 | RH60: 1 | RI60: 1 | RJ60: 1 | RK60: 1 | RL60: 1 | RM60: 1 | RN60: 1 | RO60: 1 | RP60: 1 | RQ60: 1 | RR60: 1 | RS60: 1 | RT60: 1 | RU60: 1 | RV60: 1 | RW60: 1 | RX60: 1 | RY60: 1 | RZ60: 1 | SA60: 1 | SB60: 1 | SC60: 1 | SD60: 1 | SE60: 1 | SF60: 1 | SG60: 1 | SH60: 1 | SI60: 1 | SJ60: 1 | SK60: 1 | SL60: 1 | SM60: 1 | SN60: 1 | SO60: 1 | SP60: 1 | SQ60: 1 | SR60: 1 | SS60: 1 | ST60: 1 | SU60: 1 | SV60: 1 | SW60: 1 | SX60: 1 | SY60: 1 | SZ60: 1 | TA60: 1 | TB60: 1 | TC60: =IF(TB60=1,1*(TC59=1),IF(TC$55>$I$36,1*(TC59=1),0)) -> 1 | TD60: 1 | TE60: 1 | TF60: 1 | TG60: 1 | TH60: 1 | TI60: 1 | TJ60: 1 | TK60: 1 | TL60: 1 | TM60: 1 | TN60: 1 | TO60: 1 | TP60: 1 | TQ60: 1 | TR60: 1 | TS60: 1 | TT60: 1 | TU60: 1 | TV60: 1 | TW60: 1 | TX60: 1 | TY60: 1 | TZ60: 1 | UA60: 1 | UB60: 1 | UC60: 1 | UD60: 1 | UE60: 1 | UF60: 1 | UG60: 1 | UH60: 1 | UI60: 1 | UJ60: 1 | UK60: 1 | UL60: 1 | UM60: 1 | UN60: 1 | UO60: 1 | UP60: 1 | UQ60: 1 | UR60: 1 | US60: 1 | UT60: 1 | UU60: 1 | UV60: 1 | UW60: 1 | UX60: 1 | UY60: 1 | UZ60: 1 | VA60: 1 | VB60: 1 | VC60: 1 | VD60: 1 | VE60: 1 | VF60: 1 | VG60: 1 | VH60: 1 | VI60: 1 | VJ60: 1 | VK60: 1 | VL60: 1 | VM60: 1 | VN60: 1 | VO60: =IF(VN60=1,1*(VO59=1),IF(VO$55>$I$36,1*(VO59=1),0)) -> 1 | VP60: 1 | VQ60: 1 | VR60: 1 | VS60: 1 | VT60: 1 | VU60: 1 | VV60: 1 | VW60: 1 | VX60: 1 | VY60: 1 | VZ60: 1 | WA60: 1 | WB60: 1 | WC60: 1 | WD60: 1 | WE60: 1 | WF60: 1 | WG60: 1 | WH60: 1 | WI60: 1 | WJ60: 1 | WK60: 1 | WL60: 1 | WM60: 1 | WN60: 1 | WO60: 1 | WP60: 1 | WQ60: 1 | WR60: 1 | WS60: 1 | WT60: 1 | WU60: 1 | WV60: 1 | WW60: 1 | WX60: 1 | WY60: 1 | WZ60: 1 | XA60: 1 | XB60: 1 | XC60: 1 | XD60: 1 | XE60: 1 | XF60: 1 | XG60: 1 | XH60: 1 | XI60: 1 | XJ60: 1 | XK60: 1 | XL60: 1 | XM60: 1 | XN60: 1 | XO60: 1 | XP60: 1 | XQ60: 1 | XR60: 1 | XS60: 1 | XT60: 1 | XU60: 1 | XV60: 1 | XW60: 1 | XX60: 1 | XY60: 1 | XZ60: 1 | YA60: =IF(XZ60=1,1*(YA59=1),IF(YA$55>$I$36,1*(YA59=1),0)) -> 1 | YB60: 1 | YC60: 1 | YD60: 1 | YE60: 1 | YF60: 1 | YG60: 1 | YH60: 1 | YI60: 1 | YJ60: 1 | YK60: 1 | YL60: 1 | YM60: 1 | YN60: 1 | YO60: 1 | YP60: 1 | YQ60: 1 | YR60: 1 | YS60: 1 | YT60: 1 | YU60: 1 | YV60: 1 | YW60: 1 | YX60: 1 | YY60: 1 | YZ60: 1 | ZA60: 1 | ZB60: 1 | ZC60: 1 | ZD60: 1 | ZE60: 1 | ZF60: 1 | ZG60: 1 | ZH60: 1 | ZI60: 1 | ZJ60: 1 | ZK60: 1 | ZL60: 1 | ZM60: 1 | ZN60: 1 | ZO60: 1 | ZP60: 1 | ZQ60: 1 | ZR60: 1 | ZS60: 1 | ZT60: 1 | ZU60: 1 | ZV60: 1 | ZW60: 1 | ZX60: 1 | ZY60: 1 | ZZ60: 1 | AAA60: 1 | AAB60: 1 | AAC60: 1 | AAD60: 1 | AAE60: 1 | AAF60: 1 | AAG60: 1 | AAH60: 1 | AAI60: 1 | AAJ60: 1 | AAK60: 1 | AAL60: 1 | AAM60: =IF(AAL60=1,1*(AAM59=1),IF(AAM$55>$I$36,1*(AAM59=1),0)) -> 1 | AAN60: 1 | AAO60: 1 | AAP60: 1 | AAQ60: 1 | AAR60: 1 | AAS60: 1 | AAT60: 1 | AAU60: 1 | AAV60: 1 | AAW60: 1 | AAX60: 1 | AAY60: 1 | AAZ60: 1 | ABA60: 1 | ABB60: 1 | ABC60: 1 | ABD60: 1 | ABE60: 1 | ABF60: 1 | ABG60: 1 | ABH60: 1 | ABI60: 1 | ABJ60: 1 | ABK60: 1 | ABL60: 1 | ABM60: 1 | ABN60: 1 | ABO60: 1 | ABP60: 1 | ABQ60: 1 | ABR60: 1 | ABS60: 1 | ABT60: 1 | ABU60: 1 | ABV60: 1 | ABW60: 1 | ABX60: 1 | ABY60: 1 | ABZ60: 1 | ACA60: 1 | ACB60: 1 | ACC60: 1 | ACD60: 1 | ACE60: 1 | ACF60: 1 | ACG60: 1 | ACH60: 1 | ACI60: 1 | ACJ60: 1 | ACK60: 1 | ACL60: 1 | ACM60: 1 | ACN60: 1 | ACO60: 1 | ACP60: 1 | ACQ60: 1 | ACR60: 1 | ACS60: 1 | ACT60: 1 | ACU60: 1 | ACV60: 1 | ACW60: 1 | ACX60: 1 | ACY60: =IF(ACX60=1,1*(ACY59=1),IF(ACY$55>$I$36,1*(ACY59=1),0)) -> 1 | ACZ60: 1 | ADA60: 1 | ADB60: 1 | ADC60: 1 | ADD60: 1 | ADE60: 1 | ADF60: 1 | ADG60: 1 | ADH60: 1 | ADI60: 1 | ADJ60: 1 | ADK60: 1 | ADL60: 1 | ADM60: 1 | ADN60: 1 | ADO60: 1 | ADP60: 1 | ADQ60: 1 | ADR60: 1 | ADS60: 1 | ADT60: 1 | ADU60: 1 | ADV60: 1 | ADW60: 1 | ADX60: 1 | ADY60: 1 | ADZ60: 1 | AEA60: 1 | AEB60: 1 | AEC60: 1 | AED60: 1 | AEE60: 1 | AEF60: 1 | AEG60: 1 | AEH60: 1 | AEI60: 1 | AEJ60: 1 | AEK60: 1 | AEL60: 1 | AEM60: 1 | AEN60: 1 | AEO60: 1 | AEP60: 1 | AEQ60: 1 | AER60: 1 | AES60: 1 | AET60: 1 | AEU60: 1 | AEV60: 1 | AEW60: 1 | AEX60: 1 | AEY60: 1 | AEZ60: 1 | AFA60: 1 | AFB60: 1 | AFC60: 1 | AFD60: 1 | AFE60: 1 | AFF60: 1 | AFG60: 1 | AFH60: 1 | AFI60: 1 | AFJ60: 1 | AFK60: =IF(AFJ60=1,1*(AFK59=1),IF(AFK$55>$I$36,1*(AFK59=1),0)) -> 1 | AFL60: 1 | AFM60: 1 | AFN60: 1 | AFO60: 1 | AFP60: 1 | AFQ60: 1 | AFR60: 1 | AFS60: 1 | AFT60: 1 | AFU60: 1 | AFV60: 1 | AFW60: 1 | AFX60: 1 | AFY60: 1 | AFZ60: 1 | AGA60: 1 | AGB60: 1 | AGC60: 1 | AGD60: 1 | AGE60: 1 | AGF60: 1 | AGG60: 1 | AGH60: 1 | AGI60: 1 | AGJ60: 1 | AGK60: 1 | AGL60: 1 | AGM60: 1 | AGN60: 1 | AGO60: 1 | AGP60: 1 | AGQ60: 1 | AGR60: 1 | AGS60: 1 | AGT60: 1 | AGU60: 1 | AGV60: 1 | AGW60: 1 | AGX60: 1 | AGY60: 1 | AGZ60: 1 | AHA60: 1 | AHB60: 1 | AHC60: 1 | AHD60: 1 | AHE60: 1 | AHF60: 1 | AHG60: 1 | AHH60: 1 | AHI60: 1 | AHJ60: 1 | AHK60: 1 | AHL60: 1 | AHM60: 1 | AHN60: 1 | AHO60: 1 | AHP60: 1 | AHQ60: 1 | AHR60: 1 | AHS60: 1 | AHT60: 1 | AHU60: 1 | AHV60: 1 | AHW60: =IF(AHV60=1,1*(AHW59=1),IF(AHW$55>$I$36,1*(AHW59=1),0)) -> 1 | AHX60: 1 | AHY60: 1 | AHZ60: 1 | AIA60: 1 | AIB60: 1 | AIC60: 1 | AID60: 1 | AIE60: 1 | AIF60: 1 | AIG60: 1 | AIH60: 1 | AII60: 1 | AIJ60: 1 | AIK60: 1 | AIL60: 1 | AIM60: 1 | AIN60: 1 | AIO60: 1 | AIP60: 1 | AIQ60: 1 | AIR60: 1 | AIS60: 1 | AIT60: 1 | AIU60: 1 | AIV60: 1 | AIW60: 1 | AIX60: 1 | AIY60: 1 | AIZ60: 1 | AJA60: 1 | AJB60: 1 | AJC60: 1 | AJD60: 1 | AJE60: 1 | AJF60: 1 | AJG60: 1 | AJH60: 1 | AJI60: 1 | AJJ60: 1 | AJK60: 1 | AJL60: 1 | AJM60: 1 | AJN60: 1 | AJO60: 1 | AJP60: 1 | AJQ60: 1 | AJR60: 1 | AJS60: 1 | AJT60: 1 | AJU60: 1 | AJV60: 1 | AJW60: 1 | AJX60: 1 | AJY60: 1 | AJZ60: 1 | AKA60: 1 | AKB60: 1 | AKC60: 1 | AKD60: 1 | AKE60: 1 | AKF60: 1 | AKG60: 1 | AKH60: 1
B61: ="2) Decision Rule TWO (if Pt>"&TEXT(S10,"##0.0")&"*P;"&TEXT(S11,"##0.0")&"*P)" -> 2) Decision Rule TWO (if Pt>1.7*P;2.2*P)
A62: YesNo Rule1-1 | C62: Build Stage 1 | E62: =MAX(K62:AKH62) -> 1 | F62: =IFERROR(INDEX($J$51:$AKH$51,MATCH(1,J62:AKH62,0)),0) -> 20 | G62: Rule 2 Stage 1 Exercise | J62: =IF(I62=1,1,IF(J$55>$J$55*$S10,1,0)) -> 0 | K62: =IF(J62=1,1,IF(K$55>$J$55*$S10,1,0)) -> 0 | L62: =IF(K62=1,1,IF(L$55>$J$55*$S10,1,0)) -> 0 | M62: 0 | N62: 0 | O62: 0 | P62: 0 | Q62: 0 | R62: 0 | S62: 0 | T62: 0 | U62: 0 | V62: 0 | W62: 0 | X62: 0 | Y62: 0 | Z62: 0 | AA62: 0 | AB62: 0 | AC62: 0 | AD62: 1 | AE62: 1 | AF62: 1 | AG62: 1 | AH62: 1 | AI62: 1 | AJ62: 1 | AK62: 1 | AL62: 1 | AM62: 1 | AN62: 1 | AO62: 1 | AP62: 1 | AQ62: 1 | AR62: 1 | AS62: 1 | AT62: 1 | AU62: 1 | AV62: 1 | AW62: 1 | AX62: 1 | AY62: 1 | AZ62: 1 | BA62: 1 | BB62: 1 | BC62: 1 | BD62: 1 | BE62: 1 | BF62: 1 | BG62: 1 | BH62: 1 | BI62: 1 | BJ62: 1 | BK62: 1 | BL62: 1 | BM62: 1 | BN62: 1 | BO62: 1 | BP62: 1 | BQ62: 1 | BR62: 1 | BS62: 1 | BT62: 1 | BU62: 1 | BV62: 1 | BW62: =IF(BV62=1,1,IF(BW$55>$J$55*$S10,1,0)) -> 1 | BX62: 1 | BY62: 1 | BZ62: 1 | CA62: 1 | CB62: 1 | CC62: 1 | CD62: 1 | CE62: 1 | CF62: 1 | CG62: 1 | CH62: 1 | CI62: 1 | CJ62: 1 | CK62: 1 | CL62: 1 | CM62: 1 | CN62: 1 | CO62: 1 | CP62: 1 | CQ62: 1 | CR62: 1 | CS62: 1 | CT62: 1 | CU62: 1 | CV62: 1 | CW62: 1 | CX62: 1 | CY62: 1 | CZ62: 1 | DA62: 1 | DB62: 1 | DC62: 1 | DD62: 1 | DE62: 1 | DF62: 1 | DG62: 1 | DH62: 1 | DI62: 1 | DJ62: 1 | DK62: 1 | DL62: 1 | DM62: 1 | DN62: 1 | DO62: 1 | DP62: 1 | DQ62: 1 | DR62: 1 | DS62: 1 | DT62: 1 | DU62: 1 | DV62: 1 | DW62: 1 | DX62: 1 | DY62: 1 | DZ62: 1 | EA62: 1 | EB62: 1 | EC62: 1 | ED62: 1 | EE62: 1 | EF62: 1 | EG62: 1 | EH62: 1 | EI62: =IF(EH62=1,1,IF(EI$55>$J$55*$S10,1,0)) -> 1 | EJ62: 1 | EK62: 1 | EL62: 1 | EM62: 1 | EN62: 1 | EO62: 1 | EP62: 1 | EQ62: 1 | ER62: 1 | ES62: 1 | ET62: 1 | EU62: 1 | EV62: 1 | EW62: 1 | EX62: 1 | EY62: 1 | EZ62: 1 | FA62: 1 | FB62: 1 | FC62: 1 | FD62: 1 | FE62: 1 | FF62: 1 | FG62: 1 | FH62: 1 | FI62: 1 | FJ62: 1 | FK62: 1 | FL62: 1 | FM62: 1 | FN62: 1 | FO62: 1 | FP62: 1 | FQ62: 1 | FR62: 1 | FS62: 1 | FT62: 1 | FU62: 1 | FV62: 1 | FW62: 1 | FX62: 1 | FY62: 1 | FZ62: 1 | GA62: 1 | GB62: 1 | GC62: 1 | GD62: 1 | GE62: 1 | GF62: 1 | GG62: 1 | GH62: 1 | GI62: 1 | GJ62: 1 | GK62: 1 | GL62: 1 | GM62: 1 | GN62: 1 | GO62: 1 | GP62: 1 | GQ62: 1 | GR62: 1 | GS62: 1 | GT62: 1 | GU62: =IF(GT62=1,1,IF(GU$55>$J$55*$S10,1,0)) -> 1 | GV62: 1 | GW62: 1 | GX62: 1 | GY62: 1 | GZ62: 1 | HA62: 1 | HB62: 1 | HC62: 1 | HD62: 1 | HE62: 1 | HF62: 1 | HG62: 1 | HH62: 1 | HI62: 1 | HJ62: 1 | HK62: 1 | HL62: 1 | HM62: 1 | HN62: 1 | HO62: 1 | HP62: 1 | HQ62: 1 | HR62: 1 | HS62: 1 | HT62: 1 | HU62: 1 | HV62: 1 | HW62: 1 | HX62: 1 | HY62: 1 | HZ62: 1 | IA62: 1 | IB62: 1 | IC62: 1 | ID62: 1 | IE62: 1 | IF62: 1 | IG62: 1 | IH62: 1 | II62: 1 | IJ62: 1 | IK62: 1 | IL62: 1 | IM62: 1 | IN62: 1 | IO62: 1 | IP62: 1 | IQ62: 1 | IR62: 1 | IS62: 1 | IT62: 1 | IU62: 1 | IV62: 1 | IW62: 1 | IX62: 1 | IY62: 1 | IZ62: 1 | JA62: 1 | JB62: 1 | JC62: 1 | JD62: 1 | JE62: 1 | JF62: 1 | JG62: =IF(JF62=1,1,IF(JG$55>$J$55*$S10,1,0)) -> 1 | JH62: 1 | JI62: 1 | JJ62: 1 | JK62: 1 | JL62: 1 | JM62: 1 | JN62: 1 | JO62: 1 | JP62: 1 | JQ62: 1 | JR62: 1 | JS62: 1 | JT62: 1 | JU62: 1 | JV62: 1 | JW62: 1 | JX62: 1 | JY62: 1 | JZ62: 1 | KA62: 1 | KB62: 1 | KC62: 1 | KD62: 1 | KE62: 1 | KF62: 1 | KG62: 1 | KH62: 1 | KI62: 1 | KJ62: 1 | KK62: 1 | KL62: 1 | KM62: 1 | KN62: 1 | KO62: 1 | KP62: 1 | KQ62: 1 | KR62: 1 | KS62: 1 | KT62: 1 | KU62: 1 | KV62: 1 | KW62: 1 | KX62: 1 | KY62: 1 | KZ62: 1 | LA62: 1 | LB62: 1 | LC62: 1 | LD62: 1 | LE62: 1 | LF62: 1 | LG62: 1 | LH62: 1 | LI62: 1 | LJ62: 1 | LK62: 1 | LL62: 1 | LM62: 1 | LN62: 1 | LO62: 1 | LP62: 1 | LQ62: 1 | LR62: 1 | LS62: =IF(LR62=1,1,IF(LS$55>$J$55*$S10,1,0)) -> 1 | LT62: 1 | LU62: 1 | LV62: 1 | LW62: 1 | LX62: 1 | LY62: 1 | LZ62: 1 | MA62: 1 | MB62: 1 | MC62: 1 | MD62: 1 | ME62: 1 | MF62: 1 | MG62: 1 | MH62: 1 | MI62: 1 | MJ62: 1 | MK62: 1 | ML62: 1 | MM62: 1 | MN62: 1 | MO62: 1 | MP62: 1 | MQ62: 1 | MR62: 1 | MS62: 1 | MT62: 1 | MU62: 1 | MV62: 1 | MW62: 1 | MX62: 1 | MY62: 1 | MZ62: 1 | NA62: 1 | NB62: 1 | NC62: 1 | ND62: 1 | NE62: 1 | NF62: 1 | NG62: 1 | NH62: 1 | NI62: 1 | NJ62: 1 | NK62: 1 | NL62: 1 | NM62: 1 | NN62: 1 | NO62: 1 | NP62: 1 | NQ62: 1 | NR62: 1 | NS62: 1 | NT62: 1 | NU62: 1 | NV62: 1 | NW62: 1 | NX62: 1 | NY62: 1 | NZ62: 1 | OA62: 1 | OB62: 1 | OC62: 1 | OD62: 1 | OE62: =IF(OD62=1,1,IF(OE$55>$J$55*$S10,1,0)) -> 1 | OF62: 1 | OG62: 1 | OH62: 1 | OI62: 1 | OJ62: 1 | OK62: 1 | OL62: 1 | OM62: 1 | ON62: 1 | OO62: 1 | OP62: 1 | OQ62: 1 | OR62: 1 | OS62: 1 | OT62: 1 | OU62: 1 | OV62: 1 | OW62: 1 | OX62: 1 | OY62: 1 | OZ62: 1 | PA62: 1 | PB62: 1 | PC62: 1 | PD62: 1 | PE62: 1 | PF62: 1 | PG62: 1 | PH62: 1 | PI62: 1 | PJ62: 1 | PK62: 1 | PL62: 1 | PM62: 1 | PN62: 1 | PO62: 1 | PP62: 1 | PQ62: 1 | PR62: 1 | PS62: 1 | PT62: 1 | PU62: 1 | PV62: 1 | PW62: 1 | PX62: 1 | PY62: 1 | PZ62: 1 | QA62: 1 | QB62: 1 | QC62: 1 | QD62: 1 | QE62: 1 | QF62: 1 | QG62: 1 | QH62: 1 | QI62: 1 | QJ62: 1 | QK62: 1 | QL62: 1 | QM62: 1 | QN62: 1 | QO62: 1 | QP62: 1 | QQ62: =IF(QP62=1,1,IF(QQ$55>$J$55*$S10,1,0)) -> 1 | QR62: 1 | QS62: 1 | QT62: 1 | QU62: 1 | QV62: 1 | QW62: 1 | QX62: 1 | QY62: 1 | QZ62: 1 | RA62: 1 | RB62: 1 | RC62: 1 | RD62: 1 | RE62: 1 | RF62: 1 | RG62: 1 | RH62: 1 | RI62: 1 | RJ62: 1 | RK62: 1 | RL62: 1 | RM62: 1 | RN62: 1 | RO62: 1 | RP62: 1 | RQ62: 1 | RR62: 1 | RS62: 1 | RT62: 1 | RU62: 1 | RV62: 1 | RW62: 1 | RX62: 1 | RY62: 1 | RZ62: 1 | SA62: 1 | SB62: 1 | SC62: 1 | SD62: 1 | SE62: 1 | SF62: 1 | SG62: 1 | SH62: 1 | SI62: 1 | SJ62: 1 | SK62: 1 | SL62: 1 | SM62: 1 | SN62: 1 | SO62: 1 | SP62: 1 | SQ62: 1 | SR62: 1 | SS62: 1 | ST62: 1 | SU62: 1 | SV62: 1 | SW62: 1 | SX62: 1 | SY62: 1 | SZ62: 1 | TA62: 1 | TB62: 1 | TC62: =IF(TB62=1,1,IF(TC$55>$J$55*$S10,1,0)) -> 1 | TD62: 1 | TE62: 1 | TF62: 1 | TG62: 1 | TH62: 1 | TI62: 1 | TJ62: 1 | TK62: 1 | TL62: 1 | TM62: 1 | TN62: 1 | TO62: 1 | TP62: 1 | TQ62: 1 | TR62: 1 | TS62: 1 | TT62: 1 | TU62: 1 | TV62: 1 | TW62: 1 | TX62: 1 | TY62: 1 | TZ62: 1 | UA62: 1 | UB62: 1 | UC62: 1 | UD62: 1 | UE62: 1 | UF62: 1 | UG62: 1 | UH62: 1 | UI62: 1 | UJ62: 1 | UK62: 1 | UL62: 1 | UM62: 1 | UN62: 1 | UO62: 1 | UP62: 1 | UQ62: 1 | UR62: 1 | US62: 1 | UT62: 1 | UU62: 1 | UV62: 1 | UW62: 1 | UX62: 1 | UY62: 1 | UZ62: 1 | VA62: 1 | VB62: 1 | VC62: 1 | VD62: 1 | VE62: 1 | VF62: 1 | VG62: 1 | VH62: 1 | VI62: 1 | VJ62: 1 | VK62: 1 | VL62: 1 | VM62: 1 | VN62: 1 | VO62: =IF(VN62=1,1,IF(VO$55>$J$55*$S10,1,0)) -> 1 | VP62: 1 | VQ62: 1 | VR62: 1 | VS62: 1 | VT62: 1 | VU62: 1 | VV62: 1 | VW62: 1 | VX62: 1 | VY62: 1 | VZ62: 1 | WA62: 1 | WB62: 1 | WC62: 1 | WD62: 1 | WE62: 1 | WF62: 1 | WG62: 1 | WH62: 1 | WI62: 1 | WJ62: 1 | WK62: 1 | WL62: 1 | WM62: 1 | WN62: 1 | WO62: 1 | WP62: 1 | WQ62: 1 | WR62: 1 | WS62: 1 | WT62: 1 | WU62: 1 | WV62: 1 | WW62: 1 | WX62: 1 | WY62: 1 | WZ62: 1 | XA62: 1 | XB62: 1 | XC62: 1 | XD62: 1 | XE62: 1 | XF62: 1 | XG62: 1 | XH62: 1 | XI62: 1 | XJ62: 1 | XK62: 1 | XL62: 1 | XM62: 1 | XN62: 1 | XO62: 1 | XP62: 1 | XQ62: 1 | XR62: 1 | XS62: 1 | XT62: 1 | XU62: 1 | XV62: 1 | XW62: 1 | XX62: 1 | XY62: 1 | XZ62: 1 | YA62: =IF(XZ62=1,1,IF(YA$55>$J$55*$S10,1,0)) -> 1 | YB62: 1 | YC62: 1 | YD62: 1 | YE62: 1 | YF62: 1 | YG62: 1 | YH62: 1 | YI62: 1 | YJ62: 1 | YK62: 1 | YL62: 1 | YM62: 1 | YN62: 1 | YO62: 1 | YP62: 1 | YQ62: 1 | YR62: 1 | YS62: 1 | YT62: 1 | YU62: 1 | YV62: 1 | YW62: 1 | YX62: 1 | YY62: 1 | YZ62: 1 | ZA62: 1 | ZB62: 1 | ZC62: 1 | ZD62: 1 | ZE62: 1 | ZF62: 1 | ZG62: 1 | ZH62: 1 | ZI62: 1 | ZJ62: 1 | ZK62: 1 | ZL62: 1 | ZM62: 1 | ZN62: 1 | ZO62: 1 | ZP62: 1 | ZQ62: 1 | ZR62: 1 | ZS62: 1 | ZT62: 1 | ZU62: 1 | ZV62: 1 | ZW62: 1 | ZX62: 1 | ZY62: 1 | ZZ62: 1 | AAA62: 1 | AAB62: 1 | AAC62: 1 | AAD62: 1 | AAE62: 1 | AAF62: 1 | AAG62: 1 | AAH62: 1 | AAI62: 1 | AAJ62: 1 | AAK62: 1 | AAL62: 1 | AAM62: =IF(AAL62=1,1,IF(AAM$55>$J$55*$S10,1,0)) -> 1 | AAN62: 1 | AAO62: 1 | AAP62: 1 | AAQ62: 1 | AAR62: 1 | AAS62: 1 | AAT62: 1 | AAU62: 1 | AAV62: 1 | AAW62: 1 | AAX62: 1 | AAY62: 1 | AAZ62: 1 | ABA62: 1 | ABB62: 1 | ABC62: 1 | ABD62: 1 | ABE62: 1 | ABF62: 1 | ABG62: 1 | ABH62: 1 | ABI62: 1 | ABJ62: 1 | ABK62: 1 | ABL62: 1 | ABM62: 1 | ABN62: 1 | ABO62: 1 | ABP62: 1 | ABQ62: 1 | ABR62: 1 | ABS62: 1 | ABT62: 1 | ABU62: 1 | ABV62: 1 | ABW62: 1 | ABX62: 1 | ABY62: 1 | ABZ62: 1 | ACA62: 1 | ACB62: 1 | ACC62: 1 | ACD62: 1 | ACE62: 1 | ACF62: 1 | ACG62: 1 | ACH62: 1 | ACI62: 1 | ACJ62: 1 | ACK62: 1 | ACL62: 1 | ACM62: 1 | ACN62: 1 | ACO62: 1 | ACP62: 1 | ACQ62: 1 | ACR62: 1 | ACS62: 1 | ACT62: 1 | ACU62: 1 | ACV62: 1 | ACW62: 1 | ACX62: 1 | ACY62: =IF(ACX62=1,1,IF(ACY$55>$J$55*$S10,1,0)) -> 1 | ACZ62: 1 | ADA62: 1 | ADB62: 1 | ADC62: 1 | ADD62: 1 | ADE62: 1 | ADF62: 1 | ADG62: 1 | ADH62: 1 | ADI62: 1 | ADJ62: 1 | ADK62: 1 | ADL62: 1 | ADM62: 1 | ADN62: 1 | ADO62: 1 | ADP62: 1 | ADQ62: 1 | ADR62: 1 | ADS62: 1 | ADT62: 1 | ADU62: 1 | ADV62: 1 | ADW62: 1 | ADX62: 1 | ADY62: 1 | ADZ62: 1 | AEA62: 1 | AEB62: 1 | AEC62: 1 | AED62: 1 | AEE62: 1 | AEF62: 1 | AEG62: 1 | AEH62: 1 | AEI62: 1 | AEJ62: 1 | AEK62: 1 | AEL62: 1 | AEM62: 1 | AEN62: 1 | AEO62: 1 | AEP62: 1 | AEQ62: 1 | AER62: 1 | AES62: 1 | AET62: 1 | AEU62: 1 | AEV62: 1 | AEW62: 1 | AEX62: 1 | AEY62: 1 | AEZ62: 1 | AFA62: 1 | AFB62: 1 | AFC62: 1 | AFD62: 1 | AFE62: 1 | AFF62: 1 | AFG62: 1 | AFH62: 1 | AFI62: 1 | AFJ62: 1 | AFK62: =IF(AFJ62=1,1,IF(AFK$55>$J$55*$S10,1,0)) -> 1 | AFL62: 1 | AFM62: 1 | AFN62: 1 | AFO62: 1 | AFP62: 1 | AFQ62: 1 | AFR62: 1 | AFS62: 1 | AFT62: 1 | AFU62: 1 | AFV62: 1 | AFW62: 1 | AFX62: 1 | AFY62: 1 | AFZ62: 1 | AGA62: 1 | AGB62: 1 | AGC62: 1 | AGD62: 1 | AGE62: 1 | AGF62: 1 | AGG62: 1 | AGH62: 1 | AGI62: 1 | AGJ62: 1 | AGK62: 1 | AGL62: 1 | AGM62: 1 | AGN62: 1 | AGO62: 1 | AGP62: 1 | AGQ62: 1 | AGR62: 1 | AGS62: 1 | AGT62: 1 | AGU62: 1 | AGV62: 1 | AGW62: 1 | AGX62: 1 | AGY62: 1 | AGZ62: 1 | AHA62: 1 | AHB62: 1 | AHC62: 1 | AHD62: 1 | AHE62: 1 | AHF62: 1 | AHG62: 1 | AHH62: 1 | AHI62: 1 | AHJ62: 1 | AHK62: 1 | AHL62: 1 | AHM62: 1 | AHN62: 1 | AHO62: 1 | AHP62: 1 | AHQ62: 1 | AHR62: 1 | AHS62: 1 | AHT62: 1 | AHU62: 1 | AHV62: 1 | AHW62: =IF(AHV62=1,1,IF(AHW$55>$J$55*$S10,1,0)) -> 1 | AHX62: 1 | AHY62: 1 | AHZ62: 1 | AIA62: 1 | AIB62: 1 | AIC62: 1 | AID62: 1 | AIE62: 1 | AIF62: 1 | AIG62: 1 | AIH62: 1 | AII62: 1 | AIJ62: 1 | AIK62: 1 | AIL62: 1 | AIM62: 1 | AIN62: 1 | AIO62: 1 | AIP62: 1 | AIQ62: 1 | AIR62: 1 | AIS62: 1 | AIT62: 1 | AIU62: 1 | AIV62: 1 | AIW62: 1 | AIX62: 1 | AIY62: 1 | AIZ62: 1 | AJA62: 1 | AJB62: 1 | AJC62: 1 | AJD62: 1 | AJE62: 1 | AJF62: 1 | AJG62: 1 | AJH62: 1 | AJI62: 1 | AJJ62: 1 | AJK62: 1 | AJL62: 1 | AJM62: 1 | AJN62: 1 | AJO62: 1 | AJP62: 1 | AJQ62: 1 | AJR62: 1 | AJS62: 1 | AJT62: 1 | AJU62: 1 | AJV62: 1 | AJW62: 1 | AJX62: 1 | AJY62: 1 | AJZ62: 1 | AKA62: 1 | AKB62: 1 | AKC62: 1 | AKD62: 1 | AKE62: 1 | AKF62: 1 | AKG62: 1 | AKH62: 1
A63: YesNo Rule1-2 | C63: Build Stage 2 | E63: =MAX(K63:AKH63) -> 1 | F63: =IFERROR(INDEX($J$51:$AKH$51,MATCH(1,J63:AKH63,0)),0) -> 25 | G63: Rule 2 Stage 2 Exercise | J63: =IF(I63=1,1*(J62=1),IF(J$55>$J$55*$S11,1*(J62=1),0)) -> 0 | K63: 0 | L63: =IF(K63=1,1*(L62=1),IF(L$55>$J$55*$S11,1*(L62=1),0)) -> 0 | M63: 0 | N63: 0 | O63: 0 | P63: 0 | Q63: 0 | R63: 0 | S63: 0 | T63: 0 | U63: 0 | V63: 0 | W63: 0 | X63: 0 | Y63: 0 | Z63: 0 | AA63: 0 | AB63: 0 | AC63: 0 | AD63: 0 | AE63: 0 | AF63: 0 | AG63: 0 | AH63: 0 | AI63: 1 | AJ63: 1 | AK63: 1 | AL63: 1 | AM63: 1 | AN63: 1 | AO63: 1 | AP63: 1 | AQ63: 1 | AR63: 1 | AS63: 1 | AT63: 1 | AU63: 1 | AV63: 1 | AW63: 1 | AX63: 1 | AY63: 1 | AZ63: 1 | BA63: 1 | BB63: 1 | BC63: 1 | BD63: 1 | BE63: 1 | BF63: 1 | BG63: 1 | BH63: 1 | BI63: 1 | BJ63: 1 | BK63: 1 | BL63: 1 | BM63: 1 | BN63: 1 | BO63: 1 | BP63: 1 | BQ63: 1 | BR63: 1 | BS63: 1 | BT63: 1 | BU63: 1 | BV63: 1 | BW63: =IF(BV63=1,1*(BW62=1),IF(BW$55>$J$55*$S11,1*(BW62=1),0)) -> 1 | BX63: 1 | BY63: 1 | BZ63: 1 | CA63: 1 | CB63: 1 | CC63: 1 | CD63: 1 | CE63: 1 | CF63: 1 | CG63: 1 | CH63: 1 | CI63: 1 | CJ63: 1 | CK63: 1 | CL63: 1 | CM63: 1 | CN63: 1 | CO63: 1 | CP63: 1 | CQ63: 1 | CR63: 1 | CS63: 1 | CT63: 1 | CU63: 1 | CV63: 1 | CW63: 1 | CX63: 1 | CY63: 1 | CZ63: 1 | DA63: 1 | DB63: 1 | DC63: 1 | DD63: 1 | DE63: 1 | DF63: 1 | DG63: 1 | DH63: 1 | DI63: 1 | DJ63: 1 | DK63: 1 | DL63: 1 | DM63: 1 | DN63: 1 | DO63: 1 | DP63: 1 | DQ63: 1 | DR63: 1 | DS63: 1 | DT63: 1 | DU63: 1 | DV63: 1 | DW63: 1 | DX63: 1 | DY63: 1 | DZ63: 1 | EA63: 1 | EB63: 1 | EC63: 1 | ED63: 1 | EE63: 1 | EF63: 1 | EG63: 1 | EH63: 1 | EI63: =IF(EH63=1,1*(EI62=1),IF(EI$55>$J$55*$S11,1*(EI62=1),0)) -> 1 | EJ63: 1 | EK63: 1 | EL63: 1 | EM63: 1 | EN63: 1 | EO63: 1 | EP63: 1 | EQ63: 1 | ER63: 1 | ES63: 1 | ET63: 1 | EU63: 1 | EV63: 1 | EW63: 1 | EX63: 1 | EY63: 1 | EZ63: 1 | FA63: 1 | FB63: 1 | FC63: 1 | FD63: 1 | FE63: 1 | FF63: 1 | FG63: 1 | FH63: 1 | FI63: 1 | FJ63: 1 | FK63: 1 | FL63: 1 | FM63: 1 | FN63: 1 | FO63: 1 | FP63: 1 | FQ63: 1 | FR63: 1 | FS63: 1 | FT63: 1 | FU63: 1 | FV63: 1 | FW63: 1 | FX63: 1 | FY63: 1 | FZ63: 1 | GA63: 1 | GB63: 1 | GC63: 1 | GD63: 1 | GE63: 1 | GF63: 1 | GG63: 1 | GH63: 1 | GI63: 1 | GJ63: 1 | GK63: 1 | GL63: 1 | GM63: 1 | GN63: 1 | GO63: 1 | GP63: 1 | GQ63: 1 | GR63: 1 | GS63: 1 | GT63: 1 | GU63: =IF(GT63=1,1*(GU62=1),IF(GU$55>$J$55*$S11,1*(GU62=1),0)) -> 1 | GV63: 1 | GW63: 1 | GX63: 1 | GY63: 1 | GZ63: 1 | HA63: 1 | HB63: 1 | HC63: 1 | HD63: 1 | HE63: 1 | HF63: 1 | HG63: 1 | HH63: 1 | HI63: 1 | HJ63: 1 | HK63: 1 | HL63: 1 | HM63: 1 | HN63: 1 | HO63: 1 | HP63: 1 | HQ63: 1 | HR63: 1 | HS63: 1 | HT63: 1 | HU63: 1 | HV63: 1 | HW63: 1 | HX63: 1 | HY63: 1 | HZ63: 1 | IA63: 1 | IB63: 1 | IC63: 1 | ID63: 1 | IE63: 1 | IF63: 1 | IG63: 1 | IH63: 1 | II63: 1 | IJ63: 1 | IK63: 1 | IL63: 1 | IM63: 1 | IN63: 1 | IO63: 1 | IP63: 1 | IQ63: 1 | IR63: 1 | IS63: 1 | IT63: 1 | IU63: 1 | IV63: 1 | IW63: 1 | IX63: 1 | IY63: 1 | IZ63: 1 | JA63: 1 | JB63: 1 | JC63: 1 | JD63: 1 | JE63: 1 | JF63: 1 | JG63: =IF(JF63=1,1*(JG62=1),IF(JG$55>$J$55*$S11,1*(JG62=1),0)) -> 1 | JH63: 1 | JI63: 1 | JJ63: 1 | JK63: 1 | JL63: 1 | JM63: 1 | JN63: 1 | JO63: 1 | JP63: 1 | JQ63: 1 | JR63: 1 | JS63: 1 | JT63: 1 | JU63: 1 | JV63: 1 | JW63: 1 | JX63: 1 | JY63: 1 | JZ63: 1 | KA63: 1 | KB63: 1 | KC63: 1 | KD63: 1 | KE63: 1 | KF63: 1 | KG63: 1 | KH63: 1 | KI63: 1 | KJ63: 1 | KK63: 1 | KL63: 1 | KM63: 1 | KN63: 1 | KO63: 1 | KP63: 1 | KQ63: 1 | KR63: 1 | KS63: 1 | KT63: 1 | KU63: 1 | KV63: 1 | KW63: 1 | KX63: 1 | KY63: 1 | KZ63: 1 | LA63: 1 | LB63: 1 | LC63: 1 | LD63: 1 | LE63: 1 | LF63: 1 | LG63: 1 | LH63: 1 | LI63: 1 | LJ63: 1 | LK63: 1 | LL63: 1 | LM63: 1 | LN63: 1 | LO63: 1 | LP63: 1 | LQ63: 1 | LR63: 1 | LS63: =IF(LR63=1,1*(LS62=1),IF(LS$55>$J$55*$S11,1*(LS62=1),0)) -> 1 | LT63: 1 | LU63: 1 | LV63: 1 | LW63: 1 | LX63: 1 | LY63: 1 | LZ63: 1 | MA63: 1 | MB63: 1 | MC63: 1 | MD63: 1 | ME63: 1 | MF63: 1 | MG63: 1 | MH63: 1 | MI63: 1 | MJ63: 1 | MK63: 1 | ML63: 1 | MM63: 1 | MN63: 1 | MO63: 1 | MP63: 1 | MQ63: 1 | MR63: 1 | MS63: 1 | MT63: 1 | MU63: 1 | MV63: 1 | MW63: 1 | MX63: 1 | MY63: 1 | MZ63: 1 | NA63: 1 | NB63: 1 | NC63: 1 | ND63: 1 | NE63: 1 | NF63: 1 | NG63: 1 | NH63: 1 | NI63: 1 | NJ63: 1 | NK63: 1 | NL63: 1 | NM63: 1 | NN63: 1 | NO63: 1 | NP63: 1 | NQ63: 1 | NR63: 1 | NS63: 1 | NT63: 1 | NU63: 1 | NV63: 1 | NW63: 1 | NX63: 1 | NY63: 1 | NZ63: 1 | OA63: 1 | OB63: 1 | OC63: 1 | OD63: 1 | OE63: =IF(OD63=1,1*(OE62=1),IF(OE$55>$J$55*$S11,1*(OE62=1),0)) -> 1 | OF63: 1 | OG63: 1 | OH63: 1 | OI63: 1 | OJ63: 1 | OK63: 1 | OL63: 1 | OM63: 1 | ON63: 1 | OO63: 1 | OP63: 1 | OQ63: 1 | OR63: 1 | OS63: 1 | OT63: 1 | OU63: 1 | OV63: 1 | OW63: 1 | OX63: 1 | OY63: 1 | OZ63: 1 | PA63: 1 | PB63: 1 | PC63: 1 | PD63: 1 | PE63: 1 | PF63: 1 | PG63: 1 | PH63: 1 | PI63: 1 | PJ63: 1 | PK63: 1 | PL63: 1 | PM63: 1 | PN63: 1 | PO63: 1 | PP63: 1 | PQ63: 1 | PR63: 1 | PS63: 1 | PT63: 1 | PU63: 1 | PV63: 1 | PW63: 1 | PX63: 1 | PY63: 1 | PZ63: 1 | QA63: 1 | QB63: 1 | QC63: 1 | QD63: 1 | QE63: 1 | QF63: 1 | QG63: 1 | QH63: 1 | QI63: 1 | QJ63: 1 | QK63: 1 | QL63: 1 | QM63: 1 | QN63: 1 | QO63: 1 | QP63: 1 | QQ63: =IF(QP63=1,1*(QQ62=1),IF(QQ$55>$J$55*$S11,1*(QQ62=1),0)) -> 1 | QR63: 1 | QS63: 1 | QT63: 1 | QU63: 1 | QV63: 1 | QW63: 1 | QX63: 1 | QY63: 1 | QZ63: 1 | RA63: 1 | RB63: 1 | RC63: 1 | RD63: 1 | RE63: 1 | RF63: 1 | RG63: 1 | RH63: 1 | RI63: 1 | RJ63: 1 | RK63: 1 | RL63: 1 | RM63: 1 | RN63: 1 | RO63: 1 | RP63: 1 | RQ63: 1 | RR63: 1 | RS63: 1 | RT63: 1 | RU63: 1 | RV63: 1 | RW63: 1 | RX63: 1 | RY63: 1 | RZ63: 1 | SA63: 1 | SB63: 1 | SC63: 1 | SD63: 1 | SE63: 1 | SF63: 1 | SG63: 1 | SH63: 1 | SI63: 1 | SJ63: 1 | SK63: 1 | SL63: 1 | SM63: 1 | SN63: 1 | SO63: 1 | SP63: 1 | SQ63: 1 | SR63: 1 | SS63: 1 | ST63: 1 | SU63: 1 | SV63: 1 | SW63: 1 | SX63: 1 | SY63: 1 | SZ63: 1 | TA63: 1 | TB63: 1 | TC63: =IF(TB63=1,1*(TC62=1),IF(TC$55>$J$55*$S11,1*(TC62=1),0)) -> 1 | TD63: 1 | TE63: 1 | TF63: 1 | TG63: 1 | TH63: 1 | TI63: 1 | TJ63: 1 | TK63: 1 | TL63: 1 | TM63: 1 | TN63: 1 | TO63: 1 | TP63: 1 | TQ63: 1 | TR63: 1 | TS63: 1 | TT63: 1 | TU63: 1 | TV63: 1 | TW63: 1 | TX63: 1 | TY63: 1 | TZ63: 1 | UA63: 1 | UB63: 1 | UC63: 1 | UD63: 1 | UE63: 1 | UF63: 1 | UG63: 1 | UH63: 1 | UI63: 1 | UJ63: 1 | UK63: 1 | UL63: 1 | UM63: 1 | UN63: 1 | UO63: 1 | UP63: 1 | UQ63: 1 | UR63: 1 | US63: 1 | UT63: 1 | UU63: 1 | UV63: 1 | UW63: 1 | UX63: 1 | UY63: 1 | UZ63: 1 | VA63: 1 | VB63: 1 | VC63: 1 | VD63: 1 | VE63: 1 | VF63: 1 | VG63: 1 | VH63: 1 | VI63: 1 | VJ63: 1 | VK63: 1 | VL63: 1 | VM63: 1 | VN63: 1 | VO63: =IF(VN63=1,1*(VO62=1),IF(VO$55>$J$55*$S11,1*(VO62=1),0)) -> 1 | VP63: 1 | VQ63: 1 | VR63: 1 | VS63: 1 | VT63: 1 | VU63: 1 | VV63: 1 | VW63: 1 | VX63: 1 | VY63: 1 | VZ63: 1 | WA63: 1 | WB63: 1 | WC63: 1 | WD63: 1 | WE63: 1 | WF63: 1 | WG63: 1 | WH63: 1 | WI63: 1 | WJ63: 1 | WK63: 1 | WL63: 1 | WM63: 1 | WN63: 1 | WO63: 1 | WP63: 1 | WQ63: 1 | WR63: 1 | WS63: 1 | WT63: 1 | WU63: 1 | WV63: 1 | WW63: 1 | WX63: 1 | WY63: 1 | WZ63: 1 | XA63: 1 | XB63: 1 | XC63: 1 | XD63: 1 | XE63: 1 | XF63: 1 | XG63: 1 | XH63: 1 | XI63: 1 | XJ63: 1 | XK63: 1 | XL63: 1 | XM63: 1 | XN63: 1 | XO63: 1 | XP63: 1 | XQ63: 1 | XR63: 1 | XS63: 1 | XT63: 1 | XU63: 1 | XV63: 1 | XW63: 1 | XX63: 1 | XY63: 1 | XZ63: 1 | YA63: =IF(XZ63=1,1*(YA62=1),IF(YA$55>$J$55*$S11,1*(YA62=1),0)) -> 1 | YB63: 1 | YC63: 1 | YD63: 1 | YE63: 1 | YF63: 1 | YG63: 1 | YH63: 1 | YI63: 1 | YJ63: 1 | YK63: 1 | YL63: 1 | YM63: 1 | YN63: 1 | YO63: 1 | YP63: 1 | YQ63: 1 | YR63: 1 | YS63: 1 | YT63: 1 | YU63: 1 | YV63: 1 | YW63: 1 | YX63: 1 | YY63: 1 | YZ63: 1 | ZA63: 1 | ZB63: 1 | ZC63: 1 | ZD63: 1 | ZE63: 1 | ZF63: 1 | ZG63: 1 | ZH63: 1 | ZI63: 1 | ZJ63: 1 | ZK63: 1 | ZL63: 1 | ZM63: 1 | ZN63: 1 | ZO63: 1 | ZP63: 1 | ZQ63: 1 | ZR63: 1 | ZS63: 1 | ZT63: 1 | ZU63: 1 | ZV63: 1 | ZW63: 1 | ZX63: 1 | ZY63: 1 | ZZ63: 1 | AAA63: 1 | AAB63: 1 | AAC63: 1 | AAD63: 1 | AAE63: 1 | AAF63: 1 | AAG63: 1 | AAH63: 1 | AAI63: 1 | AAJ63: 1 | AAK63: 1 | AAL63: 1 | AAM63: =IF(AAL63=1,1*(AAM62=1),IF(AAM$55>$J$55*$S11,1*(AAM62=1),0)) -> 1 | AAN63: 1 | AAO63: 1 | AAP63: 1 | AAQ63: 1 | AAR63: 1 | AAS63: 1 | AAT63: 1 | AAU63: 1 | AAV63: 1 | AAW63: 1 | AAX63: 1 | AAY63: 1 | AAZ63: 1 | ABA63: 1 | ABB63: 1 | ABC63: 1 | ABD63: 1 | ABE63: 1 | ABF63: 1 | ABG63: 1 | ABH63: 1 | ABI63: 1 | ABJ63: 1 | ABK63: 1 | ABL63: 1 | ABM63: 1 | ABN63: 1 | ABO63: 1 | ABP63: 1 | ABQ63: 1 | ABR63: 1 | ABS63: 1 | ABT63: 1 | ABU63: 1 | ABV63: 1 | ABW63: 1 | ABX63: 1 | ABY63: 1 | ABZ63: 1 | ACA63: 1 | ACB63: 1 | ACC63: 1 | ACD63: 1 | ACE63: 1 | ACF63: 1 | ACG63: 1 | ACH63: 1 | ACI63: 1 | ACJ63: 1 | ACK63: 1 | ACL63: 1 | ACM63: 1 | ACN63: 1 | ACO63: 1 | ACP63: 1 | ACQ63: 1 | ACR63: 1 | ACS63: 1 | ACT63: 1 | ACU63: 1 | ACV63: 1 | ACW63: 1 | ACX63: 1 | ACY63: =IF(ACX63=1,1*(ACY62=1),IF(ACY$55>$J$55*$S11,1*(ACY62=1),0)) -> 1 | ACZ63: 1 | ADA63: 1 | ADB63: 1 | ADC63: 1 | ADD63: 1 | ADE63: 1 | ADF63: 1 | ADG63: 1 | ADH63: 1 | ADI63: 1 | ADJ63: 1 | ADK63: 1 | ADL63: 1 | ADM63: 1 | ADN63: 1 | ADO63: 1 | ADP63: 1 | ADQ63: 1 | ADR63: 1 | ADS63: 1 | ADT63: 1 | ADU63: 1 | ADV63: 1 | ADW63: 1 | ADX63: 1 | ADY63: 1 | ADZ63: 1 | AEA63: 1 | AEB63: 1 | AEC63: 1 | AED63: 1 | AEE63: 1 | AEF63: 1 | AEG63: 1 | AEH63: 1 | AEI63: 1 | AEJ63: 1 | AEK63: 1 | AEL63: 1 | AEM63: 1 | AEN63: 1 | AEO63: 1 | AEP63: 1 | AEQ63: 1 | AER63: 1 | AES63: 1 | AET63: 1 | AEU63: 1 | AEV63: 1 | AEW63: 1 | AEX63: 1 | AEY63: 1 | AEZ63: 1 | AFA63: 1 | AFB63: 1 | AFC63: 1 | AFD63: 1 | AFE63: 1 | AFF63: 1 | AFG63: 1 | AFH63: 1 | AFI63: 1 | AFJ63: 1 | AFK63: =IF(AFJ63=1,1*(AFK62=1),IF(AFK$55>$J$55*$S11,1*(AFK62=1),0)) -> 1 | AFL63: 1 | AFM63: 1 | AFN63: 1 | AFO63: 1 | AFP63: 1 | AFQ63: 1 | AFR63: 1 | AFS63: 1 | AFT63: 1 | AFU63: 1 | AFV63: 1 | AFW63: 1 | AFX63: 1 | AFY63: 1 | AFZ63: 1 | AGA63: 1 | AGB63: 1 | AGC63: 1 | AGD63: 1 | AGE63: 1 | AGF63: 1 | AGG63: 1 | AGH63: 1 | AGI63: 1 | AGJ63: 1 | AGK63: 1 | AGL63: 1 | AGM63: 1 | AGN63: 1 | AGO63: 1 | AGP63: 1 | AGQ63: 1 | AGR63: 1 | AGS63: 1 | AGT63: 1 | AGU63: 1 | AGV63: 1 | AGW63: 1 | AGX63: 1 | AGY63: 1 | AGZ63: 1 | AHA63: 1 | AHB63: 1 | AHC63: 1 | AHD63: 1 | AHE63: 1 | AHF63: 1 | AHG63: 1 | AHH63: 1 | AHI63: 1 | AHJ63: 1 | AHK63: 1 | AHL63: 1 | AHM63: 1 | AHN63: 1 | AHO63: 1 | AHP63: 1 | AHQ63: 1 | AHR63: 1 | AHS63: 1 | AHT63: 1 | AHU63: 1 | AHV63: 1 | AHW63: =IF(AHV63=1,1*(AHW62=1),IF(AHW$55>$J$55*$S11,1*(AHW62=1),0)) -> 1 | AHX63: 1 | AHY63: 1 | AHZ63: 1 | AIA63: 1 | AIB63: 1 | AIC63: 1 | AID63: 1 | AIE63: 1 | AIF63: 1 | AIG63: 1 | AIH63: 1 | AII63: 1 | AIJ63: 1 | AIK63: 1 | AIL63: 1 | AIM63: 1 | AIN63: 1 | AIO63: 1 | AIP63: 1 | AIQ63: 1 | AIR63: 1 | AIS63: 1 | AIT63: 1 | AIU63: 1 | AIV63: 1 | AIW63: 1 | AIX63: 1 | AIY63: 1 | AIZ63: 1 | AJA63: 1 | AJB63: 1 | AJC63: 1 | AJD63: 1 | AJE63: 1 | AJF63: 1 | AJG63: 1 | AJH63: 1 | AJI63: 1 | AJJ63: 1 | AJK63: 1 | AJL63: 1 | AJM63: 1 | AJN63: 1 | AJO63: 1 | AJP63: 1 | AJQ63: 1 | AJR63: 1 | AJS63: 1 | AJT63: 1 | AJU63: 1 | AJV63: 1 | AJW63: 1 | AJX63: 1 | AJY63: 1 | AJZ63: 1 | AKA63: 1 | AKB63: 1 | AKC63: 1 | AKD63: 1 | AKE63: 1 | AKF63: 1 | AKG63: 1 | AKH63: 1
B64: ="3) Decision Rule THREE (if Pt>"&TEXT(S12,"##0.0")&"*P;"&TEXT(S13,"##0.0")&"*P)" -> 3) Decision Rule THREE (if Pt>0.6*P;0.7*P)
A65: YesNo Rule2-1 | C65: Build Stage 1 | E65: =MAX(K65:AKH65) -> 1 | F65: =IFERROR(INDEX($J$51:$AKH$51,MATCH(1,J65:AKH65,0)),0) -> 0 | G65: Rule 3 Stage 1 Exercise | J65: =IF(I65=1,1,IF(J$55>$J$55*$S12,1,0)) -> 1 | K65: =IF(J65=1,1,IF(K$55>$J$55*$S12,1,0)) -> 1 | L65: =IF(K65=1,1,IF(L$55>$J$55*$S12,1,0)) -> 1 | M65: 1 | N65: 1 | O65: 1 | P65: 1 | Q65: 1 | R65: 1 | S65: 1 | T65: 1 | U65: 1 | V65: 1 | W65: 1 | X65: 1 | Y65: 1 | Z65: 1 | AA65: 1 | AB65: 1 | AC65: 1 | AD65: 1 | AE65: 1 | AF65: 1 | AG65: 1 | AH65: 1 | AI65: 1 | AJ65: 1 | AK65: 1 | AL65: 1 | AM65: 1 | AN65: 1 | AO65: 1 | AP65: 1 | AQ65: 1 | AR65: 1 | AS65: 1 | AT65: 1 | AU65: 1 | AV65: 1 | AW65: 1 | AX65: 1 | AY65: 1 | AZ65: 1 | BA65: 1 | BB65: 1 | BC65: 1 | BD65: 1 | BE65: 1 | BF65: 1 | BG65: 1 | BH65: 1 | BI65: 1 | BJ65: 1 | BK65: 1 | BL65: 1 | BM65: 1 | BN65: 1 | BO65: 1 | BP65: 1 | BQ65: 1 | BR65: 1 | BS65: 1 | BT65: 1 | BU65: 1 | BV65: 1 | BW65: =IF(BV65=1,1,IF(BW$55>$J$55*$S12,1,0)) -> 1 | BX65: 1 | BY65: 1 | BZ65: 1 | CA65: 1 | CB65: 1 | CC65: 1 | CD65: 1 | CE65: 1 | CF65: 1 | CG65: 1 | CH65: 1 | CI65: 1 | CJ65: 1 | CK65: 1 | CL65: 1 | CM65: 1 | CN65: 1 | CO65: 1 | CP65: 1 | CQ65: 1 | CR65: 1 | CS65: 1 | CT65: 1 | CU65: 1 | CV65: 1 | CW65: 1 | CX65: 1 | CY65: 1 | CZ65: 1 | DA65: 1 | DB65: 1 | DC65: 1 | DD65: 1 | DE65: 1 | DF65: 1 | DG65: 1 | DH65: 1 | DI65: 1 | DJ65: 1 | DK65: 1 | DL65: 1 | DM65: 1 | DN65: 1 | DO65: 1 | DP65: 1 | DQ65: 1 | DR65: 1 | DS65: 1 | DT65: 1 | DU65: 1 | DV65: 1 | DW65: 1 | DX65: 1 | DY65: 1 | DZ65: 1 | EA65: 1 | EB65: 1 | EC65: 1 | ED65: 1 | EE65: 1 | EF65: 1 | EG65: 1 | EH65: 1 | EI65: =IF(EH65=1,1,IF(EI$55>$J$55*$S12,1,0)) -> 1 | EJ65: 1 | EK65: 1 | EL65: 1 | EM65: 1 | EN65: 1 | EO65: 1 | EP65: 1 | EQ65: 1 | ER65: 1 | ES65: 1 | ET65: 1 | EU65: 1 | EV65: 1 | EW65: 1 | EX65: 1 | EY65: 1 | EZ65: 1 | FA65: 1 | FB65: 1 | FC65: 1 | FD65: 1 | FE65: 1 | FF65: 1 | FG65: 1 | FH65: 1 | FI65: 1 | FJ65: 1 | FK65: 1 | FL65: 1 | FM65: 1 | FN65: 1 | FO65: 1 | FP65: 1 | FQ65: 1 | FR65: 1 | FS65: 1 | FT65: 1 | FU65: 1 | FV65: 1 | FW65: 1 | FX65: 1 | FY65: 1 | FZ65: 1 | GA65: 1 | GB65: 1 | GC65: 1 | GD65: 1 | GE65: 1 | GF65: 1 | GG65: 1 | GH65: 1 | GI65: 1 | GJ65: 1 | GK65: 1 | GL65: 1 | GM65: 1 | GN65: 1 | GO65: 1 | GP65: 1 | GQ65: 1 | GR65: 1 | GS65: 1 | GT65: 1 | GU65: =IF(GT65=1,1,IF(GU$55>$J$55*$S12,1,0)) -> 1 | GV65: 1 | GW65: 1 | GX65: 1 | GY65: 1 | GZ65: 1 | HA65: 1 | HB65: 1 | HC65: 1 | HD65: 1 | HE65: 1 | HF65: 1 | HG65: 1 | HH65: 1 | HI65: 1 | HJ65: 1 | HK65: 1 | HL65: 1 | HM65: 1 | HN65: 1 | HO65: 1 | HP65: 1 | HQ65: 1 | HR65: 1 | HS65: 1 | HT65: 1 | HU65: 1 | HV65: 1 | HW65: 1 | HX65: 1 | HY65: 1 | HZ65: 1 | IA65: 1 | IB65: 1 | IC65: 1 | ID65: 1 | IE65: 1 | IF65: 1 | IG65: 1 | IH65: 1 | II65: 1 | IJ65: 1 | IK65: 1 | IL65: 1 | IM65: 1 | IN65: 1 | IO65: 1 | IP65: 1 | IQ65: 1 | IR65: 1 | IS65: 1 | IT65: 1 | IU65: 1 | IV65: 1 | IW65: 1 | IX65: 1 | IY65: 1 | IZ65: 1 | JA65: 1 | JB65: 1 | JC65: 1 | JD65: 1 | JE65: 1 | JF65: 1 | JG65: =IF(JF65=1,1,IF(JG$55>$J$55*$S12,1,0)) -> 1 | JH65: 1 | JI65: 1 | JJ65: 1 | JK65: 1 | JL65: 1 | JM65: 1 | JN65: 1 | JO65: 1 | JP65: 1 | JQ65: 1 | JR65: 1 | JS65: 1 | JT65: 1 | JU65: 1 | JV65: 1 | JW65: 1 | JX65: 1 | JY65: 1 | JZ65: 1 | KA65: 1 | KB65: 1 | KC65: 1 | KD65: 1 | KE65: 1 | KF65: 1 | KG65: 1 | KH65: 1 | KI65: 1 | KJ65: 1 | KK65: 1 | KL65: 1 | KM65: 1 | KN65: 1 | KO65: 1 | KP65: 1 | KQ65: 1 | KR65: 1 | KS65: 1 | KT65: 1 | KU65: 1 | KV65: 1 | KW65: 1 | KX65: 1 | KY65: 1 | KZ65: 1 | LA65: 1 | LB65: 1 | LC65: 1 | LD65: 1 | LE65: 1 | LF65: 1 | LG65: 1 | LH65: 1 | LI65: 1 | LJ65: 1 | LK65: 1 | LL65: 1 | LM65: 1 | LN65: 1 | LO65: 1 | LP65: 1 | LQ65: 1 | LR65: 1 | LS65: =IF(LR65=1,1,IF(LS$55>$J$55*$S12,1,0)) -> 1 | LT65: 1 | LU65: 1 | LV65: 1 | LW65: 1 | LX65: 1 | LY65: 1 | LZ65: 1 | MA65: 1 | MB65: 1 | MC65: 1 | MD65: 1 | ME65: 1 | MF65: 1 | MG65: 1 | MH65: 1 | MI65: 1 | MJ65: 1 | MK65: 1 | ML65: 1 | MM65: 1 | MN65: 1 | MO65: 1 | MP65: 1 | MQ65: 1 | MR65: 1 | MS65: 1 | MT65: 1 | MU65: 1 | MV65: 1 | MW65: 1 | MX65: 1 | MY65: 1 | MZ65: 1 | NA65: 1 | NB65: 1 | NC65: 1 | ND65: 1 | NE65: 1 | NF65: 1 | NG65: 1 | NH65: 1 | NI65: 1 | NJ65: 1 | NK65: 1 | NL65: 1 | NM65: 1 | NN65: 1 | NO65: 1 | NP65: 1 | NQ65: 1 | NR65: 1 | NS65: 1 | NT65: 1 | NU65: 1 | NV65: 1 | NW65: 1 | NX65: 1 | NY65: 1 | NZ65: 1 | OA65: 1 | OB65: 1 | OC65: 1 | OD65: 1 | OE65: =IF(OD65=1,1,IF(OE$55>$J$55*$S12,1,0)) -> 1 | OF65: 1 | OG65: 1 | OH65: 1 | OI65: 1 | OJ65: 1 | OK65: 1 | OL65: 1 | OM65: 1 | ON65: 1 | OO65: 1 | OP65: 1 | OQ65: 1 | OR65: 1 | OS65: 1 | OT65: 1 | OU65: 1 | OV65: 1 | OW65: 1 | OX65: 1 | OY65: 1 | OZ65: 1 | PA65: 1 | PB65: 1 | PC65: 1 | PD65: 1 | PE65: 1 | PF65: 1 | PG65: 1 | PH65: 1 | PI65: 1 | PJ65: 1 | PK65: 1 | PL65: 1 | PM65: 1 | PN65: 1 | PO65: 1 | PP65: 1 | PQ65: 1 | PR65: 1 | PS65: 1 | PT65: 1 | PU65: 1 | PV65: 1 | PW65: 1 | PX65: 1 | PY65: 1 | PZ65: 1 | QA65: 1 | QB65: 1 | QC65: 1 | QD65: 1 | QE65: 1 | QF65: 1 | QG65: 1 | QH65: 1 | QI65: 1 | QJ65: 1 | QK65: 1 | QL65: 1 | QM65: 1 | QN65: 1 | QO65: 1 | QP65: 1 | QQ65: =IF(QP65=1,1,IF(QQ$55>$J$55*$S12,1,0)) -> 1 | QR65: 1 | QS65: 1 | QT65: 1 | QU65: 1 | QV65: 1 | QW65: 1 | QX65: 1 | QY65: 1 | QZ65: 1 | RA65: 1 | RB65: 1 | RC65: 1 | RD65: 1 | RE65: 1 | RF65: 1 | RG65: 1 | RH65: 1 | RI65: 1 | RJ65: 1 | RK65: 1 | RL65: 1 | RM65: 1 | RN65: 1 | RO65: 1 | RP65: 1 | RQ65: 1 | RR65: 1 | RS65: 1 | RT65: 1 | RU65: 1 | RV65: 1 | RW65: 1 | RX65: 1 | RY65: 1 | RZ65: 1 | SA65: 1 | SB65: 1 | SC65: 1 | SD65: 1 | SE65: 1 | SF65: 1 | SG65: 1 | SH65: 1 | SI65: 1 | SJ65: 1 | SK65: 1 | SL65: 1 | SM65: 1 | SN65: 1 | SO65: 1 | SP65: 1 | SQ65: 1 | SR65: 1 | SS65: 1 | ST65: 1 | SU65: 1 | SV65: 1 | SW65: 1 | SX65: 1 | SY65: 1 | SZ65: 1 | TA65: 1 | TB65: 1 | TC65: =IF(TB65=1,1,IF(TC$55>$J$55*$S12,1,0)) -> 1 | TD65: 1 | TE65: 1 | TF65: 1 | TG65: 1 | TH65: 1 | TI65: 1 | TJ65: 1 | TK65: 1 | TL65: 1 | TM65: 1 | TN65: 1 | TO65: 1 | TP65: 1 | TQ65: 1 | TR65: 1 | TS65: 1 | TT65: 1 | TU65: 1 | TV65: 1 | TW65: 1 | TX65: 1 | TY65: 1 | TZ65: 1 | UA65: 1 | UB65: 1 | UC65: 1 | UD65: 1 | UE65: 1 | UF65: 1 | UG65: 1 | UH65: 1 | UI65: 1 | UJ65: 1 | UK65: 1 | UL65: 1 | UM65: 1 | UN65: 1 | UO65: 1 | UP65: 1 | UQ65: 1 | UR65: 1 | US65: 1 | UT65: 1 | UU65: 1 | UV65: 1 | UW65: 1 | UX65: 1 | UY65: 1 | UZ65: 1 | VA65: 1 | VB65: 1 | VC65: 1 | VD65: 1 | VE65: 1 | VF65: 1 | VG65: 1 | VH65: 1 | VI65: 1 | VJ65: 1 | VK65: 1 | VL65: 1 | VM65: 1 | VN65: 1 | VO65: =IF(VN65=1,1,IF(VO$55>$J$55*$S12,1,0)) -> 1 | VP65: 1 | VQ65: 1 | VR65: 1 | VS65: 1 | VT65: 1 | VU65: 1 | VV65: 1 | VW65: 1 | VX65: 1 | VY65: 1 | VZ65: 1 | WA65: 1 | WB65: 1 | WC65: 1 | WD65: 1 | WE65: 1 | WF65: 1 | WG65: 1 | WH65: 1 | WI65: 1 | WJ65: 1 | WK65: 1 | WL65: 1 | WM65: 1 | WN65: 1 | WO65: 1 | WP65: 1 | WQ65: 1 | WR65: 1 | WS65: 1 | WT65: 1 | WU65: 1 | WV65: 1 | WW65: 1 | WX65: 1 | WY65: 1 | WZ65: 1 | XA65: 1 | XB65: 1 | XC65: 1 | XD65: 1 | XE65: 1 | XF65: 1 | XG65: 1 | XH65: 1 | XI65: 1 | XJ65: 1 | XK65: 1 | XL65: 1 | XM65: 1 | XN65: 1 | XO65: 1 | XP65: 1 | XQ65: 1 | XR65: 1 | XS65: 1 | XT65: 1 | XU65: 1 | XV65: 1 | XW65: 1 | XX65: 1 | XY65: 1 | XZ65: 1 | YA65: =IF(XZ65=1,1,IF(YA$55>$J$55*$S12,1,0)) -> 1 | YB65: 1 | YC65: 1 | YD65: 1 | YE65: 1 | YF65: 1 | YG65: 1 | YH65: 1 | YI65: 1 | YJ65: 1 | YK65: 1 | YL65: 1 | YM65: 1 | YN65: 1 | YO65: 1 | YP65: 1 | YQ65: 1 | YR65: 1 | YS65: 1 | YT65: 1 | YU65: 1 | YV65: 1 | YW65: 1 | YX65: 1 | YY65: 1 | YZ65: 1 | ZA65: 1 | ZB65: 1 | ZC65: 1 | ZD65: 1 | ZE65: 1 | ZF65: 1 | ZG65: 1 | ZH65: 1 | ZI65: 1 | ZJ65: 1 | ZK65: 1 | ZL65: 1 | ZM65: 1 | ZN65: 1 | ZO65: 1 | ZP65: 1 | ZQ65: 1 | ZR65: 1 | ZS65: 1 | ZT65: 1 | ZU65: 1 | ZV65: 1 | ZW65: 1 | ZX65: 1 | ZY65: 1 | ZZ65: 1 | AAA65: 1 | AAB65: 1 | AAC65: 1 | AAD65: 1 | AAE65: 1 | AAF65: 1 | AAG65: 1 | AAH65: 1 | AAI65: 1 | AAJ65: 1 | AAK65: 1 | AAL65: 1 | AAM65: =IF(AAL65=1,1,IF(AAM$55>$J$55*$S12,1,0)) -> 1 | AAN65: 1 | AAO65: 1 | AAP65: 1 | AAQ65: 1 | AAR65: 1 | AAS65: 1 | AAT65: 1 | AAU65: 1 | AAV65: 1 | AAW65: 1 | AAX65: 1 | AAY65: 1 | AAZ65: 1 | ABA65: 1 | ABB65: 1 | ABC65: 1 | ABD65: 1 | ABE65: 1 | ABF65: 1 | ABG65: 1 | ABH65: 1 | ABI65: 1 | ABJ65: 1 | ABK65: 1 | ABL65: 1 | ABM65: 1 | ABN65: 1 | ABO65: 1 | ABP65: 1 | ABQ65: 1 | ABR65: 1 | ABS65: 1 | ABT65: 1 | ABU65: 1 | ABV65: 1 | ABW65: 1 | ABX65: 1 | ABY65: 1 | ABZ65: 1 | ACA65: 1 | ACB65: 1 | ACC65: 1 | ACD65: 1 | ACE65: 1 | ACF65: 1 | ACG65: 1 | ACH65: 1 | ACI65: 1 | ACJ65: 1 | ACK65: 1 | ACL65: 1 | ACM65: 1 | ACN65: 1 | ACO65: 1 | ACP65: 1 | ACQ65: 1 | ACR65: 1 | ACS65: 1 | ACT65: 1 | ACU65: 1 | ACV65: 1 | ACW65: 1 | ACX65: 1 | ACY65: =IF(ACX65=1,1,IF(ACY$55>$J$55*$S12,1,0)) -> 1 | ACZ65: 1 | ADA65: 1 | ADB65: 1 | ADC65: 1 | ADD65: 1 | ADE65: 1 | ADF65: 1 | ADG65: 1 | ADH65: 1 | ADI65: 1 | ADJ65: 1 | ADK65: 1 | ADL65: 1 | ADM65: 1 | ADN65: 1 | ADO65: 1 | ADP65: 1 | ADQ65: 1 | ADR65: 1 | ADS65: 1 | ADT65: 1 | ADU65: 1 | ADV65: 1 | ADW65: 1 | ADX65: 1 | ADY65: 1 | ADZ65: 1 | AEA65: 1 | AEB65: 1 | AEC65: 1 | AED65: 1 | AEE65: 1 | AEF65: 1 | AEG65: 1 | AEH65: 1 | AEI65: 1 | AEJ65: 1 | AEK65: 1 | AEL65: 1 | AEM65: 1 | AEN65: 1 | AEO65: 1 | AEP65: 1 | AEQ65: 1 | AER65: 1 | AES65: 1 | AET65: 1 | AEU65: 1 | AEV65: 1 | AEW65: 1 | AEX65: 1 | AEY65: 1 | AEZ65: 1 | AFA65: 1 | AFB65: 1 | AFC65: 1 | AFD65: 1 | AFE65: 1 | AFF65: 1 | AFG65: 1 | AFH65: 1 | AFI65: 1 | AFJ65: 1 | AFK65: =IF(AFJ65=1,1,IF(AFK$55>$J$55*$S12,1,0)) -> 1 | AFL65: 1 | AFM65: 1 | AFN65: 1 | AFO65: 1 | AFP65: 1 | AFQ65: 1 | AFR65: 1 | AFS65: 1 | AFT65: 1 | AFU65: 1 | AFV65: 1 | AFW65: 1 | AFX65: 1 | AFY65: 1 | AFZ65: 1 | AGA65: 1 | AGB65: 1 | AGC65: 1 | AGD65: 1 | AGE65: 1 | AGF65: 1 | AGG65: 1 | AGH65: 1 | AGI65: 1 | AGJ65: 1 | AGK65: 1 | AGL65: 1 | AGM65: 1 | AGN65: 1 | AGO65: 1 | AGP65: 1 | AGQ65: 1 | AGR65: 1 | AGS65: 1 | AGT65: 1 | AGU65: 1 | AGV65: 1 | AGW65: 1 | AGX65: 1 | AGY65: 1 | AGZ65: 1 | AHA65: 1 | AHB65: 1 | AHC65: 1 | AHD65: 1 | AHE65: 1 | AHF65: 1 | AHG65: 1 | AHH65: 1 | AHI65: 1 | AHJ65: 1 | AHK65: 1 | AHL65: 1 | AHM65: 1 | AHN65: 1 | AHO65: 1 | AHP65: 1 | AHQ65: 1 | AHR65: 1 | AHS65: 1 | AHT65: 1 | AHU65: 1 | AHV65: 1 | AHW65: =IF(AHV65=1,1,IF(AHW$55>$J$55*$S12,1,0)) -> 1 | AHX65: 1 | AHY65: 1 | AHZ65: 1 | AIA65: 1 | AIB65: 1 | AIC65: 1 | AID65: 1 | AIE65: 1 | AIF65: 1 | AIG65: 1 | AIH65: 1 | AII65: 1 | AIJ65: 1 | AIK65: 1 | AIL65: 1 | AIM65: 1 | AIN65: 1 | AIO65: 1 | AIP65: 1 | AIQ65: 1 | AIR65: 1 | AIS65: 1 | AIT65: 1 | AIU65: 1 | AIV65: 1 | AIW65: 1 | AIX65: 1 | AIY65: 1 | AIZ65: 1 | AJA65: 1 | AJB65: 1 | AJC65: 1 | AJD65: 1 | AJE65: 1 | AJF65: 1 | AJG65: 1 | AJH65: 1 | AJI65: 1 | AJJ65: 1 | AJK65: 1 | AJL65: 1 | AJM65: 1 | AJN65: 1 | AJO65: 1 | AJP65: 1 | AJQ65: 1 | AJR65: 1 | AJS65: 1 | AJT65: 1 | AJU65: 1 | AJV65: 1 | AJW65: 1 | AJX65: 1 | AJY65: 1 | AJZ65: 1 | AKA65: 1 | AKB65: 1 | AKC65: 1 | AKD65: 1 | AKE65: 1 | AKF65: 1 | AKG65: 1 | AKH65: 1
A66: YesNo Rule2-2 | C66: Build Stage 2 | E66: =MAX(K66:AKH66) -> 1 | F66: =IFERROR(INDEX($J$51:$AKH$51,MATCH(1,J66:AKH66,0)),0) -> 0 | G66: Rule 3 Stage 2 Exercise | J66: =IF(I66=1,1*(J65=1),IF(J$55>$J$55*$S13,1*(J65=1),0)) -> 1 | K66: 1 | L66: =IF(K66=1,1*(L65=1),IF(L$55>$J$55*$S13,1*(L65=1),0)) -> 1 | M66: 1 | N66: 1 | O66: 1 | P66: 1 | Q66: 1 | R66: 1 | S66: 1 | T66: 1 | U66: 1 | V66: 1 | W66: 1 | X66: 1 | Y66: 1 | Z66: 1 | AA66: 1 | AB66: 1 | AC66: 1 | AD66: 1 | AE66: 1 | AF66: 1 | AG66: 1 | AH66: 1 | AI66: 1 | AJ66: 1 | AK66: 1 | AL66: 1 | AM66: 1 | AN66: 1 | AO66: 1 | AP66: 1 | AQ66: 1 | AR66: 1 | AS66: 1 | AT66: 1 | AU66: 1 | AV66: 1 | AW66: 1 | AX66: 1 | AY66: 1 | AZ66: 1 | BA66: 1 | BB66: 1 | BC66: 1 | BD66: 1 | BE66: 1 | BF66: 1 | BG66: 1 | BH66: 1 | BI66: 1 | BJ66: 1 | BK66: 1 | BL66: 1 | BM66: 1 | BN66: 1 | BO66: 1 | BP66: 1 | BQ66: 1 | BR66: 1 | BS66: 1 | BT66: 1 | BU66: 1 | BV66: 1 | BW66: =IF(BV66=1,1*(BW65=1),IF(BW$55>$J$55*$S13,1*(BW65=1),0)) -> 1 | BX66: 1 | BY66: 1 | BZ66: 1 | CA66: 1 | CB66: 1 | CC66: 1 | CD66: 1 | CE66: 1 | CF66: 1 | CG66: 1 | CH66: 1 | CI66: 1 | CJ66: 1 | CK66: 1 | CL66: 1 | CM66: 1 | CN66: 1 | CO66: 1 | CP66: 1 | CQ66: 1 | CR66: 1 | CS66: 1 | CT66: 1 | CU66: 1 | CV66: 1 | CW66: 1 | CX66: 1 | CY66: 1 | CZ66: 1 | DA66: 1 | DB66: 1 | DC66: 1 | DD66: 1 | DE66: 1 | DF66: 1 | DG66: 1 | DH66: 1 | DI66: 1 | DJ66: 1 | DK66: 1 | DL66: 1 | DM66: 1 | DN66: 1 | DO66: 1 | DP66: 1 | DQ66: 1 | DR66: 1 | DS66: 1 | DT66: 1 | DU66: 1 | DV66: 1 | DW66: 1 | DX66: 1 | DY66: 1 | DZ66: 1 | EA66: 1 | EB66: 1 | EC66: 1 | ED66: 1 | EE66: 1 | EF66: 1 | EG66: 1 | EH66: 1 | EI66: =IF(EH66=1,1*(EI65=1),IF(EI$55>$J$55*$S13,1*(EI65=1),0)) -> 1 | EJ66: 1 | EK66: 1 | EL66: 1 | EM66: 1 | EN66: 1 | EO66: 1 | EP66: 1 | EQ66: 1 | ER66: 1 | ES66: 1 | ET66: 1 | EU66: 1 | EV66: 1 | EW66: 1 | EX66: 1 | EY66: 1 | EZ66: 1 | FA66: 1 | FB66: 1 | FC66: 1 | FD66: 1 | FE66: 1 | FF66: 1 | FG66: 1 | FH66: 1 | FI66: 1 | FJ66: 1 | FK66: 1 | FL66: 1 | FM66: 1 | FN66: 1 | FO66: 1 | FP66: 1 | FQ66: 1 | FR66: 1 | FS66: 1 | FT66: 1 | FU66: 1 | FV66: 1 | FW66: 1 | FX66: 1 | FY66: 1 | FZ66: 1 | GA66: 1 | GB66: 1 | GC66: 1 | GD66: 1 | GE66: 1 | GF66: 1 | GG66: 1 | GH66: 1 | GI66: 1 | GJ66: 1 | GK66: 1 | GL66: 1 | GM66: 1 | GN66: 1 | GO66: 1 | GP66: 1 | GQ66: 1 | GR66: 1 | GS66: 1 | GT66: 1 | GU66: =IF(GT66=1,1*(GU65=1),IF(GU$55>$J$55*$S13,1*(GU65=1),0)) -> 1 | GV66: 1 | GW66: 1 | GX66: 1 | GY66: 1 | GZ66: 1 | HA66: 1 | HB66: 1 | HC66: 1 | HD66: 1 | HE66: 1 | HF66: 1 | HG66: 1 | HH66: 1 | HI66: 1 | HJ66: 1 | HK66: 1 | HL66: 1 | HM66: 1 | HN66: 1 | HO66: 1 | HP66: 1 | HQ66: 1 | HR66: 1 | HS66: 1 | HT66: 1 | HU66: 1 | HV66: 1 | HW66: 1 | HX66: 1 | HY66: 1 | HZ66: 1 | IA66: 1 | IB66: 1 | IC66: 1 | ID66: 1 | IE66: 1 | IF66: 1 | IG66: 1 | IH66: 1 | II66: 1 | IJ66: 1 | IK66: 1 | IL66: 1 | IM66: 1 | IN66: 1 | IO66: 1 | IP66: 1 | IQ66: 1 | IR66: 1 | IS66: 1 | IT66: 1 | IU66: 1 | IV66: 1 | IW66: 1 | IX66: 1 | IY66: 1 | IZ66: 1 | JA66: 1 | JB66: 1 | JC66: 1 | JD66: 1 | JE66: 1 | JF66: 1 | JG66: =IF(JF66=1,1*(JG65=1),IF(JG$55>$J$55*$S13,1*(JG65=1),0)) -> 1 | JH66: 1 | JI66: 1 | JJ66: 1 | JK66: 1 | JL66: 1 | JM66: 1 | JN66: 1 | JO66: 1 | JP66: 1 | JQ66: 1 | JR66: 1 | JS66: 1 | JT66: 1 | JU66: 1 | JV66: 1 | JW66: 1 | JX66: 1 | JY66: 1 | JZ66: 1 | KA66: 1 | KB66: 1 | KC66: 1 | KD66: 1 | KE66: 1 | KF66: 1 | KG66: 1 | KH66: 1 | KI66: 1 | KJ66: 1 | KK66: 1 | KL66: 1 | KM66: 1 | KN66: 1 | KO66: 1 | KP66: 1 | KQ66: 1 | KR66: 1 | KS66: 1 | KT66: 1 | KU66: 1 | KV66: 1 | KW66: 1 | KX66: 1 | KY66: 1 | KZ66: 1 | LA66: 1 | LB66: 1 | LC66: 1 | LD66: 1 | LE66: 1 | LF66: 1 | LG66: 1 | LH66: 1 | LI66: 1 | LJ66: 1 | LK66: 1 | LL66: 1 | LM66: 1 | LN66: 1 | LO66: 1 | LP66: 1 | LQ66: 1 | LR66: 1 | LS66: =IF(LR66=1,1*(LS65=1),IF(LS$55>$J$55*$S13,1*(LS65=1),0)) -> 1 | LT66: 1 | LU66: 1 | LV66: 1 | LW66: 1 | LX66: 1 | LY66: 1 | LZ66: 1 | MA66: 1 | MB66: 1 | MC66: 1 | MD66: 1 | ME66: 1 | MF66: 1 | MG66: 1 | MH66: 1 | MI66: 1 | MJ66: 1 | MK66: 1 | ML66: 1 | MM66: 1 | MN66: 1 | MO66: 1 | MP66: 1 | MQ66: 1 | MR66: 1 | MS66: 1 | MT66: 1 | MU66: 1 | MV66: 1 | MW66: 1 | MX66: 1 | MY66: 1 | MZ66: 1 | NA66: 1 | NB66: 1 | NC66: 1 | ND66: 1 | NE66: 1 | NF66: 1 | NG66: 1 | NH66: 1 | NI66: 1 | NJ66: 1 | NK66: 1 | NL66: 1 | NM66: 1 | NN66: 1 | NO66: 1 | NP66: 1 | NQ66: 1 | NR66: 1 | NS66: 1 | NT66: 1 | NU66: 1 | NV66: 1 | NW66: 1 | NX66: 1 | NY66: 1 | NZ66: 1 | OA66: 1 | OB66: 1 | OC66: 1 | OD66: 1 | OE66: =IF(OD66=1,1*(OE65=1),IF(OE$55>$J$55*$S13,1*(OE65=1),0)) -> 1 | OF66: 1 | OG66: 1 | OH66: 1 | OI66: 1 | OJ66: 1 | OK66: 1 | OL66: 1 | OM66: 1 | ON66: 1 | OO66: 1 | OP66: 1 | OQ66: 1 | OR66: 1 | OS66: 1 | OT66: 1 | OU66: 1 | OV66: 1 | OW66: 1 | OX66: 1 | OY66: 1 | OZ66: 1 | PA66: 1 | PB66: 1 | PC66: 1 | PD66: 1 | PE66: 1 | PF66: 1 | PG66: 1 | PH66: 1 | PI66: 1 | PJ66: 1 | PK66: 1 | PL66: 1 | PM66: 1 | PN66: 1 | PO66: 1 | PP66: 1 | PQ66: 1 | PR66: 1 | PS66: 1 | PT66: 1 | PU66: 1 | PV66: 1 | PW66: 1 | PX66: 1 | PY66: 1 | PZ66: 1 | QA66: 1 | QB66: 1 | QC66: 1 | QD66: 1 | QE66: 1 | QF66: 1 | QG66: 1 | QH66: 1 | QI66: 1 | QJ66: 1 | QK66: 1 | QL66: 1 | QM66: 1 | QN66: 1 | QO66: 1 | QP66: 1 | QQ66: =IF(QP66=1,1*(QQ65=1),IF(QQ$55>$J$55*$S13,1*(QQ65=1),0)) -> 1 | QR66: 1 | QS66: 1 | QT66: 1 | QU66: 1 | QV66: 1 | QW66: 1 | QX66: 1 | QY66: 1 | QZ66: 1 | RA66: 1 | RB66: 1 | RC66: 1 | RD66: 1 | RE66: 1 | RF66: 1 | RG66: 1 | RH66: 1 | RI66: 1 | RJ66: 1 | RK66: 1 | RL66: 1 | RM66: 1 | RN66: 1 | RO66: 1 | RP66: 1 | RQ66: 1 | RR66: 1 | RS66: 1 | RT66: 1 | RU66: 1 | RV66: 1 | RW66: 1 | RX66: 1 | RY66: 1 | RZ66: 1 | SA66: 1 | SB66: 1 | SC66: 1 | SD66: 1 | SE66: 1 | SF66: 1 | SG66: 1 | SH66: 1 | SI66: 1 | SJ66: 1 | SK66: 1 | SL66: 1 | SM66: 1 | SN66: 1 | SO66: 1 | SP66: 1 | SQ66: 1 | SR66: 1 | SS66: 1 | ST66: 1 | SU66: 1 | SV66: 1 | SW66: 1 | SX66: 1 | SY66: 1 | SZ66: 1 | TA66: 1 | TB66: 1 | TC66: =IF(TB66=1,1*(TC65=1),IF(TC$55>$J$55*$S13,1*(TC65=1),0)) -> 1 | TD66: 1 | TE66: 1 | TF66: 1 | TG66: 1 | TH66: 1 | TI66: 1 | TJ66: 1 | TK66: 1 | TL66: 1 | TM66: 1 | TN66: 1 | TO66: 1 | TP66: 1 | TQ66: 1 | TR66: 1 | TS66: 1 | TT66: 1 | TU66: 1 | TV66: 1 | TW66: 1 | TX66: 1 | TY66: 1 | TZ66: 1 | UA66: 1 | UB66: 1 | UC66: 1 | UD66: 1 | UE66: 1 | UF66: 1 | UG66: 1 | UH66: 1 | UI66: 1 | UJ66: 1 | UK66: 1 | UL66: 1 | UM66: 1 | UN66: 1 | UO66: 1 | UP66: 1 | UQ66: 1 | UR66: 1 | US66: 1 | UT66: 1 | UU66: 1 | UV66: 1 | UW66: 1 | UX66: 1 | UY66: 1 | UZ66: 1 | VA66: 1 | VB66: 1 | VC66: 1 | VD66: 1 | VE66: 1 | VF66: 1 | VG66: 1 | VH66: 1 | VI66: 1 | VJ66: 1 | VK66: 1 | VL66: 1 | VM66: 1 | VN66: 1 | VO66: =IF(VN66=1,1*(VO65=1),IF(VO$55>$J$55*$S13,1*(VO65=1),0)) -> 1 | VP66: 1 | VQ66: 1 | VR66: 1 | VS66: 1 | VT66: 1 | VU66: 1 | VV66: 1 | VW66: 1 | VX66: 1 | VY66: 1 | VZ66: 1 | WA66: 1 | WB66: 1 | WC66: 1 | WD66: 1 | WE66: 1 | WF66: 1 | WG66: 1 | WH66: 1 | WI66: 1 | WJ66: 1 | WK66: 1 | WL66: 1 | WM66: 1 | WN66: 1 | WO66: 1 | WP66: 1 | WQ66: 1 | WR66: 1 | WS66: 1 | WT66: 1 | WU66: 1 | WV66: 1 | WW66: 1 | WX66: 1 | WY66: 1 | WZ66: 1 | XA66: 1 | XB66: 1 | XC66: 1 | XD66: 1 | XE66: 1 | XF66: 1 | XG66: 1 | XH66: 1 | XI66: 1 | XJ66: 1 | XK66: 1 | XL66: 1 | XM66: 1 | XN66: 1 | XO66: 1 | XP66: 1 | XQ66: 1 | XR66: 1 | XS66: 1 | XT66: 1 | XU66: 1 | XV66: 1 | XW66: 1 | XX66: 1 | XY66: 1 | XZ66: 1 | YA66: =IF(XZ66=1,1*(YA65=1),IF(YA$55>$J$55*$S13,1*(YA65=1),0)) -> 1 | YB66: 1 | YC66: 1 | YD66: 1 | YE66: 1 | YF66: 1 | YG66: 1 | YH66: 1 | YI66: 1 | YJ66: 1 | YK66: 1 | YL66: 1 | YM66: 1 | YN66: 1 | YO66: 1 | YP66: 1 | YQ66: 1 | YR66: 1 | YS66: 1 | YT66: 1 | YU66: 1 | YV66: 1 | YW66: 1 | YX66: 1 | YY66: 1 | YZ66: 1 | ZA66: 1 | ZB66: 1 | ZC66: 1 | ZD66: 1 | ZE66: 1 | ZF66: 1 | ZG66: 1 | ZH66: 1 | ZI66: 1 | ZJ66: 1 | ZK66: 1 | ZL66: 1 | ZM66: 1 | ZN66: 1 | ZO66: 1 | ZP66: 1 | ZQ66: 1 | ZR66: 1 | ZS66: 1 | ZT66: 1 | ZU66: 1 | ZV66: 1 | ZW66: 1 | ZX66: 1 | ZY66: 1 | ZZ66: 1 | AAA66: 1 | AAB66: 1 | AAC66: 1 | AAD66: 1 | AAE66: 1 | AAF66: 1 | AAG66: 1 | AAH66: 1 | AAI66: 1 | AAJ66: 1 | AAK66: 1 | AAL66: 1 | AAM66: =IF(AAL66=1,1*(AAM65=1),IF(AAM$55>$J$55*$S13,1*(AAM65=1),0)) -> 1 | AAN66: 1 | AAO66: 1 | AAP66: 1 | AAQ66: 1 | AAR66: 1 | AAS66: 1 | AAT66: 1 | AAU66: 1 | AAV66: 1 | AAW66: 1 | AAX66: 1 | AAY66: 1 | AAZ66: 1 | ABA66: 1 | ABB66: 1 | ABC66: 1 | ABD66: 1 | ABE66: 1 | ABF66: 1 | ABG66: 1 | ABH66: 1 | ABI66: 1 | ABJ66: 1 | ABK66: 1 | ABL66: 1 | ABM66: 1 | ABN66: 1 | ABO66: 1 | ABP66: 1 | ABQ66: 1 | ABR66: 1 | ABS66: 1 | ABT66: 1 | ABU66: 1 | ABV66: 1 | ABW66: 1 | ABX66: 1 | ABY66: 1 | ABZ66: 1 | ACA66: 1 | ACB66: 1 | ACC66: 1 | ACD66: 1 | ACE66: 1 | ACF66: 1 | ACG66: 1 | ACH66: 1 | ACI66: 1 | ACJ66: 1 | ACK66: 1 | ACL66: 1 | ACM66: 1 | ACN66: 1 | ACO66: 1 | ACP66: 1 | ACQ66: 1 | ACR66: 1 | ACS66: 1 | ACT66: 1 | ACU66: 1 | ACV66: 1 | ACW66: 1 | ACX66: 1 | ACY66: =IF(ACX66=1,1*(ACY65=1),IF(ACY$55>$J$55*$S13,1*(ACY65=1),0)) -> 1 | ACZ66: 1 | ADA66: 1 | ADB66: 1 | ADC66: 1 | ADD66: 1 | ADE66: 1 | ADF66: 1 | ADG66: 1 | ADH66: 1 | ADI66: 1 | ADJ66: 1 | ADK66: 1 | ADL66: 1 | ADM66: 1 | ADN66: 1 | ADO66: 1 | ADP66: 1 | ADQ66: 1 | ADR66: 1 | ADS66: 1 | ADT66: 1 | ADU66: 1 | ADV66: 1 | ADW66: 1 | ADX66: 1 | ADY66: 1 | ADZ66: 1 | AEA66: 1 | AEB66: 1 | AEC66: 1 | AED66: 1 | AEE66: 1 | AEF66: 1 | AEG66: 1 | AEH66: 1 | AEI66: 1 | AEJ66: 1 | AEK66: 1 | AEL66: 1 | AEM66: 1 | AEN66: 1 | AEO66: 1 | AEP66: 1 | AEQ66: 1 | AER66: 1 | AES66: 1 | AET66: 1 | AEU66: 1 | AEV66: 1 | AEW66: 1 | AEX66: 1 | AEY66: 1 | AEZ66: 1 | AFA66: 1 | AFB66: 1 | AFC66: 1 | AFD66: 1 | AFE66: 1 | AFF66: 1 | AFG66: 1 | AFH66: 1 | AFI66: 1 | AFJ66: 1 | AFK66: =IF(AFJ66=1,1*(AFK65=1),IF(AFK$55>$J$55*$S13,1*(AFK65=1),0)) -> 1 | AFL66: 1 | AFM66: 1 | AFN66: 1 | AFO66: 1 | AFP66: 1 | AFQ66: 1 | AFR66: 1 | AFS66: 1 | AFT66: 1 | AFU66: 1 | AFV66: 1 | AFW66: 1 | AFX66: 1 | AFY66: 1 | AFZ66: 1 | AGA66: 1 | AGB66: 1 | AGC66: 1 | AGD66: 1 | AGE66: 1 | AGF66: 1 | AGG66: 1 | AGH66: 1 | AGI66: 1 | AGJ66: 1 | AGK66: 1 | AGL66: 1 | AGM66: 1 | AGN66: 1 | AGO66: 1 | AGP66: 1 | AGQ66: 1 | AGR66: 1 | AGS66: 1 | AGT66: 1 | AGU66: 1 | AGV66: 1 | AGW66: 1 | AGX66: 1 | AGY66: 1 | AGZ66: 1 | AHA66: 1 | AHB66: 1 | AHC66: 1 | AHD66: 1 | AHE66: 1 | AHF66: 1 | AHG66: 1 | AHH66: 1 | AHI66: 1 | AHJ66: 1 | AHK66: 1 | AHL66: 1 | AHM66: 1 | AHN66: 1 | AHO66: 1 | AHP66: 1 | AHQ66: 1 | AHR66: 1 | AHS66: 1 | AHT66: 1 | AHU66: 1 | AHV66: 1 | AHW66: =IF(AHV66=1,1*(AHW65=1),IF(AHW$55>$J$55*$S13,1*(AHW65=1),0)) -> 1 | AHX66: 1 | AHY66: 1 | AHZ66: 1 | AIA66: 1 | AIB66: 1 | AIC66: 1 | AID66: 1 | AIE66: 1 | AIF66: 1 | AIG66: 1 | AIH66: 1 | AII66: 1 | AIJ66: 1 | AIK66: 1 | AIL66: 1 | AIM66: 1 | AIN66: 1 | AIO66: 1 | AIP66: 1 | AIQ66: 1 | AIR66: 1 | AIS66: 1 | AIT66: 1 | AIU66: 1 | AIV66: 1 | AIW66: 1 | AIX66: 1 | AIY66: 1 | AIZ66: 1 | AJA66: 1 | AJB66: 1 | AJC66: 1 | AJD66: 1 | AJE66: 1 | AJF66: 1 | AJG66: 1 | AJH66: 1 | AJI66: 1 | AJJ66: 1 | AJK66: 1 | AJL66: 1 | AJM66: 1 | AJN66: 1 | AJO66: 1 | AJP66: 1 | AJQ66: 1 | AJR66: 1 | AJS66: 1 | AJT66: 1 | AJU66: 1 | AJV66: 1 | AJW66: 1 | AJX66: 1 | AJY66: 1 | AJZ66: 1 | AKA66: 1 | AKB66: 1 | AKC66: 1 | AKD66: 1 | AKE66: 1 | AKF66: 1 | AKG66: 1 | AKH66: 1
F68: Present | G68: Total
B69: Item | F69: Value | G69: Cash Flow
B70: Cash Flow based on Expansion Rule 1
B71: Net Rent Collected Stage 1 | K71: =J59*K$55/periods -> 0 | L71: 0 | M71: 42.46089791 | N71: 43.25477909 | O71: 43.26132682 | P71: 46.35727248 | Q71: 48.04866302 | R71: =Q59*R$55/periods -> 49.02178324 | S71: 47.49186843 | T71: 52.38990472 | U71: 55.09297757 | V71: =U59*V$55/periods -> 59.01305323 | W71: =V59*W$55/periods -> 52.79950839 | X71: 57.84502759 | Y71: 59.53756011 | Z71: 54.90789895 | AA71: 53.74664452 | AB71: 57.01676927 | AC71: 51.74669885 | AD71: 65.61012784 | AE71: 71.03338939 | AF71: 74.03462606 | AG71: 73.70849251 | AH71: 73.88899204 | AI71: 93.09125064 | AJ71: 83.12834607 | AK71: 71.27045043 | AL71: 70.68306604 | AM71: 69.94887562 | AN71: 62.7831057 | AO71: 64.14464446 | AP71: 73.31419996 | AQ71: 50.97808009 | AR71: 55.37978056 | AS71: 62.44461478 | AT71: 66.13364974 | AU71: 61.61948406 | AV71: 63.41976674 | AW71: 63.01357201 | AX71: 70.65558912 | AY71: 84.97970647 | AZ71: 91.48380115 | BA71: 87.29082998 | BB71: 93.0159611 | BC71: 99.91403202 | BD71: 97.49421493 | BE71: 114.1456782 | BF71: 116.1907006 | BG71: 126.9176816 | BH71: 142.8108283 | BI71: 142.1020277 | BJ71: 138.784949 | BK71: 151.7785696 | BL71: 159.7946851 | BM71: 189.87783 | BN71: 203.6555016 | BO71: 221.8651894 | BP71: 220.561113 | BQ71: 204.1728338 | BR71: 199.978472 | BS71: 188.1649414 | BT71: 180.3037374 | BU71: 172.6076345 | BV71: 176.4223929 | BW71: =BV59*BW$55/periods -> 189.2313419 | BX71: 162.6605306 | BY71: 145.1282753 | BZ71: 131.0954877 | CA71: 125.0565649 | CB71: 141.9753112 | CC71: 124.598552 | CD71: 127.8734818 | CE71: 117.882947 | CF71: 127.8108496 | CG71: 129.3019713 | CH71: 136.5146714 | CI71: 121.5200051 | CJ71: 121.9969687 | CK71: 131.6272099 | CL71: 142.6437989 | CM71: 145.9320944 | CN71: 152.4243146 | CO71: 173.347723 | CP71: 156.065898 | CQ71: 165.42818 | CR71: 178.5482341 | CS71: 177.4058245 | CT71: 169.3345984 | CU71: 163.4431054 | CV71: 148.6695695 | CW71: 141.6762366 | CX71: 145.9392352 | CY71: 147.0263369 | CZ71: 141.4173272 | DA71: 154.9468254 | DB71: 159.9139816 | DC71: 166.7443335 | DD71: 163.3436754 | DE71: 167.1987478 | DF71: 179.8455679 | DG71: 184.5757044 | DH71: 197.1320788 | DI71: 196.153662 | DJ71: 214.200058 | DK71: 254.666767 | DL71: 244.0924541 | DM71: 218.1227033 | DN71: 230.0234962 | DO71: 225.5111016 | DP71: 224.7024288 | DQ71: 233.8835753 | DR71: 220.6867737 | DS71: 214.1268642 | DT71: 233.970439 | DU71: 220.6914461 | DV71: 226.3730821 | DW71: 242.8734007 | DX71: 222.1296832 | DY71: 212.0944052 | DZ71: 219.2588015 | EA71: 196.1860377 | EB71: 177.1580068 | EC71: 161.724849 | ED71: 182.7869381 | EE71: 186.2880874 | EF71: 154.4990286 | EG71: 169.70741 | EH71: 202.2534972 | EI71: =EH59*EI$55/periods -> 203.3762425 | EJ71: 203.8147636 | EK71: 192.7006121 | EL71: 189.3020059 | EM71: 184.7210852 | EN71: 186.0066784 | EO71: 186.0822657 | EP71: 201.3002649 | EQ71: 206.0658219 | ER71: 179.5738457 | ES71: 198.3680838 | ET71: 204.0657168 | EU71: 162.4745232 | EV71: 181.3637094 | EW71: 192.9570421 | EX71: 207.4799585 | EY71: 202.6665492 | EZ71: 204.8979013 | FA71: 207.3693195 | FB71: 186.1582776 | FC71: 182.1744811 | FD71: 151.725912 | FE71: 149.253589 | FF71: 145.554096 | FG71: 136.849652 | FH71: 117.9239714 | FI71: 115.8770529 | FJ71: 122.3133622 | FK71: 118.3880934 | FL71: 126.1375347 | FM71: 122.9819885 | FN71: 136.2219687 | FO71: 154.5594304 | FP71: 131.4898006 | FQ71: 94.3009195 | FR71: 106.1631131 | FS71: 101.9303699 | FT71: 102.2968573 | FU71: 98.73190195 | FV71: 111.991057 | FW71: 101.905601 | FX71: 91.63540951 | FY71: 87.09307817 | FZ71: 76.79789176 | GA71: 81.02936043 | GB71: 74.64671003 | GC71: 71.70882613 | GD71: 77.32281833 | GE71: 79.5454192 | GF71: 68.3047957 | GG71: 64.70713513 | GH71: 59.67498351 | GI71: 52.06646376 | GJ71: 56.00925896 | GK71: 67.66124437 | GL71: 62.22706512 | GM71: 71.3265851 | GN71: 62.05299502 | GO71: 66.61363596 | GP71: 73.13422732 | GQ71: 72.93150276 | GR71: 77.6061546 | GS71: 95.29901713 | GT71: 93.67597315 | GU71: =GT59*GU$55/periods -> 98.92659424 | GV71: 86.87746196 | GW71: 91.04035034 | GX71: 96.84035796 | GY71: 100.4404006 | GZ71: 115.9452235 | HA71: 98.56482821 | HB71: 112.8040166 | HC71: 124.1148839 | HD71: 102.428774 | HE71: 100.9072837 | HF71: 95.08638027 | HG71: 91.84845371 | HH71: 85.78556316 | HI71: 78.92871024 | HJ71: 81.18649377 | HK71: 72.79705351 | HL71: 77.58088445 | HM71: 95.27878974 | HN71: 93.08483067 | HO71: 86.11588938 | HP71: 86.78660008 | HQ71: 95.45063996 | HR71: 95.6492298 | HS71: 92.80091699 | HT71: 102.0429669 | HU71: 100.2282297 | HV71: 112.743914 | HW71: 106.5158713 | HX71: 114.2754728 | HY71: 89.3050441 | HZ71: 86.14240476 | IA71: 92.66049292 | IB71: 92.97726163 | IC71: 89.53327914 | ID71: 92.31476303 | IE71: 99.9309015 | IF71: 117.3130934 | IG71: 109.0473906 | IH71: 101.1841845 | II71: 115.1454972 | IJ71: 108.2064216 | IK71: 117.0353923 | IL71: 115.740069 | IM71: 114.8663134 | IN71: 121.9745005 | IO71: 109.3641804 | IP71: 115.8742536 | IQ71: 90.51141263 | IR71: 81.63773496 | IS71: 85.75798706 | IT71: 94.27253006 | IU71: 109.2325637 | IV71: 110.0452469 | IW71: 103.5760667 | IX71: 96.48204841 | IY71: 93.29822233 | IZ71: 102.4580916 | JA71: 104.6624638 | JB71: 103.9635652 | JC71: 106.8720272 | JD71: 111.933712 | JE71: 95.06268047 | JF71: 98.46829746 | JG71: =JF59*JG$55/periods -> 91.54932119 | JH71: 83.47487433 | JI71: 86.07552907 | JJ71: 76.63087694 | JK71: 68.4133157 | JL71: 73.79403101 | JM71: 70.66437133 | JN71: 71.22917179 | JO71: 68.30608986 | JP71: 56.42859649 | JQ71: 44.16522603 | JR71: 38.91937193 | JS71: 36.94792067 | JT71: 37.15087214 | JU71: 40.29757171 | JV71: 37.06994692 | JW71: 35.6969394 | JX71: 38.16129431 | JY71: 41.78093743 | JZ71: 35.87453893 | KA71: 36.06770576 | KB71: 36.90375933 | KC71: 37.91498654 | KD71: 39.14252186 | KE71: 38.16385343 | KF71: 34.73483983 | KG71: 33.39820131 | KH71: 29.44936016 | KI71: 30.06921429 | KJ71: 29.0934408 | KK71: 25.46519394 | KL71: 23.01293896 | KM71: 20.30991863 | KN71: 18.40276553 | KO71: 19.0374076 | KP71: 15.35793938 | KQ71: 14.96061744 | KR71: 14.03400753 | KS71: 12.84225874 | KT71: 12.54581892 | KU71: 12.27218013 | KV71: 12.23605673 | KW71: 13.68192467 | KX71: 14.34956932 | KY71: 12.41964229 | KZ71: 12.502454 | LA71: 10.72441618 | LB71: 11.71310425 | LC71: 10.77300032 | LD71: 11.76169336 | LE71: 10.53705789 | LF71: 10.08923583 | LG71: 11.13588729 | LH71: 11.24413821 | LI71: 11.97282299 | LJ71: 11.38196414 | LK71: 12.93418449 | LL71: 12.45870019 | LM71: 12.27750413 | LN71: 13.05249206 | LO71: 14.36190592 | LP71: 12.16209086 | LQ71: 10.49733469 | LR71: 10.69183372 | LS71: =LR59*LS$55/periods -> 11.07156318 | LT71: 10.71829074 | LU71: 8.118261016 | LV71: 7.966763017 | LW71: 8.422286559 | LX71: 8.736859427 | LY71: 8.840920971 | LZ71: 7.710469964 | MA71: 8.270353216 | MB71: 9.148754277 | MC71: 9.262301778 | MD71: 8.562157414 | ME71: 8.884761368 | MF71: 7.714664217 | MG71: 7.564631651 | MH71: 7.169653811 | MI71: 7.443014406 | MJ71: 7.776604258 | MK71: 8.450425683 | ML71: 9.032834585 | MM71: 8.213155701 | MN71: 7.642968521 | MO71: 8.302065997 | MP71: 7.912344203 | MQ71: 8.47743631 | MR71: 9.478382784 | MS71: 11.89439161 | MT71: 13.20885964 | MU71: 10.1231694 | MV71: 10.96340624 | MW71: 9.567646382 | MX71: 11.24962363 | MY71: 12.37006955 | MZ71: 11.45814781 | NA71: 12.32398526 | NB71: 11.92094851 | NC71: 13.17106571 | ND71: 12.38685383 | NE71: 12.57008826 | NF71: 13.9966697 | NG71: 13.53072986 | NH71: 13.83870849 | NI71: 14.24211961 | NJ71: 11.02386109 | NK71: 10.62247246 | NL71: 12.80527825 | NM71: 13.7169257 | NN71: 12.2059984 | NO71: 11.27104061 | NP71: 9.504538129 | NQ71: 10.26791341 | NR71: 8.97914781 | NS71: 9.631180222 | NT71: 9.884984284 | NU71: 11.29295527 | NV71: 10.46031529 | NW71: 10.18177575 | NX71: 10.64701099 | NY71: 10.68274013 | NZ71: 11.64619322 | OA71: 10.81481361 | OB71: 11.34905182 | OC71: 13.10165451 | OD71: 12.37492003 | OE71: =OD59*OE$55/periods -> 12.24897341 | OF71: 10.90657868 | OG71: 11.49675719 | OH71: 11.21232544 | OI71: 9.830214159 | OJ71: 8.702219608 | OK71: 8.286359726 | OL71: 6.779345171 | OM71: 7.079343885 | ON71: 5.403169656 | OO71: 5.923821202 | OP71: 5.760139626 | OQ71: 5.40640107 | OR71: 5.680422082 | OS71: 6.160822825 | OT71: 5.714409073 | OU71: 6.494627249 | OV71: 6.343057923 | OW71: 6.679688453 | OX71: 5.746636398 | OY71: 5.996933107 | OZ71: 6.031665294 | PA71: 5.573231569 | PB71: 5.956748891 | PC71: 4.336200905 | PD71: 4.673325708 | PE71: 4.652957813 | PF71: 4.623883693 | PG71: 4.473062616 | PH71: 4.810252681 | PI71: 4.302739256 | PJ71: 4.174772831 | PK71: 4.142475701 | PL71: 3.72266621 | PM71: 3.601680853 | PN71: 3.908866548 | PO71: 3.686861312 | PP71: 3.018918316 | PQ71: 2.879169824 | PR71: 3.382104329 | PS71: 3.587937817 | PT71: 3.791645218 | PU71: 3.685909444 | PV71: 3.891906745 | PW71: 3.613263384 | PX71: 2.996401051 | PY71: 2.984655048 | PZ71: 3.045754972 | QA71: 3.298567672 | QB71: 3.769019816 | QC71: 3.867161418 | QD71: 3.802324719 | QE71: 3.322529918 | QF71: 3.555634183 | QG71: 3.641520254 | QH71: 3.21710775 | QI71: 2.82454848 | QJ71: 3.329914778 | QK71: 3.382207594 | QL71: 3.479836211 | QM71: 3.215762851 | QN71: 3.445590774 | QO71: 3.356920216 | QP71: 2.968200032 | QQ71: =QP59*QQ$55/periods -> 2.980719476 | QR71: 2.715906471 | QS71: 2.872349265 | QT71: 3.09039108 | QU71: 2.818479696 | QV71: 2.526891278 | QW71: 2.355116248 | QX71: 2.538547989 | QY71: 2.712602511 | QZ71: 2.193414605 | RA71: 1.707483754 | RB71: 2.194392389 | RC71: 2.068485072 | RD71: 2.023177035 | RE71: 2.019446514 | RF71: 1.698028828 | RG71: 1.630922511 | RH71: 1.424747697 | RI71: 1.400787018 | RJ71: 1.084080979 | RK71: 1.256930529 | RL71: 1.237868625 | RM71: 1.101213193 | RN71: 1.058025349 | RO71: 1.035401732 | RP71: 0.9660439726 | RQ71: 1.002116218 | RR71: 0.8323958668 | RS71: 0.6729412645 | RT71: 0.7992514604 | RU71: 0.7282857927 | RV71: 0.6522026136 | RW71: 0.6290929939 | RX71: 0.5381338325 | RY71: 0.5736673813 | RZ71: 0.5675017456 | SA71: 0.5447496669 | SB71: 0.5611760671 | SC71: 0.4631215164 | SD71: 0.4737000869 | SE71: 0.5123978147 | SF71: 0.6015248872 | SG71: 0.53768483 | SH71: 0.522415317 | SI71: 0.5317980623 | SJ71: 0.4944177885 | SK71: 0.5011135553 | SL71: 0.4669505949 | SM71: 0.5430254215 | SN71: 0.4618201223 | SO71: 0.4252934964 | SP71: 0.3895767778 | SQ71: 0.3508088669 | SR71: 0.360194526 | SS71: 0.3028664498 | ST71: 0.3158628984 | SU71: 0.3067198655 | SV71: 0.3088106167 | SW71: 0.2802923153 | SX71: 0.2934989302 | SY71: 0.2735270472 | SZ71: 0.2713960404 | TA71: 0.2694060874 | TB71: 0.269279979 | TC71: =TB59*TC$55/periods -> 0.2424901817 | TD71: 0.2496395543 | TE71: 0.2833551558 | TF71: 0.2590272321 | TG71: 0.2479205144 | TH71: 0.2550833664 | TI71: 0.2480501143 | TJ71: 0.2372960897 | TK71: 0.2330635197 | TL71: 0.248696915 | TM71: 0.2368628344 | TN71: 0.2387997291 | TO71: 0.2519183507 | TP71: 0.2427190154 | TQ71: 0.2254489686 | TR71: 0.1870246056 | TS71: 0.1986344106 | TT71: 0.1854194811 | TU71: 0.1830717299 | TV71: 0.1923958529 | TW71: 0.189066612 | TX71: 0.1998565111 | TY71: 0.1710020168 | TZ71: 0.1662467941 | UA71: 0.1533215746 | UB71: 0.1501878958 | UC71: 0.1534547447 | UD71: 0.1746455191 | UE71: 0.1772889992 | UF71: 0.1562691056 | UG71: 0.1358733869 | UH71: 0.126489058 | UI71: 0.1234440172 | UJ71: 0.1250936172 | UK71: 0.1158925121 | UL71: 0.1160050339 | UM71: 0.0946635774 | UN71: 0.08770506104 | UO71: 0.09024122382 | UP71: 0.09350754412 | UQ71: 0.1110476874 | UR71: 0.1009527418 | US71: 0.1010304475 | UT71: 0.1139384196 | UU71: 0.1146888811 | UV71: 0.1288692396 | UW71: 0.1481489944 | UX71: 0.1429500668 | UY71: 0.1239283488 | UZ71: 0.1309203541 | VA71: 0.1623821566 | VB71: 0.1688390273 | VC71: 0.1780149788 | VD71: 0.1913626837 | VE71: 0.2006394008 | VF71: 0.1949206479 | VG71: 0.1838024748 | VH71: 0.1738773535 | VI71: 0.1917027295 | VJ71: 0.1789306793 | VK71: 0.1459574105 | VL71: 0.1711002248 | VM71: 0.1878850702 | VN71: 0.2145764514 | VO71: =VN59*VO$55/periods -> 0.2013979216 | VP71: 0.1989322087 | VQ71: 0.18792393 | VR71: 0.2052707227 | VS71: 0.235356111 | VT71: 0.2712135503 | VU71: 0.3013594058 | VV71: 0.2802408702 | VW71: 0.2600159379 | VX71: 0.2721435187 | VY71: 0.2315641586 | VZ71: 0.236013669 | WA71: 0.2481604228 | WB71: 0.2567880188 | WC71: 0.2344353292 | WD71: 0.2501525778 | WE71: 0.2620020829 | WF71: 0.2231243261 | WG71: 0.2442487326 | WH71: 0.2451259244 | WI71: 0.2364399053 | WJ71: 0.2387412774 | WK71: 0.2472943868 | WL71: 0.2689534502 | WM71: 0.2634108341 | WN71: 0.2412306691 | WO71: 0.2538497625 | WP71: 0.2226353345 | WQ71: 0.2351878087 | WR71: 0.1862375246 | WS71: 0.1545650796 | WT71: 0.1841820859 | WU71: 0.1748305854 | WV71: 0.2008948652 | WW71: 0.2134956562 | WX71: 0.2210642024 | WY71: 0.1962139773 | WZ71: 0.1700359805 | XA71: 0.1401615381 | XB71: 0.1443059624 | XC71: 0.1397413497 | XD71: 0.1381089489 | XE71: 0.1482601431 | XF71: 0.1061231598 | XG71: 0.1166924116 | XH71: 0.1194314172 | XI71: 0.1143927299 | XJ71: 0.1089047704 | XK71: 0.1004580436 | XL71: 0.09920540453 | XM71: 0.08619978823 | XN71: 0.0769483049 | XO71: 0.09164089949 | XP71: 0.08412727172 | XQ71: 0.07728477906 | XR71: 0.07056221889 | XS71: 0.07012437302 | XT71: 0.06914379193 | XU71: 0.06581762445 | XV71: 0.05931302429 | XW71: 0.0651156141 | XX71: 0.04831042842 | XY71: 0.04681512981 | XZ71: 0.04902145103 | YA71: =XZ59*YA$55/periods -> 0.04610350816 | YB71: 0.04509536889 | YC71: 0.04405905306 | YD71: 0.04779113268 | YE71: 0.04166650419 | YF71: 0.04230211718 | YG71: 0.03299205351 | YH71: 0.02908262191 | YI71: 0.03327722281 | YJ71: 0.03659430595 | YK71: 0.03353395946 | YL71: 0.03580213081 | YM71: 0.03114447771 | YN71: 0.02669811828 | YO71: 0.02012802566 | YP71: 0.02151340892 | YQ71: 0.01928540544 | YR71: 0.01696948342 | YS71: 0.01754747941 | YT71: 0.01709724882 | YU71: 0.01551010109 | YV71: 0.01490104719 | YW71: 0.01572295249 | YX71: 0.01433904743 | YY71: 0.01640299495 | YZ71: 0.01566331123 | ZA71: 0.0188802089 | ZB71: 0.02049709338 | ZC71: 0.01714238889 | ZD71: 0.01839322857 | ZE71: 0.01500253837 | ZF71: 0.0162714674 | ZG71: 0.01435169755 | ZH71: 0.01518753422 | ZI71: 0.0159510447 | ZJ71: 0.01176755659 | ZK71: 0.01164654897 | ZL71: 0.01103464437 | ZM71: 0.0118335945 | ZN71: 0.0123823024 | ZO71: 0.01184306089 | ZP71: 0.01256141996 | ZQ71: 0.01135385724 | ZR71: 0.01445447006 | ZS71: 0.0143716833 | ZT71: 0.01378305386 | ZU71: 0.01463148829 | ZV71: 0.01368728122 | ZW71: 0.01275545679 | ZX71: 0.01182378464 | ZY71: 0.01184272525 | ZZ71: 0.01110438229 | AAA71: 0.01249813024 | AAB71: 0.01395786788 | AAC71: 0.0149616884 | AAD71: 0.01604609413 | AAE71: 0.01576857486 | AAF71: 0.01631073249 | AAG71: 0.01386871334 | AAH71: 0.01465995952 | AAI71: 0.01584387722 | AAJ71: 0.0167154296 | AAK71: 0.01613168632 | AAL71: 0.01693663167 | AAM71: =AAL59*AAM$55/periods -> 0.01880981155 | AAN71: 0.01883567231 | AAO71: 0.01888163822 | AAP71: 0.01784738506 | AAQ71: 0.01936632235 | AAR71: 0.02070168116 | AAS71: 0.01832037647 | AAT71: 0.01804392637 | AAU71: 0.01725774919 | AAV71: 0.01624013982 | AAW71: 0.01672026264 | AAX71: 0.01608483002 | AAY71: 0.01607034378 | AAZ71: 0.01481622987 | ABA71: 0.01438132867 | ABB71: 0.01316025377 | ABC71: 0.01342233948 | ABD71: 0.01237954415 | ABE71: 0.01278624309 | ABF71: 0.01318875826 | ABG71: 0.01445297905 | ABH71: 0.0144591896 | ABI71: 0.01657708285 | ABJ71: 0.01737652484 | ABK71: 0.01777126052 | ABL71: 0.01872855066 | ABM71: 0.01924583552 | ABN71: 0.0179849209 | ABO71: 0.02176436992 | ABP71: 0.02089852902 | ABQ71: 0.02318370868 | ABR71: 0.02345079395 | ABS71: 0.022163473 | ABT71: 0.02395371023 | ABU71: 0.0218050081 | ABV71: 0.02531180423 | ABW71: 0.02446573621 | ABX71: 0.0243576193 | ABY71: 0.02834371005 | ABZ71: 0.03244188532 | ACA71: 0.02273039223 | ACB71: 0.02459458071 | ACC71: 0.02432422173 | ACD71: 0.0267082067 | ACE71: 0.02684496306 | ACF71: 0.0257736749 | ACG71: 0.0233252373 | ACH71: 0.02192968618 | ACI71: 0.02477404811 | ACJ71: 0.02260696686 | ACK71: 0.02642108706 | ACL71: 0.03022186058 | ACM71: 0.02969113811 | ACN71: 0.023086883 | ACO71: 0.02010874346 | ACP71: 0.01983216993 | ACQ71: 0.02150621697 | ACR71: 0.02489090124 | ACS71: 0.02507780851 | ACT71: 0.02601298021 | ACU71: 0.02325125334 | ACV71: 0.02352754787 | ACW71: 0.02116556394 | ACX71: 0.02145945191 | ACY71: =ACX59*ACY$55/periods -> 0.01869955164 | ACZ71: 0.01600435586 | ADA71: 0.01345023269 | ADB71: 0.01196848674 | ADC71: 0.01371826753 | ADD71: 0.01321306152 | ADE71: 0.01472909231 | ADF71: 0.01513757463 | ADG71: 0.01612140177 | ADH71: 0.01408500783 | ADI71: 0.01227772487 | ADJ71: 0.01077649493 | ADK71: 0.01068399576 | ADL71: 0.01103839214 | ADM71: 0.009284142772 | ADN71: 0.008694873281 | ADO71: 0.009703318001 | ADP71: 0.0112851838 | ADQ71: 0.0130689474 | ADR71: 0.01403533546 | ADS71: 0.0169765222 | ADT71: 0.01684552744 | ADU71: 0.01751323963 | ADV71: 0.01698793747 | ADW71: 0.01800300476 | ADX71: 0.01618664765 | ADY71: 0.01423704641 | ADZ71: 0.0144446965 | AEA71: 0.0140724138 | AEB71: 0.01517960128 | AEC71: 0.01805397687 | AED71: 0.01933940939 | AEE71: 0.01958777451 | AEF71: 0.0205181329 | AEG71: 0.02106919383 | AEH71: 0.02089832613 | AEI71: 0.02079727442 | AEJ71: 0.02495013753 | AEK71: 0.02469212685 | AEL71: 0.02651505032 | AEM71: 0.02138113156 | AEN71: 0.01959177554 | AEO71: 0.01928844349 | AEP71: 0.0189163213 | AEQ71: 0.0186073183 | AER71: 0.01824419361 | AES71: 0.01818229334 | AET71: 0.01514500395 | AEU71: 0.01641909358 | AEV71: 0.01708257978 | AEW71: 0.01810528509 | AEX71: 0.01889489286 | AEY71: 0.01915176083 | AEZ71: 0.02017974541 | AFA71: 0.02132063416 | AFB71: 0.02342276384 | AFC71: 0.02308582704 | AFD71: 0.01925952249 | AFE71: 0.01807074208 | AFF71: 0.01868609415 | AFG71: 0.01784543251 | AFH71: 0.01995867451 | AFI71: 0.01324932551 | AFJ71: 0.01236405316 | AFK71: =AFJ59*AFK$55/periods -> 0.01364014306 | AFL71: 0.01345909393 | AFM71: 0.0131769894 | AFN71: 0.01471391209 | AFO71: 0.01612463628 | AFP71: 0.02193123846 | AFQ71: 0.02198143658 | AFR71: 0.02269097943 | AFS71: 0.02537307951 | AFT71: 0.02611801593 | AFU71: 0.02442221469 | AFV71: 0.02296114946 | AFW71: 0.02230981515 | AFX71: 0.02237964582 | AFY71: 0.02383119993 | AFZ71: 0.02327713006 | AGA71: 0.02478508269 | AGB71: 0.03112868738 | AGC71: 0.03255549397 | AGD71: 0.02852337739 | AGE71: 0.02598646659 | AGF71: 0.02933711707 | AGG71: 0.02723411615 | AGH71: 0.02560085612 | AGI71: 0.02745044371 | AGJ71: 0.02501773697 | AGK71: 0.02646310499 | AGL71: 0.03058201062 | AGM71: 0.03229090226 | AGN71: 0.03626859027 | AGO71: 0.03744752132 | AGP71: 0.03608872589 | AGQ71: 0.03712311328 | AGR71: 0.03882542105 | AGS71: 0.0376554456 | AGT71: 0.03096785437 | AGU71: 0.03349697368 | AGV71: 0.02925944744 | AGW71: 0.02833421866 | AGX71: 0.02800415257 | AGY71: 0.03048499741 | AGZ71: 0.03061224306 | AHA71: 0.03659591217 | AHB71: 0.03880005884 | AHC71: 0.04002637237 | AHD71: 0.04011862656 | AHE71: 0.04093454365 | AHF71: 0.04531869285 | AHG71: 0.03798710001 | AHH71: 0.03084316696 | AHI71: 0.02835334281 | AHJ71: 0.02889414772 | AHK71: 0.02890488857 | AHL71: 0.03035737569 | AHM71: 0.02863934174 | AHN71: 0.02560858702 | AHO71: 0.02850158441 | AHP71: 0.03052163213 | AHQ71: 0.03107360764 | AHR71: 0.03766501142 | AHS71: 0.03516649928 | AHT71: 0.03577290593 | AHU71: 0.04279714286 | AHV71: 0.03940242085 | AHW71: =AHV59*AHW$55/periods -> 0.03691129834 | AHX71: 0.03313485807 | AHY71: 0.03407164991 | AHZ71: 0.03402431737 | AIA71: 0.03333752455 | AIB71: 0.0288135634 | AIC71: 0.0327509929 | AID71: 0.0309625432 | AIE71: 0.02724803648 | AIF71: 0.02307938641 | AIG71: 0.0253615892 | AIH71: 0.02580458835 | AII71: 0.02380903605 | AIJ71: 0.0216091552 | AIK71: 0.01983144316 | AIL71: 0.0186092241 | AIM71: 0.0153606629 | AIN71: 0.01523892357 | AIO71: 0.01394237929 | AIP71: 0.01628858485 | AIQ71: 0.01539762275 | AIR71: 0.01463504802 | AIS71: 0.01561898514 | AIT71: 0.01616995157 | AIU71: 0.01610797701 | AIV71: 0.01552565221 | AIW71: 0.01394609077 | AIX71: 0.01273585896 | AIY71: 0.01326771001 | AIZ71: 0.01412854501 | AJA71: 0.01139320821 | AJB71: 0.01210012377 | AJC71: 0.01125109772 | AJD71: 0.01246756484 | AJE71: 0.01209398743 | AJF71: 0.01077580277 | AJG71: 0.01113693194 | AJH71: 0.01210694178 | AJI71: 0.01173261143 | AJJ71: 0.01168943199 | AJK71: 0.01283709913 | AJL71: 0.01214005724 | AJM71: 0.01148580757 | AJN71: 0.01317887625 | AJO71: 0.01312191308 | AJP71: 0.01461942533 | AJQ71: 0.01499316079 | AJR71: 0.01418958621 | AJS71: 0.01339296521 | AJT71: 0.01231321183 | AJU71: 0.01248552318 | AJV71: 0.01464041185 | AJW71: 0.01380411495 | AJX71: 0.01469049812 | AJY71: 0.01388199744 | AJZ71: 0.01463619431 | AKA71: 0.01269194526 | AKB71: 0.01197705025 | AKC71: 0.01160418117 | AKD71: 0.01170442497 | AKE71: 0.01192375951 | AKF71: 0.0112064827 | AKG71: 0.01188289563 | AKH71: 0.0117901275
B72: Net Rent Collected Stage 2 | K72: 0 | L72: 0 | M72: 0 | N72: 0 | O72: 0 | P72: 0 | Q72: 0 | R72: 0 | S72: 0 | T72: 0 | U72: 0 | V72: =U60*V$55/periods -> 59.01305323 | W72: 52.79950839 | X72: 57.84502759 | Y72: 59.53756011 | Z72: 54.90789895 | AA72: 53.74664452 | AB72: 57.01676927 | AC72: 51.74669885 | AD72: 65.61012784 | AE72: 71.03338939 | AF72: 74.03462606 | AG72: 73.70849251 | AH72: 73.88899204 | AI72: 93.09125064 | AJ72: 83.12834607 | AK72: 71.27045043 | AL72: 70.68306604 | AM72: 69.94887562 | AN72: 62.7831057 | AO72: 64.14464446 | AP72: 73.31419996 | AQ72: 50.97808009 | AR72: 55.37978056 | AS72: 62.44461478 | AT72: 66.13364974 | AU72: 61.61948406 | AV72: 63.41976674 | AW72: 63.01357201 | AX72: 70.65558912 | AY72: 84.97970647 | AZ72: 91.48380115 | BA72: 87.29082998 | BB72: 93.0159611 | BC72: 99.91403202 | BD72: 97.49421493 | BE72: 114.1456782 | BF72: 116.1907006 | BG72: 126.9176816 | BH72: 142.8108283 | BI72: 142.1020277 | BJ72: 138.784949 | BK72: 151.7785696 | BL72: 159.7946851 | BM72: 189.87783 | BN72: 203.6555016 | BO72: 221.8651894 | BP72: 220.561113 | BQ72: 204.1728338 | BR72: 199.978472 | BS72: 188.1649414 | BT72: 180.3037374 | BU72: 172.6076345 | BV72: 176.4223929 | BW72: =BV60*BW$55/periods -> 189.2313419 | BX72: 162.6605306 | BY72: 145.1282753 | BZ72: 131.0954877 | CA72: 125.0565649 | CB72: 141.9753112 | CC72: 124.598552 | CD72: 127.8734818 | CE72: 117.882947 | CF72: 127.8108496 | CG72: 129.3019713 | CH72: 136.5146714 | CI72: 121.5200051 | CJ72: 121.9969687 | CK72: 131.6272099 | CL72: 142.6437989 | CM72: 145.9320944 | CN72: 152.4243146 | CO72: 173.347723 | CP72: 156.065898 | CQ72: 165.42818 | CR72: 178.5482341 | CS72: 177.4058245 | CT72: 169.3345984 | CU72: 163.4431054 | CV72: 148.6695695 | CW72: 141.6762366 | CX72: 145.9392352 | CY72: 147.0263369 | CZ72: 141.4173272 | DA72: 154.9468254 | DB72: 159.9139816 | DC72: 166.7443335 | DD72: 163.3436754 | DE72: 167.1987478 | DF72: 179.8455679 | DG72: 184.5757044 | DH72: 197.1320788 | DI72: 196.153662 | DJ72: 214.200058 | DK72: 254.666767 | DL72: 244.0924541 | DM72: 218.1227033 | DN72: 230.0234962 | DO72: 225.5111016 | DP72: 224.7024288 | DQ72: 233.8835753 | DR72: 220.6867737 | DS72: 214.1268642 | DT72: 233.970439 | DU72: 220.6914461 | DV72: 226.3730821 | DW72: 242.8734007 | DX72: 222.1296832 | DY72: 212.0944052 | DZ72: 219.2588015 | EA72: 196.1860377 | EB72: 177.1580068 | EC72: 161.724849 | ED72: 182.7869381 | EE72: 186.2880874 | EF72: 154.4990286 | EG72: 169.70741 | EH72: 202.2534972 | EI72: =EH60*EI$55/periods -> 203.3762425 | EJ72: 203.8147636 | EK72: 192.7006121 | EL72: 189.3020059 | EM72: 184.7210852 | EN72: 186.0066784 | EO72: 186.0822657 | EP72: 201.3002649 | EQ72: 206.0658219 | ER72: 179.5738457 | ES72: 198.3680838 | ET72: 204.0657168 | EU72: 162.4745232 | EV72: 181.3637094 | EW72: 192.9570421 | EX72: 207.4799585 | EY72: 202.6665492 | EZ72: 204.8979013 | FA72: 207.3693195 | FB72: 186.1582776 | FC72: 182.1744811 | FD72: 151.725912 | FE72: 149.253589 | FF72: 145.554096 | FG72: 136.849652 | FH72: 117.9239714 | FI72: 115.8770529 | FJ72: 122.3133622 | FK72: 118.3880934 | FL72: 126.1375347 | FM72: 122.9819885 | FN72: 136.2219687 | FO72: 154.5594304 | FP72: 131.4898006 | FQ72: 94.3009195 | FR72: 106.1631131 | FS72: 101.9303699 | FT72: 102.2968573 | FU72: 98.73190195 | FV72: 111.991057 | FW72: 101.905601 | FX72: 91.63540951 | FY72: 87.09307817 | FZ72: 76.79789176 | GA72: 81.02936043 | GB72: 74.64671003 | GC72: 71.70882613 | GD72: 77.32281833 | GE72: 79.5454192 | GF72: 68.3047957 | GG72: 64.70713513 | GH72: 59.67498351 | GI72: 52.06646376 | GJ72: 56.00925896 | GK72: 67.66124437 | GL72: 62.22706512 | GM72: 71.3265851 | GN72: 62.05299502 | GO72: 66.61363596 | GP72: 73.13422732 | GQ72: 72.93150276 | GR72: 77.6061546 | GS72: 95.29901713 | GT72: 93.67597315 | GU72: =GT60*GU$55/periods -> 98.92659424 | GV72: 86.87746196 | GW72: 91.04035034 | GX72: 96.84035796 | GY72: 100.4404006 | GZ72: 115.9452235 | HA72: 98.56482821 | HB72: 112.8040166 | HC72: 124.1148839 | HD72: 102.428774 | HE72: 100.9072837 | HF72: 95.08638027 | HG72: 91.84845371 | HH72: 85.78556316 | HI72: 78.92871024 | HJ72: 81.18649377 | HK72: 72.79705351 | HL72: 77.58088445 | HM72: 95.27878974 | HN72: 93.08483067 | HO72: 86.11588938 | HP72: 86.78660008 | HQ72: 95.45063996 | HR72: 95.6492298 | HS72: 92.80091699 | HT72: 102.0429669 | HU72: 100.2282297 | HV72: 112.743914 | HW72: 106.5158713 | HX72: 114.2754728 | HY72: 89.3050441 | HZ72: 86.14240476 | IA72: 92.66049292 | IB72: 92.97726163 | IC72: 89.53327914 | ID72: 92.31476303 | IE72: 99.9309015 | IF72: 117.3130934 | IG72: 109.0473906 | IH72: 101.1841845 | II72: 115.1454972 | IJ72: 108.2064216 | IK72: 117.0353923 | IL72: 115.740069 | IM72: 114.8663134 | IN72: 121.9745005 | IO72: 109.3641804 | IP72: 115.8742536 | IQ72: 90.51141263 | IR72: 81.63773496 | IS72: 85.75798706 | IT72: 94.27253006 | IU72: 109.2325637 | IV72: 110.0452469 | IW72: 103.5760667 | IX72: 96.48204841 | IY72: 93.29822233 | IZ72: 102.4580916 | JA72: 104.6624638 | JB72: 103.9635652 | JC72: 106.8720272 | JD72: 111.933712 | JE72: 95.06268047 | JF72: 98.46829746 | JG72: =JF60*JG$55/periods -> 91.54932119 | JH72: 83.47487433 | JI72: 86.07552907 | JJ72: 76.63087694 | JK72: 68.4133157 | JL72: 73.79403101 | JM72: 70.66437133 | JN72: 71.22917179 | JO72: 68.30608986 | JP72: 56.42859649 | JQ72: 44.16522603 | JR72: 38.91937193 | JS72: 36.94792067 | JT72: 37.15087214 | JU72: 40.29757171 | JV72: 37.06994692 | JW72: 35.6969394 | JX72: 38.16129431 | JY72: 41.78093743 | JZ72: 35.87453893 | KA72: 36.06770576 | KB72: 36.90375933 | KC72: 37.91498654 | KD72: 39.14252186 | KE72: 38.16385343 | KF72: 34.73483983 | KG72: 33.39820131 | KH72: 29.44936016 | KI72: 30.06921429 | KJ72: 29.0934408 | KK72: 25.46519394 | KL72: 23.01293896 | KM72: 20.30991863 | KN72: 18.40276553 | KO72: 19.0374076 | KP72: 15.35793938 | KQ72: 14.96061744 | KR72: 14.03400753 | KS72: 12.84225874 | KT72: 12.54581892 | KU72: 12.27218013 | KV72: 12.23605673 | KW72: 13.68192467 | KX72: 14.34956932 | KY72: 12.41964229 | KZ72: 12.502454 | LA72: 10.72441618 | LB72: 11.71310425 | LC72: 10.77300032 | LD72: 11.76169336 | LE72: 10.53705789 | LF72: 10.08923583 | LG72: 11.13588729 | LH72: 11.24413821 | LI72: 11.97282299 | LJ72: 11.38196414 | LK72: 12.93418449 | LL72: 12.45870019 | LM72: 12.27750413 | LN72: 13.05249206 | LO72: 14.36190592 | LP72: 12.16209086 | LQ72: 10.49733469 | LR72: 10.69183372 | LS72: =LR60*LS$55/periods -> 11.07156318 | LT72: 10.71829074 | LU72: 8.118261016 | LV72: 7.966763017 | LW72: 8.422286559 | LX72: 8.736859427 | LY72: 8.840920971 | LZ72: 7.710469964 | MA72: 8.270353216 | MB72: 9.148754277 | MC72: 9.262301778 | MD72: 8.562157414 | ME72: 8.884761368 | MF72: 7.714664217 | MG72: 7.564631651 | MH72: 7.169653811 | MI72: 7.443014406 | MJ72: 7.776604258 | MK72: 8.450425683 | ML72: 9.032834585 | MM72: 8.213155701 | MN72: 7.642968521 | MO72: 8.302065997 | MP72: 7.912344203 | MQ72: 8.47743631 | MR72: 9.478382784 | MS72: 11.89439161 | MT72: 13.20885964 | MU72: 10.1231694 | MV72: 10.96340624 | MW72: 9.567646382 | MX72: 11.24962363 | MY72: 12.37006955 | MZ72: 11.45814781 | NA72: 12.32398526 | NB72: 11.92094851 | NC72: 13.17106571 | ND72: 12.38685383 | NE72: 12.57008826 | NF72: 13.9966697 | NG72: 13.53072986 | NH72: 13.83870849 | NI72: 14.24211961 | NJ72: 11.02386109 | NK72: 10.62247246 | NL72: 12.80527825 | NM72: 13.7169257 | NN72: 12.2059984 | NO72: 11.27104061 | NP72: 9.504538129 | NQ72: 10.26791341 | NR72: 8.97914781 | NS72: 9.631180222 | NT72: 9.884984284 | NU72: 11.29295527 | NV72: 10.46031529 | NW72: 10.18177575 | NX72: 10.64701099 | NY72: 10.68274013 | NZ72: 11.64619322 | OA72: 10.81481361 | OB72: 11.34905182 | OC72: 13.10165451 | OD72: 12.37492003 | OE72: =OD60*OE$55/periods -> 12.24897341 | OF72: 10.90657868 | OG72: 11.49675719 | OH72: 11.21232544 | OI72: 9.830214159 | OJ72: 8.702219608 | OK72: 8.286359726 | OL72: 6.779345171 | OM72: 7.079343885 | ON72: 5.403169656 | OO72: 5.923821202 | OP72: 5.760139626 | OQ72: 5.40640107 | OR72: 5.680422082 | OS72: 6.160822825 | OT72: 5.714409073 | OU72: 6.494627249 | OV72: 6.343057923 | OW72: 6.679688453 | OX72: 5.746636398 | OY72: 5.996933107 | OZ72: 6.031665294 | PA72: 5.573231569 | PB72: 5.956748891 | PC72: 4.336200905 | PD72: 4.673325708 | PE72: 4.652957813 | PF72: 4.623883693 | PG72: 4.473062616 | PH72: 4.810252681 | PI72: 4.302739256 | PJ72: 4.174772831 | PK72: 4.142475701 | PL72: 3.72266621 | PM72: 3.601680853 | PN72: 3.908866548 | PO72: 3.686861312 | PP72: 3.018918316 | PQ72: 2.879169824 | PR72: 3.382104329 | PS72: 3.587937817 | PT72: 3.791645218 | PU72: 3.685909444 | PV72: 3.891906745 | PW72: 3.613263384 | PX72: 2.996401051 | PY72: 2.984655048 | PZ72: 3.045754972 | QA72: 3.298567672 | QB72: 3.769019816 | QC72: 3.867161418 | QD72: 3.802324719 | QE72: 3.322529918 | QF72: 3.555634183 | QG72: 3.641520254 | QH72: 3.21710775 | QI72: 2.82454848 | QJ72: 3.329914778 | QK72: 3.382207594 | QL72: 3.479836211 | QM72: 3.215762851 | QN72: 3.445590774 | QO72: 3.356920216 | QP72: 2.968200032 | QQ72: =QP60*QQ$55/periods -> 2.980719476 | QR72: 2.715906471 | QS72: 2.872349265 | QT72: 3.09039108 | QU72: 2.818479696 | QV72: 2.526891278 | QW72: 2.355116248 | QX72: 2.538547989 | QY72: 2.712602511 | QZ72: 2.193414605 | RA72: 1.707483754 | RB72: 2.194392389 | RC72: 2.068485072 | RD72: 2.023177035 | RE72: 2.019446514 | RF72: 1.698028828 | RG72: 1.630922511 | RH72: 1.424747697 | RI72: 1.400787018 | RJ72: 1.084080979 | RK72: 1.256930529 | RL72: 1.237868625 | RM72: 1.101213193 | RN72: 1.058025349 | RO72: 1.035401732 | RP72: 0.9660439726 | RQ72: 1.002116218 | RR72: 0.8323958668 | RS72: 0.6729412645 | RT72: 0.7992514604 | RU72: 0.7282857927 | RV72: 0.6522026136 | RW72: 0.6290929939 | RX72: 0.5381338325 | RY72: 0.5736673813 | RZ72: 0.5675017456 | SA72: 0.5447496669 | SB72: 0.5611760671 | SC72: 0.4631215164 | SD72: 0.4737000869 | SE72: 0.5123978147 | SF72: 0.6015248872 | SG72: 0.53768483 | SH72: 0.522415317 | SI72: 0.5317980623 | SJ72: 0.4944177885 | SK72: 0.5011135553 | SL72: 0.4669505949 | SM72: 0.5430254215 | SN72: 0.4618201223 | SO72: 0.4252934964 | SP72: 0.3895767778 | SQ72: 0.3508088669 | SR72: 0.360194526 | SS72: 0.3028664498 | ST72: 0.3158628984 | SU72: 0.3067198655 | SV72: 0.3088106167 | SW72: 0.2802923153 | SX72: 0.2934989302 | SY72: 0.2735270472 | SZ72: 0.2713960404 | TA72: 0.2694060874 | TB72: 0.269279979 | TC72: =TB60*TC$55/periods -> 0.2424901817 | TD72: 0.2496395543 | TE72: 0.2833551558 | TF72: 0.2590272321 | TG72: 0.2479205144 | TH72: 0.2550833664 | TI72: 0.2480501143 | TJ72: 0.2372960897 | TK72: 0.2330635197 | TL72: 0.248696915 | TM72: 0.2368628344 | TN72: 0.2387997291 | TO72: 0.2519183507 | TP72: 0.2427190154 | TQ72: 0.2254489686 | TR72: 0.1870246056 | TS72: 0.1986344106 | TT72: 0.1854194811 | TU72: 0.1830717299 | TV72: 0.1923958529 | TW72: 0.189066612 | TX72: 0.1998565111 | TY72: 0.1710020168 | TZ72: 0.1662467941 | UA72: 0.1533215746 | UB72: 0.1501878958 | UC72: 0.1534547447 | UD72: 0.1746455191 | UE72: 0.1772889992 | UF72: 0.1562691056 | UG72: 0.1358733869 | UH72: 0.126489058 | UI72: 0.1234440172 | UJ72: 0.1250936172 | UK72: 0.1158925121 | UL72: 0.1160050339 | UM72: 0.0946635774 | UN72: 0.08770506104 | UO72: 0.09024122382 | UP72: 0.09350754412 | UQ72: 0.1110476874 | UR72: 0.1009527418 | US72: 0.1010304475 | UT72: 0.1139384196 | UU72: 0.1146888811 | UV72: 0.1288692396 | UW72: 0.1481489944 | UX72: 0.1429500668 | UY72: 0.1239283488 | UZ72: 0.1309203541 | VA72: 0.1623821566 | VB72: 0.1688390273 | VC72: 0.1780149788 | VD72: 0.1913626837 | VE72: 0.2006394008 | VF72: 0.1949206479 | VG72: 0.1838024748 | VH72: 0.1738773535 | VI72: 0.1917027295 | VJ72: 0.1789306793 | VK72: 0.1459574105 | VL72: 0.1711002248 | VM72: 0.1878850702 | VN72: 0.2145764514 | VO72: =VN60*VO$55/periods -> 0.2013979216 | VP72: 0.1989322087 | VQ72: 0.18792393 | VR72: 0.2052707227 | VS72: 0.235356111 | VT72: 0.2712135503 | VU72: 0.3013594058 | VV72: 0.2802408702 | VW72: 0.2600159379 | VX72: 0.2721435187 | VY72: 0.2315641586 | VZ72: 0.236013669 | WA72: 0.2481604228 | WB72: 0.2567880188 | WC72: 0.2344353292 | WD72: 0.2501525778 | WE72: 0.2620020829 | WF72: 0.2231243261 | WG72: 0.2442487326 | WH72: 0.2451259244 | WI72: 0.2364399053 | WJ72: 0.2387412774 | WK72: 0.2472943868 | WL72: 0.2689534502 | WM72: 0.2634108341 | WN72: 0.2412306691 | WO72: 0.2538497625 | WP72: 0.2226353345 | WQ72: 0.2351878087 | WR72: 0.1862375246 | WS72: 0.1545650796 | WT72: 0.1841820859 | WU72: 0.1748305854 | WV72: 0.2008948652 | WW72: 0.2134956562 | WX72: 0.2210642024 | WY72: 0.1962139773 | WZ72: 0.1700359805 | XA72: 0.1401615381 | XB72: 0.1443059624 | XC72: 0.1397413497 | XD72: 0.1381089489 | XE72: 0.1482601431 | XF72: 0.1061231598 | XG72: 0.1166924116 | XH72: 0.1194314172 | XI72: 0.1143927299 | XJ72: 0.1089047704 | XK72: 0.1004580436 | XL72: 0.09920540453 | XM72: 0.08619978823 | XN72: 0.0769483049 | XO72: 0.09164089949 | XP72: 0.08412727172 | XQ72: 0.07728477906 | XR72: 0.07056221889 | XS72: 0.07012437302 | XT72: 0.06914379193 | XU72: 0.06581762445 | XV72: 0.05931302429 | XW72: 0.0651156141 | XX72: 0.04831042842 | XY72: 0.04681512981 | XZ72: 0.04902145103 | YA72: =XZ60*YA$55/periods -> 0.04610350816 | YB72: 0.04509536889 | YC72: 0.04405905306 | YD72: 0.04779113268 | YE72: 0.04166650419 | YF72: 0.04230211718 | YG72: 0.03299205351 | YH72: 0.02908262191 | YI72: 0.03327722281 | YJ72: 0.03659430595 | YK72: 0.03353395946 | YL72: 0.03580213081 | YM72: 0.03114447771 | YN72: 0.02669811828 | YO72: 0.02012802566 | YP72: 0.02151340892 | YQ72: 0.01928540544 | YR72: 0.01696948342 | YS72: 0.01754747941 | YT72: 0.01709724882 | YU72: 0.01551010109 | YV72: 0.01490104719 | YW72: 0.01572295249 | YX72: 0.01433904743 | YY72: 0.01640299495 | YZ72: 0.01566331123 | ZA72: 0.0188802089 | ZB72: 0.02049709338 | ZC72: 0.01714238889 | ZD72: 0.01839322857 | ZE72: 0.01500253837 | ZF72: 0.0162714674 | ZG72: 0.01435169755 | ZH72: 0.01518753422 | ZI72: 0.0159510447 | ZJ72: 0.01176755659 | ZK72: 0.01164654897 | ZL72: 0.01103464437 | ZM72: 0.0118335945 | ZN72: 0.0123823024 | ZO72: 0.01184306089 | ZP72: 0.01256141996 | ZQ72: 0.01135385724 | ZR72: 0.01445447006 | ZS72: 0.0143716833 | ZT72: 0.01378305386 | ZU72: 0.01463148829 | ZV72: 0.01368728122 | ZW72: 0.01275545679 | ZX72: 0.01182378464 | ZY72: 0.01184272525 | ZZ72: 0.01110438229 | AAA72: 0.01249813024 | AAB72: 0.01395786788 | AAC72: 0.0149616884 | AAD72: 0.01604609413 | AAE72: 0.01576857486 | AAF72: 0.01631073249 | AAG72: 0.01386871334 | AAH72: 0.01465995952 | AAI72: 0.01584387722 | AAJ72: 0.0167154296 | AAK72: 0.01613168632 | AAL72: 0.01693663167 | AAM72: =AAL60*AAM$55/periods -> 0.01880981155 | AAN72: 0.01883567231 | AAO72: 0.01888163822 | AAP72: 0.01784738506 | AAQ72: 0.01936632235 | AAR72: 0.02070168116 | AAS72: 0.01832037647 | AAT72: 0.01804392637 | AAU72: 0.01725774919 | AAV72: 0.01624013982 | AAW72: 0.01672026264 | AAX72: 0.01608483002 | AAY72: 0.01607034378 | AAZ72: 0.01481622987 | ABA72: 0.01438132867 | ABB72: 0.01316025377 | ABC72: 0.01342233948 | ABD72: 0.01237954415 | ABE72: 0.01278624309 | ABF72: 0.01318875826 | ABG72: 0.01445297905 | ABH72: 0.0144591896 | ABI72: 0.01657708285 | ABJ72: 0.01737652484 | ABK72: 0.01777126052 | ABL72: 0.01872855066 | ABM72: 0.01924583552 | ABN72: 0.0179849209 | ABO72: 0.02176436992 | ABP72: 0.02089852902 | ABQ72: 0.02318370868 | ABR72: 0.02345079395 | ABS72: 0.022163473 | ABT72: 0.02395371023 | ABU72: 0.0218050081 | ABV72: 0.02531180423 | ABW72: 0.02446573621 | ABX72: 0.0243576193 | ABY72: 0.02834371005 | ABZ72: 0.03244188532 | ACA72: 0.02273039223 | ACB72: 0.02459458071 | ACC72: 0.02432422173 | ACD72: 0.0267082067 | ACE72: 0.02684496306 | ACF72: 0.0257736749 | ACG72: 0.0233252373 | ACH72: 0.02192968618 | ACI72: 0.02477404811 | ACJ72: 0.02260696686 | ACK72: 0.02642108706 | ACL72: 0.03022186058 | ACM72: 0.02969113811 | ACN72: 0.023086883 | ACO72: 0.02010874346 | ACP72: 0.01983216993 | ACQ72: 0.02150621697 | ACR72: 0.02489090124 | ACS72: 0.02507780851 | ACT72: 0.02601298021 | ACU72: 0.02325125334 | ACV72: 0.02352754787 | ACW72: 0.02116556394 | ACX72: 0.02145945191 | ACY72: =ACX60*ACY$55/periods -> 0.01869955164 | ACZ72: 0.01600435586 | ADA72: 0.01345023269 | ADB72: 0.01196848674 | ADC72: 0.01371826753 | ADD72: 0.01321306152 | ADE72: 0.01472909231 | ADF72: 0.01513757463 | ADG72: 0.01612140177 | ADH72: 0.01408500783 | ADI72: 0.01227772487 | ADJ72: 0.01077649493 | ADK72: 0.01068399576 | ADL72: 0.01103839214 | ADM72: 0.009284142772 | ADN72: 0.008694873281 | ADO72: 0.009703318001 | ADP72: 0.0112851838 | ADQ72: 0.0130689474 | ADR72: 0.01403533546 | ADS72: 0.0169765222 | ADT72: 0.01684552744 | ADU72: 0.01751323963 | ADV72: 0.01698793747 | ADW72: 0.01800300476 | ADX72: 0.01618664765 | ADY72: 0.01423704641 | ADZ72: 0.0144446965 | AEA72: 0.0140724138 | AEB72: 0.01517960128 | AEC72: 0.01805397687 | AED72: 0.01933940939 | AEE72: 0.01958777451 | AEF72: 0.0205181329 | AEG72: 0.02106919383 | AEH72: 0.02089832613 | AEI72: 0.02079727442 | AEJ72: 0.02495013753 | AEK72: 0.02469212685 | AEL72: 0.02651505032 | AEM72: 0.02138113156 | AEN72: 0.01959177554 | AEO72: 0.01928844349 | AEP72: 0.0189163213 | AEQ72: 0.0186073183 | AER72: 0.01824419361 | AES72: 0.01818229334 | AET72: 0.01514500395 | AEU72: 0.01641909358 | AEV72: 0.01708257978 | AEW72: 0.01810528509 | AEX72: 0.01889489286 | AEY72: 0.01915176083 | AEZ72: 0.02017974541 | AFA72: 0.02132063416 | AFB72: 0.02342276384 | AFC72: 0.02308582704 | AFD72: 0.01925952249 | AFE72: 0.01807074208 | AFF72: 0.01868609415 | AFG72: 0.01784543251 | AFH72: 0.01995867451 | AFI72: 0.01324932551 | AFJ72: 0.01236405316 | AFK72: =AFJ60*AFK$55/periods -> 0.01364014306 | AFL72: 0.01345909393 | AFM72: 0.0131769894 | AFN72: 0.01471391209 | AFO72: 0.01612463628 | AFP72: 0.02193123846 | AFQ72: 0.02198143658 | AFR72: 0.02269097943 | AFS72: 0.02537307951 | AFT72: 0.02611801593 | AFU72: 0.02442221469 | AFV72: 0.02296114946 | AFW72: 0.02230981515 | AFX72: 0.02237964582 | AFY72: 0.02383119993 | AFZ72: 0.02327713006 | AGA72: 0.02478508269 | AGB72: 0.03112868738 | AGC72: 0.03255549397 | AGD72: 0.02852337739 | AGE72: 0.02598646659 | AGF72: 0.02933711707 | AGG72: 0.02723411615 | AGH72: 0.02560085612 | AGI72: 0.02745044371 | AGJ72: 0.02501773697 | AGK72: 0.02646310499 | AGL72: 0.03058201062 | AGM72: 0.03229090226 | AGN72: 0.03626859027 | AGO72: 0.03744752132 | AGP72: 0.03608872589 | AGQ72: 0.03712311328 | AGR72: 0.03882542105 | AGS72: 0.0376554456 | AGT72: 0.03096785437 | AGU72: 0.03349697368 | AGV72: 0.02925944744 | AGW72: 0.02833421866 | AGX72: 0.02800415257 | AGY72: 0.03048499741 | AGZ72: 0.03061224306 | AHA72: 0.03659591217 | AHB72: 0.03880005884 | AHC72: 0.04002637237 | AHD72: 0.04011862656 | AHE72: 0.04093454365 | AHF72: 0.04531869285 | AHG72: 0.03798710001 | AHH72: 0.03084316696 | AHI72: 0.02835334281 | AHJ72: 0.02889414772 | AHK72: 0.02890488857 | AHL72: 0.03035737569 | AHM72: 0.02863934174 | AHN72: 0.02560858702 | AHO72: 0.02850158441 | AHP72: 0.03052163213 | AHQ72: 0.03107360764 | AHR72: 0.03766501142 | AHS72: 0.03516649928 | AHT72: 0.03577290593 | AHU72: 0.04279714286 | AHV72: 0.03940242085 | AHW72: =AHV60*AHW$55/periods -> 0.03691129834 | AHX72: 0.03313485807 | AHY72: 0.03407164991 | AHZ72: 0.03402431737 | AIA72: 0.03333752455 | AIB72: 0.0288135634 | AIC72: 0.0327509929 | AID72: 0.0309625432 | AIE72: 0.02724803648 | AIF72: 0.02307938641 | AIG72: 0.0253615892 | AIH72: 0.02580458835 | AII72: 0.02380903605 | AIJ72: 0.0216091552 | AIK72: 0.01983144316 | AIL72: 0.0186092241 | AIM72: 0.0153606629 | AIN72: 0.01523892357 | AIO72: 0.01394237929 | AIP72: 0.01628858485 | AIQ72: 0.01539762275 | AIR72: 0.01463504802 | AIS72: 0.01561898514 | AIT72: 0.01616995157 | AIU72: 0.01610797701 | AIV72: 0.01552565221 | AIW72: 0.01394609077 | AIX72: 0.01273585896 | AIY72: 0.01326771001 | AIZ72: 0.01412854501 | AJA72: 0.01139320821 | AJB72: 0.01210012377 | AJC72: 0.01125109772 | AJD72: 0.01246756484 | AJE72: 0.01209398743 | AJF72: 0.01077580277 | AJG72: 0.01113693194 | AJH72: 0.01210694178 | AJI72: 0.01173261143 | AJJ72: 0.01168943199 | AJK72: 0.01283709913 | AJL72: 0.01214005724 | AJM72: 0.01148580757 | AJN72: 0.01317887625 | AJO72: 0.01312191308 | AJP72: 0.01461942533 | AJQ72: 0.01499316079 | AJR72: 0.01418958621 | AJS72: 0.01339296521 | AJT72: 0.01231321183 | AJU72: 0.01248552318 | AJV72: 0.01464041185 | AJW72: 0.01380411495 | AJX72: 0.01469049812 | AJY72: 0.01388199744 | AJZ72: 0.01463619431 | AKA72: 0.01269194526 | AKB72: 0.01197705025 | AKC72: 0.01160418117 | AKD72: 0.01170442497 | AKE72: 0.01192375951 | AKF72: 0.0112064827 | AKG72: 0.01188289563 | AKH72: 0.0117901275
B73: Construction Cost Stage 1 | J73: =-IF(J59-I59=1,$I$9,0) -> 0 | K73: =-IF(K59-J59=1,$I$9,0) -> 0 | L73: =-IF(L59-K59=1,$I$9,0) -> -2000 | M73: =-IF(M59-L59=1,$I$9,0) -> 0 | N73: 0 | O73: 0 | P73: 0 | Q73: =-IF(Q59-P59=1,$I$9,0) -> 0 | R73: 0 | S73: 0 | T73: 0 | U73: =-IF(U59-T59=1,$I$9,0) -> 0 | V73: =-IF(V59-U59=1,$I$9,0) -> 0 | W73: =-IF(W59-V59=1,$I$9,0) -> 0 | X73: 0 | Y73: 0 | Z73: 0 | AA73: 0 | AB73: 0 | AC73: =-IF(AC59-AB59=1,$I$9,0) -> 0 | AD73: 0 | AE73: 0 | AF73: 0 | AG73: 0 | AH73: 0 | AI73: 0 | AJ73: 0 | AK73: 0 | AL73: 0 | AM73: 0 | AN73: 0 | AO73: 0 | AP73: 0 | AQ73: 0 | AR73: 0 | AS73: 0 | AT73: 0 | AU73: 0 | AV73: 0 | AW73: 0 | AX73: 0 | AY73: 0 | AZ73: 0 | BA73: 0 | BB73: 0 | BC73: 0 | BD73: 0 | BE73: 0 | BF73: 0 | BG73: 0 | BH73: 0 | BI73: 0 | BJ73: 0 | BK73: 0 | BL73: 0 | BM73: 0 | BN73: 0 | BO73: 0 | BP73: 0 | BQ73: 0 | BR73: 0 | BS73: 0 | BT73: 0 | BU73: 0 | BV73: 0 | BW73: 0 | BX73: 0 | BY73: 0 | BZ73: 0 | CA73: 0 | CB73: 0 | CC73: 0 | CD73: 0 | CE73: 0 | CF73: 0 | CG73: =-IF(CG59-CF59=1,$I$9,0) -> 0 | CH73: 0 | CI73: 0 | CJ73: 0 | CK73: 0 | CL73: 0 | CM73: 0 | CN73: 0 | CO73: 0 | CP73: 0 | CQ73: 0 | CR73: 0 | CS73: 0 | CT73: 0 | CU73: 0 | CV73: 0 | CW73: 0 | CX73: 0 | CY73: 0 | CZ73: 0 | DA73: 0 | DB73: 0 | DC73: 0 | DD73: 0 | DE73: 0 | DF73: 0 | DG73: 0 | DH73: 0 | DI73: 0 | DJ73: 0 | DK73: 0 | DL73: 0 | DM73: 0 | DN73: 0 | DO73: 0 | DP73: 0 | DQ73: 0 | DR73: 0 | DS73: 0 | DT73: 0 | DU73: 0 | DV73: 0 | DW73: 0 | DX73: 0 | DY73: 0 | DZ73: 0 | EA73: 0 | EB73: 0 | EC73: 0 | ED73: 0 | EE73: 0 | EF73: 0 | EG73: 0 | EH73: 0 | EI73: 0 | EJ73: 0 | EK73: 0 | EL73: 0 | EM73: 0 | EN73: 0 | EO73: 0 | EP73: 0 | EQ73: 0 | ER73: 0 | ES73: =-IF(ES59-ER59=1,$I$9,0) -> 0 | ET73: 0 | EU73: 0 | EV73: 0 | EW73: 0 | EX73: 0 | EY73: 0 | EZ73: 0 | FA73: 0 | FB73: 0 | FC73: 0 | FD73: 0 | FE73: 0 | FF73: 0 | FG73: 0 | FH73: 0 | FI73: 0 | FJ73: 0 | FK73: 0 | FL73: 0 | FM73: 0 | FN73: 0 | FO73: 0 | FP73: 0 | FQ73: 0 | FR73: 0 | FS73: 0 | FT73: 0 | FU73: 0 | FV73: 0 | FW73: 0 | FX73: 0 | FY73: 0 | FZ73: 0 | GA73: 0 | GB73: 0 | GC73: 0 | GD73: 0 | GE73: 0 | GF73: 0 | GG73: 0 | GH73: 0 | GI73: 0 | GJ73: 0 | GK73: 0 | GL73: 0 | GM73: 0 | GN73: 0 | GO73: 0 | GP73: 0 | GQ73: 0 | GR73: 0 | GS73: 0 | GT73: 0 | GU73: 0 | GV73: 0 | GW73: 0 | GX73: 0 | GY73: 0 | GZ73: 0 | HA73: 0 | HB73: 0 | HC73: 0 | HD73: 0 | HE73: =-IF(HE59-HD59=1,$I$9,0) -> 0 | HF73: 0 | HG73: 0 | HH73: 0 | HI73: 0 | HJ73: 0 | HK73: 0 | HL73: 0 | HM73: 0 | HN73: 0 | HO73: 0 | HP73: 0 | HQ73: 0 | HR73: 0 | HS73: 0 | HT73: 0 | HU73: 0 | HV73: 0 | HW73: 0 | HX73: 0 | HY73: 0 | HZ73: 0 | IA73: 0 | IB73: 0 | IC73: 0 | ID73: 0 | IE73: 0 | IF73: 0 | IG73: 0 | IH73: 0 | II73: 0 | IJ73: 0 | IK73: 0 | IL73: 0 | IM73: 0 | IN73: 0 | IO73: 0 | IP73: 0 | IQ73: 0 | IR73: 0 | IS73: 0 | IT73: 0 | IU73: 0 | IV73: 0 | IW73: 0 | IX73: 0 | IY73: 0 | IZ73: 0 | JA73: 0 | JB73: 0 | JC73: 0 | JD73: 0 | JE73: 0 | JF73: 0 | JG73: 0 | JH73: 0 | JI73: 0 | JJ73: 0 | JK73: 0 | JL73: 0 | JM73: 0 | JN73: 0 | JO73: 0 | JP73: 0 | JQ73: =-IF(JQ59-JP59=1,$I$9,0) -> 0 | JR73: 0 | JS73: 0 | JT73: 0 | JU73: 0 | JV73: 0 | JW73: 0 | JX73: 0 | JY73: 0 | JZ73: 0 | KA73: 0 | KB73: 0 | KC73: 0 | KD73: 0 | KE73: 0 | KF73: 0 | KG73: 0 | KH73: 0 | KI73: 0 | KJ73: 0 | KK73: 0 | KL73: 0 | KM73: 0 | KN73: 0 | KO73: 0 | KP73: 0 | KQ73: 0 | KR73: 0 | KS73: 0 | KT73: 0 | KU73: 0 | KV73: 0 | KW73: 0 | KX73: 0 | KY73: 0 | KZ73: 0 | LA73: 0 | LB73: 0 | LC73: 0 | LD73: 0 | LE73: 0 | LF73: 0 | LG73: 0 | LH73: 0 | LI73: 0 | LJ73: 0 | LK73: 0 | LL73: 0 | LM73: 0 | LN73: 0 | LO73: 0 | LP73: 0 | LQ73: 0 | LR73: 0 | LS73: 0 | LT73: 0 | LU73: 0 | LV73: 0 | LW73: 0 | LX73: 0 | LY73: 0 | LZ73: 0 | MA73: 0 | MB73: 0 | MC73: =-IF(MC59-MB59=1,$I$9,0) -> 0 | MD73: 0 | ME73: 0 | MF73: 0 | MG73: 0 | MH73: 0 | MI73: 0 | MJ73: 0 | MK73: 0 | ML73: 0 | MM73: 0 | MN73: 0 | MO73: 0 | MP73: 0 | MQ73: 0 | MR73: 0 | MS73: 0 | MT73: 0 | MU73: 0 | MV73: 0 | MW73: 0 | MX73: 0 | MY73: 0 | MZ73: 0 | NA73: 0 | NB73: 0 | NC73: 0 | ND73: 0 | NE73: 0 | NF73: 0 | NG73: 0 | NH73: 0 | NI73: 0 | NJ73: 0 | NK73: 0 | NL73: 0 | NM73: 0 | NN73: 0 | NO73: 0 | NP73: 0 | NQ73: 0 | NR73: 0 | NS73: 0 | NT73: 0 | NU73: 0 | NV73: 0 | NW73: 0 | NX73: 0 | NY73: 0 | NZ73: 0 | OA73: 0 | OB73: 0 | OC73: 0 | OD73: 0 | OE73: 0 | OF73: 0 | OG73: 0 | OH73: 0 | OI73: 0 | OJ73: 0 | OK73: 0 | OL73: 0 | OM73: 0 | ON73: 0 | OO73: =-IF(OO59-ON59=1,$I$9,0) -> 0 | OP73: 0 | OQ73: 0 | OR73: 0 | OS73: 0 | OT73: 0 | OU73: 0 | OV73: 0 | OW73: 0 | OX73: 0 | OY73: 0 | OZ73: 0 | PA73: 0 | PB73: 0 | PC73: 0 | PD73: 0 | PE73: 0 | PF73: 0 | PG73: 0 | PH73: 0 | PI73: 0 | PJ73: 0 | PK73: 0 | PL73: 0 | PM73: 0 | PN73: 0 | PO73: 0 | PP73: 0 | PQ73: 0 | PR73: 0 | PS73: 0 | PT73: 0 | PU73: 0 | PV73: 0 | PW73: 0 | PX73: 0 | PY73: 0 | PZ73: 0 | QA73: 0 | QB73: 0 | QC73: 0 | QD73: 0 | QE73: 0 | QF73: 0 | QG73: 0 | QH73: 0 | QI73: 0 | QJ73: 0 | QK73: 0 | QL73: 0 | QM73: 0 | QN73: 0 | QO73: 0 | QP73: 0 | QQ73: 0 | QR73: 0 | QS73: 0 | QT73: 0 | QU73: 0 | QV73: 0 | QW73: 0 | QX73: 0 | QY73: 0 | QZ73: 0 | RA73: =-IF(RA59-QZ59=1,$I$9,0) -> 0 | RB73: 0 | RC73: 0 | RD73: 0 | RE73: 0 | RF73: 0 | RG73: 0 | RH73: 0 | RI73: 0 | RJ73: 0 | RK73: 0 | RL73: 0 | RM73: 0 | RN73: 0 | RO73: 0 | RP73: 0 | RQ73: 0 | RR73: 0 | RS73: 0 | RT73: 0 | RU73: 0 | RV73: 0 | RW73: 0 | RX73: 0 | RY73: 0 | RZ73: 0 | SA73: 0 | SB73: 0 | SC73: 0 | SD73: 0 | SE73: 0 | SF73: 0 | SG73: 0 | SH73: 0 | SI73: 0 | SJ73: 0 | SK73: 0 | SL73: 0 | SM73: 0 | SN73: 0 | SO73: 0 | SP73: 0 | SQ73: 0 | SR73: 0 | SS73: 0 | ST73: 0 | SU73: 0 | SV73: 0 | SW73: 0 | SX73: 0 | SY73: 0 | SZ73: 0 | TA73: 0 | TB73: 0 | TC73: 0 | TD73: 0 | TE73: 0 | TF73: 0 | TG73: 0 | TH73: 0 | TI73: 0 | TJ73: 0 | TK73: 0 | TL73: 0 | TM73: =-IF(TM59-TL59=1,$I$9,0) -> 0 | TN73: 0 | TO73: 0 | TP73: 0 | TQ73: 0 | TR73: 0 | TS73: 0 | TT73: 0 | TU73: 0 | TV73: 0 | TW73: 0 | TX73: 0 | TY73: 0 | TZ73: 0 | UA73: 0 | UB73: 0 | UC73: 0 | UD73: 0 | UE73: 0 | UF73: 0 | UG73: 0 | UH73: 0 | UI73: 0 | UJ73: 0 | UK73: 0 | UL73: 0 | UM73: 0 | UN73: 0 | UO73: 0 | UP73: 0 | UQ73: 0 | UR73: 0 | US73: 0 | UT73: 0 | UU73: 0 | UV73: 0 | UW73: 0 | UX73: 0 | UY73: 0 | UZ73: 0 | VA73: 0 | VB73: 0 | VC73: 0 | VD73: 0 | VE73: 0 | VF73: 0 | VG73: 0 | VH73: 0 | VI73: 0 | VJ73: 0 | VK73: 0 | VL73: 0 | VM73: 0 | VN73: 0 | VO73: 0 | VP73: 0 | VQ73: 0 | VR73: 0 | VS73: 0 | VT73: 0 | VU73: 0 | VV73: 0 | VW73: 0 | VX73: 0 | VY73: =-IF(VY59-VX59=1,$I$9,0) -> 0 | VZ73: 0 | WA73: 0 | WB73: 0 | WC73: 0 | WD73: 0 | WE73: 0 | WF73: 0 | WG73: 0 | WH73: 0 | WI73: 0 | WJ73: 0 | WK73: 0 | WL73: 0 | WM73: 0 | WN73: 0 | WO73: 0 | WP73: 0 | WQ73: 0 | WR73: 0 | WS73: 0 | WT73: 0 | WU73: 0 | WV73: 0 | WW73: 0 | WX73: 0 | WY73: 0 | WZ73: 0 | XA73: 0 | XB73: 0 | XC73: 0 | XD73: 0 | XE73: 0 | XF73: 0 | XG73: 0 | XH73: 0 | XI73: 0 | XJ73: 0 | XK73: 0 | XL73: 0 | XM73: 0 | XN73: 0 | XO73: 0 | XP73: 0 | XQ73: 0 | XR73: 0 | XS73: 0 | XT73: 0 | XU73: 0 | XV73: 0 | XW73: 0 | XX73: 0 | XY73: 0 | XZ73: 0 | YA73: 0 | YB73: 0 | YC73: 0 | YD73: 0 | YE73: 0 | YF73: 0 | YG73: 0 | YH73: 0 | YI73: 0 | YJ73: 0 | YK73: =-IF(YK59-YJ59=1,$I$9,0) -> 0 | YL73: 0 | YM73: 0 | YN73: 0 | YO73: 0 | YP73: 0 | YQ73: 0 | YR73: 0 | YS73: 0 | YT73: 0 | YU73: 0 | YV73: 0 | YW73: 0 | YX73: 0 | YY73: 0 | YZ73: 0 | ZA73: 0 | ZB73: 0 | ZC73: 0 | ZD73: 0 | ZE73: 0 | ZF73: 0 | ZG73: 0 | ZH73: 0 | ZI73: 0 | ZJ73: 0 | ZK73: 0 | ZL73: 0 | ZM73: 0 | ZN73: 0 | ZO73: 0 | ZP73: 0 | ZQ73: 0 | ZR73: 0 | ZS73: 0 | ZT73: 0 | ZU73: 0 | ZV73: 0 | ZW73: 0 | ZX73: 0 | ZY73: 0 | ZZ73: 0 | AAA73: 0 | AAB73: 0 | AAC73: 0 | AAD73: 0 | AAE73: 0 | AAF73: 0 | AAG73: 0 | AAH73: 0 | AAI73: 0 | AAJ73: 0 | AAK73: 0 | AAL73: 0 | AAM73: 0 | AAN73: 0 | AAO73: 0 | AAP73: 0 | AAQ73: 0 | AAR73: 0 | AAS73: 0 | AAT73: 0 | AAU73: 0 | AAV73: 0 | AAW73: =-IF(AAW59-AAV59=1,$I$9,0) -> 0 | AAX73: 0 | AAY73: 0 | AAZ73: 0 | ABA73: 0 | ABB73: 0 | ABC73: 0 | ABD73: 0 | ABE73: 0 | ABF73: 0 | ABG73: 0 | ABH73: 0 | ABI73: 0 | ABJ73: 0 | ABK73: 0 | ABL73: 0 | ABM73: 0 | ABN73: 0 | ABO73: 0 | ABP73: 0 | ABQ73: 0 | ABR73: 0 | ABS73: 0 | ABT73: 0 | ABU73: 0 | ABV73: 0 | ABW73: 0 | ABX73: 0 | ABY73: 0 | ABZ73: 0 | ACA73: 0 | ACB73: 0 | ACC73: 0 | ACD73: 0 | ACE73: 0 | ACF73: 0 | ACG73: 0 | ACH73: 0 | ACI73: 0 | ACJ73: 0 | ACK73: 0 | ACL73: 0 | ACM73: 0 | ACN73: 0 | ACO73: 0 | ACP73: 0 | ACQ73: 0 | ACR73: 0 | ACS73: 0 | ACT73: 0 | ACU73: 0 | ACV73: 0 | ACW73: 0 | ACX73: 0 | ACY73: 0 | ACZ73: 0 | ADA73: 0 | ADB73: 0 | ADC73: 0 | ADD73: 0 | ADE73: 0 | ADF73: 0 | ADG73: 0 | ADH73: 0 | ADI73: =-IF(ADI59-ADH59=1,$I$9,0) -> 0 | ADJ73: 0 | ADK73: 0 | ADL73: 0 | ADM73: 0 | ADN73: 0 | ADO73: 0 | ADP73: 0 | ADQ73: 0 | ADR73: 0 | ADS73: 0 | ADT73: 0 | ADU73: 0 | ADV73: 0 | ADW73: 0 | ADX73: 0 | ADY73: 0 | ADZ73: 0 | AEA73: 0 | AEB73: 0 | AEC73: 0 | AED73: 0 | AEE73: 0 | AEF73: 0 | AEG73: 0 | AEH73: 0 | AEI73: 0 | AEJ73: 0 | AEK73: 0 | AEL73: 0 | AEM73: 0 | AEN73: 0 | AEO73: 0 | AEP73: 0 | AEQ73: 0 | AER73: 0 | AES73: 0 | AET73: 0 | AEU73: 0 | AEV73: 0 | AEW73: 0 | AEX73: 0 | AEY73: 0 | AEZ73: 0 | AFA73: 0 | AFB73: 0 | AFC73: 0 | AFD73: 0 | AFE73: 0 | AFF73: 0 | AFG73: 0 | AFH73: 0 | AFI73: 0 | AFJ73: 0 | AFK73: 0 | AFL73: 0 | AFM73: 0 | AFN73: 0 | AFO73: 0 | AFP73: 0 | AFQ73: 0 | AFR73: 0 | AFS73: 0 | AFT73: 0 | AFU73: =-IF(AFU59-AFT59=1,$I$9,0) -> 0 | AFV73: 0 | AFW73: 0 | AFX73: 0 | AFY73: 0 | AFZ73: 0 | AGA73: 0 | AGB73: 0 | AGC73: 0 | AGD73: 0 | AGE73: 0 | AGF73: 0 | AGG73: 0 | AGH73: 0 | AGI73: 0 | AGJ73: 0 | AGK73: 0 | AGL73: 0 | AGM73: 0 | AGN73: 0 | AGO73: 0 | AGP73: 0 | AGQ73: 0 | AGR73: 0 | AGS73: 0 | AGT73: 0 | AGU73: 0 | AGV73: 0 | AGW73: 0 | AGX73: 0 | AGY73: 0 | AGZ73: 0 | AHA73: 0 | AHB73: 0 | AHC73: 0 | AHD73: 0 | AHE73: 0 | AHF73: 0 | AHG73: 0 | AHH73: 0 | AHI73: 0 | AHJ73: 0 | AHK73: 0 | AHL73: 0 | AHM73: 0 | AHN73: 0 | AHO73: 0 | AHP73: 0 | AHQ73: 0 | AHR73: 0 | AHS73: 0 | AHT73: 0 | AHU73: 0 | AHV73: 0 | AHW73: 0 | AHX73: 0 | AHY73: 0 | AHZ73: 0 | AIA73: 0 | AIB73: 0 | AIC73: 0 | AID73: 0 | AIE73: 0 | AIF73: 0 | AIG73: =-IF(AIG59-AIF59=1,$I$9,0) -> 0 | AIH73: 0 | AII73: 0 | AIJ73: 0 | AIK73: 0 | AIL73: 0 | AIM73: 0 | AIN73: 0 | AIO73: 0 | AIP73: 0 | AIQ73: 0 | AIR73: 0 | AIS73: 0 | AIT73: 0 | AIU73: 0 | AIV73: 0 | AIW73: 0 | AIX73: 0 | AIY73: 0 | AIZ73: 0 | AJA73: 0 | AJB73: 0 | AJC73: 0 | AJD73: 0 | AJE73: 0 | AJF73: 0 | AJG73: 0 | AJH73: 0 | AJI73: 0 | AJJ73: 0 | AJK73: 0 | AJL73: 0 | AJM73: 0 | AJN73: 0 | AJO73: 0 | AJP73: 0 | AJQ73: 0 | AJR73: 0 | AJS73: 0 | AJT73: 0 | AJU73: 0 | AJV73: 0 | AJW73: 0 | AJX73: 0 | AJY73: 0 | AJZ73: =-IF(AJZ59-AJY59=1,$I$9,0) -> 0 | AKA73: 0 | AKB73: 0 | AKC73: 0 | AKD73: 0 | AKE73: 0 | AKF73: 0 | AKG73: =-IF(AKG59-AKF59=1,$I$9,0) -> 0 | AKH73: 0
B74: Construction Cost Stage 2 | J74: =-IF(J60-I60=1,$I$10,0) -> 0 | K74: =-IF(K60-J60=1,$I$10,0) -> 0 | L74: =-IF(L60-K60=1,$I$10,0) -> 0 | M74: =-IF(M60-L60=1,$I$10,0) -> 0 | N74: 0 | O74: 0 | P74: 0 | Q74: =-IF(Q60-P60=1,$I$10,0) -> 0 | R74: 0 | S74: 0 | T74: 0 | U74: =-IF(U60-T60=1,$I$10,0) -> -2500 | V74: =-IF(V60-U60=1,$I$10,0) -> 0 | W74: =-IF(W60-V60=1,$I$10,0) -> 0 | X74: 0 | Y74: 0 | Z74: 0 | AA74: 0 | AB74: 0 | AC74: =-IF(AC60-AB60=1,$I$10,0) -> 0 | AD74: 0 | AE74: 0 | AF74: 0 | AG74: 0 | AH74: 0 | AI74: 0 | AJ74: 0 | AK74: 0 | AL74: 0 | AM74: 0 | AN74: 0 | AO74: 0 | AP74: 0 | AQ74: 0 | AR74: 0 | AS74: 0 | AT74: 0 | AU74: 0 | AV74: 0 | AW74: 0 | AX74: 0 | AY74: 0 | AZ74: 0 | BA74: 0 | BB74: 0 | BC74: 0 | BD74: 0 | BE74: 0 | BF74: 0 | BG74: 0 | BH74: 0 | BI74: 0 | BJ74: 0 | BK74: 0 | BL74: 0 | BM74: 0 | BN74: 0 | BO74: 0 | BP74: 0 | BQ74: 0 | BR74: 0 | BS74: 0 | BT74: 0 | BU74: 0 | BV74: 0 | BW74: 0 | BX74: 0 | BY74: 0 | BZ74: 0 | CA74: 0 | CB74: 0 | CC74: 0 | CD74: 0 | CE74: 0 | CF74: 0 | CG74: =-IF(CG60-CF60=1,$I$10,0) -> 0 | CH74: 0 | CI74: 0 | CJ74: 0 | CK74: 0 | CL74: 0 | CM74: 0 | CN74: 0 | CO74: 0 | CP74: 0 | CQ74: 0 | CR74: 0 | CS74: 0 | CT74: 0 | CU74: 0 | CV74: 0 | CW74: 0 | CX74: 0 | CY74: 0 | CZ74: 0 | DA74: 0 | DB74: 0 | DC74: 0 | DD74: 0 | DE74: 0 | DF74: 0 | DG74: 0 | DH74: 0 | DI74: 0 | DJ74: 0 | DK74: 0 | DL74: 0 | DM74: 0 | DN74: 0 | DO74: 0 | DP74: 0 | DQ74: 0 | DR74: 0 | DS74: 0 | DT74: 0 | DU74: 0 | DV74: 0 | DW74: 0 | DX74: 0 | DY74: 0 | DZ74: 0 | EA74: 0 | EB74: 0 | EC74: 0 | ED74: 0 | EE74: 0 | EF74: 0 | EG74: 0 | EH74: 0 | EI74: 0 | EJ74: 0 | EK74: 0 | EL74: 0 | EM74: 0 | EN74: 0 | EO74: 0 | EP74: 0 | EQ74: 0 | ER74: 0 | ES74: =-IF(ES60-ER60=1,$I$10,0) -> 0 | ET74: 0 | EU74: 0 | EV74: 0 | EW74: 0 | EX74: 0 | EY74: 0 | EZ74: 0 | FA74: 0 | FB74: 0 | FC74: 0 | FD74: 0 | FE74: 0 | FF74: 0 | FG74: 0 | FH74: 0 | FI74: 0 | FJ74: 0 | FK74: 0 | FL74: 0 | FM74: 0 | FN74: 0 | FO74: 0 | FP74: 0 | FQ74: 0 | FR74: 0 | FS74: 0 | FT74: 0 | FU74: 0 | FV74: 0 | FW74: 0 | FX74: 0 | FY74: 0 | FZ74: 0 | GA74: 0 | GB74: 0 | GC74: 0 | GD74: 0 | GE74: 0 | GF74: 0 | GG74: 0 | GH74: 0 | GI74: 0 | GJ74: 0 | GK74: 0 | GL74: 0 | GM74: 0 | GN74: 0 | GO74: 0 | GP74: 0 | GQ74: 0 | GR74: 0 | GS74: 0 | GT74: 0 | GU74: 0 | GV74: 0 | GW74: 0 | GX74: 0 | GY74: 0 | GZ74: 0 | HA74: 0 | HB74: 0 | HC74: 0 | HD74: 0 | HE74: =-IF(HE60-HD60=1,$I$10,0) -> 0 | HF74: 0 | HG74: 0 | HH74: 0 | HI74: 0 | HJ74: 0 | HK74: 0 | HL74: 0 | HM74: 0 | HN74: 0 | HO74: 0 | HP74: 0 | HQ74: 0 | HR74: 0 | HS74: 0 | HT74: 0 | HU74: 0 | HV74: 0 | HW74: 0 | HX74: 0 | HY74: 0 | HZ74: 0 | IA74: 0 | IB74: 0 | IC74: 0 | ID74: 0 | IE74: 0 | IF74: 0 | IG74: 0 | IH74: 0 | II74: 0 | IJ74: 0 | IK74: 0 | IL74: 0 | IM74: 0 | IN74: 0 | IO74: 0 | IP74: 0 | IQ74: 0 | IR74: 0 | IS74: 0 | IT74: 0 | IU74: 0 | IV74: 0 | IW74: 0 | IX74: 0 | IY74: 0 | IZ74: 0 | JA74: 0 | JB74: 0 | JC74: 0 | JD74: 0 | JE74: 0 | JF74: 0 | JG74: 0 | JH74: 0 | JI74: 0 | JJ74: 0 | JK74: 0 | JL74: 0 | JM74: 0 | JN74: 0 | JO74: 0 | JP74: 0 | JQ74: =-IF(JQ60-JP60=1,$I$10,0) -> 0 | JR74: 0 | JS74: 0 | JT74: 0 | JU74: 0 | JV74: 0 | JW74: 0 | JX74: 0 | JY74: 0 | JZ74: 0 | KA74: 0 | KB74: 0 | KC74: 0 | KD74: 0 | KE74: 0 | KF74: 0 | KG74: 0 | KH74: 0 | KI74: 0 | KJ74: 0 | KK74: 0 | KL74: 0 | KM74: 0 | KN74: 0 | KO74: 0 | KP74: 0 | KQ74: 0 | KR74: 0 | KS74: 0 | KT74: 0 | KU74: 0 | KV74: 0 | KW74: 0 | KX74: 0 | KY74: 0 | KZ74: 0 | LA74: 0 | LB74: 0 | LC74: 0 | LD74: 0 | LE74: 0 | LF74: 0 | LG74: 0 | LH74: 0 | LI74: 0 | LJ74: 0 | LK74: 0 | LL74: 0 | LM74: 0 | LN74: 0 | LO74: 0 | LP74: 0 | LQ74: 0 | LR74: 0 | LS74: 0 | LT74: 0 | LU74: 0 | LV74: 0 | LW74: 0 | LX74: 0 | LY74: 0 | LZ74: 0 | MA74: 0 | MB74: 0 | MC74: =-IF(MC60-MB60=1,$I$10,0) -> 0 | MD74: 0 | ME74: 0 | MF74: 0 | MG74: 0 | MH74: 0 | MI74: 0 | MJ74: 0 | MK74: 0 | ML74: 0 | MM74: 0 | MN74: 0 | MO74: 0 | MP74: 0 | MQ74: 0 | MR74: 0 | MS74: 0 | MT74: 0 | MU74: 0 | MV74: 0 | MW74: 0 | MX74: 0 | MY74: 0 | MZ74: 0 | NA74: 0 | NB74: 0 | NC74: 0 | ND74: 0 | NE74: 0 | NF74: 0 | NG74: 0 | NH74: 0 | NI74: 0 | NJ74: 0 | NK74: 0 | NL74: 0 | NM74: 0 | NN74: 0 | NO74: 0 | NP74: 0 | NQ74: 0 | NR74: 0 | NS74: 0 | NT74: 0 | NU74: 0 | NV74: 0 | NW74: 0 | NX74: 0 | NY74: 0 | NZ74: 0 | OA74: 0 | OB74: 0 | OC74: 0 | OD74: 0 | OE74: 0 | OF74: 0 | OG74: 0 | OH74: 0 | OI74: 0 | OJ74: 0 | OK74: 0 | OL74: 0 | OM74: 0 | ON74: 0 | OO74: =-IF(OO60-ON60=1,$I$10,0) -> 0 | OP74: 0 | OQ74: 0 | OR74: 0 | OS74: 0 | OT74: 0 | OU74: 0 | OV74: 0 | OW74: 0 | OX74: 0 | OY74: 0 | OZ74: 0 | PA74: 0 | PB74: 0 | PC74: 0 | PD74: 0 | PE74: 0 | PF74: 0 | PG74: 0 | PH74: 0 | PI74: 0 | PJ74: 0 | PK74: 0 | PL74: 0 | PM74: 0 | PN74: 0 | PO74: 0 | PP74: 0 | PQ74: 0 | PR74: 0 | PS74: 0 | PT74: 0 | PU74: 0 | PV74: 0 | PW74: 0 | PX74: 0 | PY74: 0 | PZ74: 0 | QA74: 0 | QB74: 0 | QC74: 0 | QD74: 0 | QE74: 0 | QF74: 0 | QG74: 0 | QH74: 0 | QI74: 0 | QJ74: 0 | QK74: 0 | QL74: 0 | QM74: 0 | QN74: 0 | QO74: 0 | QP74: 0 | QQ74: 0 | QR74: 0 | QS74: 0 | QT74: 0 | QU74: 0 | QV74: 0 | QW74: 0 | QX74: 0 | QY74: 0 | QZ74: 0 | RA74: =-IF(RA60-QZ60=1,$I$10,0) -> 0 | RB74: 0 | RC74: 0 | RD74: 0 | RE74: 0 | RF74: 0 | RG74: 0 | RH74: 0 | RI74: 0 | RJ74: 0 | RK74: 0 | RL74: 0 | RM74: 0 | RN74: 0 | RO74: 0 | RP74: 0 | RQ74: 0 | RR74: 0 | RS74: 0 | RT74: 0 | RU74: 0 | RV74: 0 | RW74: 0 | RX74: 0 | RY74: 0 | RZ74: 0 | SA74: 0 | SB74: 0 | SC74: 0 | SD74: 0 | SE74: 0 | SF74: 0 | SG74: 0 | SH74: 0 | SI74: 0 | SJ74: 0 | SK74: 0 | SL74: 0 | SM74: 0 | SN74: 0 | SO74: 0 | SP74: 0 | SQ74: 0 | SR74: 0 | SS74: 0 | ST74: 0 | SU74: 0 | SV74: 0 | SW74: 0 | SX74: 0 | SY74: 0 | SZ74: 0 | TA74: 0 | TB74: 0 | TC74: 0 | TD74: 0 | TE74: 0 | TF74: 0 | TG74: 0 | TH74: 0 | TI74: 0 | TJ74: 0 | TK74: 0 | TL74: 0 | TM74: =-IF(TM60-TL60=1,$I$10,0) -> 0 | TN74: 0 | TO74: 0 | TP74: 0 | TQ74: 0 | TR74: 0 | TS74: 0 | TT74: 0 | TU74: 0 | TV74: 0 | TW74: 0 | TX74: 0 | TY74: 0 | TZ74: 0 | UA74: 0 | UB74: 0 | UC74: 0 | UD74: 0 | UE74: 0 | UF74: 0 | UG74: 0 | UH74: 0 | UI74: 0 | UJ74: 0 | UK74: 0 | UL74: 0 | UM74: 0 | UN74: 0 | UO74: 0 | UP74: 0 | UQ74: 0 | UR74: 0 | US74: 0 | UT74: 0 | UU74: 0 | UV74: 0 | UW74: 0 | UX74: 0 | UY74: 0 | UZ74: 0 | VA74: 0 | VB74: 0 | VC74: 0 | VD74: 0 | VE74: 0 | VF74: 0 | VG74: 0 | VH74: 0 | VI74: 0 | VJ74: 0 | VK74: 0 | VL74: 0 | VM74: 0 | VN74: 0 | VO74: 0 | VP74: 0 | VQ74: 0 | VR74: 0 | VS74: 0 | VT74: 0 | VU74: 0 | VV74: 0 | VW74: 0 | VX74: 0 | VY74: =-IF(VY60-VX60=1,$I$10,0) -> 0 | VZ74: 0 | WA74: 0 | WB74: 0 | WC74: 0 | WD74: 0 | WE74: 0 | WF74: 0 | WG74: 0 | WH74: 0 | WI74: 0 | WJ74: 0 | WK74: 0 | WL74: 0 | WM74: 0 | WN74: 0 | WO74: 0 | WP74: 0 | WQ74: 0 | WR74: 0 | WS74: 0 | WT74: 0 | WU74: 0 | WV74: 0 | WW74: 0 | WX74: 0 | WY74: 0 | WZ74: 0 | XA74: 0 | XB74: 0 | XC74: 0 | XD74: 0 | XE74: 0 | XF74: 0 | XG74: 0 | XH74: 0 | XI74: 0 | XJ74: 0 | XK74: 0 | XL74: 0 | XM74: 0 | XN74: 0 | XO74: 0 | XP74: 0 | XQ74: 0 | XR74: 0 | XS74: 0 | XT74: 0 | XU74: 0 | XV74: 0 | XW74: 0 | XX74: 0 | XY74: 0 | XZ74: 0 | YA74: 0 | YB74: 0 | YC74: 0 | YD74: 0 | YE74: 0 | YF74: 0 | YG74: 0 | YH74: 0 | YI74: 0 | YJ74: 0 | YK74: =-IF(YK60-YJ60=1,$I$10,0) -> 0 | YL74: 0 | YM74: 0 | YN74: 0 | YO74: 0 | YP74: 0 | YQ74: 0 | YR74: 0 | YS74: 0 | YT74: 0 | YU74: 0 | YV74: 0 | YW74: 0 | YX74: 0 | YY74: 0 | YZ74: 0 | ZA74: 0 | ZB74: 0 | ZC74: 0 | ZD74: 0 | ZE74: 0 | ZF74: 0 | ZG74: 0 | ZH74: 0 | ZI74: 0 | ZJ74: 0 | ZK74: 0 | ZL74: 0 | ZM74: 0 | ZN74: 0 | ZO74: 0 | ZP74: 0 | ZQ74: 0 | ZR74: 0 | ZS74: 0 | ZT74: 0 | ZU74: 0 | ZV74: 0 | ZW74: 0 | ZX74: 0 | ZY74: 0 | ZZ74: 0 | AAA74: 0 | AAB74: 0 | AAC74: 0 | AAD74: 0 | AAE74: 0 | AAF74: 0 | AAG74: 0 | AAH74: 0 | AAI74: 0 | AAJ74: 0 | AAK74: 0 | AAL74: 0 | AAM74: 0 | AAN74: 0 | AAO74: 0 | AAP74: 0 | AAQ74: 0 | AAR74: 0 | AAS74: 0 | AAT74: 0 | AAU74: 0 | AAV74: 0 | AAW74: =-IF(AAW60-AAV60=1,$I$10,0) -> 0 | AAX74: 0 | AAY74: 0 | AAZ74: 0 | ABA74: 0 | ABB74: 0 | ABC74: 0 | ABD74: 0 | ABE74: 0 | ABF74: 0 | ABG74: 0 | ABH74: 0 | ABI74: 0 | ABJ74: 0 | ABK74: 0 | ABL74: 0 | ABM74: 0 | ABN74: 0 | ABO74: 0 | ABP74: 0 | ABQ74: 0 | ABR74: 0 | ABS74: 0 | ABT74: 0 | ABU74: 0 | ABV74: 0 | ABW74: 0 | ABX74: 0 | ABY74: 0 | ABZ74: 0 | ACA74: 0 | ACB74: 0 | ACC74: 0 | ACD74: 0 | ACE74: 0 | ACF74: 0 | ACG74: 0 | ACH74: 0 | ACI74: 0 | ACJ74: 0 | ACK74: 0 | ACL74: 0 | ACM74: 0 | ACN74: 0 | ACO74: 0 | ACP74: 0 | ACQ74: 0 | ACR74: 0 | ACS74: 0 | ACT74: 0 | ACU74: 0 | ACV74: 0 | ACW74: 0 | ACX74: 0 | ACY74: 0 | ACZ74: 0 | ADA74: 0 | ADB74: 0 | ADC74: 0 | ADD74: 0 | ADE74: 0 | ADF74: 0 | ADG74: 0 | ADH74: 0 | ADI74: =-IF(ADI60-ADH60=1,$I$10,0) -> 0 | ADJ74: 0 | ADK74: 0 | ADL74: 0 | ADM74: 0 | ADN74: 0 | ADO74: 0 | ADP74: 0 | ADQ74: 0 | ADR74: 0 | ADS74: 0 | ADT74: 0 | ADU74: 0 | ADV74: 0 | ADW74: 0 | ADX74: 0 | ADY74: 0 | ADZ74: 0 | AEA74: 0 | AEB74: 0 | AEC74: 0 | AED74: 0 | AEE74: 0 | AEF74: 0 | AEG74: 0 | AEH74: 0 | AEI74: 0 | AEJ74: 0 | AEK74: 0 | AEL74: 0 | AEM74: 0 | AEN74: 0 | AEO74: 0 | AEP74: 0 | AEQ74: 0 | AER74: 0 | AES74: 0 | AET74: 0 | AEU74: 0 | AEV74: 0 | AEW74: 0 | AEX74: 0 | AEY74: 0 | AEZ74: 0 | AFA74: 0 | AFB74: 0 | AFC74: 0 | AFD74: 0 | AFE74: 0 | AFF74: 0 | AFG74: 0 | AFH74: 0 | AFI74: 0 | AFJ74: 0 | AFK74: 0 | AFL74: 0 | AFM74: 0 | AFN74: 0 | AFO74: 0 | AFP74: 0 | AFQ74: 0 | AFR74: 0 | AFS74: 0 | AFT74: 0 | AFU74: =-IF(AFU60-AFT60=1,$I$10,0) -> 0 | AFV74: 0 | AFW74: 0 | AFX74: 0 | AFY74: 0 | AFZ74: 0 | AGA74: 0 | AGB74: 0 | AGC74: 0 | AGD74: 0 | AGE74: 0 | AGF74: 0 | AGG74: 0 | AGH74: 0 | AGI74: 0 | AGJ74: 0 | AGK74: 0 | AGL74: 0 | AGM74: 0 | AGN74: 0 | AGO74: 0 | AGP74: 0 | AGQ74: 0 | AGR74: 0 | AGS74: 0 | AGT74: 0 | AGU74: 0 | AGV74: 0 | AGW74: 0 | AGX74: 0 | AGY74: 0 | AGZ74: 0 | AHA74: 0 | AHB74: 0 | AHC74: 0 | AHD74: 0 | AHE74: 0 | AHF74: 0 | AHG74: 0 | AHH74: 0 | AHI74: 0 | AHJ74: 0 | AHK74: 0 | AHL74: 0 | AHM74: 0 | AHN74: 0 | AHO74: 0 | AHP74: 0 | AHQ74: 0 | AHR74: 0 | AHS74: 0 | AHT74: 0 | AHU74: 0 | AHV74: 0 | AHW74: 0 | AHX74: 0 | AHY74: 0 | AHZ74: 0 | AIA74: 0 | AIB74: 0 | AIC74: 0 | AID74: 0 | AIE74: 0 | AIF74: 0 | AIG74: =-IF(AIG60-AIF60=1,$I$10,0) -> 0 | AIH74: 0 | AII74: 0 | AIJ74: 0 | AIK74: 0 | AIL74: 0 | AIM74: 0 | AIN74: 0 | AIO74: 0 | AIP74: 0 | AIQ74: 0 | AIR74: 0 | AIS74: 0 | AIT74: 0 | AIU74: 0 | AIV74: 0 | AIW74: 0 | AIX74: 0 | AIY74: 0 | AIZ74: 0 | AJA74: 0 | AJB74: 0 | AJC74: 0 | AJD74: 0 | AJE74: 0 | AJF74: 0 | AJG74: 0 | AJH74: 0 | AJI74: 0 | AJJ74: 0 | AJK74: 0 | AJL74: 0 | AJM74: 0 | AJN74: 0 | AJO74: 0 | AJP74: 0 | AJQ74: 0 | AJR74: 0 | AJS74: 0 | AJT74: 0 | AJU74: 0 | AJV74: 0 | AJW74: 0 | AJX74: 0 | AJY74: 0 | AJZ74: =-IF(AJZ60-AJY60=1,$I$10,0) -> 0 | AKA74: 0 | AKB74: 0 | AKC74: 0 | AKD74: 0 | AKE74: 0 | AKF74: 0 | AKG74: =-IF(AKG60-AKF60=1,$I$10,0) -> 0 | AKH74: 0
